Workbook

Sheet Simulador CEF
B1: Registro | D1: ITBI | G1: TABELA PRICE | S1: Versão 00 01/09/2021
B2: 0 | D2: 0 | G2: LANÇAMENTO COMPLETO GUANABARA - SÃO GONÇALO
B3: =IF(G33="Sim",B2/2+100,B2) -> 0 | K3: =IF(G4="ÚNICO SUZANO - TORRE 5",1,IF(G4="ÚNICO SUZANO - FASE 2 - TORRES 4 e 6",1,0)) -> 0 | S3: ,,
G4: Completo Guanabara - Desconto - Sem Premio | S4: =IF(AND('Premissas e Calculos'!J11*(1-'Premissas e Calculos'!G29)<='Premissas e Calculos'!J3,'Premissas e Calculos'!J13<='Premissas e Calculos'!J3),"PCVA","Imóvel fora do PCVA") -> PCVA | HF4: Empresa de Vendas | HL4: =Apoio!B1 -> Planilha de resposta do empreendimento escolhido
AB5: Data de Virada da Tabela | HE5: 1 | HF5: ='Premissas e Calculos'!M30 -> MAIS | HL5: =Apoio!B2 -> Código Empreendimento | HM5: =Apoio!C2 -> 0 | HN5: =Apoio!D2 -> 2 | HO5: =Apoio!E2 -> 0
B6: =E32&G33 -> SimNão | F6: Unidade: | I6: 4° andar S/ Vaga | M6: Valor do Imóvel na Tabela: | S6: =IF(B6="SIMSIM","VERIFIQUE AS OPÇÕES",V6+D2+B3+F32) -> 160140 | V6: =IF(I12>AB6,0,VLOOKUP(I6,HM16:HO91,2,FALSE)) -> 159390 | AB6: ='Premissas e Calculos'!G38 -> 2021-09-30 | HE6: 2 | HF6: ='Premissas e Calculos'!M31 -> CURY VENDAS | HL6: =Apoio!B3 -> Empreendimento: | HM6: =Apoio!C3 -> 0 | HN6: =Apoio!D3 -> Completo Guanabara - Desconto - Sem Premio
HE7: 3 | HF7: ='Premissas e Calculos'!#REF! ->  | HL7: =Apoio!B4 -> Valor Máximo Do Imóvel dentro do Pacote | HM7: =Apoio!C4 -> 0 | HN7: =Apoio!D4 -> 0 | HO7: =Apoio!E4 -> 190000
F8: Corretor: | N8: Empresa de Venda: | S8: CURY VENDAS | V8: =S6-V6 -> 750 | HE8: 4 | HF8: ='Premissas e Calculos'!M33 -> VENDA INTERNA | HL8: =Apoio!B5 -> Tabela de Unidades disponíveis | IP8: Empreendimentos | IQ8: Empresa de Vendas | IR8: Comissão
HE9: 5 | HF9: ='Premissas e Calculos'!M34 -> 0 | HL9: =Apoio!B6 -> 0 | HM9: =Apoio!C6 -> Código Tipo | HN9: =Apoio!D6 -> Código Venda | HO9: =Apoio!E6 -> Código Avaliação
B10: 10 Mil a mais FAKE | F10: Gerente: | O10: Data das Chaves: | S10: =VLOOKUP(G4,'DADOS DOS EMPREENDIMENTOS'!B10:K28,10,FALSE) -> 2024-01-10 | HE10: 6 | HF10: ='Premissas e Calculos'!M32 -> CURY & CIA
AB11: ÚNICO SUZANO - TORRE 4 e 6 | AC11: 7 | AD11: 7 | HE11: 7 | HF11: ='Premissas e Calculos'!M36 -> 0 | HM11: =Apoio!C7 -> 7 | HN11: =Apoio!D7 -> 8 | HO11: =Apoio!E7 -> 9
F12: Data: | G12: Data: | I12: =TODAY() -> 2021-09-01 | AB12: ÚNICO SUZANO - TORRE 5 | AC12: 8 | AD12: 8 | GZ12: Valor Máximo FGTS | HE12: 8 | HF12: ='Premissas e Calculos'!M37 -> 0 | HM12: =Apoio!C8 -> Tipo | HN12: =Apoio!D8 -> Preço de Venda | HO12: =Apoio!E8 -> Avaliação CAIXA | HR12: ='DADOS DOS EMPREENDIMENTOS'!A8 -> Código dos dos empreendimentos | IP12: FATTO SPORT FARIA LIMA | IQ12: SELLING | IR12: 0.029
B14: 1. INFORMAÇÕES DO CLIENTE | GZ14: ='Premissas e Calculos'!J25 -> 142379 | HE14: 9 | HF14: ='Premissas e Calculos'!M38 -> 0
HE15: 10 | HF15: ='Premissas e Calculos'!M39 -> 0
B16: 1.1 Nome do Cliente: | M16: 1.2. Data nascimento: | S16: 19 | T16: 5 | U16: 1994 | HE16: 11 | HF16: ='Premissas e Calculos'!M40 -> 0 | HL16: =Apoio!B9 -> 1 | HM16: =Apoio!C9 -> 5° andar S/ Vaga | HN16: =Apoio!D9 -> 157390 | HO16: =Apoio!E9 -> 158000
HF17: ='Premissas e Calculos'!M41 -> 0 | HL17: =Apoio!B10 -> 2 | HM17: =Apoio!C10 -> 4° andar S/ Vaga | HN17: =Apoio!D10 -> 159390 | HO17: =Apoio!E10 -> 158000
HE18: 12 | HF18: ='Premissas e Calculos'!M42 -> 0 | HL18: =Apoio!B11 -> 3 | HM18: =Apoio!C11 -> 4° andar C/ Vaga | HN18: =Apoio!D11 -> 173390 | HO18: =Apoio!E11 -> 172000 | HR18: ='DADOS DOS EMPREENDIMENTOS'!A10 -> 1 | HS18: ='DADOS DOS EMPREENDIMENTOS'!B10 -> Completo Guanabara - Premio Volta Caixa | HT18: ='DADOS DOS EMPREENDIMENTOS'!C10 -> 1 | IP18: FATTO JARDIM BOTANICO | IQ18: HABITCASA | IR18: 0.0325
J19: =IF(E32="NÃO","Cliente fora do PCVA, Será cobrado pelo banco uma Taxa no valor de R$ 3500,00 no momento de assinatura da minuta de financiamento","") ->  | GZ19: Sim | HE19: 13 | HF19: ='Premissas e Calculos'!M43 -> 0 | HL19: =Apoio!B12 -> 4 | HM19: =Apoio!C12 -> 3°andar C/ Vaga | HN19: =Apoio!D12 -> 173390 | HO19: =Apoio!E12 -> 178000 | HR19: ='DADOS DOS EMPREENDIMENTOS'!A11 -> 2 | HS19: ='DADOS DOS EMPREENDIMENTOS'!B11 -> Completo Guanabara - Desconto - Sem Premio | HT19: ='DADOS DOS EMPREENDIMENTOS'!C11 -> 2 | IP19: VITÓRIA PIRITUBA
B20: 1.3. Renda Familiar Total: | F20: 2150 | N20: 1.4. Valor do FGTS: | S20: 5000 | Z20: =IF(G1="TABELA PRICE",0,1) -> 0 | AA20: =IF(H2="TABELA PRICE",0,1) -> 1 | AB20: TABELA SAC | HF20: ='Premissas e Calculos'!M44 -> 0 | HL20: =Apoio!B13 -> 5 | HM20: =Apoio!C13 -> 2°andar C/ Vaga | HN20: =Apoio!D13 -> 174390 | HO20: =Apoio!E13 -> 178000 | HR20: ='DADOS DOS EMPREENDIMENTOS'!A12 -> 3 | HS20: ='DADOS DOS EMPREENDIMENTOS'!B12 -> 0 | HT20: ='DADOS DOS EMPREENDIMENTOS'!C12 -> 3
A21: 1.3.1 Qtd Compradores
D22: 2
C23: 1 | D23: =D22 -> 2 | F23: =F20*50% -> 1075 | T23: + | AB23: TABELA PRICE | GZ23: Não | HE23: 14 | HF23: ='Premissas e Calculos'!M45 -> 0 | HL23: =Apoio!B14 -> 6 | HM23: =Apoio!C14 -> 1° andar S/ Vaga | HN23: =Apoio!D14 -> 158390 | HO23: =Apoio!E14 -> 151000 | HR23: ='DADOS DOS EMPREENDIMENTOS'!A13 -> 4 | HS23: ='DADOS DOS EMPREENDIMENTOS'!B13 -> 0 | HT23: ='DADOS DOS EMPREENDIMENTOS'!C13 -> 4
C24: 2 | F24: =IF(E32="não",8.66%,'Premissas e Calculos'!J9) -> 0.05 | G24: a.a. | I24: =IF(S20>0,"(Redução de 0,5% na taxa de juros)","") -> (Redução de 0,5% na taxa de juros) | P24: 1.6. Subsídio: | S24: ='Premissas e Calculos'!J17 -> 17011 | HE24: 15 | HF24: ='Premissas e Calculos'!M46 -> 0 | HL24: =Apoio!B15 -> 7 | HM24: =Apoio!C15 -> 1° andar C/ Vaga | HN24: =Apoio!D15 -> 172390 | HO24: =Apoio!E15 -> 179000 | HR24: ='DADOS DOS EMPREENDIMENTOS'!A14 -> 5 | HS24: ='DADOS DOS EMPREENDIMENTOS'!B14 -> 0 | HT24: ='DADOS DOS EMPREENDIMENTOS'!C14 -> 5
B25: 1.5. Taxa de Juros Nominal: | K25: =F20*2 -> 4300 | T25: + | HE25: 16 | HF25: ='Premissas e Calculos'!M47 -> 0 | HL25: =Apoio!B16 -> 8 | HM25: =Apoio!C16 -> 1º andar 1 Quarto (PNE) | HN25: =Apoio!D16 -> 162390 | HO25: =Apoio!E16 -> 171000 | HR25: ='DADOS DOS EMPREENDIMENTOS'!A15 -> 6 | HS25: ='DADOS DOS EMPREENDIMENTOS'!B15 -> 0 | HT25: ='DADOS DOS EMPREENDIMENTOS'!C15 -> 6 | IP25: Prazo | IQ25: Valor Financiado | IR25: 1 Prestação | IS25: ÚLTIMA
F26: =F24/12 -> 0.004166666667 | G26: a.m. | L26: 1.8. Valor Máximo Financiado: | S26: =IF((V6-((IF(ROUND(IF(G31="PRAZO EXCEDIDO","ERRO",'Premissas e Calculos'!O10),0)>=0,ROUND(IF(G29="PRAZO EXCEDIDO","ERRO",'Premissas e Calculos'!O10),0),0)*'Premissas e Calculos'!G32)+S24+S20))>S29,(IF(ROUND(IF(G29="PRAZO EXCEDIDO","ERRO",'Premissas e Calculos'!O10),0)>=0,ROUND(IF(G29="PRAZO EXCEDIDO","ERRO",'Premissas e Calculos'!O10),0),0)*'Premissas e Calculos'!G32),V6-S28-S20-S24) -> 117750 | HE26: 17 | HF26: ='Premissas e Calculos'!M48 -> 0 | HL26: =Apoio!B17 -> 9 | HM26: =Apoio!C17 -> 0 | HN26: =Apoio!D17 -> 0 | HO26: =Apoio!E17 -> 0 | HR26: ='DADOS DOS EMPREENDIMENTOS'!A16 -> 7 | HS26: ='DADOS DOS EMPREENDIMENTOS'!B16 -> 0 | HT26: ='DADOS DOS EMPREENDIMENTOS'!C16 -> 7 | IP26: 240 | IQ26: =repasse240 ->  | IR26: =#REF! ->  | IS26: =#REF!/IP26 -> 
T27: = | HE27: 18 | HF27: ='Premissas e Calculos'!M49 -> 0 | HL27: =Apoio!B18 -> 10 | HM27: =Apoio!C18 -> 0 | HN27: =Apoio!D18 -> 0 | HO27: =Apoio!E18 -> 0 | HR27: ='DADOS DOS EMPREENDIMENTOS'!A18 -> 8 | HS27: ='DADOS DOS EMPREENDIMENTOS'!B18 -> 0 | HT27: ='DADOS DOS EMPREENDIMENTOS'!C18 -> 8 | IP27: 300 | IQ27: =repasse300 ->  | IR27: =#REF! ->  | IS27: =#REF!/IP27 -> 
B28: 1.7. Prazo de Financiamento Pós Obra: | G28: 360 | L28: 1.9. Valor Máximo de Repasse: | S28: =SUM(S26,S24,S20) -> 139761 | HE28: 19 | HF28: ='Premissas e Calculos'!M50 -> 0 | HL28: =Apoio!B19 -> 11 | HM28: =Apoio!C19 -> 0 | HN28: =Apoio!D19 -> 0 | HO28: =Apoio!E19 -> 0 | HR28: ='DADOS DOS EMPREENDIMENTOS'!A19 -> 9 | HS28: ='DADOS DOS EMPREENDIMENTOS'!B19 -> 0 | HT28: ='DADOS DOS EMPREENDIMENTOS'!C19 -> 9 | IP28: 360 | IQ28: =#REF! ->  | IR28: =#REF! ->  | IS28: =#REF!/IP28 -> 
G29: =IF(G28<='Premissas e Calculos'!O16,"OK",IF('Premissas e Calculos'!O16<0,"Não é possível financiar. Idade superior à permitida.",CONCATENATE("PRAZO EXCEDIDO, MÁXIMO: ",'Premissas e Calculos'!O16, " MESES"))) -> OK | GY29: Botões PV | HE29: 20 | HF29: ='Premissas e Calculos'!M51 -> 0 | HL29: =Apoio!B20 -> 12 | HM29: =Apoio!C20 -> 0 | HN29: =Apoio!D20 -> 0 | HO29: =Apoio!E20 -> 0 | HR29: ='DADOS DOS EMPREENDIMENTOS'!A22 -> 10 | HS29: ='DADOS DOS EMPREENDIMENTOS'!B22 -> 0 | HT29: ='DADOS DOS EMPREENDIMENTOS'!C22 -> 10
N30: 1.10. Casa Paulista: | AB30: Teste lógico - Parcela Máxima x Parcela tabela | HL30: =Apoio!B21 -> 13 | HM30: =Apoio!C21 ->  | HN30: =Apoio!D21 ->  | HO30: =Apoio!E21 ->  | HR30: ='DADOS DOS EMPREENDIMENTOS'!A24 -> 11 | HS30: ='DADOS DOS EMPREENDIMENTOS'!B24 -> 0 | HT30: ='DADOS DOS EMPREENDIMENTOS'!C24 -> 11
G31: =IF(G28<='Premissas e Calculos'!O16,"OK",IF('Premissas e Calculos'!O16<0,"Não é possível financiar. Idade superior à permitida.",CONCATENATE("PRAZO EXCEDIDO, MÁXIMO: ",'Premissas e Calculos'!O16," MESES"))) -> OK | AB31: =IF(M43>N32,M43,N32) -> 800.7 | HR31: ='DADOS DOS EMPREENDIMENTOS'!A26 -> 12 | HS31: ='DADOS DOS EMPREENDIMENTOS'!B26 -> 0 | HT31: ='DADOS DOS EMPREENDIMENTOS'!C26 -> 12
B32: 1.11. Cliente PCVA? | E32: Sim | F32: =IF(E32="Não",750,750) -> 750 | J32: 1.12. Mensal Máxima: | M32: R$ | N32: =(F20*30%) -> 645 | Q32: 1.13. Total: | S32: =S30+S28 -> 139761 | AB32: =IF(M45>N32,M45,N32) -> 645 | HR32: ='DADOS DOS EMPREENDIMENTOS'!A27 -> 13 | HS32: ='DADOS DOS EMPREENDIMENTOS'!B27 -> 0 | HT32: ='DADOS DOS EMPREENDIMENTOS'!C27 -> 13
B33: PRIMEIRA AQUISIÇÃO DO CLIENTE? | G33: Não | HE33: 21 | HF33: ='Premissas e Calculos'!M52 -> 0 | HR33: ='DADOS DOS EMPREENDIMENTOS'!A28 -> 14 | HS33: ='DADOS DOS EMPREENDIMENTOS'!B28 -> 0 | HT33: ='DADOS DOS EMPREENDIMENTOS'!C28 -> 14
B34: 2. PROPOSTA DO CLIENTE | GY34: Mensal | GZ34: 1 | HE34: 22 | HF34: ='Premissas e Calculos'!M53 -> 0 | HR34: ='DADOS DOS EMPREENDIMENTOS'!A29 -> 0 | HS34: ='DADOS DOS EMPREENDIMENTOS'!B29 -> 0 | HT34: ='DADOS DOS EMPREENDIMENTOS'!C29 -> 0
Z35: Apoio | GY35: Semestral | GZ35: 6 | HE35: 23 | HF35: ='Premissas e Calculos'!M54 -> 0 | HR35: ='DADOS DOS EMPREENDIMENTOS'!A30 -> 0 | HS35: ='DADOS DOS EMPREENDIMENTOS'!B30 -> 0 | HT35: ='DADOS DOS EMPREENDIMENTOS'!C30 -> 0
B36: TABELA DE VENDA | E36: MÊS DE INÍCIO | G36: DATA INICIAL | J36: QTDE PARCELAS | M36: PARCELA | P36: TOTAL | S36: % FLUXO | T36: =+P37+P39+P41+P43 -> 10409.1 | U36: =+P65+P67+P69 -> 6250 | Z36: =+T36-U36 -> 4159.1 | AC36: VALOR PRESENTE | GY36: Anual | GZ36: 12 | HR36: ='DADOS DOS EMPREENDIMENTOS'!A31 -> 0 | HS36: ='DADOS DOS EMPREENDIMENTOS'!B31 -> 0 | HT36: ='DADOS DOS EMPREENDIMENTOS'!C31 -> 0
A37: =VLOOKUP(D37,$GY$34:$GZ$43,2,FALSE) -> 1 | D37: =+fluxos!A4 -> Entrada | E37: =+fluxos!B4 -> 0 | G37: =I12 -> 2021-09-01 | J37: =HLOOKUP(CONCATENATE($G$4,J36),fluxos!$B$2:$Y$15,3,FALSE) -> 1 | M37: =S6*S37/J37 -> 2201.925 | P37: =M37*J37 -> 2201.925 | S37: =HLOOKUP(CONCATENATE($G$4,S36),fluxos!$B$2:$Y$15,3,FALSE) -> 0.01375 | T37: =P37+P39+P41 -> 8807.7 | U37: =P65 -> 3000 | Z37: =+P65+P67+P69 -> 6250 | AC37: ='Proposta 1 Via'!M16 -> 2201.925 | GY37: Mensal 1 | HR37: ='DADOS DOS EMPREENDIMENTOS'!A32 -> 0 | HS37: ='DADOS DOS EMPREENDIMENTOS'!B32 -> 0 | HT37: ='DADOS DOS EMPREENDIMENTOS'!C32 -> 0
T38: =P37+P39 -> 4403.85 | U38: =+P65+P67 -> 4900 | GY38: Mensal 2
D39: =+fluxos!A5 -> Entrada | E39: =+fluxos!B5 -> 1 | G39: =DATE(YEAR(G37),MONTH(G37)+(E39-E37),DAY(G37)) -> 2021-10-01 | J39: =HLOOKUP(CONCATENATE($G$4,J36),fluxos!$B$2:$Y$15,4,FALSE) -> 1 | M39: =S6*S39/J39 -> 2201.925 | P39: =M39*J39 -> 2201.925 | S39: =HLOOKUP(CONCATENATE($G$4,S36),fluxos!$B$2:$Y$15,4,FALSE) -> 0.01375 | T39: =T38-U37 -> 1403.85 | U39: =IF(T39<0,"0",T39) -> 1403.85 | Z39: =+T37-Z37 -> 2557.7 | AC39: ='Proposta 1 Via'!M17 -> 2190.970117 | GY39: Mensal 3
GY40: Mensal 4
D41: =+fluxos!A6 -> Entrada | E41: =+fluxos!B6 -> 2 | G41: =DATE(YEAR(G37),MONTH(G37)+(E41-E37),DAY(G37)) -> 2021-11-01 | J41: =HLOOKUP(CONCATENATE($G$4,J36),fluxos!$B$2:$Y$15,5,FALSE) -> 2 | M41: =S6*S41/J41 -> 2201.925 | P41: =M41*J41 -> 4403.85 | S41: =HLOOKUP(CONCATENATE($G$4,S36),fluxos!$B$2:$Y$15,5,FALSE) -> 0.0275 | T41: =+P37+P39+P41 -> 8807.7 | U41: =T41-U38 -> 3907.7 | Z41: =(+Z36-P76)/E76 -> 2809.1 | AC41: ='Proposta 1 Via'!M18 -> 4349.293322 | GY41: Mensal Pós Chaves
U42: =U41/3 -> 1302.566667 | Z42: =+Z41+G76 -> 4159.1 | HR42: ='DADOS DOS EMPREENDIMENTOS'!A33 -> 0 | HS42: ='DADOS DOS EMPREENDIMENTOS'!B33 -> 0 | HT42: ='DADOS DOS EMPREENDIMENTOS'!C33 -> 0
A43: =VLOOKUP(D43,$GY$34:$GZ$43,2,FALSE) -> 12 | D43: =+fluxos!A7 -> Anual | E43: =+fluxos!B7 -> 15 | G43: =DATE(YEAR(G37),MONTH(G37)+(E43-E37),DAY(G37)) -> 2022-12-01 | J43: =HLOOKUP(CONCATENATE($G$4,J36),fluxos!$B$2:$Y$15,6,FALSE) -> 2 | M43: =(S6*S43)/J43 -> 800.7 | P43: =M43*J43 -> 1601.4 | S43: =HLOOKUP(CONCATENATE($G$4,S36),fluxos!$B$2:$Y$15,6,FALSE) -> 0.01 | AC43: ='Proposta 1 Via'!M19 -> 1442.802295 | GY43: Entrada | GZ43: 1 | HR43: ='DADOS DOS EMPREENDIMENTOS'!A34 -> 0 | HS43: ='DADOS DOS EMPREENDIMENTOS'!B34 -> 0 | HT43: ='DADOS DOS EMPREENDIMENTOS'!C34 -> 0
HR44: ='DADOS DOS EMPREENDIMENTOS'!A35 -> 0 | HS44: ='DADOS DOS EMPREENDIMENTOS'!B35 -> 0 | HT44: ='DADOS DOS EMPREENDIMENTOS'!C35 -> 0
A45: =VLOOKUP(D45,$GY$34:$GZ$43,2,FALSE) -> 0 | D45: =+fluxos!A8 -> Mensal 1 | E45: =+fluxos!B8 -> 4 | G45: =DATE(YEAR(G43),MONTH(G43)+(E45-E43),DAY(G43)) -> 2022-01-01 | J45: =HLOOKUP(CONCATENATE($G$4,J36),fluxos!$B$2:$Y$15,7,FALSE) -> 2 | M45: =(S6*S45)/J45 -> 240.21 | P45: =M45*J45 -> 480.42 | S45: =HLOOKUP(CONCATENATE($G$4,S36),fluxos!$B$2:$Y$15,7,FALSE) -> 0.003 | Z45: =V6*10%/20 -> 796.95 | AC45: ='Proposta 1 Via'!M20 -> 469.7590142 | HR45: ='DADOS DOS EMPREENDIMENTOS'!A36 -> 0 | HS45: ='DADOS DOS EMPREENDIMENTOS'!B36 -> 0 | HT45: ='DADOS DOS EMPREENDIMENTOS'!C36 -> 0
HR46: ='DADOS DOS EMPREENDIMENTOS'!A37 -> 0 | HS46: ='DADOS DOS EMPREENDIMENTOS'!B37 -> 0 | HT46: ='DADOS DOS EMPREENDIMENTOS'!C37 -> 0
D47: =fluxos!A9 -> Mensal 2 | E47: =+fluxos!B9 -> 6 | G47: =DATE(YEAR(G45),MONTH(G45)+(E47-E45),DAY(G45)) -> 2022-03-01 | J47: =HLOOKUP(CONCATENATE($G$4,J36),fluxos!$B$2:$Y$15,8,FALSE) -> 9 | M47: =(S6*S47)/J47 -> 160.14 | P47: =M47*J47 -> 1441.26 | S47: =HLOOKUP(CONCATENATE($G$4,S36),fluxos!$B$2:$Y$15,8,FALSE) -> 0.009 | Z47: =V6*10%/20 -> 796.95 | AC47: ='Proposta 1 Via'!M21 -> 1371.253227
D49: =fluxos!A10 -> Mensal 3 | E49: =+fluxos!B10 -> 15 | G49: =DATE(YEAR(G47),MONTH(G47)+(E49-E47),DAY(G47)) -> 2022-12-01 | J49: =HLOOKUP(CONCATENATE($G$4,J36),fluxos!$B$2:$Y$15,9,FALSE) -> 7 | M49: =(S6*S49)/J49 -> 160.14 | P49: =M49*J49 -> 1120.98 | S49: =HLOOKUP(CONCATENATE($G$4,S36),fluxos!$B$2:$Y$15,9,FALSE) -> 0.007 | Z49: =S10*10%/20 -> 226.505 | AC49: ='Proposta 1 Via'!M22 -> 1024.779063
A53: =VLOOKUP(D53,$GY$34:$GZ$43,2,FALSE) -> 0 | D53: =+fluxos!A11 -> Mensal 4 | E53: =+fluxos!B11 -> 22 | G53: =DATE(YEAR(G45),MONTH(G45)+(E53-E45),DAY(G45)) -> 2023-07-01 | J53: 6 | M53: =(S6*S53)/J53 -> 160.14 | P53: =M53*J53 -> 960.84 | S53: =HLOOKUP(CONCATENATE($G$4,S36),fluxos!$B$2:$Y$15,10,FALSE) -> 0.006 | W53: =V6*2% -> 3187.8 | Z53: =V6*4.5%/2 -> 3586.275 | AC53: ='Proposta 1 Via'!M23 -> 850.3508677 | HR53: ='DADOS DOS EMPREENDIMENTOS'!A38 -> 0 | HS53: ='DADOS DOS EMPREENDIMENTOS'!B38 -> 0 | HT53: ='DADOS DOS EMPREENDIMENTOS'!C38 -> 0
HR54: ='DADOS DOS EMPREENDIMENTOS'!A39 -> 0 | HS54: ='DADOS DOS EMPREENDIMENTOS'!B39 -> 0 | HT54: ='DADOS DOS EMPREENDIMENTOS'!C39 -> 0
A55: =VLOOKUP(D55,$GY$34:$GZ$43,2,FALSE) ->  | D55: =+fluxos!A12 -> Chaves | E55: =+fluxos!B12 -> 28 | G55: =DATE(YEAR(G53),MONTH(G53)+(E55-E53),DAY(G53)) -> 2024-01-01 | J55: =HLOOKUP(CONCATENATE($G$4,J36),fluxos!$B$2:$Y$15,12,FALSE) -> 1 | M55: =(S6*S55) -> 1601.4 | P55: =M55*J55 -> 1601.4 | S55: =HLOOKUP(CONCATENATE($G$4,S36),fluxos!$B$2:$Y$15,11,FALSE) -> 0.01 | Z55: =V6*4.5% -> 7172.55 | AC55: ='Proposta 1 Via'!M24 -> 1392.675435 | HR55: ='DADOS DOS EMPREENDIMENTOS'!A40 -> 0 | HS55: ='DADOS DOS EMPREENDIMENTOS'!B40 -> 0 | HT55: ='DADOS DOS EMPREENDIMENTOS'!C40 -> 0
A57: 1 | D57: =+fluxos!A13 -> Repasse | E57: =+fluxos!B13 -> 3 | G57: =DATE(YEAR(G37),MONTH(G37)+(E57-E37)+0,DAY(G37)) -> 2021-12-01 | J57: 1 | M57: =S6-P37-P39-P41-P43-P45-P53-P55-P47-P49 -> 144126 | P57: =M57*J57 -> 144126 | S57: =HLOOKUP(CONCATENATE($G$4,S36),fluxos!$B$2:$Y$15,12,FALSE) -> 0.9 | AC57: ='Proposta 1 Via'!M25 -> 141985.5438 | HR57: ='DADOS DOS EMPREENDIMENTOS'!A40 -> 0 | HS57: ='DADOS DOS EMPREENDIMENTOS'!B40 -> 0 | HT57: ='DADOS DOS EMPREENDIMENTOS'!C40 -> 0
HR58: ='DADOS DOS EMPREENDIMENTOS'!A41 -> 0 | HS58: ='DADOS DOS EMPREENDIMENTOS'!B41 -> 0 | HT58: ='DADOS DOS EMPREENDIMENTOS'!C41 -> 0
G59: 12 | H59: 4 | J59: 7 | K59: =P59*1.7% -> 2722.38 | M59: TOTAL | P59: =SUM(P37,P39,P41,P43,P45,P47,P49,P53,P55,P57) -> 160140 | AC59: =SUM(AC57,AC53,AC45,AC43,AC37,AC39,AC41,AC55,AC47,AC49) -> 157279.3521 | HR59: ='DADOS DOS EMPREENDIMENTOS'!A42 -> 0 | HS59: ='DADOS DOS EMPREENDIMENTOS'!B42 -> 0 | HT59: ='DADOS DOS EMPREENDIMENTOS'!C42 -> 0
HR60: ='DADOS DOS EMPREENDIMENTOS'!A43 -> 0 | HS60: ='DADOS DOS EMPREENDIMENTOS'!B43 -> 0 | HT60: ='DADOS DOS EMPREENDIMENTOS'!C43 -> 0
HR61: ='DADOS DOS EMPREENDIMENTOS'!A44 -> 0 | HS61: ='DADOS DOS EMPREENDIMENTOS'!B44 -> 0 | HT61: ='DADOS DOS EMPREENDIMENTOS'!C44 -> 0
Z62: =CONCATENATE("Valor da parcela para zerar o PV",IF(AJ119>=AR119,".","")) ->  | HR62: ='DADOS DOS EMPREENDIMENTOS'!A45 -> 0 | HS62: ='DADOS DOS EMPREENDIMENTOS'!B45 -> 0 | HT62: ='DADOS DOS EMPREENDIMENTOS'!C45 -> 0
B63: PROPOSTA CLIENTE | E63: QTDE PARCELAS | G63: PARCELA | K63: MÊS DE INÍCIO | M63: DATA INICIAL | P63: TOTAL | HR63: ='DADOS DOS EMPREENDIMENTOS'!A46 -> 0 | HS63: ='DADOS DOS EMPREENDIMENTOS'!B46 -> 0 | HT63: ='DADOS DOS EMPREENDIMENTOS'!C46 -> 0
K64: MÊS DE INÍCIO | AF64: VALOR PRESENTE | HR64: ='DADOS DOS EMPREENDIMENTOS'!A47 -> 0 | HS64: ='DADOS DOS EMPREENDIMENTOS'!B47 -> 0 | HT64: ='DADOS DOS EMPREENDIMENTOS'!C47 -> 0
A65: =VLOOKUP(D65,$GY$34:$GZ$43,2,FALSE) -> 1 | D65: Entrada | E65: 1 | G65: 3000 | K65: 0 | M65: =G37 -> 2021-09-01 | P65: =G65*E65 -> 3000 | S65: =IF(E65<>0,IF(P65<'Simulador CEF'!P37,CONCATENATE("1ª parcela do ato insuficiente, mínimo de R$ ",'Simulador CEF'!M37," nessa parcela."),IF(E65>J37, CONCATENATE("Parcela no máximo em ",J37," vez"),"OK")),"Informar Entrada") -> OK | Z65: =IF('Proposta 1 Via'!P43>0,'Proposta 1 Via'!P43,0) -> 3019.977832 | AF65: ='Proposta 1 Via'!M43 -> 3000
HE66: 24
A67: =VLOOKUP(D76,$GY$34:$GZ$43,2,FALSE) -> 1 | D67: Entrada | E67: 1 | G67: 1900 | K67: 1 | M67: =DATE(YEAR(M65),MONTH(M65)+(K67-K65),DAY(M65)) -> 2021-10-01 | P67: =G67*E67 -> 1900 | S67: =IF(E67<>0,IF(P67<'Simulador CEF'!T39,CONCATENATE("parcela de entrada insuficiente, mínimo de R$ ",'Simulador CEF'!T39," nessa parcela."),IF(E67>J39, CONCATENATE("Parcela no máximo em ",J39," vez"),"OK")),"Informar Entrada") -> OK | Z67: =IF('Proposta 1 Via'!P44>0,'Proposta 1 Via'!P44,0) -> 1920.077721 | AF67: ='Proposta 1 Via'!M44 -> 1890.547236
A69: =VLOOKUP(D78,$GY$34:$GZ$43,2,FALSE) -> 0 | D69: Entrada | E69: 1 | G69: 1350 | K69: 2 | M69: =DATE(YEAR(M65),MONTH(M65)+(K69-K65),DAY(M65)) -> 2021-11-01 | P69: =G69*E69 -> 1350 | S69: =IF(E69<>0,IF(P69<'Simulador CEF'!U42,CONCATENATE("parcela de entrada insuficiente, mínimo de R$ ",'Simulador CEF'!U42," nessa parcela."),IF(E69>J41, CONCATENATE("Parcela no máximo em ",J41," vez"),"OK")),"Informar Entrada") -> OK | Z69: =IF('Proposta 1 Via'!P45>0,'Proposta 1 Via'!P45,0) -> 1370.17811 | AF69: ='Proposta 1 Via'!M45 -> 1336.60054
A76: =VLOOKUP(D80,$GY$34:$GZ$43,2,FALSE) -> 0 | D76: Entrada | E76: 1 | G76: 1350 | K76: 3 | M76: =DATE(YEAR(M65),MONTH(M65)+(K76-K65),DAY(M65)) -> 2021-12-01 | P76: =G76*E76 -> 1350 | S76: =IF(E76<>0,IF(P76<'Simulador CEF'!U42,CONCATENATE("parcela de entrada insuficiente, mínimo de R$ ",'Simulador CEF'!U42," nessa parcela."),IF(E76>G59, CONCATENATE("Parcela no máximo em ",G59," vezes"),"OK")),"Informar Entrada") -> OK | Z76: =IF('Proposta 1 Via'!P46>0,'Proposta 1 Via'!P46,0) -> 1370.279001 | AF76: ='Proposta 1 Via'!M46 -> 1329.950766
AC77: pro-soluto
A78: =VLOOKUP(D86,$GY$34:$GZ$43,2,FALSE) ->  | D78: Mensal 1 | E78: =fluxos!C8 -> 2 | G78: 550 | K78: 4 | M78: =DATE(YEAR(M67),MONTH(M67)+(K78-K67),DAY(M67)) -> 2022-01-01 | P78: =G78*E78 -> 1100 | S78: =IF(E78<>0,IF(G78>'Simulador CEF'!F20*35%,CONCATENATE("valor excedente, máximo de R$ ",'Simulador CEF'!F20*35%," por parcela."),IF(E78>J45, CONCATENATE("Parcele no máximo em ",J45," vezes"),"OK")),"Informar Entrada") -> OK | Y78: =IF(G78<F20*35%,"Menor que 35%","") -> Menor que 35% | Z78: =IF('Proposta 1 Via'!P47>0,'Proposta 1 Via'!P47,0) -> 560.2156101 | AB78: sim | AC78: =+P78/V6 -> 0.006901311249 | AF78: ='Proposta 1 Via'!M47 -> 1075.589933
AB79: não
A80: =VLOOKUP(#REF!,$GY$34:$GZ$43,2,FALSE) ->  | D80: Mensal 2 | E80: =fluxos!C9 -> 9 | G80: 400 | K80: =E47 -> 6 | M80: =DATE(YEAR(M78),MONTH(M78)+(K80-K78),DAY(M78)) -> 2022-03-01 | P80: =G80*E80 -> 3600 | S80: =IF(G4="Único Suzano - Fase 1 - Torres 1, 2 3 e 7","Parcelas Somente para fase 2",IF(E80<>0,IF(G80>'Simulador CEF'!N32,CONCATENATE("valor excedente, máximo de R$ ",'Simulador CEF'!N32," por parcela."),IF(E80>J47,CONCATENATE("Parcele no máximo em ",J47," vezes"),"OK")),"Informar Entrada")) -> OK | Y80: =IF(G80<F20*30%,"Menor que 30%","") -> Menor que 30% | Z80: =IF('Proposta 1 Via'!P48>0,'Proposta 1 Via'!P48,0) -> 402.3330847 | AF80: ='Proposta 1 Via'!M48 -> 3425.136073 | HE80: 25 | IP80: RENDA | IQ80: PRAZO
AB81: não
A82: =VLOOKUP(#REF!,$GY$34:$GZ$43,2,FALSE) ->  | D82: Mensal 3 | E82: =fluxos!C10 -> 7 | G82: 300 | K82: =E49 -> 15 | M82: =DATE(YEAR(M80),MONTH(M80)+(K82-K80),DAY(M80)) -> 2022-12-01 | P82: =G82*E82 -> 2100 | S82: =IF(E82<>0,IF(G82>'Simulador CEF'!F20*25%,CONCATENATE("valor excedente, máximo de R$ ",'Simulador CEF'!F20*25%," por parcela."),IF(E82>J49,CONCATENATE("Parcele no máximo em ",J49," vezes"),"OK")),"Informar Entrada") -> OK | Y82: =IF(G82<F20*25%,"Menor que 25%","") -> Menor que 25% | Z82: =IF('Proposta 1 Via'!P49>0,'Proposta 1 Via'!P49,0) -> 303.1218924 | AF82: ='Proposta 1 Via'!M49 -> 1919.780934 | HE82: 25 | IP82: RENDA | IQ82: PRAZO
AB83: não
A84: =VLOOKUP(#REF!,$GY$34:$GZ$43,2,FALSE) ->  | D84: Mensal 4 | E84: =fluxos!C11 -> 6 | G84: 200 | K84: =E53 -> 22 | M84: =DATE(YEAR(M82),MONTH(M82)+(K84-K82),DAY(M82)) -> 2023-07-01 | P84: =G84*E84 -> 1200 | S84: =IF(E84<>0,IF(G84>'Simulador CEF'!F20*20%,CONCATENATE("valor excedente, máximo de R$ ",'Simulador CEF'!F20*20%," por parcela."),IF(E84>J53,CONCATENATE("Parcele no máximo em ",J53," vezes"),"OK")),"Informar Entrada") -> OK | Y84: =IF(G84<F20*20%,"Menor que 20%","") -> Menor que 20% | Z84: =IF('Proposta 1 Via'!P50>0,'Proposta 1 Via'!P50,0) -> 203.7622705 | AF84: ='Proposta 1 Via'!M50 -> 1062.009326 | HE84: 25 | IP84: RENDA | IQ84: PRAZO
HE85: 26 | IP85: 2790 | IQ85: 300
A86: =VLOOKUP(#REF!,$GY$34:$GZ$43,2,FALSE) ->  | D86: Única | E86: 1 | G86: 1070 | K86: =+E55 -> 28 | M86: =DATE(YEAR(M80),MONTH(M80)+(K86-K80),DAY(M80)) -> 2024-01-01 | P86: =G86*E86 -> 1070 | S86: =IF(E86<>0,IF(G86>'Simulador CEF'!F23,CONCATENATE("valor excedente, máximo de R$ ",'Simulador CEF'!F23," por parcela."),IF(E86>J55, CONCATENATE("Parcele no máximo em ",J55," vezes"),"OK")),"Informar Entrada") -> OK | Z86: =IF('Proposta 1 Via'!P51>0,'Proposta 1 Via'!P51,0) -> 1092.971971 | AF86: ='Proposta 1 Via'!M51 -> 930.5374772 | HE86: 27 | IP86: 4900 | IQ86: 360
HE87: 28
A88: =VLOOKUP(D88,$GY$34:$GZ$43,2,FALSE) -> 12 | D88: Anual | E88: 2 | G88: 2000 | K88: =E43 -> 15 | M88: =DATE(YEAR(M86),MONTH(M86)+(K88-K86),DAY(M86)) -> 2022-12-01 | P88: =G88*E88 -> 4000 | S88: =IF(E88<>0,IF(G88>'Simulador CEF'!F20,CONCATENATE("valor excedente, máximo de R$ ",'Simulador CEF'!F20," por parcela."),IF(E88>J43, CONCATENATE("Parcele no máximo em ",J43," vezes"),"OK")),"Informar Entrada") -> OK | Z88: =IF('Proposta 1 Via'!P50>0,'Proposta 1 Via'!P50,0) -> 203.7622705 | AF88: ='Proposta 1 Via'!M52 -> 3603.852367 | HE88: 29
HE89: 30
A90: =VLOOKUP(D90,$GY$34:$GZ$43,2,FALSE) -> 0 | D90: Mensal Pós Chaves | E90: 12 | G90: 0 | K90: 38 | M90: =DATE(YEAR(M88),MONTH(M88)+(K90-K88),DAY(M88)) -> 2024-11-01 | P90: =G90*E90 -> 0 | S90: =IF(E90<>0,IF(G90>'Simulador CEF'!F20,CONCATENATE("valor excedente, máximo de R$ ",'Simulador CEF'!F20," por parcela."),IF(E90>G59, CONCATENATE("Parcele no máximo em ",G59," vezes"),"OK")),"Informar Entrada") -> OK | Z90: =IF('Proposta 1 Via'!P52>0,'Proposta 1 Via'!P52,0) -> 2011.086931 | AF90: ='Proposta 1 Via'!M53 -> 0 | AK90: Valor Máximo de Chaves
IO91: Prazo | IP91: DIA | IQ91: MÊS | IR91: ANO | IT91: IDADE EM MESES
A92: 1 | D92: Única | E92: 1 | G92: 100 | K92: 37 | M92: =DATE(YEAR(M90),MONTH(M90)+(K92-K90),DAY(M90)) -> 2024-10-01 | P92: =G92*E92 -> 100 | S92: =IF(SUM(P94:R95)>S32,"Financiamento superior ao permitido na tabela","ok") -> ok | Z92: =IF('Proposta 1 Via'!P54>0,'Proposta 1 Via'!P54,0) -> 22031.279 | AB92: Zerar PV | AF92: ='Proposta 1 Via'!M54 -> 21684.10838 | AK92: =(P97-P95-P94)*'Premissas e Calculos'!G35 -> 6231 | HL92: =Apoio!B31 -> 0 | HM92: =Apoio!C31 -> 0 | HN92: =Apoio!D31 -> 0 | HO92: =Apoio!E31 -> 0 | IO92: 120 | IP92: 1 | IQ92: 1 | IR92: 1928 | IT92: =CONCATENATE(S16,"/",T16,"/",U16) -> 19/5/1994 | IU92: =TODAY()+120 -> 2021-12-30 | IV92: =ROUND((IU92-IT92)/30,0) -> 336
HL93: =Apoio!B32 -> Fluxo de Juros da CAIXA | IO93: =IO92+60 -> 180 | IP93: 2 | IQ93: 2 | IR93: 1929
D94: Repasse | E94: FGTS + SUBSÍDIO | K94: =AN149 -> 3 | M94: =G57 -> 2021-12-01 | P94: =S24+S20+S30 -> 22011 | T94: Zerar PV no Financiamento? | AB94: ='Proposta 1 Via'!Q67 -> 117770.279 | IO94: =IO93+60 -> 240 | IP94: 3 | IQ94: 3 | IR94: 1930
E95: FINANCIAMENTO | P95: =IF(S26<AB94,S26,IF(T95="sim",AB94,S26)) -> 117750 | T95: sim | U95: =IF(S32<AB94,"Limite Atingido", "Possível") -> Possível | Z95: ='Proposta 1 Via'!P55 -> 117770.279 | AB95: select | AF95: ='Proposta 1 Via'!M55 -> 116001.2613 | HL95: =Apoio!B33 -> Taxa de Juros | HM95: =Apoio!C33 -> 0 | HN95: =Apoio!D33 -> 0.05 | HO95: =Apoio!E33 -> Código | IO95: =IO94+60 -> 300 | IP95: 4 | IQ95: 4 | IR95: 1931
E96: =IF(SUM(P78,P80,P86,P82,P84,P88)>V6*12.5%,"Pró-Soluto acima do permitido","") ->  | S96: PV | AB96: Sim | HL96: =Apoio!B34 -> Valor Financiado | HM96: =Apoio!C34 -> 0 | HN96: =Apoio!D34 -> 117750 | HO96: =Apoio!E34 -> 8 | IO96: =IO95+60 -> 360 | IP96: 5 | IQ96: 5 | IR96: 1932
K97: =IF(K3=0,L97,L98) -> PRÓ-SOLUTO | L97: PRÓ-SOLUTO | M97: TOTAL | P97: =SUM(P65,P67,P69,P76,P78,P80,P82,P84,P86,P90,P92,P94,P95,P88) -> 160531 | S97: =(AC59-AF97)/AC59 -> 0.0001270213242 | T97: =IF(S97<-0.00005%,"VALOR PROPOSTO EXCEDIDO",IF(S97>0.00005%,"AUMENTAR PROPOSTA","PRÉ-APROVADO")) -> AUMENTAR PROPOSTA | Z97: =SUM(P78,P80,P82,P84,P86,P88,P76,P69,P67) -> 17670 | AB97: Não | AF97: =SUM(AF65,AF67,AF69,AF76,AF78,AF80,AF82,AF84,AF86,AF90,AF92,AF95,AF88) -> 157259.3743 | HL97: =Apoio!B35 -> Período | HM97: =Apoio!C35 -> Obra | HN97: =Apoio!D35 -> Desembolso | HO97: =Apoio!E35 -> Juros Cliente | IP97: 6 | IQ97: 6 | IR97: 1933
E98: =IF(P90>V6*12.5%,"Pró-Soluto acima do permitido","") ->  | L98: =Z97/P97 -> 0.1100721979 | S98: =IF(SUM(P94:R95)>P57,"Financiamento superior ao permitido na tabela","ok") -> ok | HL98: =Apoio!B36 -> 0 | HM98: =Apoio!C36 -> 0 | HN98: =Apoio!D36 -> 0 | HO98: =Apoio!E36 -> 0 | IP98: 7 | IQ98: 7 | IR98: 1934
HL99: =Apoio!B37 -> 1 | HM99: =Apoio!C37 -> 0 | HN99: =Apoio!D37 -> 0 | HO99: =Apoio!E37 -> 0 | IP99: 8 | IQ99: 8 | IR99: 1935
B100: INCONSISTÊNCIAS | IP100: 9 | IQ100: 9 | IR100: 1936
IP101: 10 | IQ101: 10 | IR101: 1937
F102: =IF(G80<G82,"Inconsistência a Mensal 1 não pode ser MENOR que a Mensal 2","OK") -> OK | HL102: =Apoio!B38 -> 2 | HM102: =Apoio!C38 -> 0 | HN102: =Apoio!D38 -> 0 | HO102: =Apoio!E38 -> 0 | IP102: 11 | IQ102: 11 | IR102: 1938
HL103: =Apoio!B39 -> 3 | HM103: =Apoio!C39 -> 0 | HN103: =Apoio!D39 -> 0 | HO103: =Apoio!E39 -> 0 | IP103: 12 | IQ103: 12 | IR103: 1939
HL104: =Apoio!B40 -> 4 | HM104: =Apoio!C40 -> 0 | HN104: =Apoio!D40 -> 0 | HO104: =Apoio!E40 -> 0 | IP104: 13 | IR104: 1940
HL105: =Apoio!B41 -> 5 | HM105: =Apoio!C41 -> 0 | HN105: =Apoio!D41 -> 0 | HO105: =Apoio!E41 -> 0 | IP105: 14 | IR105: 1941
HL106: =Apoio!B42 -> 6 | HM106: =Apoio!C42 -> 0 | HN106: =Apoio!D42 -> 0 | HO106: =Apoio!E42 -> 0 | IP106: 15 | IR106: 1942
HL107: =Apoio!B43 -> 7 | HM107: =Apoio!C43 -> 0 | HN107: =Apoio!D43 -> 0 | HO107: =Apoio!E43 -> 0 | IP107: 16 | IR107: 1943
HL108: =Apoio!B44 -> 8 | HM108: =Apoio!C44 -> 0 | HN108: =Apoio!D44 -> 0 | HO108: =Apoio!E44 -> 0 | IP108: 17 | IR108: 1944
HL109: =Apoio!B45 -> 9 | HM109: =Apoio!C45 -> 0 | HN109: =Apoio!D45 -> 0 | HO109: =Apoio!E45 -> 0 | IP109: 18 | IR109: 1945
B110: 3. FINANCIAMENTO CAIXA | AF110: 3. ANÁLISE DE CRÉDITO | HL110: =Apoio!B46 -> 10 | HM110: =Apoio!C46 -> 0 | HN110: =Apoio!D46 -> 0 | HO110: =Apoio!E46 -> 0 | IP110: 19 | IR110: 1946
HL111: =Apoio!B47 -> 11 | HM111: =Apoio!C47 -> 0 | HN111: =Apoio!D47 -> 0 | HO111: =Apoio!E47 -> 0 | IP111: 20 | IR111: 1947
HL112: =Apoio!B48 -> 12 | HM112: =Apoio!C48 -> 0 | HN112: =Apoio!D48 -> 0 | HO112: =Apoio!E48 -> 0 | IP112: 21 | IR112: 1948
HL113: =Apoio!B49 -> 13 | HM113: =Apoio!C49 -> 0 | HN113: =Apoio!D49 -> 0 | HO113: =Apoio!E49 -> 0 | IP113: 22 | IR113: 1949
C114: Valor a ser repassado para CAIXA | F114: Valor do contrato de financiamento com a CAIXA | J114: Primeira Parcela do Financiamento | N114: Última Parcela do Financiamento | S114: Prazo Pós Obra | AG114: Renda para Análise (90%) | AJ114: Parcela Máxima | AN114: Prazo para o término da Obra | AR114: Parcela Média | AW114: Resultado | IP114: 23 | IR114: 1950
HL115: =Apoio!B50 -> 14 | HM115: =Apoio!C50 -> 0 | HN115: =Apoio!D50 -> 0 | HO115: =Apoio!E50 -> 0 | IP115: 24 | IR115: 1951
HL116: =Apoio!B51 -> 15 | HM116: =Apoio!C51 -> 0 | HN116: =Apoio!D51 -> 0 | HO116: =Apoio!E51 -> 0 | IP116: 25 | IR116: 1952
BC117: Parcela Média Com Juros CAIXA | BF117: Modelo Correto de análise de Crédito | BI117: Parcela Máxima | HL117: =Apoio!B52 -> 16 | HM117: =Apoio!C52 -> 0 | HN117: =Apoio!D52 -> 0 | HO117: =Apoio!E52 -> 0 | IP117: 26 | IR117: 1953
HL118: =Apoio!B53 -> 17 | HM118: =Apoio!C53 -> 0 | HN118: =Apoio!D53 -> 0 | HO118: =Apoio!E53 -> 0 | IP118: 27 | IR118: 1954
C119: =SUM(P94:R95) -> 139761 | F119: =P95 -> 117750 | J119: =IF(Z20=1,(F119/G28)+(F119*(F24/12))+'Premissas e Calculos'!R32,-PMT(($F$24/12),$G$28,$F$119,0,0)+'Premissas e Calculos'!$R$32) -> 645.2654611 | N119: =IF(Z20=1,F119/G28+'Premissas e Calculos'!R32,J119) -> 645.2654611 | S119: =G28 -> 360 | AG119: =F20*90% -> 1935 | AJ119: ='Premissas e Calculos'!M19 -> 580.5 | AN119: =Apoio!I35 -> 31 | AR119: =(MAXA(IF(#REF!="Mensal",#REF!,0),IF(#REF!="Mensal",#REF!,0),IF(D88="Mensal",G88,0),IF(D90="mensal",G90,0))+(SUMIF(D80:D90,"anual",G80:G92)/12 +SUMIF(D80:D90,"semestral",G80:G92)/6+P92/(AN119+3))) ->  | AW119: =IF(AR119>AJ119,"Não Aprovado","Crédito Pré-Aprovado") ->  | HL119: =Apoio!B54 -> 18 | HM119: =Apoio!C54 -> 0 | HN119: =Apoio!D54 -> 0 | HO119: =Apoio!E54 -> 0 | IP119: 28 | IR119: 1955
BC120: =AR119+SUM(Apoio!E37:E76)/'Simulador CEF'!AN119 ->  | BF120: =IF(BC120>BI120,"Parcela superior ao permitido. Aumentar a entrada ou o valor financiado.","Crédito Aprovado!") ->  | BI120: ='Premissas e Calculos'!M17 -> 632.1050568 | HL120: =Apoio!B55 -> 19 | HM120: =Apoio!C55 -> 0 | HN120: =Apoio!D55 -> 0 | HO120: =Apoio!E55 -> 0 | IP120: 29 | IR120: 1956
HL121: =Apoio!B56 -> 20 | HM121: =Apoio!C56 -> 0 | HN121: =Apoio!D56 -> 0 | HO121: =Apoio!E56 -> 0 | IP121: 30 | IR121: 1957
HL122: =Apoio!B57 -> 21 | HM122: =Apoio!C57 -> 0 | HN122: =Apoio!D57 -> 0 | HO122: =Apoio!E57 -> 0 | IP122: 31 | IR122: 1958
HL123: =Apoio!B58 -> 22 | HM123: =Apoio!C58 -> 0 | HN123: =Apoio!D58 -> 0 | HO123: =Apoio!E58 -> 0 | IR123: 1959
HL124: =Apoio!B59 -> 23 | HM124: =Apoio!C59 -> 0 | HN124: =Apoio!D59 -> 0 | HO124: =Apoio!E59 -> 0 | IR124: 1960
B125: 4. PREVISÃO DE ENCARGOS - DURANTE A OBRA | HL125: =Apoio!B60 -> 24 | HM125: =Apoio!C60 -> 0 | HN125: =Apoio!D60 -> 0 | HO125: =Apoio!E60 -> 0 | IR125: 1961
HL126: =Apoio!B61 -> 25 | HM126: =Apoio!C61 -> 0 | HN126: =Apoio!D61 -> 0 | HO126: =Apoio!E61 -> 0 | IR126: 1962
HL127: =Apoio!B62 -> 26 | HM127: =Apoio!C62 -> 0 | HN127: =Apoio!D62 -> 0 | HO127: =Apoio!E62 -> 0 | IR127: 1963
IR128: 1964
AG129: Parcela Média de Encargos CAIXA | AL129: Parcela Média Total (CAIXA + Incorporador) | AQ129: Maior Parcela Mensal (CAIXA + Incorporador) | HL129: =Apoio!B63 -> 27 | HM129: =Apoio!C63 -> 0 | HN129: =Apoio!D63 -> 0 | HO129: =Apoio!E63 -> 0 | IR129: 1965
F130: Primeira Parcela de Encargos CAIXA | L130: Última Parcela de Encargos CAIXA | HL130: =Apoio!B64 -> 28 | HM130: =Apoio!C64 -> 0 | HN130: =Apoio!D64 -> 0 | HO130: =Apoio!E64 -> 0 | IR130: 1966
HL131: =Apoio!B65 -> 29 | HM131: =Apoio!C65 -> 0 | HN131: =Apoio!D65 -> 0 | HO131: =Apoio!E65 -> 0 | IR131: 1967
AG132: =SUM(J158:L197)/(Apoio!F35-AN149) -> 0 | AL132: =SUM(S158:T197)/(AN119-E65) -> 133.3333333 | AQ132: =LARGE(S158:T197,1) -> 2000 | HL132: =Apoio!B66 -> 30 | HM132: =Apoio!C66 -> 0 | HN132: =Apoio!D66 -> 0 | HO132: =Apoio!E66 -> 0 | IR132: 1968
F133: =L133*20% -> 93.21875 | L133: =F119*0.95*(F24/12) -> 466.09375 | HL133: =Apoio!B67 -> 31 | HM133: =Apoio!C67 -> 0 | HN133: =Apoio!D67 -> 0 | HO133: =Apoio!E67 -> 0 | IR133: 1969
HL134: =Apoio!B68 -> 32 | HM134: =Apoio!C68 -> 0 | HN134: =Apoio!D68 -> 0 | HO134: =Apoio!E68 -> 0 | IR134: 1970
HL135: =Apoio!B69 -> 33 | HM135: =Apoio!C69 -> 0 | HN135: =Apoio!D69 -> 0 | HO135: =Apoio!E69 -> 0 | IR135: 1971
IR136: 1972
HL137: =Apoio!B70 -> 34 | HM137: =Apoio!C70 -> 0 | HN137: =Apoio!D70 -> 0 | HO137: =Apoio!E70 -> 0 | IR137: 1973
HL138: =Apoio!B71 -> 35 | HM138: =Apoio!C71 -> 0 | HN138: =Apoio!D71 -> 0 | HO138: =Apoio!E71 -> 0 | IR138: 1974
HL139: =Apoio!B72 -> 36 | HM139: =Apoio!C72 -> 0 | HN139: =Apoio!D72 -> 0 | HO139: =Apoio!E72 -> 0 | IR139: 1975
HL140: =Apoio!B73 -> 37 | HM140: =Apoio!C73 -> 0 | HN140: =Apoio!D73 -> 0 | HO140: =Apoio!E73 -> 0 | IR140: 1976
HL141: =Apoio!B74 -> 38 | HM141: =Apoio!C74 -> 0 | HN141: =Apoio!D74 -> 0 | HO141: =Apoio!E74 -> 0 | IR141: 1977
HL142: =Apoio!B75 -> 39 | HM142: =Apoio!C75 -> 0 | HN142: =Apoio!D75 -> 0 | HO142: =Apoio!E75 -> 0 | IR142: 1978
C143: Qualquer fluxo ou valor diferente do proposto pela tabela de vendas só será válido com autorização da Sec. Vendas | HL143: =Apoio!B76 -> 40 | HM143: =Apoio!C76 -> 0 | HN143: =Apoio!D76 -> 0 | HO143: =Apoio!E76 -> 0 | IR143: 1979
IR144: 1980
IR145: 1981
AN146: Mês do Repasse Estimado | IR146: 1982
IR147: 1983
IR148: 1984
AN149: ='Premissas e Calculos'!J30 -> 3 | AO149: =DATE(YEAR(I12),MONTH(I12)+AN149,DAY(I12)) -> 2021-12-01 | IR149: 1985
IR150: 1986
IR151: 1987
IR152: 1988
IR153: 1989
IR154: 1990
F155: Mês | G155: Data | J155: Encargos CAIXA | M155: Encargos Incorporador | O155: Total | S155: somatório de parcelas CAIXA e Incorporador - (Entrada e Chaves) | AB155: Serie 1 | AC155: Parcela 1 | AD155: Serie 2 | AE155: Parcela 2 | AF155: Serie 3 | AG155: Parcela 3 | AH155: Serie 4 | AI155: Parcela 4 | AJ155: Serie Entrada | AK155: Parcela Entrada | AL155: Parcela Chaves | IR155: 1991
IR156: 1992
AB157: =#REF! ->  | AC157: =IF(AND(AB157>=#REF!,AB157<(#REF!+#REF!*$A$80)),#REF!,0) ->  | AD157: =#REF! ->  | AE157: =IF(AND(AD157>=#REF!,AD157<(#REF!+#REF!*$A$86)),#REF!,0) ->  | AF157: =K88 -> 15 | AG157: =IF(AND(AF157>=$K$88,AF157<($K$88+$E$88*$A$88)),$G$88,0) -> 2000 | AH157: =K90 -> 38 | AI157: =IF(AND(AH157>=$K$90,AH157<($K$90+$E$90*$A$90)),$G$90,0) -> 0 | AJ157: 1 | AK157: =IF(AND(AJ157>=$K$65,AJ157<($K$65+$E$65*$A$65)),$G$65,0) -> 0 | AL157: 1 | AM157: =IF(AL157=$K$92,$G$92,0) -> 0 | IR157: 1993
F158: 1 | G158: =I12 -> 2021-09-01 | J158: =IF(F158<=$AN$149,0,Apoio!E37) -> 0 | M158: =VLOOKUP(F158,$AD$157:$AE$338,2,FALSE)+VLOOKUP(F158,$AF$157:$AG$371,2,FALSE)+VLOOKUP(F158,$AH$157:$AI$371,2,FALSE)+VLOOKUP(F158,$AJ$157:$AK$371,2,FALSE)+VLOOKUP(F158,$AL$157:$AM$371,2,FALSE)+VLOOKUP(F158,$AB$157:$AC$371,2,FALSE) -> 0 | O158: =M158+J158 -> 0 | S158: =VLOOKUP(F158,$AD$157:$AE$338,2,FALSE)+VLOOKUP(F158,$AF$157:$AG$371,2,FALSE)+VLOOKUP(F158,$AH$157:$AI$371,2,FALSE)+VLOOKUP(F158,$AB$157:$AC$371,2,FALSE)+IF(F158<=$AN$119,J158) -> 0 | AB158: =AB157+$A$80 ->  | AC158: =IF(AND(AB158>=#REF!,AB158<(#REF!+#REF!*$A$80)),#REF!,0) ->  | AD158: =AD157+$A$86 ->  | AE158: =IF(AND(AD158>=#REF!,AD158<(#REF!+#REF!*$A$86)),#REF!,0) ->  | AF158: =AF157+$A$88 -> 27 | AG158: =IF(AND(AF158>=$K$88,AF158<($K$88+$E$88*$A$88)),$G$88,0) -> 2000 | AH158: =AH157+$A$90 -> 38 | AI158: =IF(AND(AH158>=$K$90,AH158<($K$90+$E$90*$A$90)),$G$90,0) -> 0 | AJ158: 2 | AK158: =IF(AND(AJ158>=$K$65,AJ158<($K$65+$E$65*$A$65)),$G$65,0) -> 0 | AL158: 2 | AM158: 0 | IR158: 1994
F159: 2 | G159: =DATE(YEAR(G158),MONTH(G158)+1,DAY(G158)) -> 2021-10-01 | J159: =IF(F159<=$AN$149,0,Apoio!E38) -> 0 | M159: =VLOOKUP(F159,$AD$157:$AE$338,2,FALSE)+VLOOKUP(F159,$AF$157:$AG$371,2,FALSE)+VLOOKUP(F159,$AH$157:$AI$371,2,FALSE)+VLOOKUP(F159,$AJ$157:$AK$371,2,FALSE)+VLOOKUP(F159,$AL$157:$AM$371,2,FALSE)+VLOOKUP(F159,$AB$157:$AC$371,2,FALSE) -> 0 | O159: =M159+J159 -> 0 | S159: 0 | AB159: =AB158+$A$80 ->  | AC159: =IF(AND(AB159>=#REF!,AB159<(#REF!+#REF!*$A$80)),#REF!,0) ->  | AD159: =AD158+$A$86 ->  | AE159: =IF(AND(AD159>=#REF!,AD159<(#REF!+#REF!*$A$86)),#REF!,0) ->  | AF159: =AF158+$A$88 -> 39 | AG159: 0 | AH159: =AH158+$A$90 -> 38 | AI159: 0 | AJ159: 3 | AK159: 0 | AL159: 3 | AM159: 0 | IR159: 1995
F160: 3 | G160: =DATE(YEAR(G159),MONTH(G159)+1,DAY(G159)) -> 2021-11-01 | J160: =IF(F160<=$AN$149,0,Apoio!E39) -> 0 | M160: =VLOOKUP(F160,$AD$157:$AE$338,2,FALSE)+VLOOKUP(F160,$AF$157:$AG$371,2,FALSE)+VLOOKUP(F160,$AH$157:$AI$371,2,FALSE)+VLOOKUP(F160,$AJ$157:$AK$371,2,FALSE)+VLOOKUP(F160,$AL$157:$AM$371,2,FALSE)+VLOOKUP(F160,$AB$157:$AC$371,2,FALSE) -> 0 | O160: 0 | S160: 0 | AC160: =IF(AND(AB160>=#REF!,AB160<(#REF!+#REF!*$A$80)),#REF!,0) ->  | AE160: =IF(AND(AD160>=#REF!,AD160<(#REF!+#REF!*$A$86)),#REF!,0) ->  | AF160: 51 | AG160: 0 | AH160: 38 | AI160: 0 | AJ160: 4 | AK160: 0 | AL160: 4 | AM160: 0 | IR160: 1996
F161: 4 | G161: 2021-12-01 | J161: =IF(F161<=$AN$149,0,Apoio!E40) -> 0 | M161: 0 | O161: 0 | S161: 0 | AC161: =IF(AND(AB161>=#REF!,AB161<(#REF!+#REF!*$A$80)),#REF!,0) ->  | AE161: =IF(AND(AD161>=#REF!,AD161<(#REF!+#REF!*$A$86)),#REF!,0) ->  | AF161: 63 | AG161: 0 | AH161: 38 | AI161: 0 | AJ161: 5 | AK161: 0 | AL161: 5 | AM161: 0 | IR161: 1997
F162: 5 | G162: 2022-01-01 | J162: =IF(F162<=$AN$149,0,Apoio!E41) -> 0 | M162: 0 | O162: 0 | S162: 0 | AC162: =IF(AND(AB162>=#REF!,AB162<(#REF!+#REF!*$A$80)),#REF!,0) ->  | AE162: =IF(AND(AD162>=#REF!,AD162<(#REF!+#REF!*$A$86)),#REF!,0) ->  | AF162: 75 | AG162: 0 | AH162: 38 | AI162: 0 | AJ162: 6 | AK162: 0 | AL162: 6 | AM162: 0 | IR162: 1998
F163: 6 | G163: 2022-02-01 | J163: =IF(F163<=$AN$149,0,Apoio!E42) -> 0 | M163: 0 | O163: 0 | S163: 0 | AC163: =IF(AND(AB163>=#REF!,AB163<(#REF!+#REF!*$A$80)),#REF!,0) ->  | AE163: =IF(AND(AD163>=#REF!,AD163<(#REF!+#REF!*$A$86)),#REF!,0) ->  | AF163: 87 | AG163: 0 | AH163: 38 | AI163: 0 | AJ163: 7 | AK163: 0 | AL163: 7 | AM163: 0 | IR163: 1999
F164: 7 | G164: 2022-03-01 | J164: =IF(F164<=$AN$149,0,Apoio!E43) -> 0 | M164: 0 | O164: 0 | S164: 0 | AC164: =IF(AND(AB164>=#REF!,AB164<(#REF!+#REF!*$A$80)),#REF!,0) ->  | AE164: =IF(AND(AD164>=#REF!,AD164<(#REF!+#REF!*$A$86)),#REF!,0) ->  | AF164: 99 | AG164: 0 | AH164: 38 | AI164: 0 | AJ164: 8 | AK164: 0 | AL164: 8 | AM164: 0
F165: 8 | G165: 2022-04-01 | J165: =IF(F165<=$AN$149,0,Apoio!E44) -> 0 | M165: 0 | O165: 0 | S165: 0 | AC165: =IF(AND(AB165>=#REF!,AB165<(#REF!+#REF!*$A$80)),#REF!,0) ->  | AE165: =IF(AND(AD165>=#REF!,AD165<(#REF!+#REF!*$A$86)),#REF!,0) ->  | AF165: 111 | AG165: 0 | AH165: 38 | AI165: 0 | AJ165: 9 | AK165: 0 | AL165: 9 | AM165: 0
F166: 9 | G166: 2022-05-01 | J166: =IF(F166<=$AN$149,0,Apoio!E45) -> 0 | M166: 0 | O166: 0 | S166: 0 | AC166: =IF(AND(AB166>=#REF!,AB166<(#REF!+#REF!*$A$80)),#REF!,0) ->  | AE166: =IF(AND(AD166>=#REF!,AD166<(#REF!+#REF!*$A$86)),#REF!,0) ->  | AF166: 123 | AG166: 0 | AH166: 38 | AI166: 0 | AJ166: 10 | AK166: 0 | AL166: 10 | AM166: 0
F167: 10 | G167: 2022-06-01 | J167: =IF(F167<=$AN$149,0,Apoio!E46) -> 0 | M167: 0 | O167: 0 | S167: 0 | AC167: =IF(AND(AB167>=#REF!,AB167<(#REF!+#REF!*$A$80)),#REF!,0) ->  | AE167: =IF(AND(AD167>=#REF!,AD167<(#REF!+#REF!*$A$86)),#REF!,0) ->  | AF167: 135 | AG167: 0 | AH167: 38 | AI167: 0 | AJ167: 11 | AK167: 0 | AL167: 11 | AM167: 0
F168: 11 | G168: 2022-07-01 | J168: =IF(F168<=$AN$149,0,Apoio!E47) -> 0 | M168: 0 | O168: 0 | S168: 0 | AC168: =IF(AND(AB168>=#REF!,AB168<(#REF!+#REF!*$A$80)),#REF!,0) ->  | AE168: =IF(AND(AD168>=#REF!,AD168<(#REF!+#REF!*$A$86)),#REF!,0) ->  | AF168: 147 | AG168: 0 | AH168: 38 | AI168: 0 | AJ168: 12 | AK168: 0 | AL168: 12 | AM168: 0
F169: 12 | G169: 2022-08-01 | J169: =IF(F169<=$AN$149,0,Apoio!E48) -> 0 | M169: 0 | O169: 0 | S169: 0 | AC169: =IF(AND(AB169>=#REF!,AB169<(#REF!+#REF!*$A$80)),#REF!,0) ->  | AE169: =IF(AND(AD169>=#REF!,AD169<(#REF!+#REF!*$A$86)),#REF!,0) ->  | AF169: 159 | AG169: 0 | AH169: 38 | AI169: 0 | AJ169: 13 | AK169: 0 | AL169: 13 | AM169: 0
F170: 13 | G170: 2022-09-01 | J170: =IF(F170<=$AN$149,0,Apoio!E49) -> 0 | M170: 0 | O170: 0 | S170: 0 | AC170: =IF(AND(AB170>=#REF!,AB170<(#REF!+#REF!*$A$80)),#REF!,0) ->  | AE170: =IF(AND(AD170>=#REF!,AD170<(#REF!+#REF!*$A$86)),#REF!,0) ->  | AF170: 171 | AG170: 0 | AH170: 38 | AI170: 0 | AJ170: 14 | AK170: 0 | AL170: 14 | AM170: 0
F171: 14 | G171: 2022-10-01 | J171: =IF(F171<=$AN$149,0,Apoio!E50) -> 0 | M171: 0 | O171: 0 | S171: 0 | AC171: =IF(AND(AB171>=#REF!,AB171<(#REF!+#REF!*$A$80)),#REF!,0) ->  | AE171: =IF(AND(AD171>=#REF!,AD171<(#REF!+#REF!*$A$86)),#REF!,0) ->  | AF171: 183 | AG171: 0 | AH171: 38 | AI171: 0 | AJ171: 15 | AK171: 0 | AL171: 15 | AM171: 0
F172: 15 | G172: 2022-11-01 | J172: =IF(F172<=$AN$149,0,Apoio!E51) -> 0 | M172: 2000 | O172: 2000 | S172: 2000 | AC172: =IF(AND(AB172>=#REF!,AB172<(#REF!+#REF!*$A$80)),#REF!,0) ->  | AE172: =IF(AND(AD172>=#REF!,AD172<(#REF!+#REF!*$A$86)),#REF!,0) ->  | AF172: 195 | AG172: 0 | AH172: 38 | AI172: 0 | AJ172: 16 | AK172: 0 | AL172: 16 | AM172: 0
F173: 16 | G173: 2022-12-01 | J173: =IF(F173<=$AN$149,0,Apoio!E52) -> 0 | M173: 0 | O173: 0 | S173: 0 | AC173: =IF(AND(AB173>=#REF!,AB173<(#REF!+#REF!*$A$80)),#REF!,0) ->  | AE173: =IF(AND(AD173>=#REF!,AD173<(#REF!+#REF!*$A$86)),#REF!,0) ->  | AF173: 207 | AG173: 0 | AH173: 38 | AI173: 0 | AJ173: 17 | AK173: 0 | AL173: 17 | AM173: 0
F174: 17 | G174: 2023-01-01 | J174: =IF(F174<=$AN$149,0,Apoio!E53) -> 0 | M174: 0 | O174: 0 | S174: 0 | AC174: =IF(AND(AB174>=#REF!,AB174<(#REF!+#REF!*$A$80)),#REF!,0) ->  | AE174: =IF(AND(AD174>=#REF!,AD174<(#REF!+#REF!*$A$86)),#REF!,0) ->  | AF174: 219 | AG174: 0 | AH174: 38 | AI174: 0 | AJ174: 18 | AK174: 0 | AL174: 18 | AM174: 0
F175: 18 | G175: 2023-02-01 | J175: =IF(F175<=$AN$149,0,Apoio!E54) -> 0 | M175: 0 | O175: 0 | S175: 0 | AC175: =IF(AND(AB175>=#REF!,AB175<(#REF!+#REF!*$A$80)),#REF!,0) ->  | AE175: =IF(AND(AD175>=#REF!,AD175<(#REF!+#REF!*$A$86)),#REF!,0) ->  | AF175: 231 | AG175: 0 | AH175: 38 | AI175: 0 | AJ175: 19 | AK175: 0 | AL175: 19 | AM175: 0
F176: 19 | G176: 2023-03-01 | J176: =IF(F176<=$AN$149,0,Apoio!E55) -> 0 | M176: 0 | O176: 0 | S176: 0 | AC176: =IF(AND(AB176>=#REF!,AB176<(#REF!+#REF!*$A$80)),#REF!,0) ->  | AE176: =IF(AND(AD176>=#REF!,AD176<(#REF!+#REF!*$A$86)),#REF!,0) ->  | AF176: 243 | AG176: 0 | AH176: 38 | AI176: 0 | AJ176: 20 | AK176: 0 | AL176: 20 | AM176: 0
F177: 20 | G177: 2023-04-01 | J177: =IF(F177<=$AN$149,0,Apoio!E56) -> 0 | M177: 0 | O177: 0 | S177: 0 | AC177: =IF(AND(AB177>=#REF!,AB177<(#REF!+#REF!*$A$80)),#REF!,0) ->  | AE177: =IF(AND(AD177>=#REF!,AD177<(#REF!+#REF!*$A$86)),#REF!,0) ->  | AF177: 255 | AG177: 0 | AH177: 38 | AI177: 0 | AJ177: 21 | AK177: 0 | AL177: 21 | AM177: 0
F178: 21 | G178: 2023-05-01 | J178: =IF(F178<=$AN$149,0,Apoio!E57) -> 0 | M178: 0 | O178: 0 | S178: 0 | AC178: =IF(AND(AB178>=#REF!,AB178<(#REF!+#REF!*$A$80)),#REF!,0) ->  | AE178: =IF(AND(AD178>=#REF!,AD178<(#REF!+#REF!*$A$86)),#REF!,0) ->  | AF178: 267 | AG178: 0 | AH178: 38 | AI178: 0 | AJ178: 22 | AK178: 0 | AL178: 22 | AM178: 0
F179: 22 | G179: 2023-06-01 | J179: =IF(F179<=$AN$149,0,Apoio!E58) -> 0 | M179: 0 | O179: 0 | S179: 0 | AC179: =IF(AND(AB179>=#REF!,AB179<(#REF!+#REF!*$A$80)),#REF!,0) ->  | AE179: =IF(AND(AD179>=#REF!,AD179<(#REF!+#REF!*$A$86)),#REF!,0) ->  | AF179: 279 | AG179: 0 | AH179: 38 | AI179: 0 | AJ179: 23 | AK179: 0 | AL179: 23 | AM179: 0
F180: 23 | G180: 2023-07-01 | J180: =IF(F180<=$AN$149,0,Apoio!E59) -> 0 | M180: 0 | O180: 0 | S180: 0 | AC180: =IF(AND(AB180>=#REF!,AB180<(#REF!+#REF!*$A$80)),#REF!,0) ->  | AE180: =IF(AND(AD180>=#REF!,AD180<(#REF!+#REF!*$A$86)),#REF!,0) ->  | AF180: 291 | AG180: 0 | AH180: 38 | AI180: 0 | AJ180: 24 | AK180: 0 | AL180: 24 | AM180: 0
F181: 24 | G181: 2023-08-01 | J181: =IF(F181<=$AN$149,0,Apoio!E60) -> 0 | M181: 0 | O181: 0 | S181: 0 | AC181: =IF(AND(AB181>=#REF!,AB181<(#REF!+#REF!*$A$80)),#REF!,0) ->  | AE181: =IF(AND(AD181>=#REF!,AD181<(#REF!+#REF!*$A$86)),#REF!,0) ->  | AF181: 303 | AG181: 0 | AH181: 38 | AI181: 0 | AJ181: 25 | AK181: 0 | AL181: 25 | AM181: 0
F182: 25 | G182: 2023-09-01 | J182: =IF(F182<=$AN$149,0,Apoio!E61) -> 0 | M182: 0 | O182: 0 | S182: 0 | AC182: =IF(AND(AB182>=#REF!,AB182<(#REF!+#REF!*$A$80)),#REF!,0) ->  | AE182: =IF(AND(AD182>=#REF!,AD182<(#REF!+#REF!*$A$86)),#REF!,0) ->  | AF182: 315 | AG182: 0 | AH182: 38 | AI182: 0 | AJ182: 26 | AK182: 0 | AL182: 26 | AM182: 0
F183: 26 | G183: 2023-10-01 | J183: =IF(F183<=$AN$149,0,Apoio!E62) -> 0 | M183: 0 | O183: 0 | S183: 0 | AC183: =IF(AND(AB183>=#REF!,AB183<(#REF!+#REF!*$A$80)),#REF!,0) ->  | AE183: =IF(AND(AD183>=#REF!,AD183<(#REF!+#REF!*$A$86)),#REF!,0) ->  | AF183: 327 | AG183: 0 | AH183: 38 | AI183: 0 | AJ183: 27 | AK183: 0 | AL183: 27 | AM183: 0
F184: 27 | G184: 2023-11-01 | J184: =IF(F184<=$AN$149,0,Apoio!E63) -> 0 | M184: 2000 | O184: 2000 | S184: 2000 | AC184: =IF(AND(AB184>=#REF!,AB184<(#REF!+#REF!*$A$80)),#REF!,0) ->  | AE184: =IF(AND(AD184>=#REF!,AD184<(#REF!+#REF!*$A$86)),#REF!,0) ->  | AF184: 339 | AG184: 0 | AH184: 38 | AI184: 0 | AJ184: 28 | AK184: 0 | AL184: 28 | AM184: 0
F185: 28 | G185: 2023-12-01 | J185: =IF(F185<=$AN$149,0,Apoio!E64) -> 0 | M185: 0 | O185: 0 | S185: 0 | AC185: =IF(AND(AB185>=#REF!,AB185<(#REF!+#REF!*$A$80)),#REF!,0) ->  | AE185: =IF(AND(AD185>=#REF!,AD185<(#REF!+#REF!*$A$86)),#REF!,0) ->  | AF185: 351 | AG185: 0 | AH185: 38 | AI185: 0 | AJ185: 29 | AK185: 0 | AL185: 29 | AM185: 0
F186: 29 | G186: 2024-01-01 | J186: =IF(F186<=$AN$149,0,Apoio!E65) -> 0 | M186: 0 | O186: 0 | S186: 0 | AC186: =IF(AND(AB186>=#REF!,AB186<(#REF!+#REF!*$A$80)),#REF!,0) ->  | AE186: =IF(AND(AD186>=#REF!,AD186<(#REF!+#REF!*$A$86)),#REF!,0) ->  | AF186: 363 | AG186: 0 | AH186: 38 | AI186: 0 | AJ186: 30 | AK186: 0 | AL186: 30 | AM186: 0
F187: 30 | G187: 2024-02-01 | J187: =IF(F187<=$AN$149,0,Apoio!E66) -> 0 | M187: 0 | O187: 0 | S187: 0 | AC187: =IF(AND(AB187>=#REF!,AB187<(#REF!+#REF!*$A$80)),#REF!,0) ->  | AE187: =IF(AND(AD187>=#REF!,AD187<(#REF!+#REF!*$A$86)),#REF!,0) ->  | AF187: 375 | AG187: 0 | AH187: 38 | AI187: 0 | AJ187: 31 | AK187: 0 | AL187: 31 | AM187: 0
F188: 31 | G188: 2024-03-01 | J188: =IF(F188<=$AN$149,0,Apoio!E67) -> 0 | M188: 0 | O188: 0 | S188: 0 | AC188: =IF(AND(AB188>=#REF!,AB188<(#REF!+#REF!*$A$80)),#REF!,0) ->  | AE188: =IF(AND(AD188>=#REF!,AD188<(#REF!+#REF!*$A$86)),#REF!,0) ->  | AF188: 387 | AG188: 0 | AH188: 38 | AI188: 0 | AJ188: 32 | AK188: 0 | AL188: 32 | AM188: 0
F189: 32 | G189: 2024-04-01 | J189: =IF(F189<=$AN$149,0,Apoio!E68) -> 0 | M189: 0 | O189: 0 | S189: 0 | AC189: =IF(AND(AB189>=#REF!,AB189<(#REF!+#REF!*$A$80)),#REF!,0) ->  | AE189: =IF(AND(AD189>=#REF!,AD189<(#REF!+#REF!*$A$86)),#REF!,0) ->  | AF189: 399 | AG189: 0 | AH189: 38 | AI189: 0 | AJ189: 33 | AK189: 0 | AL189: 33 | AM189: 0
F190: 33 | G190: 2024-05-01 | J190: =IF(F190<=$AN$149,0,Apoio!E69) -> 0 | M190: 0 | O190: 0 | S190: 0 | AC190: =IF(AND(AB190>=#REF!,AB190<(#REF!+#REF!*$A$80)),#REF!,0) ->  | AE190: =IF(AND(AD190>=#REF!,AD190<(#REF!+#REF!*$A$86)),#REF!,0) ->  | AF190: 411 | AG190: 0 | AH190: 38 | AI190: 0 | AJ190: 34 | AK190: 0 | AL190: 34 | AM190: 0
F191: 34 | G191: 2024-06-01 | J191: =IF(F191<=$AN$149,0,Apoio!E70) -> 0 | M191: 0 | O191: 0 | S191: 0 | AC191: =IF(AND(AB191>=#REF!,AB191<(#REF!+#REF!*$A$80)),#REF!,0) ->  | AE191: =IF(AND(AD191>=#REF!,AD191<(#REF!+#REF!*$A$86)),#REF!,0) ->  | AF191: 423 | AG191: 0 | AH191: 38 | AI191: 0 | AJ191: 35 | AK191: 0 | AL191: 35 | AM191: 0
F192: 35 | G192: 2024-07-01 | J192: =IF(F192<=$AN$149,0,Apoio!E71) -> 0 | M192: 0 | O192: 0 | S192: 0 | AB192: =AB191+$A$80 ->  | AC192: =IF(AND(AB192>=#REF!,AB192<(#REF!+#REF!*$A$80)),#REF!,0) ->  | AD192: =AD191+$A$86 ->  | AE192: =IF(AND(AD192>=#REF!,AD192<(#REF!+#REF!*$A$86)),#REF!,0) ->  | AF192: =AF191+$A$88 -> 435 | AG192: 0 | AH192: =AH191+$A$90 -> 38 | AI192: 0 | AJ192: 36 | AK192: 0 | AL192: 36 | AM192: 0
F193: 36 | G193: 2024-08-01 | J193: =IF(F193<=$AN$149,0,Apoio!E72) -> 0 | M193: 0 | O193: 0 | S193: 0 | AC193: =IF(AND(AB193>=#REF!,AB193<(#REF!+#REF!*$A$80)),#REF!,0) ->  | AE193: =IF(AND(AD193>=#REF!,AD193<(#REF!+#REF!*$A$86)),#REF!,0) ->  | AF193: 447 | AG193: 0 | AH193: 38 | AI193: 0 | AJ193: 37 | AK193: 0 | AL193: 37 | AM193: 100
F194: 37 | G194: 2024-09-01 | J194: =IF(F194<=$AN$149,0,Apoio!E73) -> 0 | M194: 100 | O194: 100 | S194: 0 | AC194: =IF(AND(AB194>=#REF!,AB194<(#REF!+#REF!*$A$80)),#REF!,0) ->  | AE194: =IF(AND(AD194>=#REF!,AD194<(#REF!+#REF!*$A$86)),#REF!,0) ->  | AF194: 459 | AG194: 0 | AH194: 38 | AI194: 0 | AJ194: 38 | AK194: 0 | AL194: 38 | AM194: 0
F195: 38 | G195: 2024-10-01 | J195: =IF(F195<=$AN$149,0,Apoio!E74) -> 0 | M195: 0 | O195: 0 | S195: 0 | AC195: =IF(AND(AB195>=#REF!,AB195<(#REF!+#REF!*$A$80)),#REF!,0) ->  | AE195: =IF(AND(AD195>=#REF!,AD195<(#REF!+#REF!*$A$86)),#REF!,0) ->  | AF195: 471 | AG195: 0 | AH195: 38 | AI195: 0 | AJ195: 39 | AK195: 0 | AL195: 39 | AM195: 0
F196: 39 | G196: 2024-11-01 | J196: =IF(F196<=$AN$149,0,Apoio!E75) -> 0 | M196: 0 | O196: 0 | S196: 0 | AC196: =IF(AND(AB196>=#REF!,AB196<(#REF!+#REF!*$A$80)),#REF!,0) ->  | AE196: =IF(AND(AD196>=#REF!,AD196<(#REF!+#REF!*$A$86)),#REF!,0) ->  | AF196: 483 | AG196: 0 | AH196: 38 | AI196: 0 | AJ196: 40 | AK196: 0 | AL196: 40 | AM196: 0
F197: 40 | G197: 2024-12-01 | J197: =IF(F197<=$AN$149,0,Apoio!E76) -> 0 | M197: 0 | O197: 0 | S197: 0 | AC197: =IF(AND(AB197>=#REF!,AB197<(#REF!+#REF!*$A$80)),#REF!,0) ->  | AE197: =IF(AND(AD197>=#REF!,AD197<(#REF!+#REF!*$A$86)),#REF!,0) ->  | AF197: 495 | AG197: 0 | AH197: 38 | AI197: 0 | AJ197: 41 | AK197: 0 | AL197: 41 | AM197: 0
AB198: 1 | AC198: 0 | AD198: 1 | AE198: 0 | AF198: 1 | AG198: 0 | AH198: 1 | AI198: 0 | AJ198: 1 | AK198: 0 | AL198: 1 | AM198: 0
AB199: 2 | AC199: 0 | AD199: 2 | AE199: 0 | AF199: 2 | AG199: 0 | AH199: 2 | AI199: 0 | AJ199: 2 | AK199: 0 | AL199: 2 | AM199: 0
AB200: 3 | AC200: 0 | AD200: 3 | AE200: 0 | AF200: 3 | AG200: 0 | AH200: 3 | AI200: 0 | AJ200: 3 | AK200: 0 | AL200: 3 | AM200: 0
AB201: 4 | AC201: 0 | AD201: 4 | AE201: 0 | AF201: 4 | AG201: 0 | AH201: 4 | AI201: 0 | AJ201: 4 | AK201: 0 | AL201: 4 | AM201: 0
AB202: 5 | AC202: 0 | AD202: 5 | AE202: 0 | AF202: 5 | AG202: 0 | AH202: 5 | AI202: 0 | AJ202: 5 | AK202: 0 | AL202: 5 | AM202: 0
AB203: 6 | AC203: 0 | AD203: 6 | AE203: 0 | AF203: 6 | AG203: 0 | AH203: 6 | AI203: 0 | AJ203: 6 | AK203: 0 | AL203: 6 | AM203: 0
AB204: 7 | AC204: 0 | AD204: 7 | AE204: 0 | AF204: 7 | AG204: 0 | AH204: 7 | AI204: 0 | AJ204: 7 | AK204: 0 | AL204: 7 | AM204: 0
AB205: 8 | AC205: 0 | AD205: 8 | AE205: 0 | AF205: 8 | AG205: 0 | AH205: 8 | AI205: 0 | AJ205: 8 | AK205: 0 | AL205: 8 | AM205: 0
AB206: 9 | AC206: 0 | AD206: 9 | AE206: 0 | AF206: 9 | AG206: 0 | AH206: 9 | AI206: 0 | AJ206: 9 | AK206: 0 | AL206: 9 | AM206: 0
AB207: 10 | AC207: 0 | AD207: 10 | AE207: 0 | AF207: 10 | AG207: 0 | AH207: 10 | AI207: 0 | AJ207: 10 | AK207: 0 | AL207: 10 | AM207: 0
AB208: 11 | AC208: 0 | AD208: 11 | AE208: 0 | AF208: 11 | AG208: 0 | AH208: 11 | AI208: 0 | AJ208: 11 | AK208: 0 | AL208: 11 | AM208: 0
AB209: 12 | AC209: 0 | AD209: 12 | AE209: 0 | AF209: 12 | AG209: 0 | AH209: 12 | AI209: 0 | AJ209: 12 | AK209: 0 | AL209: 12 | AM209: 0
AB210: 13 | AC210: 0 | AD210: 13 | AE210: 0 | AF210: 13 | AG210: 0 | AH210: 13 | AI210: 0 | AJ210: 13 | AK210: 0 | AL210: 13 | AM210: 0
AB211: 14 | AC211: 0 | AD211: 14 | AE211: 0 | AF211: 14 | AG211: 0 | AH211: 14 | AI211: 0 | AJ211: 14 | AK211: 0 | AL211: 14 | AM211: 0
AB212: 15 | AC212: 0 | AD212: 15 | AE212: 0 | AF212: 15 | AG212: 0 | AH212: 15 | AI212: 0 | AJ212: 15 | AK212: 0 | AL212: 15 | AM212: 0
AB213: 16 | AC213: 0 | AD213: 16 | AE213: 0 | AF213: 16 | AG213: 0 | AH213: 16 | AI213: 0 | AJ213: 16 | AK213: 0 | AL213: 16 | AM213: 0
... 26 more rows

Sheet Proposta 1 Via (hidden)
A1: * | E1: Documento Interno para Equalização de Propostas
A2: * | E2: Não tem Valor Comercial ou Jurídico
A3: * | L3: =NOW() -> 2021-09-01T12:07:46.510 | N3: Impressão
A4: *
A5: * | E5: Empreendimento | G5: ='Simulador CEF'!G4:P4 -> Completo Guanabara - Desconto - Sem Premio | J5: Cargo | L5: Nome | Y5: Anual | Z5: Fixa | AA5: HUMANARI / CYAN
A6: * | E6: Proponente | J6: Corretor | Y6: Chaves | Z6: Corrigida | AA6: HUMANARI / MAGENTA
A7: * | E7: Unidade | J7: Gerente | Y7: Mensal | AA7: HUMANARI / RUBINE
A8: * | J8: Empresa de vendas | Y8: Semestral | AA8: HUMANARI / VAGAS GARAGEM
A9: * | E9: Data da Tabela | G9: 2021-09-01 | H9: Juros TP a.a. | I9: 0.061678 | J9: Data TP Tabela | K9: =G11 -> 2024-01-10 | L9: Reajuste INCCD2 | Y9: Sinal
A10: * | E10: Data da proposta | G10: ='Simulador CEF'!I12 -> 2021-09-01 | H10: Juros Mercado a.a. | I10: 0.12 | J10: Data TP Proposta | K10: =G11 -> 2024-01-10
A11: * | E11: Data das Chaves: | G11: ='Simulador CEF'!S10 -> 2024-01-10 | H11: Preço da unidade | I11: =+J38 -> 160140
A12: *
A13: * | E13: TABELA DE VENDAS
A14: * | E14: Parc. | F14: Periodicidade | H14: Data | I14: Parcelas Sem TP | K14: Parcelas Com TP | M14: Valor Presente
A15: * | H15: Inicial | I15: Parcelas | J15: Total | K15: Parcelas | L15: Total
A16: =IF(E16="","",IF(E16=0,"","*")) -> * | B16: =IF(H16<=$E$86,"A","B") -> A | C16: =13589.79/388279.75 -> 0.03499999678 | D16: =IF(F16="Chaves",((1+$I$9)^(1/12)-1),IF(F16="Anual",$I$9,IF(F16="Semestral",((1+$I$9)^(1/2)-1),IF(F16="Mensal",((1+$I$9)^(1/12)-1),IF(F16="Sinal",0))))) -> 0 | E16: ='Simulador CEF'!J37 -> 1 | F16: Sinal | G16: Fixa | H16: ='Simulador CEF'!G37 -> 2021-09-01 | I16: ='Simulador CEF'!M37 -> 2201.925 | J16: =I16*E16 -> 2201.925 | K16: =IF(H16<=$E$86,I16, -PMT(D16,E16, (-FV(((1+$I$9)^(1/12)-1),( VLOOKUP(H16,Mês,2) ),,M16)),,1) ) -> 2201.925 | L16: =K16*E16 -> 2201.925 | M16: =IF(E16="",0,IF(H16<=$E$86,-PV(((1+$I$9)^(1/12)-1),( VLOOKUP(H16,Mês,2) ),,(-PV((IF(F16="Anual",$I$9,IF(F16="Semestral",((1+$I$9)^(1/2)-1),((1+$I$9)^(1/12)-1)))),E16,I16,,1)),1),-PV(((1+$I$9)^(1/12)-1),( VLOOKUP($E$86,Mês,2) ),,J16,1))) -> 2201.925
A17: =IF(E19="","",IF(E19=0,"","*")) -> * | B17: A | C17: =8736.29/388279.75 -> 0.02249998873 | D17: 0.005000014841 | E17: ='Simulador CEF'!J39 -> 1 | F17: Mensal | G17: Corrigida | H17: ='Simulador CEF'!G39 -> 2021-10-01 | I17: ='Simulador CEF'!M39 -> 2201.925 | J17: =I17*E17 -> 2201.925 | K17: =IF(H17<=$E$86,I17, -PMT(D17,E17, (-FV(((1+$I$9)^(1/12)-1),( VLOOKUP(H17,Mês,2) ),,M17)),,1) ) -> 2201.925 | L17: =K17*E17 -> 2201.925 | M17: 2190.970117
A18: =IF(E20="","",IF(E20=0,"","*")) -> * | B18: A | C18: =8736.29/388279.75 -> 0.02249998873 | D18: 0.005000014841 | E18: ='Simulador CEF'!J41 -> 2 | F18: Mensal | G18: Corrigida | H18: ='Simulador CEF'!G41 -> 2021-11-01 | I18: ='Simulador CEF'!M41 -> 2201.925 | J18: 4403.85 | K18: =IF(H18<=$E$86,I18, -PMT(D18,E18, (-FV(((1+$I$9)^(1/12)-1),( VLOOKUP(H18,Mês,2) ),,M18)),,1) ) -> 2201.925 | L18: 4403.85 | M18: 4349.293322
A19: =IF(E23="","",IF(E23=0,"","*")) -> * | B19: A | C19: =1698.72/388279.75 -> 0.00437498994 | D19: 0.061678 | E19: ='Simulador CEF'!J43 -> 2 | F19: Anual | G19: Corrigida | H19: ='Simulador CEF'!G43 -> 2022-12-01 | I19: ='Simulador CEF'!M43 -> 800.7 | J19: 1601.4 | K19: =IF(H19<=$E$86,I19, -PMT(D17,E19, (-FV(((1+$I$9)^(1/12)-1),( VLOOKUP(H19,Mês,2) ),,M19)),,1) ) -> 800.7 | L19: 1601.4 | M19: 1442.802295
A20: =IF(E24="","",IF(E24=0,"","*")) -> * | B20: A | C20: =11648.39/388279.75 -> 0.02999999356 | D20: 0.005000014841 | E20: ='Simulador CEF'!J45 -> 2 | F20: Mensal | G20: Corrigida | H20: ='Simulador CEF'!G45 -> 2022-01-01 | I20: ='Simulador CEF'!M45 -> 240.21 | J20: 480.42 | K20: =IF(H20<=$E$86,I20, -PMT(D18,E20, (-FV(((1+$I$9)^(1/12)-1),( VLOOKUP(H20,Mês,2) ),,M20)),,1) ) -> 240.21 | L20: 480.42 | M20: 469.7590142
A21: =IF(E25="","",IF(E25=0,"","*")) -> * | B21: A | C21: =11648.39/388279.75 -> 0.02999999356 | D21: =IF(F21="Chaves",((1+$I$9)^(1/12)-1),IF(F21="Anual",$I$9,IF(F21="Semestral",((1+$I$9)^(1/2)-1),IF(F21="Mensal",((1+$I$9)^(1/12)-1),IF(F21="Sinal",0))))) -> 0.005000014841 | E21: ='Simulador CEF'!J47 -> 9 | F21: Mensal | G21: Corrigida | H21: ='Simulador CEF'!G47 -> 2022-03-01 | I21: ='Simulador CEF'!M47 -> 160.14 | J21: 1441.26 | K21: =IF(H21<=$E$86,I21, -PMT(D19,E21, (-FV(((1+$I$9)^(1/12)-1),( VLOOKUP(H21,Mês,2) ),,M21)),,1) ) -> 160.14 | L21: 1441.26 | M21: 1371.253227
A22: =IF(E26="","",IF(E26=0,"","*")) ->  | B22: A | C22: =11648.39/388279.75 -> 0.02999999356 | D22: =IF(F22="Chaves",((1+$I$9)^(1/12)-1),IF(F22="Anual",$I$9,IF(F22="Semestral",((1+$I$9)^(1/2)-1),IF(F22="Mensal",((1+$I$9)^(1/12)-1),IF(F22="Sinal",0))))) -> 0.005000014841 | E22: ='Simulador CEF'!J49 -> 7 | F22: Mensal | G22: Corrigida | H22: ='Simulador CEF'!G49 -> 2022-12-01 | I22: ='Simulador CEF'!M49 -> 160.14 | J22: 1120.98 | K22: =IF(H22<=$E$86,I22, -PMT(D20,E22, (-FV(((1+$I$9)^(1/12)-1),( VLOOKUP(H22,Mês,2) ),,M22)),,1) ) -> 160.14 | L22: 1120.98 | M22: 1024.779063
A23: =IF(E25="","",IF(E25=0,"","*")) -> * | B23: A | C23: =38827.96/388279.75 -> 0.09999996137 | D23: 0.005000014841 | E23: ='Simulador CEF'!J53 -> 6 | F23: Mensal | G23: Corrigida | H23: ='Simulador CEF'!G53 -> 2023-07-01 | I23: ='Simulador CEF'!M53 -> 160.14 | J23: 960.84 | K23: =IF(H23<=$E$86,I23, -PMT(D19,E23, (-FV(((1+$I$9)^(1/12)-1),( VLOOKUP(H23,Mês,2) ),,M23)),,1) ) -> 160.14 | L23: 960.84 | M23: 850.3508677
A24: =IF(#REF!="","",IF(#REF!=0,"","*")) ->  | B24: A | C24: =1764.91/388279.75 -> 0.004545459813 | D24: 0.005000014841 | E24: ='Simulador CEF'!J55 -> 1 | F24: Mensal | G24: Corrigida | H24: ='Simulador CEF'!G55 -> 2024-01-01 | I24: ='Simulador CEF'!M55 -> 1601.4 | J24: 1601.4 | K24: =IF(H24<=$E$86,I24, -PMT(D20,E24, (-FV(((1+$I$9)^(1/12)-1),( VLOOKUP(H24,Mês,2) ),,M24)),,1) ) -> 1601.4 | L24: 1601.4 | M24: 1392.675435
A25: =IF(#REF!="","",IF(#REF!=0,"","*")) ->  | B25: A | C25: =10677.69/388279.75 -> 0.02749999195 | D25: 0.005000014841 | E25: ='Simulador CEF'!J57 -> 1 | F25: Chaves | G25: Corrigida | H25: ='Simulador CEF'!G57 -> 2021-12-01 | I25: ='Simulador CEF'!M57 -> 144126 | J25: 144126 | K25: =IF(H25<=$E$86,I25, -PMT(D23,E25, (-FV(((1+$I$9)^(1/12)-1),( VLOOKUP(H25,Mês,2) ),,M25)),,1) ) -> 144126 | L25: 144126 | M25: 141985.5438 | O25: OBS:
B26: A | C26: =0/388279.75 -> 0 | D26: FALSE | J26: 0 | K26: =IF(H26<=$E$86,I26, -PMT(D26,E26, (-FV(((1+$I$9)^(1/12)-1),( VLOOKUP(H26,Mês,2) ),,M26)),,1) ) -> 0 | L26: 0 | M26: 0
B27: A | C27: 0 | D27: FALSE | J27: 0 | K27: 0 | L27: 0 | M27: 0
B28: A | C28: 0 | D28: FALSE | J28: 0 | K28: 0 | L28: 0 | M28: 0
B29: A | C29: 0 | D29: FALSE | J29: 0 | K29: 0 | L29: 0 | M29: 0
B30: A | C30: 0 | D30: FALSE | J30: 0 | K30: 0 | L30: 0 | M30: 0
B31: A | C31: 0 | D31: FALSE | J31: 0 | K31: 0 | L31: 0 | M31: 0
B32: A | C32: 0 | D32: FALSE | J32: 0 | K32: 0 | L32: 0 | M32: 0
B33: A | C33: 0 | D33: FALSE | J33: 0 | K33: 0 | L33: 0 | M33: 0
B34: A | C34: 0 | D34: FALSE | J34: 0 | K34: 0 | L34: 0 | M34: 0
B35: A | C35: 0 | D35: FALSE | J35: 0 | K35: 0 | L35: 0 | M35: 0
B36: A | C36: 0 | D36: FALSE | J36: =I36*E36 -> 0 | K36: 0 | L36: =K36*E36 -> 0 | M36: 0
B37: A | C37: 0 | D37: FALSE | J37: =I37*E37 -> 0 | K37: 0 | L37: =K37*E37 -> 0 | M37: 0
A38: * | E38: TOTAL | J38: =SUM(J16:J36) -> 160140 | L38: =SUM(L16:L36) -> 160140 | M38: =SUM(M16:M36) -> 157279.3521 | P38: =J38/J66 -> 0.9981861361
A39: *
A40: * | E40: PROPOSTA DO PROPONENTE | N40: Param. Comissão
A41: * | E41: Parc. | F41: Periodicidade | H41: Data | I41: Parcelas Sem TP | K41: Parcelas Com TP | M41: Valor Presente | N41: %Abat. N.F. | O41: %Abat. | P41: Parcela para zerar PV | Q41: PV para Zerar | R41: zerar PV
A42: * | H42: Inicial | I42: Parcelas | J42: Total | K42: Parcelas | L42: Total
A43: =IF(E43="","",IF(E43=0,"","*")) -> * | B43: =IF(H43<=$E$86,"A","B") -> A | D43: =IF(F43="Chaves",((1+$I$9)^(1/12)-1),IF(F43="Anual",$I$9,IF(F43="Semestral",((1+$I$9)^(1/2)-1),IF(F43="Mensal",((1+$I$9)^(1/12)-1),IF(F43="Sinal",0))))) -> 0 | E43: ='Simulador CEF'!E65 -> 1 | F43: Sinal | G43: Fixa | H43: ='Simulador CEF'!M65 -> 2021-09-01 | I43: ='Simulador CEF'!G65 -> 3000 | J43: =I43*E43 -> 3000 | K43: =IF(H43<=$E$86,I43, -PMT(D43,E43, (-FV(((1+$I$9)^(1/12)-1),( VLOOKUP(H43,Mês,2) ),,M43)),,1) ) -> 3000 | L43: =K43*E43 -> 3000 | M43: =IF(E43<1,0,IF(H43<=$E$86,-PV(((1+$I$9)^(1/12)-1),( VLOOKUP(H43,Mês,2) ),,(-PV((IF(F43="Anual",$I$9,IF(F43="Semestral",((1+$I$9)^(1/2)-1),((1+$I$9)^(1/12)-1)))),E43,I43,,1)),1),-PV(((1+$I$9)^(1/12)-1),( VLOOKUP($E$86,Mês,2) ),,J43,1))) -> 3000 | N43: 0 | O43: 1 | P43: =IF(E43<1,0,IF(H43<=$E$86,-FV(((1+$I$9)^(1/12)-1),( VLOOKUP(H43,Mês,2) ),,(-PMT((IF(F43="Anual",$I$9,IF(F43="Semestral",((1+$I$9)^(1/2)-1),((1+$I$9)^(1/12)-1)))),E43,Q43,,1)),1),-PV(((1+$I$9)^(1/12)-1),( VLOOKUP($E$86,Mês,2) ),,Q43,1))) -> 3019.977832 | Q43: =$M$38-$M$66+M43 -> 3019.977832 | R43: =M43 -> 3000
A44: * | B44: A | D44: 0.005000014841 | E44: ='Simulador CEF'!E67 -> 1 | F44: Mensal | G44: Corrigida | H44: ='Simulador CEF'!M67 -> 2021-10-01 | I44: ='Simulador CEF'!G67 -> 1900 | J44: 1900 | K44: 1900 | L44: 1900 | M44: 1890.547236 | P44: 1920.077721 | Q44: 1910.525067 | R44: 1890.547236
A45: * | B45: A | D45: 0.005000014841 | E45: ='Simulador CEF'!E69 -> 1 | F45: Mensal | G45: Corrigida | H45: ='Simulador CEF'!M69 -> 2021-11-01 | I45: ='Simulador CEF'!G69 -> 1350 | J45: 1350 | K45: 1350 | L45: 1350 | M45: 1336.60054 | P45: 1370.17811 | Q45: 1356.578371 | R45: 1336.60054
A46: * | B46: A | D46: 0.005000014841 | E46: ='Simulador CEF'!E76 -> 1 | F46: Mensal | G46: Corrigida | H46: ='Simulador CEF'!M76 -> 2021-12-01 | I46: ='Simulador CEF'!G76 -> 1350 | J46: 1350 | K46: 1350 | L46: 1350 | M46: 1329.950766 | P46: 1370.279001 | Q46: 1349.928598 | R46: 1329.950766
A47: * | B47: A | D47: 0.005000014841 | E47: ='Simulador CEF'!E78 -> 2 | F47: Mensal | G47: Corrigida | H47: ='Simulador CEF'!M78 -> 2022-01-01 | I47: ='Simulador CEF'!G78 -> 550 | J47: 1100 | K47: 550 | L47: 1100 | M47: 1075.589933 | P47: 560.2156101 | Q47: 1095.567765 | R47: 1075.589933
A48: =IF(E48="","",IF(E48=0,"","*")) -> * | B48: A | D48: =IF(F48="Chaves",((1+$I$9)^(1/12)-1),IF(F48="Anual",$I$9,IF(F48="Semestral",((1+$I$9)^(1/2)-1),IF(F48="Mensal",((1+$I$9)^(1/12)-1),IF(F48="Sinal",0))))) -> 0.005000014841 | E48: ='Simulador CEF'!E80 -> 9 | F48: Mensal | G48: Corrigida | H48: ='Simulador CEF'!M80 -> 2022-03-01 | I48: ='Simulador CEF'!G80 -> 400 | J48: =I48*E48 -> 3600 | K48: 400 | L48: =K48*E48 -> 3600 | M48: 3425.136073 | P48: 402.3330847 | Q48: 3445.113905 | R48: 3425.136073
A49: * | B49: A | D49: 0.005000014841 | E49: ='Simulador CEF'!E82 -> 7 | F49: Mensal | G49: Corrigida | H49: ='Simulador CEF'!M82 -> 2022-12-01 | I49: ='Simulador CEF'!G82 -> 300 | J49: 2100 | K49: 300 | L49: 2100 | M49: 1919.780934 | P49: 303.1218924 | Q49: 1939.758766 | R49: 1919.780934
A50: =IF(E50="","",IF(E50=0,"","*")) -> * | B50: A | D50: =IF(F50="Chaves",((1+$I$9)^(1/12)-1),IF(F50="Anual",$I$9,IF(F50="Semestral",((1+$I$9)^(1/2)-1),IF(F50="Mensal",((1+$I$9)^(1/12)-1),IF(F50="Sinal",0))))) -> 0.005000014841 | E50: ='Simulador CEF'!E84 -> 6 | F50: Mensal | G50: Corrigida | H50: ='Simulador CEF'!M84 -> 2023-07-01 | I50: ='Simulador CEF'!G84 -> 200 | J50: 1200 | K50: 200 | L50: =K50*E50 -> 1200 | M50: 1062.009326 | P50: 203.7622705 | Q50: 1081.987158 | R50: 1062.009326
A51: * | B51: A | D51: 0.005000014841 | E51: ='Simulador CEF'!E86:F86 -> 1 | F51: Mensal | G51: Corrigida | H51: ='Simulador CEF'!M86 -> 2024-01-01 | I51: ='Simulador CEF'!G86 -> 1070 | J51: 1070 | K51: 1070 | L51: =K51*E51 -> 1070 | M51: 930.5374772 | P51: 1092.971971 | Q51: 950.5153088 | R51: 930.5374772
A52: =IF(E52="","",IF(E52=0,"","*")) -> * | B52: A | D52: =IF(F52="Chaves",((1+$I$9)^(1/12)-1),IF(F52="Anual",$I$9,IF(F52="Semestral",((1+$I$9)^(1/2)-1),IF(F52="Mensal",((1+$I$9)^(1/12)-1),IF(F52="Sinal",0))))) -> 0.061678 | E52: ='Simulador CEF'!E88:F88 -> 2 | F52: Anual | G52: Corrigida | H52: ='Simulador CEF'!M88 -> 2022-12-01 | I52: ='Simulador CEF'!G88 -> 2000 | J52: 4000 | K52: 2000 | L52: 4000 | M52: 3603.852367 | P52: 2011.086931 | Q52: 3623.830199 | R52: 3603.852367
A53: =IF(E53="","",IF(E53=0,"","*")) -> * | B53: B | D53: =IF(F53="Chaves",((1+$I$9)^(1/12)-1),IF(F53="Anual",$I$9,IF(F53="Semestral",((1+$I$9)^(1/2)-1),IF(F53="Mensal",((1+$I$9)^(1/12)-1),IF(F53="Sinal",0))))) -> 0.005000014841 | E53: ='Simulador CEF'!E90:F90 -> 12 | F53: Mensal | G53: Corrigida | H53: ='Simulador CEF'!M90 -> 2024-11-01 | I53: ='Simulador CEF'!G90 -> 0 | J53: =I53*E53 -> 0 | K53: 0 | L53: =K53*E53 -> 0 | M53: 0 | P53: 17.37394485 | Q53: 19.97783157 | R53: 0
A54: =IF(E54="","",IF(E54=0,"","*")) -> * | B54: A | D54: =IF(F54="Chaves",((1+$I$9)^(1/12)-1),IF(F54="Anual",$I$9,IF(F54="Semestral",((1+$I$9)^(1/2)-1),IF(F54="Mensal",((1+$I$9)^(1/12)-1),IF(F54="Sinal",0))))) -> 0.005000014841 | E54: 1 | F54: Chaves | G54: Corrigida | H54: =H25 -> 2021-12-01 | I54: ='Simulador CEF'!P94 -> 22011 | J54: =I54*E54 -> 22011 | K54: 22011 | L54: =K54*E54 -> 22011 | M54: 21684.10838 | P54: 22031.279 | Q54: 21704.08621 | R54: 21684.10838
A55: * | B55: A | D55: 0.005000014841 | E55: 1 | F55: Chaves | G55: Corrigida | H55: =H25 -> 2021-12-01 | I55: ='Simulador CEF'!P95 -> 117750 | J55: 117750 | K55: 117750 | L55: 117750 | M55: 116001.2613 | P55: 117770.279 | Q55: 116021.2391
B56: A | D56: FALSE | J56: =I56*E56 -> 0 | K56: 0 | L56: =K56*E56 -> 0 | M56: 0 | R56: =M56 -> 0
B57: A | D57: FALSE | J57: 0 | K57: 0 | L57: 0 | M57: 0 | R57: 0
B58: A | D58: FALSE | J58: 0 | K58: 0 | L58: 0 | M58: 0 | R58: 0
B59: A | D59: FALSE | J59: 0 | K59: 0 | L59: 0 | M59: 0 | R59: 0
B60: A | D60: FALSE | J60: 0 | K60: 0 | L60: 0 | M60: 0 | R60: 0
B61: A | D61: FALSE | J61: 0 | K61: 0 | L61: 0 | M61: 0 | R61: 0
B62: A | D62: FALSE | J62: 0 | K62: 0 | L62: 0 | M62: 0 | R62: 0
B63: A | D63: FALSE | J63: 0 | K63: 0 | L63: 0 | M63: 0 | R63: 0
B64: A | D64: FALSE | J64: 0 | K64: 0 | L64: 0 | M64: 0 | R64: 0
B65: A | D65: FALSE | R65: 0
A66: =IF(E66="","","*") -> * | E66: TOTAL | J66: =SUM(J43:J65) -> 160431 | L66: =SUM(L43:L65) -> 160431 | M66: =SUM(M43:M65) -> 157259.3743 | R66: =SUM(R43:R65) -> 41258.11303
A67: * | Q67: =IF(E55<1,0,IF(H55<=$E$86,-FV(((1+$I$9)^(1/12)-1),( VLOOKUP(H55,Mês,2) ),,(-PMT((IF(F55="Anual",$I$9,IF(F55="Semestral",((1+$I$9)^(1/2)-1),((1+$I$9)^(1/12)-1)))),E55,R67,,1)),1),-PV(((1+$I$9)^(1/12)-1),( VLOOKUP($E$86,Mês,2) ),,R67,1))) -> 117770.279 | R67: =M38-R66 -> 116021.2391
A68: *
A69: *
A70: * | G70: Comissão | I70: Prêmio | L70: Total
A71: * | G71: Valor | H71: % | I71: Valor | J71: Valor do % | K71: % | L71: Valor | M71: %
A72: * | E72: Corretor | G72: =H72/100*$J$66 -> 0 | H72: 0 | J72: =K72/100*$J$66 -> 0 | L72: =J72+I72+G72 -> 0 | M72: =IF(L72=0,0,L72/$J$66)*100 -> 0
A73: * | E73: Gerente | G73: =H73/100*$J$66 -> 0 | J73: =K73/100*$J$66 -> 0 | L73: =J73+I73+G73 -> 0 | M73: =IF(L73=0,0,L73/$J$66)*100 -> 0
A74: * | E74: =J8 -> Empresa de vendas | G74: =H74/100*$J$66 -> 0 | J74: =K74/100*$J$66 -> 0 | L74: =J74+I74+G74 -> 0 | M74: =IF(L74=0,0,L74/$J$66)*100 -> 0
A75: * | E75: TOTAL | G75: =SUM(G72:G74) -> 0 | H75: 0 | I75: 0 | J75: 0 | K75: 0 | L75: 0 | M75: 0
A76: *
A77: *
A78: * | E78: Vistos
A79: * | E79: Serasa | H79: Crédito | K79: Diretoria
A80: *
A81: *
A82: *
A83: *
A84: *
A85: * | E85: Data das Chaves | H85: Perc. Pagas até Chaves TB com TP | K85: Perc. Pagas até Chaves TB com TP
A86: * | E86: =G11 -> 2024-01-10 | H86: Valor Total | J86: =SUMIF(B16:B38,"A",J16:J38) -> 160140 | K86: Valor Total | M86: =SUMIF(B43:B66,"A",J43:J66) -> 160431
A87: * | H87: Preço Total | J87: =L38 -> 160140 | K87: Preço Total | M87: =L66 -> 160431
A88: * | H88: Porcentagem | J88: =J86/J87 -> 1 | K88: Porcentagem | M88: =IF(M86=0,0,M86/M87) -> 1
A89: *
A90: * | E90: Perc. Do Sinal sobre o Total (TB) | I90: =SUMIF(F16:F38,"Sinal",J16:J38)/J38 -> 0.01375 | J90: Perc. do Sinal sobre o Total (Proposta) | M90: =IF(J66=0,0,SUMIF(F43:F65,"Sinal",J43:J65)/J66) -> 0.01869962788
A91: *
A92: * | E92: V.P. da Tabela | G92: =M38 -> 157279.3521 | I92: V.P. da Proposta | J92: =M66 -> 157259.3743 | K92: Diferença | L92: =G92-J92 -> 19.97783157 | M92: =L92/G92 -> 0.0001270213242

Sheet Premissas e Calculos (hidden)
J1: RESPOSTAS
B2: Renda Familiar | D2: Juros Nominal (a.a.) | F2: PREMISSAS | G2: SP, Campinas, DF, RJ e RM | H2: Capitais e acima de 500mil | J2: Valor Maximo do Imóvel no pacote | L2: Valores Financiáveis | S2: Select de Financiamento
C3: 0.01 | D3: 0.05 | F3: Valor Máximo do Imóvel | G3: 240000 | H3: 240000 | J3: 240000 | L3: 360 meses | M3: 300 meses | N3: 240 meses | O3: ='Simulador CEF'!G28 -> 360 | P3: observação | V3: Resposta do simulador
C4: 0.01 | D4: 0.05 | F4: Subsídio Máximo | G4: 27420 | H4: 27420 | J4: Salário do Cliente | L4: =(#REF!-#REF!)*M9 ->  | M4: =(#REF!-#REF!)*M9 ->  | N4: =(#REF!-#REF!)*N9 ->  | O4: =IF(J11-J13>(G29*J11),J13*O9,J11*(1-G29)*O9) -> 121263.912 | P4: valor maximo financiado | S4: 240 | V4: FGTS Há mais de 3 anos? | W4: =IF('Simulador CEF'!S20<>0,1,0) -> 1
C5: 1100 | D5: 0.05 | F5: Formula A Subsídio | G5: =-G6/(2*(3275-1800)) -> 0.0114380925 | L5: =#REF!-'Simulador CEF'!S20-'Premissas e Calculos'!G17-#REF! ->  | M5: =#REF!-'Simulador CEF'!S20-'Premissas e Calculos'!G17-#REF! ->  | N5: =#REF!-'Simulador CEF'!S20-'Premissas e Calculos'!G17-#REF! ->  | O5: =IF(J11-J13>(G29*J11),J13-J21-'Premissas e Calculos'!J17,J11-J21-'Premissas e Calculos'!J17-G29*J11) -> 129568.89 | P5: Avalição CAIXA - sub - fgts | S5: 300
C6: 1200 | D6: 0.05 | F6: Formula B Subsídio | G6: =(2*SUB*(2535/SUB-1)/(3275-1800)) -> -33.74237288 | J6: ='Simulador CEF'!F20 -> 2150 | L6: =IF(#REF!="","",((#REF!)/((1/#REF!)+('Premissas e Calculos'!J9/12)))) ->  | M6: =(($M$17)/((1/M8)+('Premissas e Calculos'!J9/12))) -> 84280.67425 | N6: =((M17)/((1/N8)+('Premissas e Calculos'!J9/12))) -> 75852.60682 | O6: =IF(P15=1,((M17)/((1/J19)+('Premissas e Calculos'!J9/12))),M17*(((J9/12)+1)^J19-1)/((J9/12)*(1+(J9/12))^J19)) -> 117749.5521 | P6: financiamento maximo pela renda | S6: =IF('Premissas e Calculos'!J6<=2790,"",360) -> 
C7: 1300 | D7: 0.05 | F7: Escala de subsídio por R$ | J7: Taxa do Cliente | L7: =#REF!*(1-#REF!) ->  | M7: =#REF!*(1-#REF!) ->  | N7: =#REF!*(1-#REF!) ->  | O7: =J11*(1-G29) -> 151579.89 | P7: Valor máximo financiado sem comissão | S7: Correção da Resposta | T7: Resposta
B8: 3SM | C8: 1395 | D8: 0.05 | F8: Início da 2a escala de subsídio | L8: 360 | M8: 300 | N8: 240 | O8: =J19 -> 360 | P8: Quota de Financiamento maxima | S8: =IF(AND('Premissas e Calculos'!J6<=G14,T8=3),2,T8) -> 2 | T8: 3
C9: 1395.01 | D9: 0.05 | F9: Escala 2 de subsídio por SM | J9: =IF(J11<J3/(1-G29),(IF('Premissas e Calculos'!W4=1,VLOOKUP('Premissas e Calculos'!J6,'Premissas e Calculos'!C4:D64,2,TRUE)-0.5%,VLOOKUP('Premissas e Calculos'!J6,'Premissas e Calculos'!C4:D64,2,TRUE))),10.4815%) -> 0.05 | L9: =IF(P15=1,80%,80%) -> 0.8 | M9: =IF(P15=1,80%,80%) -> 0.8 | N9: =IF(P15=1,80%,80%) -> 0.8 | O9: =IF(O3<=240,N9,IF(O3<=300,M9,L9)) -> 0.8
C10: 1500 | D10: 0.05 | F10: Escala 2 de subsídio por R$ | J10: Preço de Venda | O10: =SMALL(O4:O7,1) -> 117749.5521 | S10: =#REF!+#REF!+G17+'Simulador CEF'!S20=#REF! ->  | T10: =#REF!=#REF!+#REF!+'Simulador CEF'!S20+G17 -> 
C11: 1600 | D11: 0.05 | F11: Comissão | G11: 0.035 | H11: =G11 -> 0.035 | J11: ='Simulador CEF'!V6 -> 159390
C12: 1700 | D12: 0.05 | F12: Comprometimento de Renda | G12: 0.3 | H12: =G12 -> 0.3 | J12: Avaliação CAIXA
C13: 1800 | D13: 0.05 | F13: Salário Mínimo | G13: 937 | H13: =SM -> 937 | J13: =VLOOKUP('Simulador CEF'!I6,Apoio!C9:E30,3,FALSE) -> 158000 | O13: Prazo Máximo a financiar | P13: =O4*G32 -> 121263.912
B14: 4SM | C14: 1860 | D14: 0.05 | F14: Valor Máximo financiado em 300 meses | G14: =6*G13 -> 5622 | H14: =G14 -> 5622 | O14: 360 | P14: =125*0.96*0.96 -> 115.2
C15: 2000 | D15: 0.05 | E15: pcva1 | F15: INCC (a.a.) Nominal | G15: 0.06 | H15: =INCC -> 0.06 | J15: Subsísidio praticado | O15: Prazo Máx. Financ. | P15: ='Simulador CEF'!Z20 -> 0
C16: 2000 | D16: 0.0525 | F16: Obra / VGV | G16: 0.8 | H16: =OBRA_VGV -> 0.8 | L16: Parcela Máxima | M16: Parcela Máxima sem taxa | O16: 420
C17: 2100 | D17: 0.055 | F17: Subsídio | G17: =IF('Simulador CEF'!$D$22=2,ROUNDDOWN(IF($J$6<=1800,SUB,IF($J$6>=4000.01,0,IF($J$6>=3284,2535,IF($J$6>=1800.01,$G$5*($J$6-1800)*($J$6-1800)+$G$6*($J$6-1800)+SUB)))),0),ROUNDDOWN(IF($J$6<=1800,(SUB/2),IF($J$6>=4000.01,0,IF($J$6>=3284,(2535/2),IF($J$6>=1800.01,(($G$5*($J$6-1800)*($J$6-1800)+$G$6*($J$6-1800)+(SUB))/2))))),0)) -> 17011 | H17: =G17 -> 17011 | J17: =IF('Simulador CEF'!E32="sim",IF(AND(J11*(1-G29)<=J3,J13<=J3),IF(J3=VMI,G17,H17),0),0) -> 17011 | L17: =((J6*'Premissas e Calculos'!G12)-IF(J6>2790,H19,0))/(1+Q32) -> 632.1050568 | M17: =IF(J6<='Premissas e Calculos'!G20,'Premissas e Calculos'!L17,'Premissas e Calculos'!L17-'Premissas e Calculos'!G19) -> 632.1050568
B18: 5SM | C18: 2200 | D18: 0.055 | J18: Prazo | L18: Análise de Crédito
C19: 2350 | D19: 0.055 | F19: Taxa de Administração | G19: 21.66 | H19: =G19 -> 21.66 | J19: =O3 -> 360 | L19: =J6*0.9*G12 -> 580.5 | M19: =IF(J6<='Premissas e Calculos'!G20,'Premissas e Calculos'!L19,'Premissas e Calculos'!L19-'Premissas e Calculos'!G19)+J33*70%/12 -> 580.5
C20: 2350.01 | D20: 0.055 | F20: Salário Isento de Taxa | G20: =G14 -> 5622 | H20: =G20 -> 5622 | J20: FGTS
C21: 2455 | D21: 0.055 | J21: ='Simulador CEF'!S20 -> 5000
C22: 2455.01 | D22: 0.055 | O22: Idade | P22: Seguro Morte ou Invalidez | Q22: Fundo Garantidor (emprego) | R22: Total
C23: 2600 | D23: 0.055 | O23: 0 | P23: 1.5 | Q23: 0.5 | R23: =Q23+P23 -> 2
B24: 6SM | C24: 2650 | D24: 0.06 | J24: Valor Máximo do FGTS | O24: =25 + 1/10^6 -> 25.000001 | P24: 1.54 | Q24: 0.5 | R24: =Q24+P24 -> 2.04
C25: 2700.01 | D25: 0.06 | F25: ENTRADA MÍNIMA | G25: 0 | J25: =MINA(J11*(1-G25)-J17,J13) -> 142379 | O25: =30+ 1/10^6 -> 30.000001 | P25: 1.64 | Q25: 0.5 | R25: 2.14
C26: 2790.01 | D26: 0.06 | O26: =35+ 1/10^6 -> 35.000001 | P26: 1.82 | Q26: 0.5 | R26: 2.32
C27: 2900 | D27: 0.06 | J27: Prazo Obra | O27: =40+ 1/10^6 -> 40.000001 | P27: 2.59 | Q27: 0.5 | R27: 3.09
C28: 3000 | D28: 0.06 | J28: =Apoio!I35 -> 31 | O28: =45+ 1/10^6 -> 45.000001 | P28: 3.02 | Q28: 0.5 | R28: 3.52
C29: 3000.01 | D29: 0.06 | F29: Comissão | G29: 0.049 | J29: Repasse | M29: Empresas de Vendas | O29: =50+ 1/10^6 -> 50.000001 | P29: 6.64 | Q29: 0.5 | R29: 7.14
B30: 7SM | C30: 3001 | D30: 0.07 | J30: =VLOOKUP('Simulador CEF'!I6,Apoio!C9:F30,4,FALSE) -> 3 | M30: MAIS
C31: 3275 | D31: 0.07 | M31: CURY VENDAS | O31: Idade (meses) | P31: Idade Repasse (anos) | Q31: Taxa (%) | R31: Taxa (R$)
C32: 3275.01 | D32: 0.07 | F32: Limite máximo de financiamento (REPASSE) | G32: =IF(P15=1,100%,100%) -> 1 | J32: CLT | M32: CURY & CIA | O32: ='Simulador CEF'!IV92 -> 336 | P32: =(O32+J30+2)/12 -> 28.41666667 | Q32: =VLOOKUP(P32,O23:R29,4,TRUE)/100 -> 0.0204 | R32: =(J6*'Premissas e Calculos'!G12)*Q32 -> 13.158
C33: 3500 | D33: 0.07 | M33: VENDA INTERNA | O33: O Cálculo da Taxa leva em conta a idade do cliente no repasse e não na data da venda (incluindo margem de segurança de 2 meses). No Simulador da CAIXA não desconta a taxa do Fundo, pois é optativo, mas na prática todos optam.
B34: 8SM | C34: 3600 | D34: 0.07
C35: 3600.01 | D35: 0.07 | F35: Chaves (valor máximo da poupança) | G35: 0.3
C36: 3800 | D36: 0.07
C37: 3900 | D37: 0.07
C38: 4000 | D38: 0.07 | F38: Data de Mudança de Tabela | G38: 2021-09-30
B39: 9SM | C39: 4000.01 | D39: 0.07 | E39: pcva2
C40: 4185 | D40: 0.0816
C41: 4300 | D41: 0.0816
C42: 4400 | D42: 0.0816
C43: 4500 | D43: 0.0816
B44: 10SM | C44: 4600 | D44: 0.0816
C45: 6500 | D45: 0.0816
C46: 6500.01 | D46: 0.0816
C47: 6600 | D47: 0.0816
C48: 6700 | D48: 0.0816
C49: 6800 | D49: 0.0816
C50: 6900 | D50: 0.0816
C51: 7000 | D51: 0.0816
C52: 7001 | D52: 0.0916
C53: 7600 | D53: 0.0916
C54: 7700 | D54: 0.0916
C55: 7800 | D55: 0.0916
C56: 7900 | D56: 0.0916
C57: 8000 | D57: 0.0916
C58: 8500 | D58: 0.0916
C59: 8600 | D59: 0.0916
C60: 8700 | D60: 0.0916
C61: 8800 | D61: 0.0916
C62: 8900 | D62: 0.0916
C63: 9000 | D63: 0.0916
C64: 9000 | D64: 0.1025 | E64: pcva3

Sheet Apoio (hidden)
B1: Planilha de resposta do empreendimento escolhido
B2: Código Empreendimento | D2: =VLOOKUP('Simulador CEF'!G4,'DADOS DOS EMPREENDIMENTOS'!B10:C28,2,FALSE) -> 2
B3: Empreendimento: | D3: =VLOOKUP(D2,'DADOS DOS EMPREENDIMENTOS'!A10:B28,2,FALSE) -> Completo Guanabara - Desconto - Sem Premio
B4: Valor Máximo Do Imóvel dentro do Pacote | E4: =VLOOKUP(D2,'DADOS DOS EMPREENDIMENTOS'!A10:I27,9,FALSE) -> 190000
B5: Tabela de Unidades disponíveis
C6: Código Tipo | D6: Código Venda | E6: Código Avaliação
C7: =VLOOKUP($D$2,'DADOS DOS EMPREENDIMENTOS'!$C$10:$H$28,4,FALSE) -> 7 | D7: =VLOOKUP($D$2,'DADOS DOS EMPREENDIMENTOS'!$C$10:$H$28,5,FALSE) -> 8 | E7: =VLOOKUP($D$2,'DADOS DOS EMPREENDIMENTOS'!$C$10:$H$28,6,FALSE) -> 9 | F7: =VLOOKUP($D$2,'DADOS DOS EMPREENDIMENTOS'!$C$10:$N$28,12,FALSE) -> 10
C8: Tipo | D8: Preço de Venda | E8: Avaliação CAIXA | F8: Repasse
B9: 1 | C9: =VLOOKUP(B9,'DADOS DOS EMPREENDIMENTOS'!$O$16:$CX$42,Apoio!$C$7,FALSE) -> 5° andar S/ Vaga | D9: =VLOOKUP(B9,'DADOS DOS EMPREENDIMENTOS'!$O$16:$CX$42,Apoio!$D$7,FALSE) -> 157390 | E9: =VLOOKUP(B9,'DADOS DOS EMPREENDIMENTOS'!$O$16:$CX$42,Apoio!$E$7,FALSE) -> 158000 | F9: =VLOOKUP(B9,'DADOS DOS EMPREENDIMENTOS'!$O$16:$CX$42,Apoio!$F$7,FALSE) -> 3
B10: 2 | C10: =VLOOKUP(B10,'DADOS DOS EMPREENDIMENTOS'!$O$16:$CX$42,Apoio!$C$7,FALSE) -> 4° andar S/ Vaga | D10: =VLOOKUP(B10,'DADOS DOS EMPREENDIMENTOS'!$O$16:$CX$42,Apoio!$D$7,FALSE) -> 159390 | E10: =VLOOKUP(B10,'DADOS DOS EMPREENDIMENTOS'!$O$16:$CX$42,Apoio!$E$7,FALSE) -> 158000 | F10: =VLOOKUP(B10,'DADOS DOS EMPREENDIMENTOS'!$O$16:$CX$42,Apoio!$F$7,FALSE) -> 3
B11: 3 | C11: =VLOOKUP(B11,'DADOS DOS EMPREENDIMENTOS'!$O$16:$CX$42,Apoio!$C$7,FALSE) -> 4° andar C/ Vaga | D11: =VLOOKUP(B11,'DADOS DOS EMPREENDIMENTOS'!$O$16:$CX$42,Apoio!$D$7,FALSE) -> 173390 | E11: =VLOOKUP(B11,'DADOS DOS EMPREENDIMENTOS'!$O$16:$CX$42,Apoio!$E$7,FALSE) -> 172000 | F11: =VLOOKUP(B11,'DADOS DOS EMPREENDIMENTOS'!$O$16:$CX$42,Apoio!$F$7,FALSE) -> 3
B12: 4 | C12: =VLOOKUP(B12,'DADOS DOS EMPREENDIMENTOS'!$O$16:$CX$42,Apoio!$C$7,FALSE) -> 3°andar C/ Vaga | D12: =VLOOKUP(B12,'DADOS DOS EMPREENDIMENTOS'!$O$16:$CX$42,Apoio!$D$7,FALSE) -> 173390 | E12: =VLOOKUP(B12,'DADOS DOS EMPREENDIMENTOS'!$O$16:$CX$42,Apoio!$E$7,FALSE) -> 178000 | F12: =VLOOKUP(B12,'DADOS DOS EMPREENDIMENTOS'!$O$16:$CX$42,Apoio!$F$7,FALSE) -> 3
B13: 5 | C13: =VLOOKUP(B13,'DADOS DOS EMPREENDIMENTOS'!$O$16:$CX$42,Apoio!$C$7,FALSE) -> 2°andar C/ Vaga | D13: =VLOOKUP(B13,'DADOS DOS EMPREENDIMENTOS'!$O$16:$CX$42,Apoio!$D$7,FALSE) -> 174390 | E13: =VLOOKUP(B13,'DADOS DOS EMPREENDIMENTOS'!$O$16:$CX$42,Apoio!$E$7,FALSE) -> 178000 | F13: =VLOOKUP(B13,'DADOS DOS EMPREENDIMENTOS'!$O$16:$CX$42,Apoio!$F$7,FALSE) -> 3
B14: 6 | C14: =VLOOKUP(B14,'DADOS DOS EMPREENDIMENTOS'!$O$16:$CX$42,Apoio!$C$7,FALSE) -> 1° andar S/ Vaga | D14: =VLOOKUP(B14,'DADOS DOS EMPREENDIMENTOS'!$O$16:$CX$42,Apoio!$D$7,FALSE) -> 158390 | E14: =VLOOKUP(B14,'DADOS DOS EMPREENDIMENTOS'!$O$16:$CX$42,Apoio!$E$7,FALSE) -> 151000 | F14: =VLOOKUP(B14,'DADOS DOS EMPREENDIMENTOS'!$O$16:$CX$42,Apoio!$F$7,FALSE) -> 1
B15: 7 | C15: =VLOOKUP(B15,'DADOS DOS EMPREENDIMENTOS'!$O$16:$CX$42,Apoio!$C$7,FALSE) -> 1° andar C/ Vaga | D15: =VLOOKUP(B15,'DADOS DOS EMPREENDIMENTOS'!$O$16:$CX$42,Apoio!$D$7,FALSE) -> 172390 | E15: =VLOOKUP(B15,'DADOS DOS EMPREENDIMENTOS'!$O$16:$CX$42,Apoio!$E$7,FALSE) -> 179000 | F15: =VLOOKUP(B15,'DADOS DOS EMPREENDIMENTOS'!$O$16:$CX$42,Apoio!$F$7,FALSE) -> 3
B16: 8 | C16: =VLOOKUP(B16,'DADOS DOS EMPREENDIMENTOS'!$O$16:$CX$42,Apoio!$C$7,FALSE) -> 1º andar 1 Quarto (PNE) | D16: =VLOOKUP(B16,'DADOS DOS EMPREENDIMENTOS'!$O$16:$CX$42,Apoio!$D$7,FALSE) -> 162390 | E16: =VLOOKUP(B16,'DADOS DOS EMPREENDIMENTOS'!$O$16:$CX$42,Apoio!$E$7,FALSE) -> 171000 | F16: =VLOOKUP(B16,'DADOS DOS EMPREENDIMENTOS'!$O$16:$CX$42,Apoio!$F$7,FALSE) -> 3
B17: 9 | C17: =VLOOKUP(B17,'DADOS DOS EMPREENDIMENTOS'!$O$16:$CX$42,Apoio!$C$7,FALSE) -> 0 | D17: =VLOOKUP(B17,'DADOS DOS EMPREENDIMENTOS'!$O$16:$CX$42,Apoio!$D$7,FALSE) -> 0 | E17: =VLOOKUP(B17,'DADOS DOS EMPREENDIMENTOS'!$O$16:$CX$42,Apoio!$E$7,FALSE) -> 0 | F17: =VLOOKUP(B17,'DADOS DOS EMPREENDIMENTOS'!$O$16:$CX$42,Apoio!$F$7,FALSE) -> 0
B18: 10 | C18: =VLOOKUP(B18,'DADOS DOS EMPREENDIMENTOS'!$O$16:$CX$42,Apoio!$C$7,FALSE) -> 0 | D18: =VLOOKUP(B18,'DADOS DOS EMPREENDIMENTOS'!$O$16:$CX$42,Apoio!$D$7,FALSE) -> 0 | E18: =VLOOKUP(B18,'DADOS DOS EMPREENDIMENTOS'!$O$16:$CX$42,Apoio!$E$7,FALSE) -> 0 | F18: =VLOOKUP(B18,'DADOS DOS EMPREENDIMENTOS'!$O$16:$CX$42,Apoio!$F$7,FALSE) -> 0
B19: 11 | C19: =VLOOKUP(B19,'DADOS DOS EMPREENDIMENTOS'!$O$16:$CX$42,Apoio!$C$7,FALSE) -> 0 | D19: =VLOOKUP(B19,'DADOS DOS EMPREENDIMENTOS'!$O$16:$CX$42,Apoio!$D$7,FALSE) -> 0 | E19: =VLOOKUP(B19,'DADOS DOS EMPREENDIMENTOS'!$O$16:$CX$42,Apoio!$E$7,FALSE) -> 0 | F19: =VLOOKUP(B19,'DADOS DOS EMPREENDIMENTOS'!$O$16:$CX$42,Apoio!$F$7,FALSE) -> 0
B20: 12 | C20: =VLOOKUP(B20,'DADOS DOS EMPREENDIMENTOS'!$O$16:$CX$42,Apoio!$C$7,FALSE) -> 0 | D20: =VLOOKUP(B20,'DADOS DOS EMPREENDIMENTOS'!$O$16:$CX$42,Apoio!$D$7,FALSE) -> 0 | E20: =VLOOKUP(B20,'DADOS DOS EMPREENDIMENTOS'!$O$16:$CX$42,Apoio!$E$7,FALSE) -> 0 | F20: =VLOOKUP(B20,'DADOS DOS EMPREENDIMENTOS'!$O$16:$CX$42,Apoio!$F$7,FALSE) -> 0
B21: 13 | C21: =VLOOKUP(B21,'DADOS DOS EMPREENDIMENTOS'!$O$16:$CX$42,Apoio!$C$7,FALSE) ->  | D21: =VLOOKUP(B21,'DADOS DOS EMPREENDIMENTOS'!$O$16:$CX$42,Apoio!$D$7,FALSE) ->  | E21: =VLOOKUP(B21,'DADOS DOS EMPREENDIMENTOS'!$O$16:$CX$42,Apoio!$E$7,FALSE) ->  | F21: =VLOOKUP(B21,'DADOS DOS EMPREENDIMENTOS'!$O$16:$CX$42,Apoio!$F$7,FALSE) -> 
B22: 14 | C22: =VLOOKUP(B22,'DADOS DOS EMPREENDIMENTOS'!$O$16:$CX$42,Apoio!$C$7,FALSE) ->  | D22: =VLOOKUP(B22,'DADOS DOS EMPREENDIMENTOS'!$O$16:$CX$42,Apoio!$D$7,FALSE) ->  | E22: =VLOOKUP(B22,'DADOS DOS EMPREENDIMENTOS'!$O$16:$CX$42,Apoio!$E$7,FALSE) ->  | F22: =VLOOKUP(B22,'DADOS DOS EMPREENDIMENTOS'!$O$16:$CX$42,Apoio!$F$7,FALSE) -> 
B23: 15 | C23: =VLOOKUP(B23,'DADOS DOS EMPREENDIMENTOS'!$O$16:$CX$42,Apoio!$C$7,FALSE) ->  | D23: =VLOOKUP(B23,'DADOS DOS EMPREENDIMENTOS'!$O$16:$CX$42,Apoio!$D$7,FALSE) ->  | E23: =VLOOKUP(B23,'DADOS DOS EMPREENDIMENTOS'!$O$16:$CX$42,Apoio!$E$7,FALSE) ->  | F23: =VLOOKUP(B23,'DADOS DOS EMPREENDIMENTOS'!$O$16:$CX$42,Apoio!$F$7,FALSE) -> 
B24: 16 | C24: =VLOOKUP(B24,'DADOS DOS EMPREENDIMENTOS'!$O$16:$CX$42,Apoio!$C$7,FALSE) ->  | D24: =VLOOKUP(B24,'DADOS DOS EMPREENDIMENTOS'!$O$16:$CX$42,Apoio!$D$7,FALSE) ->  | E24: =VLOOKUP(B24,'DADOS DOS EMPREENDIMENTOS'!$O$16:$CX$42,Apoio!$E$7,FALSE) ->  | F24: =VLOOKUP(B24,'DADOS DOS EMPREENDIMENTOS'!$O$16:$CX$42,Apoio!$F$7,FALSE) -> 
B25: 17 | C25: =VLOOKUP(B25,'DADOS DOS EMPREENDIMENTOS'!$O$16:$CX$42,Apoio!$C$7,FALSE) ->  | D25: =VLOOKUP(B25,'DADOS DOS EMPREENDIMENTOS'!$O$16:$CX$42,Apoio!$D$7,FALSE) ->  | E25: =VLOOKUP(B25,'DADOS DOS EMPREENDIMENTOS'!$O$16:$CX$42,Apoio!$E$7,FALSE) ->  | F25: =VLOOKUP(B25,'DADOS DOS EMPREENDIMENTOS'!$O$16:$CX$42,Apoio!$F$7,FALSE) -> 
B26: 18 | C26: =VLOOKUP(B26,'DADOS DOS EMPREENDIMENTOS'!$O$16:$CX$42,Apoio!$C$7,FALSE) ->  | D26: =VLOOKUP(B26,'DADOS DOS EMPREENDIMENTOS'!$O$16:$CX$42,Apoio!$D$7,FALSE) ->  | E26: =VLOOKUP(B26,'DADOS DOS EMPREENDIMENTOS'!$O$16:$CX$42,Apoio!$E$7,FALSE) ->  | F26: =VLOOKUP(B26,'DADOS DOS EMPREENDIMENTOS'!$O$16:$CX$42,Apoio!$F$7,FALSE) -> 
B27: 19 | C27: =VLOOKUP(B27,'DADOS DOS EMPREENDIMENTOS'!$O$16:$CX$42,Apoio!$C$7,FALSE) ->  | D27: =VLOOKUP(B27,'DADOS DOS EMPREENDIMENTOS'!$O$16:$CX$42,Apoio!$D$7,FALSE) ->  | E27: =VLOOKUP(B27,'DADOS DOS EMPREENDIMENTOS'!$O$16:$CX$42,Apoio!$E$7,FALSE) ->  | F27: =VLOOKUP(B27,'DADOS DOS EMPREENDIMENTOS'!$O$16:$CX$42,Apoio!$F$7,FALSE) -> 
B28: 20 | C28: =VLOOKUP(B28,'DADOS DOS EMPREENDIMENTOS'!$O$16:$CX$42,Apoio!$C$7,FALSE) ->  | D28: =VLOOKUP(B28,'DADOS DOS EMPREENDIMENTOS'!$O$16:$CX$42,Apoio!$D$7,FALSE) ->  | E28: =VLOOKUP(B28,'DADOS DOS EMPREENDIMENTOS'!$O$16:$CX$42,Apoio!$E$7,FALSE) ->  | F28: =VLOOKUP(B28,'DADOS DOS EMPREENDIMENTOS'!$O$16:$CX$42,Apoio!$F$7,FALSE) -> 
B29: 21 | C29: =VLOOKUP(B29,'DADOS DOS EMPREENDIMENTOS'!$O$16:$CX$42,Apoio!$C$7,FALSE) ->  | D29: =VLOOKUP(B29,'DADOS DOS EMPREENDIMENTOS'!$O$16:$CX$42,Apoio!$D$7,FALSE) ->  | E29: =VLOOKUP(B29,'DADOS DOS EMPREENDIMENTOS'!$O$16:$CX$42,Apoio!$E$7,FALSE) ->  | F29: =VLOOKUP(B29,'DADOS DOS EMPREENDIMENTOS'!$O$16:$CX$42,Apoio!$F$7,FALSE) -> 
B30: 22 | C30: =VLOOKUP(B30,'DADOS DOS EMPREENDIMENTOS'!$O$16:$CX$42,Apoio!$C$7,FALSE) ->  | D30: =VLOOKUP(B30,'DADOS DOS EMPREENDIMENTOS'!$O$16:$CX$42,Apoio!$D$7,FALSE) ->  | E30: =VLOOKUP(B30,'DADOS DOS EMPREENDIMENTOS'!$O$16:$CX$42,Apoio!$E$7,FALSE) ->  | F30: =VLOOKUP(B30,'DADOS DOS EMPREENDIMENTOS'!$O$16:$CX$42,Apoio!$F$7,FALSE) -> 
B32: Fluxo de Juros da CAIXA
B33: Taxa de Juros | D33: ='Premissas e Calculos'!J9 -> 0.05 | E33: Código
B34: Valor Financiado | D34: ='Simulador CEF'!F119 -> 117750 | E34: =VLOOKUP($D$2,'DADOS DOS EMPREENDIMENTOS'!$C$10:$D$28,2,FALSE) -> 8 | F34: Habite-se | G34: Repasse | H34: Período Atual | I34: Prazo Para o Término de Obra | J34: término da obra
B35: Período | C35: Obra | D35: Desembolso | E35: Juros Cliente | F35: =VLOOKUP($D$2,'DADOS DOS EMPREENDIMENTOS'!A10:J28,10,FALSE)+3 -> 34 | G35: =VLOOKUP($D$2,'DADOS DOS EMPREENDIMENTOS'!A10:L28,12,FALSE) -> 0 | H35: =VLOOKUP($D$2,'DADOS DOS EMPREENDIMENTOS'!A10:M28,13,FALSE) -> 0 | I35: =VLOOKUP($D$2,'DADOS DOS EMPREENDIMENTOS'!A10:J28,10,FALSE) -> 31 | J35: =VLOOKUP($D$2,'DADOS DOS EMPREENDIMENTOS'!A10:J28,10,FALSE) -> 31
B37: 1 | C37: =VLOOKUP(B37,'DADOS DOS EMPREENDIMENTOS'!$O$47:$FW$87,Apoio!$E$34,FALSE) -> 0 | D37: =VLOOKUP(B37,'DADOS DOS EMPREENDIMENTOS'!$O$47:$FW$87,Apoio!$E$34+1,FALSE) -> 0
B38: 2 | C38: =VLOOKUP(B38,'DADOS DOS EMPREENDIMENTOS'!$O$47:$FW$87,Apoio!$E$34,FALSE) -> 0 | D38: =VLOOKUP(B38,'DADOS DOS EMPREENDIMENTOS'!$O$47:$FW$87,Apoio!$E$34+1,FALSE) -> 0 | E38: =IF(B38>$F$35,0,SUM($D$37:D37)*Apoio!$D$33*Apoio!$D$34/12) -> 0
B39: 3 | C39: =VLOOKUP(B39,'DADOS DOS EMPREENDIMENTOS'!$O$47:$FW$87,Apoio!$E$34,FALSE) -> 0 | D39: =VLOOKUP(B39,'DADOS DOS EMPREENDIMENTOS'!$O$47:$FW$87,Apoio!$E$34+1,FALSE) -> 0 | E39: =IF(B39>$F$35,0,SUM($D$37:D38)*Apoio!$D$33*Apoio!$D$34/12) -> 0
B40: 4 | C40: =VLOOKUP(B40,'DADOS DOS EMPREENDIMENTOS'!$O$47:$FW$87,Apoio!$E$34,FALSE) -> 0 | D40: =VLOOKUP(B40,'DADOS DOS EMPREENDIMENTOS'!$O$47:$FW$87,Apoio!$E$34+1,FALSE) -> 0 | E40: =IF(B40>$F$35,0,SUM($D$37:D39)*Apoio!$D$33*Apoio!$D$34/12) -> 0
B41: 5 | C41: =VLOOKUP(B41,'DADOS DOS EMPREENDIMENTOS'!$O$47:$FW$87,Apoio!$E$34,FALSE) -> 0 | D41: =VLOOKUP(B41,'DADOS DOS EMPREENDIMENTOS'!$O$47:$FW$87,Apoio!$E$34+1,FALSE) -> 0 | E41: =IF(B41>$F$35,0,SUM($D$37:D40)*Apoio!$D$33*Apoio!$D$34/12) -> 0
B42: 6 | C42: =VLOOKUP(B42,'DADOS DOS EMPREENDIMENTOS'!$O$47:$FW$87,Apoio!$E$34,FALSE) -> 0 | D42: =VLOOKUP(B42,'DADOS DOS EMPREENDIMENTOS'!$O$47:$FW$87,Apoio!$E$34+1,FALSE) -> 0 | E42: =IF(B42>$F$35,0,SUM($D$37:D41)*Apoio!$D$33*Apoio!$D$34/12) -> 0
B43: 7 | C43: =VLOOKUP(B43,'DADOS DOS EMPREENDIMENTOS'!$O$47:$FW$87,Apoio!$E$34,FALSE) -> 0 | D43: =VLOOKUP(B43,'DADOS DOS EMPREENDIMENTOS'!$O$47:$FW$87,Apoio!$E$34+1,FALSE) -> 0 | E43: =IF(B43>$F$35,0,SUM($D$37:D42)*Apoio!$D$33*Apoio!$D$34/12) -> 0
B44: 8 | C44: =VLOOKUP(B44,'DADOS DOS EMPREENDIMENTOS'!$O$47:$FW$87,Apoio!$E$34,FALSE) -> 0 | D44: =VLOOKUP(B44,'DADOS DOS EMPREENDIMENTOS'!$O$47:$FW$87,Apoio!$E$34+1,FALSE) -> 0 | E44: =IF(B44>$F$35,0,SUM($D$37:D43)*Apoio!$D$33*Apoio!$D$34/12) -> 0
B45: 9 | C45: =VLOOKUP(B45,'DADOS DOS EMPREENDIMENTOS'!$O$47:$FW$87,Apoio!$E$34,FALSE) -> 0 | D45: =VLOOKUP(B45,'DADOS DOS EMPREENDIMENTOS'!$O$47:$FW$87,Apoio!$E$34+1,FALSE) -> 0 | E45: =IF(B45>$F$35,0,SUM($D$37:D44)*Apoio!$D$33*Apoio!$D$34/12) -> 0
B46: 10 | C46: =VLOOKUP(B46,'DADOS DOS EMPREENDIMENTOS'!$O$47:$FW$87,Apoio!$E$34,FALSE) -> 0 | D46: =VLOOKUP(B46,'DADOS DOS EMPREENDIMENTOS'!$O$47:$FW$87,Apoio!$E$34+1,FALSE) -> 0 | E46: =IF(B46>$F$35,0,SUM($D$37:D45)*Apoio!$D$33*Apoio!$D$34/12) -> 0
B47: 11 | C47: =VLOOKUP(B47,'DADOS DOS EMPREENDIMENTOS'!$O$47:$FW$87,Apoio!$E$34,FALSE) -> 0 | D47: =VLOOKUP(B47,'DADOS DOS EMPREENDIMENTOS'!$O$47:$FW$87,Apoio!$E$34+1,FALSE) -> 0 | E47: =IF(B47>$F$35,0,SUM($D$37:D46)*Apoio!$D$33*Apoio!$D$34/12) -> 0
B48: 12 | C48: =VLOOKUP(B48,'DADOS DOS EMPREENDIMENTOS'!$O$47:$FW$87,Apoio!$E$34,FALSE) -> 0 | D48: =VLOOKUP(B48,'DADOS DOS EMPREENDIMENTOS'!$O$47:$FW$87,Apoio!$E$34+1,FALSE) -> 0 | E48: =IF(B48>$F$35,0,SUM($D$37:D47)*Apoio!$D$33*Apoio!$D$34/12) -> 0
B49: 13 | C49: =VLOOKUP(B49,'DADOS DOS EMPREENDIMENTOS'!$O$47:$FW$87,Apoio!$E$34,FALSE) -> 0 | D49: =VLOOKUP(B49,'DADOS DOS EMPREENDIMENTOS'!$O$47:$FW$87,Apoio!$E$34+1,FALSE) -> 0 | E49: =IF(B49>$F$35,0,SUM($D$37:D48)*Apoio!$D$33*Apoio!$D$34/12) -> 0
B50: 14 | C50: =VLOOKUP(B50,'DADOS DOS EMPREENDIMENTOS'!$O$47:$FW$87,Apoio!$E$34,FALSE) -> 0 | D50: =VLOOKUP(B50,'DADOS DOS EMPREENDIMENTOS'!$O$47:$FW$87,Apoio!$E$34+1,FALSE) -> 0 | E50: =IF(B50>$F$35,0,SUM($D$37:D49)*Apoio!$D$33*Apoio!$D$34/12) -> 0
B51: 15 | C51: =VLOOKUP(B51,'DADOS DOS EMPREENDIMENTOS'!$O$47:$FW$87,Apoio!$E$34,FALSE) -> 0 | D51: =VLOOKUP(B51,'DADOS DOS EMPREENDIMENTOS'!$O$47:$FW$87,Apoio!$E$34+1,FALSE) -> 0 | E51: =IF(B51>$F$35,0,SUM($D$37:D50)*Apoio!$D$33*Apoio!$D$34/12) -> 0
B52: 16 | C52: =VLOOKUP(B52,'DADOS DOS EMPREENDIMENTOS'!$O$47:$FW$87,Apoio!$E$34,FALSE) -> 0 | D52: =VLOOKUP(B52,'DADOS DOS EMPREENDIMENTOS'!$O$47:$FW$87,Apoio!$E$34+1,FALSE) -> 0 | E52: =IF(B52>$F$35,0,SUM($D$37:D51)*Apoio!$D$33*Apoio!$D$34/12) -> 0
B53: 17 | C53: =VLOOKUP(B53,'DADOS DOS EMPREENDIMENTOS'!$O$47:$FW$87,Apoio!$E$34,FALSE) -> 0 | D53: =VLOOKUP(B53,'DADOS DOS EMPREENDIMENTOS'!$O$47:$FW$87,Apoio!$E$34+1,FALSE) -> 0 | E53: =IF(B53>$F$35,0,SUM($D$37:D52)*Apoio!$D$33*Apoio!$D$34/12) -> 0
B54: 18 | C54: =VLOOKUP(B54,'DADOS DOS EMPREENDIMENTOS'!$O$47:$FW$87,Apoio!$E$34,FALSE) -> 0 | D54: =VLOOKUP(B54,'DADOS DOS EMPREENDIMENTOS'!$O$47:$FW$87,Apoio!$E$34+1,FALSE) -> 0 | E54: =IF(B54>$F$35,0,SUM($D$37:D53)*Apoio!$D$33*Apoio!$D$34/12) -> 0
B55: 19 | C55: =VLOOKUP(B55,'DADOS DOS EMPREENDIMENTOS'!$O$47:$FW$87,Apoio!$E$34,FALSE) -> 0 | D55: =VLOOKUP(B55,'DADOS DOS EMPREENDIMENTOS'!$O$47:$FW$87,Apoio!$E$34+1,FALSE) -> 0 | E55: =IF(B55>$F$35,0,SUM($D$37:D54)*Apoio!$D$33*Apoio!$D$34/12) -> 0
B56: 20 | C56: =VLOOKUP(B56,'DADOS DOS EMPREENDIMENTOS'!$O$47:$FW$87,Apoio!$E$34,FALSE) -> 0 | D56: =VLOOKUP(B56,'DADOS DOS EMPREENDIMENTOS'!$O$47:$FW$87,Apoio!$E$34+1,FALSE) -> 0 | E56: =IF(B56>$F$35,0,SUM($D$37:D55)*Apoio!$D$33*Apoio!$D$34/12) -> 0
B57: 21 | C57: =VLOOKUP(B57,'DADOS DOS EMPREENDIMENTOS'!$O$47:$FW$87,Apoio!$E$34,FALSE) -> 0 | D57: =VLOOKUP(B57,'DADOS DOS EMPREENDIMENTOS'!$O$47:$FW$87,Apoio!$E$34+1,FALSE) -> 0 | E57: =IF(B57>$F$35,0,SUM($D$37:D56)*Apoio!$D$33*Apoio!$D$34/12) -> 0
B58: 22 | C58: =VLOOKUP(B58,'DADOS DOS EMPREENDIMENTOS'!$O$47:$FW$87,Apoio!$E$34,FALSE) -> 0 | D58: =VLOOKUP(B58,'DADOS DOS EMPREENDIMENTOS'!$O$47:$FW$87,Apoio!$E$34+1,FALSE) -> 0 | E58: =IF(B58>$F$35,0,SUM($D$37:D57)*Apoio!$D$33*Apoio!$D$34/12) -> 0
B59: 23 | C59: =VLOOKUP(B59,'DADOS DOS EMPREENDIMENTOS'!$O$47:$FW$87,Apoio!$E$34,FALSE) -> 0 | D59: =VLOOKUP(B59,'DADOS DOS EMPREENDIMENTOS'!$O$47:$FW$87,Apoio!$E$34+1,FALSE) -> 0 | E59: =IF(B59>$F$35,0,SUM($D$37:D58)*Apoio!$D$33*Apoio!$D$34/12) -> 0
B60: 24 | C60: =VLOOKUP(B60,'DADOS DOS EMPREENDIMENTOS'!$O$47:$FW$87,Apoio!$E$34,FALSE) -> 0 | D60: =VLOOKUP(B60,'DADOS DOS EMPREENDIMENTOS'!$O$47:$FW$87,Apoio!$E$34+1,FALSE) -> 0 | E60: =IF(B60>$F$35,0,SUM($D$37:D59)*Apoio!$D$33*Apoio!$D$34/12) -> 0
B61: 25 | C61: =VLOOKUP(B61,'DADOS DOS EMPREENDIMENTOS'!$O$47:$FW$87,Apoio!$E$34,FALSE) -> 0 | D61: =VLOOKUP(B61,'DADOS DOS EMPREENDIMENTOS'!$O$47:$FW$87,Apoio!$E$34+1,FALSE) -> 0 | E61: =IF(B61>$F$35,0,SUM($D$37:D60)*Apoio!$D$33*Apoio!$D$34/12) -> 0
B62: 26 | C62: =VLOOKUP(B62,'DADOS DOS EMPREENDIMENTOS'!$O$47:$FW$87,Apoio!$E$34,FALSE) -> 0 | D62: =VLOOKUP(B62,'DADOS DOS EMPREENDIMENTOS'!$O$47:$FW$87,Apoio!$E$34+1,FALSE) -> 0 | E62: =IF(B62>$F$35,0,SUM($D$37:D61)*Apoio!$D$33*Apoio!$D$34/12) -> 0
B63: 27 | C63: =VLOOKUP(B63,'DADOS DOS EMPREENDIMENTOS'!$O$47:$FW$87,Apoio!$E$34,FALSE) -> 0 | D63: =VLOOKUP(B63,'DADOS DOS EMPREENDIMENTOS'!$O$47:$FW$87,Apoio!$E$34+1,FALSE) -> 0 | E63: =IF(B63>$F$35,0,SUM($D$37:D62)*Apoio!$D$33*Apoio!$D$34/12) -> 0
B64: 28 | C64: =VLOOKUP(B64,'DADOS DOS EMPREENDIMENTOS'!$O$47:$FW$87,Apoio!$E$34,FALSE) -> 0 | D64: =VLOOKUP(B64,'DADOS DOS EMPREENDIMENTOS'!$O$47:$FW$87,Apoio!$E$34+1,FALSE) -> 0 | E64: =IF(B64>$F$35,0,SUM($D$37:D63)*Apoio!$D$33*Apoio!$D$34/12) -> 0
B65: 29 | C65: =VLOOKUP(B65,'DADOS DOS EMPREENDIMENTOS'!$O$47:$FW$87,Apoio!$E$34,FALSE) -> 0 | D65: =VLOOKUP(B65,'DADOS DOS EMPREENDIMENTOS'!$O$47:$FW$87,Apoio!$E$34+1,FALSE) -> 0 | E65: =IF(B65>$F$35,0,SUM($D$37:D64)*Apoio!$D$33*Apoio!$D$34/12) -> 0
B66: 30 | C66: =VLOOKUP(B66,'DADOS DOS EMPREENDIMENTOS'!$O$47:$FW$87,Apoio!$E$34,FALSE) -> 0 | D66: =VLOOKUP(B66,'DADOS DOS EMPREENDIMENTOS'!$O$47:$FW$87,Apoio!$E$34+1,FALSE) -> 0 | E66: =IF(B66>$F$35,0,SUM($D$37:D65)*Apoio!$D$33*Apoio!$D$34/12) -> 0
B67: 31 | C67: =VLOOKUP(B67,'DADOS DOS EMPREENDIMENTOS'!$O$47:$FW$87,Apoio!$E$34,FALSE) -> 0 | D67: =VLOOKUP(B67,'DADOS DOS EMPREENDIMENTOS'!$O$47:$FW$87,Apoio!$E$34+1,FALSE) -> 0 | E67: =IF(B67>$F$35,0,SUM($D$37:D66)*Apoio!$D$33*Apoio!$D$34/12) -> 0
B68: 32 | C68: =VLOOKUP(B68,'DADOS DOS EMPREENDIMENTOS'!$O$47:$FW$87,Apoio!$E$34,FALSE) -> 0 | D68: =VLOOKUP(B68,'DADOS DOS EMPREENDIMENTOS'!$O$47:$FW$87,Apoio!$E$34+1,FALSE) -> 0 | E68: =IF(B68>$F$35,0,SUM($D$37:D67)*Apoio!$D$33*Apoio!$D$34/12) -> 0
B69: 33 | C69: =VLOOKUP(B69,'DADOS DOS EMPREENDIMENTOS'!$O$47:$FW$87,Apoio!$E$34,FALSE) -> 0 | D69: =VLOOKUP(B69,'DADOS DOS EMPREENDIMENTOS'!$O$47:$FW$87,Apoio!$E$34+1,FALSE) -> 0 | E69: =IF(B69>$F$35,0,SUM($D$37:D68)*Apoio!$D$33*Apoio!$D$34/12) -> 0
B70: 34 | C70: =VLOOKUP(B70,'DADOS DOS EMPREENDIMENTOS'!$O$47:$FW$87,Apoio!$E$34,FALSE) -> 0 | D70: =VLOOKUP(B70,'DADOS DOS EMPREENDIMENTOS'!$O$47:$FW$87,Apoio!$E$34+1,FALSE) -> 0 | E70: =IF(B70>$F$35,0,SUM($D$37:D69)*Apoio!$D$33*Apoio!$D$34/12) -> 0
B71: 35 | C71: =VLOOKUP(B71,'DADOS DOS EMPREENDIMENTOS'!$O$47:$FW$87,Apoio!$E$34,FALSE) -> 0 | D71: =VLOOKUP(B71,'DADOS DOS EMPREENDIMENTOS'!$O$47:$FW$87,Apoio!$E$34+1,FALSE) -> 0 | E71: =IF(B71>$F$35,0,SUM($D$37:D70)*Apoio!$D$33*Apoio!$D$34/12) -> 0
B72: 36 | C72: =VLOOKUP(B72,'DADOS DOS EMPREENDIMENTOS'!$O$47:$FW$87,Apoio!$E$34,FALSE) -> 0 | D72: =VLOOKUP(B72,'DADOS DOS EMPREENDIMENTOS'!$O$47:$FW$87,Apoio!$E$34+1,FALSE) -> 0 | E72: =IF(B72>$F$35,0,SUM($D$37:D71)*Apoio!$D$33*Apoio!$D$34/12) -> 0
B73: 37 | C73: =VLOOKUP(B73,'DADOS DOS EMPREENDIMENTOS'!$O$47:$FW$87,Apoio!$E$34,FALSE) -> 0 | D73: =VLOOKUP(B73,'DADOS DOS EMPREENDIMENTOS'!$O$47:$FW$87,Apoio!$E$34+1,FALSE) -> 0 | E73: =IF(B73>$F$35,0,SUM($D$37:D72)*Apoio!$D$33*Apoio!$D$34/12) -> 0
B74: 38 | C74: =VLOOKUP(B74,'DADOS DOS EMPREENDIMENTOS'!$O$47:$FW$87,Apoio!$E$34,FALSE) -> 0 | D74: =VLOOKUP(B74,'DADOS DOS EMPREENDIMENTOS'!$O$47:$FW$87,Apoio!$E$34+1,FALSE) -> 0 | E74: =IF(B74>$F$35,0,SUM($D$37:D73)*Apoio!$D$33*Apoio!$D$34/12) -> 0
B75: 39 | C75: =VLOOKUP(B75,'DADOS DOS EMPREENDIMENTOS'!$O$47:$FW$87,Apoio!$E$34,FALSE) -> 0 | D75: =VLOOKUP(B75,'DADOS DOS EMPREENDIMENTOS'!$O$47:$FW$87,Apoio!$E$34+1,FALSE) -> 0 | E75: =IF(B75>$F$35,0,SUM($D$37:D74)*Apoio!$D$33*Apoio!$D$34/12) -> 0
B76: 40 | C76: =VLOOKUP(B76,'DADOS DOS EMPREENDIMENTOS'!$O$47:$FW$87,Apoio!$E$34,FALSE) -> 0 | D76: =VLOOKUP(B76,'DADOS DOS EMPREENDIMENTOS'!$O$47:$FW$87,Apoio!$E$34+1,FALSE) -> 0 | E76: =IF(B76>$F$35,0,SUM($D$37:D75)*Apoio!$D$33*Apoio!$D$34/12) -> 0

Sheet Meses (hidden)
B1: 2001-01-01 | C1: 2014-10-01
A2: 2006-07-01 | B2: =+IF(DATE(YEAR('Proposta 1 Via'!$G$10),MONTH('Proposta 1 Via'!$G$10),DAY(Meses!$B$1))=Meses!A2,0,IF(Meses!A2<'Proposta 1 Via'!$G$10,"",B1+1)) ->  | C2: 2015-02-01
A3: 2006-08-01 | B3: =+IF(DATE(YEAR('Proposta 1 Via'!$G$10),MONTH('Proposta 1 Via'!$G$10),DAY(Meses!$B$1))=Meses!A3,0,IF(Meses!A3<'Proposta 1 Via'!$G$10,"",B2+1)) -> 
A4: 2006-09-01 | B4: =+IF(DATE(YEAR('Proposta 1 Via'!$G$10),MONTH('Proposta 1 Via'!$G$10),DAY(Meses!$B$1))=Meses!A4,0,IF(Meses!A4<'Proposta 1 Via'!$G$10,"",B3+1)) -> 
A5: 2006-10-01 | B5: =+IF(DATE(YEAR('Proposta 1 Via'!$G$10),MONTH('Proposta 1 Via'!$G$10),DAY(Meses!$B$1))=Meses!A5,0,IF(Meses!A5<'Proposta 1 Via'!$G$10,"",B4+1)) -> 
A6: 2006-11-01 | B6: =+IF(DATE(YEAR('Proposta 1 Via'!$G$10),MONTH('Proposta 1 Via'!$G$10),DAY(Meses!$B$1))=Meses!A6,0,IF(Meses!A6<'Proposta 1 Via'!$G$10,"",B5+1)) -> 
A7: 2006-12-01 | B7: =+IF(DATE(YEAR('Proposta 1 Via'!$G$10),MONTH('Proposta 1 Via'!$G$10),DAY(Meses!$B$1))=Meses!A7,0,IF(Meses!A7<'Proposta 1 Via'!$G$10,"",B6+1)) -> 
A8: 2007-01-01 | B8: =+IF(DATE(YEAR('Proposta 1 Via'!$G$10),MONTH('Proposta 1 Via'!$G$10),DAY(Meses!$B$1))=Meses!A8,0,IF(Meses!A8<'Proposta 1 Via'!$G$10,"",B7+1)) -> 
A9: 2007-02-01 | B9: =+IF(DATE(YEAR('Proposta 1 Via'!$G$10),MONTH('Proposta 1 Via'!$G$10),DAY(Meses!$B$1))=Meses!A9,0,IF(Meses!A9<'Proposta 1 Via'!$G$10,"",B8+1)) -> 
A10: 2007-03-01 | B10: =+IF(DATE(YEAR('Proposta 1 Via'!$G$10),MONTH('Proposta 1 Via'!$G$10),DAY(Meses!$B$1))=Meses!A10,0,IF(Meses!A10<'Proposta 1 Via'!$G$10,"",B9+1)) -> 
A11: 2007-04-01 | B11: =+IF(DATE(YEAR('Proposta 1 Via'!$G$10),MONTH('Proposta 1 Via'!$G$10),DAY(Meses!$B$1))=Meses!A11,0,IF(Meses!A11<'Proposta 1 Via'!$G$10,"",B10+1)) -> 
A12: 2007-05-01 | B12: =+IF(DATE(YEAR('Proposta 1 Via'!$G$10),MONTH('Proposta 1 Via'!$G$10),DAY(Meses!$B$1))=Meses!A12,0,IF(Meses!A12<'Proposta 1 Via'!$G$10,"",B11+1)) -> 
A13: 2007-06-01 | B13: =+IF(DATE(YEAR('Proposta 1 Via'!$G$10),MONTH('Proposta 1 Via'!$G$10),DAY(Meses!$B$1))=Meses!A13,0,IF(Meses!A13<'Proposta 1 Via'!$G$10,"",B12+1)) -> 
A14: 2007-07-01 | B14: =+IF(DATE(YEAR('Proposta 1 Via'!$G$10),MONTH('Proposta 1 Via'!$G$10),DAY(Meses!$B$1))=Meses!A14,0,IF(Meses!A14<'Proposta 1 Via'!$G$10,"",B13+1)) -> 
A15: 2007-08-01 | B15: =+IF(DATE(YEAR('Proposta 1 Via'!$G$10),MONTH('Proposta 1 Via'!$G$10),DAY(Meses!$B$1))=Meses!A15,0,IF(Meses!A15<'Proposta 1 Via'!$G$10,"",B14+1)) -> 
A16: 2007-09-01 | B16: =+IF(DATE(YEAR('Proposta 1 Via'!$G$10),MONTH('Proposta 1 Via'!$G$10),DAY(Meses!$B$1))=Meses!A16,0,IF(Meses!A16<'Proposta 1 Via'!$G$10,"",B15+1)) -> 
A17: 2007-10-01 | B17: =+IF(DATE(YEAR('Proposta 1 Via'!$G$10),MONTH('Proposta 1 Via'!$G$10),DAY(Meses!$B$1))=Meses!A17,0,IF(Meses!A17<'Proposta 1 Via'!$G$10,"",B16+1)) -> 
A18: 2007-11-01 | B18: =+IF(DATE(YEAR('Proposta 1 Via'!$G$10),MONTH('Proposta 1 Via'!$G$10),DAY(Meses!$B$1))=Meses!A18,0,IF(Meses!A18<'Proposta 1 Via'!$G$10,"",B17+1)) -> 
A19: 2007-12-01 | B19: =+IF(DATE(YEAR('Proposta 1 Via'!$G$10),MONTH('Proposta 1 Via'!$G$10),DAY(Meses!$B$1))=Meses!A19,0,IF(Meses!A19<'Proposta 1 Via'!$G$10,"",B18+1)) -> 
A20: 2008-01-01 | B20: =+IF(DATE(YEAR('Proposta 1 Via'!$G$10),MONTH('Proposta 1 Via'!$G$10),DAY(Meses!$B$1))=Meses!A20,0,IF(Meses!A20<'Proposta 1 Via'!$G$10,"",B19+1)) -> 
A21: 2008-02-01 | B21: =+IF(DATE(YEAR('Proposta 1 Via'!$G$10),MONTH('Proposta 1 Via'!$G$10),DAY(Meses!$B$1))=Meses!A21,0,IF(Meses!A21<'Proposta 1 Via'!$G$10,"",B20+1)) -> 
A22: 2008-03-01 | B22: =+IF(DATE(YEAR('Proposta 1 Via'!$G$10),MONTH('Proposta 1 Via'!$G$10),DAY(Meses!$B$1))=Meses!A22,0,IF(Meses!A22<'Proposta 1 Via'!$G$10,"",B21+1)) -> 
A23: 2008-04-01 | B23: =+IF(DATE(YEAR('Proposta 1 Via'!$G$10),MONTH('Proposta 1 Via'!$G$10),DAY(Meses!$B$1))=Meses!A23,0,IF(Meses!A23<'Proposta 1 Via'!$G$10,"",B22+1)) -> 
A24: 2008-05-01 | B24: =+IF(DATE(YEAR('Proposta 1 Via'!$G$10),MONTH('Proposta 1 Via'!$G$10),DAY(Meses!$B$1))=Meses!A24,0,IF(Meses!A24<'Proposta 1 Via'!$G$10,"",B23+1)) -> 
A25: 2008-06-01 | B25: =+IF(DATE(YEAR('Proposta 1 Via'!$G$10),MONTH('Proposta 1 Via'!$G$10),DAY(Meses!$B$1))=Meses!A25,0,IF(Meses!A25<'Proposta 1 Via'!$G$10,"",B24+1)) -> 
A26: 2008-07-01 | B26: =+IF(DATE(YEAR('Proposta 1 Via'!$G$10),MONTH('Proposta 1 Via'!$G$10),DAY(Meses!$B$1))=Meses!A26,0,IF(Meses!A26<'Proposta 1 Via'!$G$10,"",B25+1)) -> 
A27: 2008-08-01 | B27: =+IF(DATE(YEAR('Proposta 1 Via'!$G$10),MONTH('Proposta 1 Via'!$G$10),DAY(Meses!$B$1))=Meses!A27,0,IF(Meses!A27<'Proposta 1 Via'!$G$10,"",B26+1)) -> 
A28: 2008-09-01 | B28: =+IF(DATE(YEAR('Proposta 1 Via'!$G$10),MONTH('Proposta 1 Via'!$G$10),DAY(Meses!$B$1))=Meses!A28,0,IF(Meses!A28<'Proposta 1 Via'!$G$10,"",B27+1)) -> 
A29: 2008-10-01 | B29: =+IF(DATE(YEAR('Proposta 1 Via'!$G$10),MONTH('Proposta 1 Via'!$G$10),DAY(Meses!$B$1))=Meses!A29,0,IF(Meses!A29<'Proposta 1 Via'!$G$10,"",B28+1)) -> 
A30: 2008-11-01 | B30: =+IF(DATE(YEAR('Proposta 1 Via'!$G$10),MONTH('Proposta 1 Via'!$G$10),DAY(Meses!$B$1))=Meses!A30,0,IF(Meses!A30<'Proposta 1 Via'!$G$10,"",B29+1)) -> 
A31: 2008-12-01 | B31: =+IF(DATE(YEAR('Proposta 1 Via'!$G$10),MONTH('Proposta 1 Via'!$G$10),DAY(Meses!$B$1))=Meses!A31,0,IF(Meses!A31<'Proposta 1 Via'!$G$10,"",B30+1)) -> 
A32: 2009-01-01 | B32: =+IF(DATE(YEAR('Proposta 1 Via'!$G$10),MONTH('Proposta 1 Via'!$G$10),DAY(Meses!$B$1))=Meses!A32,0,IF(Meses!A32<'Proposta 1 Via'!$G$10,"",B31+1)) -> 
A33: 2009-02-01 | B33: =+IF(DATE(YEAR('Proposta 1 Via'!$G$10),MONTH('Proposta 1 Via'!$G$10),DAY(Meses!$B$1))=Meses!A33,0,IF(Meses!A33<'Proposta 1 Via'!$G$10,"",B32+1)) -> 
A34: 2009-03-01 | B34: =+IF(DATE(YEAR('Proposta 1 Via'!$G$10),MONTH('Proposta 1 Via'!$G$10),DAY(Meses!$B$1))=Meses!A34,0,IF(Meses!A34<'Proposta 1 Via'!$G$10,"",B33+1)) -> 
A35: 2009-04-01 | B35: =+IF(DATE(YEAR('Proposta 1 Via'!$G$10),MONTH('Proposta 1 Via'!$G$10),DAY(Meses!$B$1))=Meses!A35,0,IF(Meses!A35<'Proposta 1 Via'!$G$10,"",B34+1)) -> 
A36: 2009-05-01 | B36: =+IF(DATE(YEAR('Proposta 1 Via'!$G$10),MONTH('Proposta 1 Via'!$G$10),DAY(Meses!$B$1))=Meses!A36,0,IF(Meses!A36<'Proposta 1 Via'!$G$10,"",B35+1)) -> 
A37: 2009-06-01 | B37: =+IF(DATE(YEAR('Proposta 1 Via'!$G$10),MONTH('Proposta 1 Via'!$G$10),DAY(Meses!$B$1))=Meses!A37,0,IF(Meses!A37<'Proposta 1 Via'!$G$10,"",B36+1)) -> 
A38: 2009-07-01 | B38: =+IF(DATE(YEAR('Proposta 1 Via'!$G$10),MONTH('Proposta 1 Via'!$G$10),DAY(Meses!$B$1))=Meses!A38,0,IF(Meses!A38<'Proposta 1 Via'!$G$10,"",B37+1)) -> 
A39: 2009-08-01 | B39: =+IF(DATE(YEAR('Proposta 1 Via'!$G$10),MONTH('Proposta 1 Via'!$G$10),DAY(Meses!$B$1))=Meses!A39,0,IF(Meses!A39<'Proposta 1 Via'!$G$10,"",B38+1)) -> 
A40: 2009-09-01 | B40: =+IF(DATE(YEAR('Proposta 1 Via'!$G$10),MONTH('Proposta 1 Via'!$G$10),DAY(Meses!$B$1))=Meses!A40,0,IF(Meses!A40<'Proposta 1 Via'!$G$10,"",B39+1)) -> 
A41: 2009-10-01 | B41: =+IF(DATE(YEAR('Proposta 1 Via'!$G$10),MONTH('Proposta 1 Via'!$G$10),DAY(Meses!$B$1))=Meses!A41,0,IF(Meses!A41<'Proposta 1 Via'!$G$10,"",B40+1)) -> 
A42: 2009-11-01 | B42: =+IF(DATE(YEAR('Proposta 1 Via'!$G$10),MONTH('Proposta 1 Via'!$G$10),DAY(Meses!$B$1))=Meses!A42,0,IF(Meses!A42<'Proposta 1 Via'!$G$10,"",B41+1)) -> 
A43: 2009-12-01 | B43: =+IF(DATE(YEAR('Proposta 1 Via'!$G$10),MONTH('Proposta 1 Via'!$G$10),DAY(Meses!$B$1))=Meses!A43,0,IF(Meses!A43<'Proposta 1 Via'!$G$10,"",B42+1)) -> 
A44: 2010-01-01 | B44: =+IF(DATE(YEAR('Proposta 1 Via'!$G$10),MONTH('Proposta 1 Via'!$G$10),DAY(Meses!$B$1))=Meses!A44,0,IF(Meses!A44<'Proposta 1 Via'!$G$10,"",B43+1)) -> 
A45: 2010-02-01 | B45: =+IF(DATE(YEAR('Proposta 1 Via'!$G$10),MONTH('Proposta 1 Via'!$G$10),DAY(Meses!$B$1))=Meses!A45,0,IF(Meses!A45<'Proposta 1 Via'!$G$10,"",B44+1)) -> 
A46: 2010-03-01 | B46: =+IF(DATE(YEAR('Proposta 1 Via'!$G$10),MONTH('Proposta 1 Via'!$G$10),DAY(Meses!$B$1))=Meses!A46,0,IF(Meses!A46<'Proposta 1 Via'!$G$10,"",B45+1)) -> 
A47: 2010-04-01 | B47: =+IF(DATE(YEAR('Proposta 1 Via'!$G$10),MONTH('Proposta 1 Via'!$G$10),DAY(Meses!$B$1))=Meses!A47,0,IF(Meses!A47<'Proposta 1 Via'!$G$10,"",B46+1)) -> 
A48: 2010-05-01 | B48: =+IF(DATE(YEAR('Proposta 1 Via'!$G$10),MONTH('Proposta 1 Via'!$G$10),DAY(Meses!$B$1))=Meses!A48,0,IF(Meses!A48<'Proposta 1 Via'!$G$10,"",B47+1)) -> 
A49: 2010-06-01 | B49: =+IF(DATE(YEAR('Proposta 1 Via'!$G$10),MONTH('Proposta 1 Via'!$G$10),DAY(Meses!$B$1))=Meses!A49,0,IF(Meses!A49<'Proposta 1 Via'!$G$10,"",B48+1)) -> 
A50: 2010-07-01 | B50: =+IF(DATE(YEAR('Proposta 1 Via'!$G$10),MONTH('Proposta 1 Via'!$G$10),DAY(Meses!$B$1))=Meses!A50,0,IF(Meses!A50<'Proposta 1 Via'!$G$10,"",B49+1)) -> 
A51: 2010-08-01 | B51: =+IF(DATE(YEAR('Proposta 1 Via'!$G$10),MONTH('Proposta 1 Via'!$G$10),DAY(Meses!$B$1))=Meses!A51,0,IF(Meses!A51<'Proposta 1 Via'!$G$10,"",B50+1)) -> 
A52: 2010-09-01 | B52: =+IF(DATE(YEAR('Proposta 1 Via'!$G$10),MONTH('Proposta 1 Via'!$G$10),DAY(Meses!$B$1))=Meses!A52,0,IF(Meses!A52<'Proposta 1 Via'!$G$10,"",B51+1)) -> 
A53: 2010-10-01
A54: 2010-11-01
A55: 2010-12-01
A56: 2011-01-01
A57: 2011-02-01
A58: 2011-03-01
A59: 2011-04-01
A60: 2011-05-01
A61: 2011-06-01
A62: 2011-07-01
A63: 2011-08-01
A64: 2011-09-01
A65: 2011-10-01 | B65: =+IF(DATE(YEAR('Proposta 1 Via'!$G$10),MONTH('Proposta 1 Via'!$G$10),DAY(Meses!$B$1))=Meses!A65,0,IF(Meses!A65<'Proposta 1 Via'!$G$10,"",B64+1)) -> 
A66: 2011-11-01 | B66: =+IF(DATE(YEAR('Proposta 1 Via'!$G$10),MONTH('Proposta 1 Via'!$G$10),DAY(Meses!$B$1))=Meses!A66,0,IF(Meses!A66<'Proposta 1 Via'!$G$10,"",B65+1)) -> 
A67: 2011-12-01 | B67: =+IF(DATE(YEAR('Proposta 1 Via'!$G$10),MONTH('Proposta 1 Via'!$G$10),DAY(Meses!$B$1))=Meses!A67,0,IF(Meses!A67<'Proposta 1 Via'!$G$10,"",B66+1)) -> 
A68: 2012-01-01 | B68: =+IF(DATE(YEAR('Proposta 1 Via'!$G$10),MONTH('Proposta 1 Via'!$G$10),DAY(Meses!$B$1))=Meses!A68,0,IF(Meses!A68<'Proposta 1 Via'!$G$10,"",B67+1)) -> 
A69: 2012-02-01 | B69: =+IF(DATE(YEAR('Proposta 1 Via'!$G$10),MONTH('Proposta 1 Via'!$G$10),DAY(Meses!$B$1))=Meses!A69,0,IF(Meses!A69<'Proposta 1 Via'!$G$10,"",B68+1)) -> 
A70: 2012-03-01 | B70: =+IF(DATE(YEAR('Proposta 1 Via'!$G$10),MONTH('Proposta 1 Via'!$G$10),DAY(Meses!$B$1))=Meses!A70,0,IF(Meses!A70<'Proposta 1 Via'!$G$10,"",B69+1)) -> 
A71: 2012-04-01 | B71: =+IF(DATE(YEAR('Proposta 1 Via'!$G$10),MONTH('Proposta 1 Via'!$G$10),DAY(Meses!$B$1))=Meses!A71,0,IF(Meses!A71<'Proposta 1 Via'!$G$10,"",B70+1)) -> 
A72: 2012-05-01 | B72: =+IF(DATE(YEAR('Proposta 1 Via'!$G$10),MONTH('Proposta 1 Via'!$G$10),DAY(Meses!$B$1))=Meses!A72,0,IF(Meses!A72<'Proposta 1 Via'!$G$10,"",B71+1)) -> 
A73: 2012-06-01 | B73: =+IF(DATE(YEAR('Proposta 1 Via'!$G$10),MONTH('Proposta 1 Via'!$G$10),DAY(Meses!$B$1))=Meses!A73,0,IF(Meses!A73<'Proposta 1 Via'!$G$10,"",B72+1)) -> 
A74: 2012-07-01
A75: 2012-08-01
A76: 2012-09-01
A77: 2012-10-01 | B77: =+IF(DATE(YEAR('Proposta 1 Via'!$G$10),MONTH('Proposta 1 Via'!$G$10),DAY(Meses!$B$1))=Meses!A77,0,IF(Meses!A77<'Proposta 1 Via'!$G$10,"",B76+1)) ->  | C77: =IF(B77=4,"Financiamento",IF(A77=$C$1,"Chaves",IF(A77=$C$2,"Chaves Contrato/Cliente",""))) -> 
A78: 2012-11-01 | B78: =+IF(DATE(YEAR('Proposta 1 Via'!$G$10),MONTH('Proposta 1 Via'!$G$10),DAY(Meses!$B$1))=Meses!A78,0,IF(Meses!A78<'Proposta 1 Via'!$G$10,"",B77+1)) ->  | C78: =IF(B78=4,"Financiamento",IF(A78=$C$1,"Chaves",IF(A78=$C$2,"Chaves Contrato/Cliente",""))) -> 
A79: 2012-12-01
A80: 2013-01-01
A81: 2013-02-01
A82: 2013-03-01
A83: 2013-04-01
A84: 2013-05-01
A85: 2013-06-01
A86: 2013-07-01
A87: 2013-08-01
A88: 2013-09-01
A89: 2013-10-01
A90: 2013-11-01
A91: 2013-12-01
A92: 2014-01-01
A93: 2014-02-01
A94: 2014-03-01
A95: 2014-04-01
A96: 2014-05-01
A97: 2014-06-01
A98: 2014-07-01
A99: 2014-08-01
A100: 2014-09-01
A101: 2014-10-01
A102: 2014-11-01
A103: 2014-12-01
A104: 2015-01-01
A105: 2015-02-01
A106: 2015-03-01
A107: 2015-04-01 | B107: =+IF(DATE(YEAR('Proposta 1 Via'!$G$10),MONTH('Proposta 1 Via'!$G$10),DAY(Meses!$B$1))=Meses!A107,0,IF(Meses!A107<'Proposta 1 Via'!$G$10,"",B106+1)) -> 
A108: 2015-05-01 | B108: 0 | C108: Lançamento
A109: 2015-06-01 | B109: =+IF(DATE(YEAR('Proposta 1 Via'!$G$10),MONTH('Proposta 1 Via'!$G$10),DAY(Meses!$B$1))=Meses!A109,0,IF(Meses!A109<'Proposta 1 Via'!$G$10,"",B108+1)) ->  | C109: =IF(B109=4,"Financiamento",IF(A109=$C$1,"Chaves",IF(A109=$C$2,"Chaves Contrato/Cliente",""))) -> 
A110: 2015-07-01 | B110: =+IF(DATE(YEAR('Proposta 1 Via'!$G$10),MONTH('Proposta 1 Via'!$G$10),DAY(Meses!$B$1))=Meses!A110,0,IF(Meses!A110<'Proposta 1 Via'!$G$10,"",B109+1)) ->  | C110: =IF(B110=4,"Financiamento",IF(A110=$C$1,"Chaves",IF(A110=$C$2,"Chaves Contrato/Cliente",""))) -> 
A111: 2015-08-01 | B111: 0 | C111: =IF(B111=4,"Financiamento",IF(A111=$C$1,"Chaves",IF(A111=$C$2,"Chaves Contrato/Cliente",""))) -> 
A112: 2015-09-01 | B112: 0
A113: 2015-10-01 | B113: =+IF(DATE(YEAR('Proposta 1 Via'!$G$10),MONTH('Proposta 1 Via'!$G$10),DAY(Meses!$B$1))=Meses!A113,0,IF(Meses!A113<'Proposta 1 Via'!$G$10,"",B112+1)) ->  | C113: =IF(B113=4,"Financiamento",IF(A113=$C$1,"Chaves",IF(A113=$C$2,"Chaves Contrato/Cliente",""))) -> 
A114: 2015-11-01 | B114: =+IF(DATE(YEAR('Proposta 1 Via'!$G$10),MONTH('Proposta 1 Via'!$G$10),DAY(Meses!$B$1))=Meses!A114,0,IF(Meses!A114<'Proposta 1 Via'!$G$10,"",B113+1)) ->  | C114: =IF(B114=4,"Financiamento",IF(A114=$C$1,"Chaves",IF(A114=$C$2,"Chaves Contrato/Cliente",""))) -> 
A115: 2015-12-01 | B115: 0 | C115: =IF(B115=4,"Financiamento",IF(A115=$C$1,"Chaves",IF(A115=$C$2,"Chaves Contrato/Cliente",""))) -> 
A116: 2016-01-01 | B116: 0
A117: 2016-02-01 | B117: 0
A118: 2016-03-01 | B118: =+IF(DATE(YEAR('Proposta 1 Via'!$G$10),MONTH('Proposta 1 Via'!$G$10),DAY(Meses!$B$1))=Meses!A118,0,IF(Meses!A118<'Proposta 1 Via'!$G$10,"",B117+1)) -> 
A119: 2016-04-01 | B119: 0
A120: 2016-05-01 | B120: 0
A121: 2016-06-01 | B121: 0
A122: 2016-07-01 | B122: =+IF(DATE(YEAR('Proposta 1 Via'!$G$10),MONTH('Proposta 1 Via'!$G$10),DAY(Meses!$B$1))=Meses!A122,0,IF(Meses!A122<'Proposta 1 Via'!$G$10,"",B121+1)) -> 
A123: 2016-08-01 | B123: 0
A124: 2016-09-01 | B124: =+IF(DATE(YEAR('Proposta 1 Via'!$G$10),MONTH('Proposta 1 Via'!$G$10),DAY(Meses!$B$1))=Meses!A124,0,IF(Meses!A124<'Proposta 1 Via'!$G$10,"",B123+1)) -> 
A125: 2016-10-01 | B125: 0
A126: 2016-11-01 | B126: 0
A127: 2016-12-01 | B127: 0
A128: 2017-01-01 | B128: 0
A129: 2017-02-01 | B129: 0
A130: 2017-03-01 | B130: 0
A131: 2017-04-01 | B131: 0
A132: 2017-05-01 | B132: 0
A133: 2017-06-01 | B133: 0
A134: 2017-07-01 | B134: =+IF(DATE(YEAR('Proposta 1 Via'!$G$10),MONTH('Proposta 1 Via'!$G$10),DAY(Meses!$B$1))=Meses!A134,0,IF(Meses!A134<'Proposta 1 Via'!$G$10,"",B133+1)) -> 
A135: 2017-08-01 | B135: 0
A136: 2017-09-01 | B136: 0
A137: 2017-10-01 | B137: 0
A138: 2017-11-01 | B138: =+IF(DATE(YEAR('Proposta 1 Via'!$G$10),MONTH('Proposta 1 Via'!$G$10),DAY(Meses!$B$1))=Meses!A138,0,IF(Meses!A138<'Proposta 1 Via'!$G$10,"",B137+1)) -> 
A139: 2017-12-01 | B139: 0 | C139: Chaves
A140: 2018-01-01 | B140: 0
A141: 2018-02-01 | B141: =+IF(DATE(YEAR('Proposta 1 Via'!$G$10),MONTH('Proposta 1 Via'!$G$10),DAY(Meses!$B$1))=Meses!A141,0,IF(Meses!A141<'Proposta 1 Via'!$G$10,"",B140+1)) -> 
A142: 2018-03-01 | B142: 0
A143: 2018-04-01 | B143: 0
A144: 2018-05-01 | B144: 0
A145: 2018-06-01 | B145: 0
A146: 2018-07-01 | B146: 0
A147: 2018-08-01 | B147: 0
A148: 2018-09-01 | B148: 0
A149: 2018-10-01 | B149: 0
A150: 2018-11-01 | B150: 0
A151: 2018-12-01 | B151: 0
A152: 2019-01-01 | B152: 0
A153: 2019-02-01 | B153: 0
A154: 2019-03-01 | B154: 0
A155: 2019-04-01 | B155: 0
A156: 2019-05-01 | B156: 0
A157: 2019-06-01 | B157: 0
A158: 2019-07-01 | B158: 0
A159: 2019-08-01 | B159: 0
A160: 2019-09-01 | B160: 0
A161: 2019-10-01 | B161: 0
A162: 2019-11-01 | B162: 0
A163: 2019-12-01 | B163: 0
A164: 2020-01-01 | B164: 0
A165: 2020-02-01 | B165: 0
A166: 2020-03-01 | B166: 0
A167: 2020-04-01 | B167: =+IF(DATE(YEAR('Proposta 1 Via'!$G$10),MONTH('Proposta 1 Via'!$G$10),DAY(Meses!$B$1))=Meses!A167,0,IF(Meses!A167<'Proposta 1 Via'!$G$10,"",B166+1)) -> 
A168: 2020-05-01 | B168: 0
A169: 2020-06-01 | B169: 0
A170: 2020-07-01 | B170: 0
A171: 2020-08-01 | B171: =+IF(DATE(YEAR('Proposta 1 Via'!$G$10),MONTH('Proposta 1 Via'!$G$10),DAY(Meses!$B$1))=Meses!A171,0,IF(Meses!A171<'Proposta 1 Via'!$G$10,"",B170+1)) -> 
A172: 2020-09-01 | B172: 0
A173: 2020-10-01 | B173: 0
A174: 2020-11-01 | B174: 0
A175: 2020-12-01 | B175: 0
A176: 2021-01-01 | B176: =+IF(DATE(YEAR('Proposta 1 Via'!$G$10),MONTH('Proposta 1 Via'!$G$10),DAY(Meses!$B$1))=Meses!A176,0,IF(Meses!A176<'Proposta 1 Via'!$G$10,"",B175+1)) -> 
A177: 2021-02-01 | B177: 0
A178: 2021-03-01 | B178: =+IF(DATE(YEAR('Proposta 1 Via'!$G$10),MONTH('Proposta 1 Via'!$G$10),DAY(Meses!$B$1))=Meses!A178,0,IF(Meses!A178<'Proposta 1 Via'!$G$10,"",B177+1)) -> 
A179: 2021-04-01 | B179: =+IF(DATE(YEAR('Proposta 1 Via'!$G$10),MONTH('Proposta 1 Via'!$G$10),DAY(Meses!$B$1))=Meses!A179,0,IF(Meses!A179<'Proposta 1 Via'!$G$10,"",B178+1)) -> 
A180: 2021-05-01 | B180: 0
A181: 2021-06-01 | B181: 0
A182: 2021-07-01 | B182: =+IF(DATE(YEAR('Proposta 1 Via'!$G$10),MONTH('Proposta 1 Via'!$G$10),DAY(Meses!$B$1))=Meses!A182,0,IF(Meses!A182<'Proposta 1 Via'!$G$10,"",B181+1)) -> 
A183: 2021-08-01 | B183: =+IF(DATE(YEAR('Proposta 1 Via'!$G$10),MONTH('Proposta 1 Via'!$G$10),DAY(Meses!$B$1))=Meses!A183,0,IF(Meses!A183<'Proposta 1 Via'!$G$10,"",B182+1)) -> 
A184: 2021-09-01 | B184: =+IF(DATE(YEAR('Proposta 1 Via'!$G$10),MONTH('Proposta 1 Via'!$G$10),DAY(Meses!$B$1))=Meses!A184,0,IF(Meses!A184<'Proposta 1 Via'!$G$10,"",B183+1)) -> 0
A185: 2021-10-01 | B185: =+IF(DATE(YEAR('Proposta 1 Via'!$G$10),MONTH('Proposta 1 Via'!$G$10),DAY(Meses!$B$1))=Meses!A185,0,IF(Meses!A185<'Proposta 1 Via'!$G$10,"",B184+1)) -> 1
A186: 2021-11-01 | B186: =+IF(DATE(YEAR('Proposta 1 Via'!$G$10),MONTH('Proposta 1 Via'!$G$10),DAY(Meses!$B$1))=Meses!A186,0,IF(Meses!A186<'Proposta 1 Via'!$G$10,"",B185+1)) -> 2
A187: 2021-12-01 | B187: =+IF(DATE(YEAR('Proposta 1 Via'!$G$10),MONTH('Proposta 1 Via'!$G$10),DAY(Meses!$B$1))=Meses!A187,0,IF(Meses!A187<'Proposta 1 Via'!$G$10,"",B186+1)) -> 3
A188: 2022-01-01 | B188: =+IF(DATE(YEAR('Proposta 1 Via'!$G$10),MONTH('Proposta 1 Via'!$G$10),DAY(Meses!$B$1))=Meses!A188,0,IF(Meses!A188<'Proposta 1 Via'!$G$10,"",B187+1)) -> 4
A189: 2022-02-01 | B189: =+IF(DATE(YEAR('Proposta 1 Via'!$G$10),MONTH('Proposta 1 Via'!$G$10),DAY(Meses!$B$1))=Meses!A189,0,IF(Meses!A189<'Proposta 1 Via'!$G$10,"",B188+1)) -> 5
A190: 2022-03-01 | B190: =+IF(DATE(YEAR('Proposta 1 Via'!$G$10),MONTH('Proposta 1 Via'!$G$10),DAY(Meses!$B$1))=Meses!A190,0,IF(Meses!A190<'Proposta 1 Via'!$G$10,"",B189+1)) -> 6
A191: 2022-04-01 | B191: =+IF(DATE(YEAR('Proposta 1 Via'!$G$10),MONTH('Proposta 1 Via'!$G$10),DAY(Meses!$B$1))=Meses!A191,0,IF(Meses!A191<'Proposta 1 Via'!$G$10,"",B190+1)) -> 7
A192: 2022-05-01 | B192: =+IF(DATE(YEAR('Proposta 1 Via'!$G$10),MONTH('Proposta 1 Via'!$G$10),DAY(Meses!$B$1))=Meses!A192,0,IF(Meses!A192<'Proposta 1 Via'!$G$10,"",B191+1)) -> 8
A193: 2022-06-01 | B193: =+IF(DATE(YEAR('Proposta 1 Via'!$G$10),MONTH('Proposta 1 Via'!$G$10),DAY(Meses!$B$1))=Meses!A193,0,IF(Meses!A193<'Proposta 1 Via'!$G$10,"",B192+1)) -> 9
A194: 2022-07-01 | B194: =+IF(DATE(YEAR('Proposta 1 Via'!$G$10),MONTH('Proposta 1 Via'!$G$10),DAY(Meses!$B$1))=Meses!A194,0,IF(Meses!A194<'Proposta 1 Via'!$G$10,"",B193+1)) -> 10
A195: 2022-08-01 | B195: =+IF(DATE(YEAR('Proposta 1 Via'!$G$10),MONTH('Proposta 1 Via'!$G$10),DAY(Meses!$B$1))=Meses!A195,0,IF(Meses!A195<'Proposta 1 Via'!$G$10,"",B194+1)) -> 11
A196: 2022-09-01 | B196: =+IF(DATE(YEAR('Proposta 1 Via'!$G$10),MONTH('Proposta 1 Via'!$G$10),DAY(Meses!$B$1))=Meses!A196,0,IF(Meses!A196<'Proposta 1 Via'!$G$10,"",B195+1)) -> 12
A197: 2022-10-01 | B197: =+IF(DATE(YEAR('Proposta 1 Via'!$G$10),MONTH('Proposta 1 Via'!$G$10),DAY(Meses!$B$1))=Meses!A197,0,IF(Meses!A197<'Proposta 1 Via'!$G$10,"",B196+1)) -> 13
A198: 2022-11-01 | B198: =+IF(DATE(YEAR('Proposta 1 Via'!$G$10),MONTH('Proposta 1 Via'!$G$10),DAY(Meses!$B$1))=Meses!A198,0,IF(Meses!A198<'Proposta 1 Via'!$G$10,"",B197+1)) -> 14
A199: 2022-12-01 | B199: =+IF(DATE(YEAR('Proposta 1 Via'!$G$10),MONTH('Proposta 1 Via'!$G$10),DAY(Meses!$B$1))=Meses!A199,0,IF(Meses!A199<'Proposta 1 Via'!$G$10,"",B198+1)) -> 15
A200: 2023-01-01 | B200: =+IF(DATE(YEAR('Proposta 1 Via'!$G$10),MONTH('Proposta 1 Via'!$G$10),DAY(Meses!$B$1))=Meses!A200,0,IF(Meses!A200<'Proposta 1 Via'!$G$10,"",B199+1)) -> 16
... 107 more rows

Sheet fluxos (hidden)
B1: =+'DADOS DOS EMPREENDIMENTOS'!O4 -> Completo Guanabara - Premio Volta Caixa | G1: =+'DADOS DOS EMPREENDIMENTOS'!T4 -> Completo Guanabara - Desconto - Sem Premio | L1: =+'DADOS DOS EMPREENDIMENTOS'!Y4 -> 0 | Q1: =+'DADOS DOS EMPREENDIMENTOS'!AD4 -> 0 | V1: =+'DADOS DOS EMPREENDIMENTOS'!AI4 -> 0
B2: =CONCATENATE($B$1,B3) -> Completo Guanabara - Premio Volta CaixaMÊS DE INÍCIO | C2: =CONCATENATE($B$1,C3) -> Completo Guanabara - Premio Volta CaixaQTDE PARCELAS | D2: =CONCATENATE($B$1,D3) -> Completo Guanabara - Premio Volta Caixa% FLUXO | E2: =CONCATENATE($B$1,E3) -> Completo Guanabara - Premio Volta CaixaTOTAL | G2: =CONCATENATE($G$1,G3) -> Completo Guanabara - Desconto - Sem PremioMÊS DE INÍCIO | H2: =CONCATENATE($G$1,H3) -> Completo Guanabara - Desconto - Sem PremioQTDE PARCELAS | I2: =CONCATENATE($G$1,I3) -> Completo Guanabara - Desconto - Sem Premio% FLUXO | J2: =CONCATENATE($G$1,J3) -> Completo Guanabara - Desconto - Sem PremioTOTAL | L2: =CONCATENATE($L$1,L3) -> 0MÊS DE INÍCIO | M2: =CONCATENATE($L$1,M3) -> 0QTDE PARCELAS | N2: =CONCATENATE($L$1,N3) -> 0% FLUXO | O2: =CONCATENATE($L$1,O3) -> 0TOTAL | Q2: =CONCATENATE($Q$1,Q3) -> 0MÊS DE INÍCIO | R2: =CONCATENATE($Q$1,R3) -> 0QTDE PARCELAS | S2: =CONCATENATE($Q$1,S3) -> 0% FLUXO | T2: =CONCATENATE($Q$1,T3) -> 0TOTAL | V2: =CONCATENATE($V$1,V3) -> 0MÊS DE INÍCIO | W2: =CONCATENATE($V$1,W3) -> 0QTDE PARCELAS | X2: =CONCATENATE($V$1,X3) -> 0% FLUXO | Y2: =CONCATENATE($V$1,Y3) -> 0TOTAL
B3: MÊS DE INÍCIO | C3: QTDE PARCELAS | D3: % FLUXO | E3: TOTAL | G3: MÊS DE INÍCIO | H3: QTDE PARCELAS | I3: % FLUXO | J3: TOTAL | L3: MÊS DE INÍCIO | M3: QTDE PARCELAS | N3: % FLUXO | O3: TOTAL | Q3: MÊS DE INÍCIO | R3: QTDE PARCELAS | S3: % FLUXO | T3: TOTAL | V3: MÊS DE INÍCIO | W3: QTDE PARCELAS | X3: % FLUXO | Y3: TOTAL
A4: Entrada | B4: 0 | C4: 1 | D4: =5.5%/4 -> 0.01375 | E4: Entrada | G4: 0 | H4: 1 | I4: =5.5%/4 -> 0.01375 | J4: Entrada
A5: Entrada | B5: 1 | C5: 1 | D5: =5.5%/4 -> 0.01375 | G5: 1 | H5: 1 | I5: =5.5%/4 -> 0.01375
A6: Entrada | B6: 2 | C6: 2 | D6: =5.5%/4*2 -> 0.0275 | G6: 2 | H6: 2 | I6: =5.5%/4*2 -> 0.0275
A7: Anual | B7: 15 | C7: 2 | D7: 0.01 | E7: Pró Soluto | G7: 15 | H7: 2 | I7: 0.01 | J7: Pró Soluto
A8: Mensal 1 | B8: 4 | C8: 2 | D8: =2.5%/25*3 -> 0.003 | E8: Antes Repasse | G8: 4 | H8: 2 | I8: =2.5%/25*3 -> 0.003 | J8: Antes Repasse
A9: Mensal 2 | B9: 6 | C9: 9 | D9: =2.5%/25*9 -> 0.009 | G9: 6 | H9: 9 | I9: =2.5%/25*9 -> 0.009
A10: Mensal 3 | B10: 15 | C10: 7 | D10: =2.5%/25*7 -> 0.007 | G10: 15 | H10: 7 | I10: =2.5%/25*7 -> 0.007
A11: Mensal 4 | B11: 22 | C11: 6 | D11: =2.5%/25*6 -> 0.006 | G11: 22 | H11: 6 | I11: =2.5%/25*6 -> 0.006
A12: Chaves | B12: 28 | C12: 1 | D12: 0.01 | G12: 28 | H12: 1 | I12: 0.01
A13: Repasse | B13: 3 | C13: 1 | D13: 0.9 | E13: Repasse | G13: 3 | H13: 1 | I13: 0.9 | J13: Repasse
B14: 0 | C14: 0 | D14: 0 | G14: 0 | H14: 0 | I14: 0
B15: 0 | C15: 0 | D15: 0 | G15: 0 | H15: 0 | I15: 0
D16: =SUM(D4:D15) -> 1 | I16: =SUM(I4:I15) -> 1 | N16: =SUM(N4:N15) -> 0
F17: =6+8 -> 14 | H17: 8
F19: =5.5%/29 -> 0.001896551724 | H19: =7%/28 -> 0.0025 | J19: =9.3%/27 -> 0.003444444444
D20: 0.00290625 | E20: =SUM(F19:F20) -> 0.003793103448 | F20: 0.001896551724 | G20: =9.3%/32 -> 0.00290625
D21: 0.00290625 | F21: 0.001896551724 | G21: =5.5%/28 -> 0.001964285714 | H21: =9.3%/27 -> 0.003444444444 | I21: =H21*C11 -> 0.02066666667
D22: 0.00290625 | F22: 0.001896551724 | G22: 0.001964285714
D23: 0.00290625 | F23: 0.001896551724 | G23: 0.001964285714
D24: 0.00290625 | F24: 0.001896551724 | G24: 0.001964285714
D25: 0.00290625 | F25: =SUM(F19:F24) -> 0.01137931034 | G25: 0.001964285714
D26: 0.00290625 | G26: 0.001964285714
D27: 0.00290625 | G27: 0.001964285714
D28: 0.00290625 | G28: 0.001964285714
D29: 0.00290625 | G29: 0.001964285714
D30: 0.00290625 | G30: 0.001964285714
D31: 0.00290625 | G31: 0.001964285714
D32: 0.00290625 | G32: 0.001964285714
D33: 0.00290625 | G33: 0.001964285714
D34: 0.00290625 | G34: 0.001964285714
D35: 0.00290625 | G35: 0.001964285714
D36: 0.00290625 | G36: 0.001964285714
D37: 0.00290625 | G37: 0.001964285714
D38: 0.00290625 | G38: 0.001964285714
D39: 0.00290625 | G39: 0.001964285714
D40: 0.00290625 | G40: 0.001964285714
D41: 0.00290625 | G41: 0.001964285714
D42: 0.00290625 | G42: 0.001964285714
D43: 0.00290625 | G43: 0.001964285714
D44: 0.00290625 | G44: 0.001964285714
D45: 0.00290625 | G45: 0.001964285714
D46: 0.00290625 | G46: 0.001964285714
D47: 0.00290625 | G47: =SUM(G19:G46) -> 0.05397767857
D48: 0.00290625
D49: 0.00290625
D50: 0.00290625
D52: 0.09009375

Sheet DADOS DOS EMPREENDIMENTOS (hidden)
O1: 1 | P1: 2 | Q1: 3 | R1: 4 | S1: 5 | T1: 6 | U1: 7 | V1: 8 | W1: 9 | X1: 10 | Y1: 11 | Z1: 12 | AA1: 13 | AB1: 14 | AC1: 15 | AD1: 16 | AE1: 17 | AF1: 18 | AG1: 19 | AH1: 20 | AI1: 21 | AJ1: 22 | AK1: 23 | AL1: 24 | AM1: 25 | AN1: 26 | AO1: 27 | AP1: 28 | AQ1: 29 | AR1: 30 | AS1: 31 | AT1: 32 | AU1: 33 | AV1: 34 | AW1: 35 | AX1: 36 | AY1: 37 | AZ1: 38 | BA1: 39 | BB1: 40 | BC1: 41 | BD1: 42 | BE1: 43 | BF1: 44 | BG1: 45 | BH1: 46 | BI1: 47 | BJ1: 48 | BK1: 49 | BL1: 50 | BM1: 51 | BN1: 52 | BO1: 53 | BP1: 54 | BQ1: 55 | BR1: 56 | BS1: 57 | BT1: 58 | BU1: 59 | BV1: 60 | BW1: 61 | BX1: 62 | BY1: 63 | BZ1: 64 | CA1: 65 | CB1: 66 | CC1: 67 | CD1: 68 | CE1: 69 | CF1: 70 | CG1: 71 | CH1: 72 | CI1: 73 | CJ1: 74 | CK1: 75 | CL1: 76 | CM1: 77 | CN1: 78 | CO1: 79 | CP1: 80 | CQ1: 81 | CR1: 82 | CS1: 83 | CT1: 84 | CU1: 85 | CV1: 86 | CW1: 87 | CX1: 88 | CY1: 89 | CZ1: 90 | DA1: 91 | DB1: 92 | DC1: 93 | DD1: 94 | DE1: 95 | DF1: 96 | DG1: 97 | DH1: 98 | DI1: 99 | DJ1: 100 | DK1: 101 | DL1: 102 | DM1: 103 | DN1: 104 | DO1: 105 | DP1: 106 | DQ1: 107 | DR1: 108 | DS1: 109 | DT1: 110 | DU1: 111 | DV1: 112 | DW1: 113 | DX1: 114 | DY1: 115 | DZ1: 116 | EA1: 117 | EB1: 118 | EC1: 119 | ED1: 120 | EE1: 121 | EF1: 122 | EG1: 123
O3: Empreendimento 01 | T3: Empreendimento 02 | Y3: Empreendimento 03 | AD3: Empreendimento 04 | AI3: Empreendimento 05 | AN3: Empreendimento 06 | AS3: Empreendimento 07 | AX3: Empreendimento 08 | BC3: Empreendimento 09 | BH3: Empreendimento 10 | BM3: Empreendimento 11 | BR3: Empreendimento 12 | BW3: Empreendimento 13 | CB3: Empreendimento 14
O4: Completo Guanabara - Premio Volta Caixa | T4: Completo Guanabara - Desconto - Sem Premio
C6: 1 | D6: 2 | E6: 3 | F6: 4 | G6: 5 | H6: 6 | I6: 7 | J6: 8 | K6: 9 | L6: 10 | M6: 11 | N6: 12 | O6: Qual o Valor Máximo do Imóvel no Pacote para esta região? | T6: Qual o Valor Máximo do Imóvel no Pacote para esta região? | Y6: Qual o Valor Máximo do Imóvel no Pacote para esta região? | AD6: Qual o Valor Máximo do Imóvel no Pacote para esta região? | AI6: Qual o Valor Máximo do Imóvel no Pacote para esta região? | AN6: Qual o Valor Máximo do Imóvel no Pacote para esta região? | AS6: Qual o Valor Máximo do Imóvel no Pacote para esta região? | AX6: Qual o Valor Máximo do Imóvel no Pacote para esta região? | BC6: Qual o Valor Máximo do Imóvel no Pacote para esta região? | BH6: Qual o Valor Máximo do Imóvel no Pacote para esta região? | BM6: Qual o Valor Máximo do Imóvel no Pacote para esta região? | BR6: Qual o Valor Máximo do Imóvel no Pacote para esta região? | BW6: Qual o Valor Máximo do Imóvel no Pacote para esta região? | CB6: Qual o Valor Máximo do Imóvel no Pacote para esta região?
A7: 1 | B7: 2 | C7: 3 | D7: 4 | E7: 5 | F7: 6 | G7: 7 | H7: 8 | I7: 9 | J7: 10 | K7: 11 | L7: 12 | O7: 240000 | T7: 190000 | Y7: 190000 | AD7: 190000 | AI7: 170000 | AN7: 170000 | AS7: 170000 | AX7: 130000 | BC7: 130000 | BH7: 130000 | BM7: 130000 | BR7: 130000 | BW7: 130000 | CB7: 130000
A8: Código dos dos empreendimentos | D8: Obra | F8: Venda | J8: =P9 -> Prazo Para Chaves | K8: Data Das Chaves | L8: Repasse | M8: Período Atual | N8: Repasse
D9: Código Curva Obra | E9: Código Desembolso | F9: Código Tipo | G9: Código Preço de Venda | H9: Código Avaliação CAIXA | I9: Valor Máximo do Pacote | P9: Prazo Para Chaves | Q9: Data Chaves | U9: Prazo Para Chaves | V9: Data Chaves | Z9: Prazo Para Chaves | AA9: Data Chaves | AE9: Prazo Para Chaves | AF9: Data Chaves | AJ9: Prazo Para Chaves | AK9: Data Chaves | AO9: Prazo Para Chaves | AP9: Data Chaves | AT9: Prazo Para Chaves | AU9: Data Chaves | AY9: Prazo Para Chaves | AZ9: Data Chaves | BD9: Prazo Para Chaves | BE9: Data Chaves | BI9: Prazo Para Chaves | BJ9: Data Chaves | BN9: Prazo Para Chaves | BO9: Data Chaves | BS9: Prazo Para Chaves | BT9: Data Chaves | BX9: Prazo Para Chaves | BY9: Data Chaves | CC9: Mês de Chaves | CD9: Data Chaves
A10: 1 | B10: =O4 -> Completo Guanabara - Premio Volta Caixa | C10: 1 | D10: 3 | E10: =D10+1 -> 4 | F10: 2 | G10: 3 | H10: =4 -> 4 | I10: =O7 -> 240000 | J10: =P10 -> 28 | K10: =Q10 -> 2024-01-10 | M10: =O14 -> 0 | N10: 5 | P10: 28 | Q10: 2024-01-10 | U10: 31 | V10: 2024-01-10 | AJ10: =AE10 -> 0
A11: 2 | B11: =T4 -> Completo Guanabara - Desconto - Sem Premio | C11: 2 | D11: =D10+5 -> 8 | E11: =D11+1 -> 9 | F11: =F10+5 -> 7 | G11: =G10+5 -> 8 | H11: =H10+5 -> 9 | I11: =T7 -> 190000 | J11: =U10 -> 31 | K11: =VP -> 2024-01-10 | M11: =W10 -> 0 | N11: =N10+5 -> 10
A12: 3 | B12: =Y4 -> 0 | C12: 3 | D12: =D11+5 -> 13 | E12: 14 | F12: =F11+5 -> 12 | G12: =G11+5 -> 13 | H12: =H11+5 -> 14 | I12: =Y7 -> 190000 | J12: =Z10 -> 0 | K12: =AA10 -> 00:00:00 | M12: =AB10 -> 0 | N12: 15 | P12: Desconto | U12: Desconto | Z12: Desconto
A13: 4 | B13: =AD4 -> 0 | C13: 4 | D13: 18 | E13: 19 | F13: 17 | G13: 18 | H13: 19 | I13: =AD7 -> 190000 | J13: =AE10 -> 0 | K13: =AF10 -> 00:00:00 | M13: =AG10 -> 0 | N13: 20 | P13: 0 | U13: 0 | Z13: 0
A14: 5 | B14: =AI4 -> 0 | C14: 5 | D14: 23 | E14: 24 | F14: 22 | G14: 23 | H14: 24 | I14: =AI7 -> 170000 | J14: =AJ10 -> 0 | K14: =AK10 -> 00:00:00 | M14: =AL10 -> 0 | N14: 25 | R14: 133990
A15: 6 | B15: =AN4 -> 0 | C15: 6 | D15: 28 | E15: 29 | F15: 27 | G15: 28 | H15: 29 | I15: =AN7 -> 170000 | J15: =AO10 -> 0 | K15: =AP10 -> 00:00:00 | M15: =AQ10 -> 0 | N15: 30 | P15: Tipo | Q15: Preço de Venda | R15: Avaliação CAIXA | S15: Repasse | U15: Tipo | V15: Preço de Venda | W15: Avaliação CAIXA | X15: Repasse | Z15: Tipo | AA15: Preço de Venda | AB15: Avaliação CAIXA | AC15: Repasse | AE15: Tipo | AF15: Preço de Venda | AG15: Avaliação CAIXA | AH15: Repasse | AJ15: Tipo | AK15: Preço de Venda | AL15: Avaliação CAIXA | AM15: Repasse | AO15: Tipo | AP15: Preço de Venda | AQ15: Avaliação CAIXA | AR15: Repasse | AT15: Tipo | AU15: Preço de Venda | AV15: Avaliação CAIXA | AW15: Repasse | AY15: Tipo | AZ15: Preço de Venda | BA15: Avaliação CAIXA | BB15: Repasse | BD15: Tipo | BE15: Preço de Venda | BF15: Avaliação CAIXA | BG15: Repasse | BI15: Tipo | BJ15: Preço de Venda | BK15: Avaliação CAIXA | BL15: Repasse | BN15: Tipo | BO15: Preço de Venda | BP15: Avaliação CAIXA | BQ15: Repasse | BS15: Tipo | BT15: Preço de Venda | BU15: Avaliação CAIXA | BV15: Repasse | BX15: Tipo | BY15: Preço de Venda | BZ15: Avaliação CAIXA | CA15: Repasse | CC15: Tipo | CD15: Preço de Venda | CE15: Avaliação CAIXA | CF15: Repasse
A16: 7 | B16: =AS4 -> 0 | C16: 7 | D16: 33 | E16: 34 | F16: 32 | G16: 33 | H16: 34 | I16: =AS7 -> 170000 | J16: =AT10 -> 0 | K16: =AU10 -> 00:00:00 | M16: =AV10 -> 0 | N16: 35 | O16: 1 | P16: 5° andar S/ Vaga | Q16: 159390 | R16: 158000 | S16: 3 | T16: 1 | U16: 5° andar S/ Vaga | V16: 157390 | W16: 158000 | X16: 3 | Y16: 1 | AD16: 1 | AI16: 1 | AN16: 1 | AS16: 1 | AX16: 1 | BC16: 1 | BH16: 1 | BM16: 1 | BR16: 1 | BW16: 1 | CB16: 1
O17: 2 | P17: 4° andar S/ Vaga | Q17: 161390 | R17: 158000 | S17: 3 | U17: 4° andar S/ Vaga | V17: 159390 | W17: 158000 | X17: 3
A18: 8 | B18: =AX4 -> 0 | C18: 8 | D18: =D16+5 -> 38 | E18: 39 | F18: =F16+5 -> 37 | G18: =G16+5 -> 38 | H18: =H16+5 -> 39 | I18: =AX7 -> 130000 | J18: =AY10 -> 0 | K18: =AZ10 -> 00:00:00 | M18: =BA10 -> 0 | N18: =N16+5 -> 40 | O18: 3 | P18: 4° andar C/ Vaga | Q18: 175390 | R18: 172000 | S18: 3 | T18: 2 | U18: 4° andar C/ Vaga | V18: 173390 | W18: 172000 | X18: 3 | Y18: 2 | AD18: 2 | AI18: 2 | AN18: 2 | AS18: 2 | AX18: 2 | BC18: 2 | BH18: 2 | BM18: 2 | BR18: 2 | BW18: 2 | CB18: 2
A19: 9 | B19: =BC4 -> 0 | C19: 9 | D19: 43 | E19: 44 | F19: 42 | G19: 43 | H19: 44 | I19: =BC7 -> 130000 | J19: =BD10 -> 0 | K19: =BE10 -> 00:00:00 | M19: =BF10 -> 0 | N19: =N18+5 -> 45 | O19: 4 | P19: 3°andar C/ Vaga | Q19: 175390 | R19: 178000 | S19: 3 | T19: 3 | U19: 3°andar C/ Vaga | V19: 173390 | W19: 178000 | X19: 3 | Y19: 3 | AD19: 3 | AI19: 3 | AN19: 3 | AS19: 3 | AX19: 3 | BC19: 3 | BH19: 3 | BM19: 3 | BR19: 3 | BW19: 3 | CB19: 3
O20: 5 | P20: 2°andar C/ Vaga | Q20: 176390 | R20: 178000 | S20: 3 | U20: 2°andar C/ Vaga | V20: 174390 | W20: 178000 | X20: 3
O21: 6 | P21: 1° andar S/ Vaga | Q21: 160390 | R21: 151000 | S21: 1 | U21: 1° andar S/ Vaga | V21: 158390 | W21: 151000 | X21: 1
A22: 10 | B22: =BH4 -> 0 | C22: 10 | D22: =D19+5 -> 48 | E22: 49 | F22: =F19+5 -> 47 | G22: =G19+5 -> 48 | H22: =H19+5 -> 49 | I22: =BH7 -> 130000 | J22: =BI10 -> 0 | K22: =BJ10 -> 00:00:00 | M22: =BK10 -> 0 | N22: =N19+5 -> 50 | O22: 7 | P22: 1° andar C/ Vaga | Q22: 174390 | R22: 179000 | S22: 3 | T22: 4 | U22: 1° andar C/ Vaga | V22: 172390 | W22: 179000 | X22: 3 | Y22: 4 | AD22: 4 | AI22: 4 | AN22: 4 | AS22: 4 | AX22: 4 | BC22: 4 | BH22: 4 | BM22: 4 | BR22: 4 | BW22: 4 | CB22: 4
O23: 8 | P23: 1º andar 1 Quarto (PNE) | Q23: 164390 | R23: 171000 | S23: 3 | U23: 1º andar 1 Quarto (PNE) | V23: 162390 | W23: 171000 | X23: 3
A24: 11 | B24: =BM4 -> 0 | C24: 11 | D24: =D22+5 -> 53 | E24: 54 | F24: =F22+5 -> 52 | G24: =G22+5 -> 53 | H24: =H22+5 -> 54 | I24: =BM7 -> 130000 | J24: =BN10 -> 0 | K24: =BO10 -> 00:00:00 | M24: =BP10 -> 0 | N24: =N22+5 -> 55 | O24: 9 | T24: 5 | Y24: 5 | AD24: 5 | AI24: 5 | AN24: 5 | AS24: 5 | AX24: 5 | BC24: 5 | BH24: 5 | BM24: 5 | BR24: 5 | BW24: 5 | CB24: 5
O25: 10
A26: 12 | B26: =BR4 -> 0 | C26: 12 | D26: =D24+5 -> 58 | E26: 59 | F26: =F24+5 -> 57 | G26: =G24+5 -> 58 | H26: =H24+5 -> 59 | I26: =BR7 -> 130000 | J26: =BS10 -> 0 | K26: =BT10 -> 00:00:00 | M26: =BU10 -> 0 | N26: =N24+5 -> 60 | O26: 11 | T26: 6 | Y26: 6 | AD26: 6 | AI26: 6 | AN26: 6 | AS26: 6 | AX26: 6 | BC26: 6 | BH26: 6 | BM26: 6 | BR26: 6 | BW26: 6 | CB26: 6
A27: 13 | B27: =BW4 -> 0 | C27: 13 | D27: 63 | E27: 64 | F27: 62 | G27: 63 | H27: 64 | I27: =BW7 -> 130000 | J27: =BX10 -> 0 | K27: =BY10 -> 00:00:00 | M27: =BZ10 -> 0 | N27: =N26+5 -> 65 | O27: 12 | T27: 7 | Y27: 7 | AD27: 7 | AI27: 7 | AN27: 7 | AS27: 7 | AX27: 7 | BC27: 7 | BH27: 7 | BM27: 7 | BR27: 7 | BW27: 7 | CB27: 7
A28: 14 | B28: =CB4 -> 0 | C28: 14 | D28: 68 | E28: 69 | F28: 67 | G28: 68 | H28: 69 | I28: =CB7 -> 130000 | J28: =CC10 -> 0 | K28: =CD10 -> 00:00:00 | M28: =CE10 -> 0 | N28: =N27+5 -> 70 | T28: 8 | Y28: 8 | AD28: 8 | AI28: 8 | AN28: 8 | AS28: 8 | AX28: 8 | BC28: 8 | BH28: 8 | BM28: 8 | BR28: 8 | BW28: 8 | CB28: 8
T29: 9 | Y29: 9 | AD29: 9 | AI29: 9 | AN29: 9 | AS29: 9 | AX29: 9 | BC29: 9 | BH29: 9 | BM29: 9 | BR29: 9 | BW29: 9 | CB29: 9
T30: 10 | Y30: 10 | AD30: 10 | AI30: 10 | AN30: 10 | AS30: 10 | AX30: 10 | BC30: 10 | BH30: 10 | BM30: 10 | BR30: 10 | BW30: 10 | CB30: 10
T31: 11 | Y31: 11 | AD31: 11 | AI31: 11 | AN31: 11 | AS31: 11 | AX31: 11 | BC31: 11 | BH31: 11 | BM31: 11 | BR31: 11 | BW31: 11 | CB31: 11
T32: 12 | Y32: 12 | AD32: 12 | AI32: 12 | AN32: 12 | AS32: 12 | AX32: 12 | BC32: 12 | BH32: 12 | BM32: 12 | BR32: 12 | BW32: 12 | CB32: 12
T33: 13 | Y33: 13 | AD33: 13 | AI33: 13 | AN33: 13 | AS33: 13 | AX33: 13 | BC33: 13 | BH33: 13 | BM33: 13 | BR33: 13 | BW33: 13 | CB33: 13
T34: 14 | Y34: 14 | AD34: 14 | AI34: 14 | AN34: 14 | AS34: 14 | AX34: 14 | BC34: 14 | BH34: 14 | BM34: 14 | BR34: 14 | BW34: 14 | CB34: 14
T35: 15 | Y35: 15 | AD35: 15 | AI35: 15 | AN35: 15 | AS35: 15 | AX35: 15 | BC35: 15 | BH35: 15 | BM35: 15 | BR35: 15 | BW35: 15 | CB35: 15
T36: 16 | Y36: 16 | AD36: 16 | AI36: 16 | AN36: 16 | AS36: 16 | AX36: 16 | BC36: 16 | BH36: 16 | BM36: 16 | BR36: 16 | BW36: 16 | CB36: 16
D37: Valor Máximo do imóvel no Pacote | T37: 17 | Y37: 17 | AD37: 17 | AI37: 17 | AN37: 17 | AS37: 17 | AX37: 17 | BC37: 17 | BH37: 17 | BM37: 17 | BR37: 17 | BW37: 17 | CB37: 17
D38: 190000 | T38: 18 | Y38: 18 | AD38: 18 | AI38: 18 | AN38: 18 | AS38: 18 | AX38: 18 | BC38: 18 | BH38: 18 | BM38: 18 | BR38: 18 | BW38: 18 | CB38: 18
D39: 240000 | T39: 19 | Y39: 19 | AD39: 19 | AI39: 19 | AN39: 19 | AS39: 19 | AX39: 19 | BC39: 19 | BH39: 19 | BM39: 19 | BR39: 19 | BW39: 19 | CB39: 19
T40: 20 | Y40: 20 | AD40: 20 | AI40: 20 | AN40: 20 | AS40: 20 | AX40: 20 | BC40: 20 | BH40: 20 | BM40: 20 | BR40: 20 | BW40: 20 | CB40: 20
T41: 21 | Y41: 21 | AD41: 21 | AI41: 21 | AN41: 21 | AS41: 21 | AX41: 21 | BC41: 21 | BH41: 21 | BM41: 21 | BR41: 21 | BW41: 21 | CB41: 21
T42: 22 | Y42: 22 | AD42: 22 | AI42: 22 | AN42: 22 | AS42: 22 | AX42: 22 | BC42: 22 | BH42: 22 | BM42: 22 | BR42: 22 | BW42: 22 | CB42: 22
O45: Período | T45: Período | Y45: Período | AD45: Período | AE45: Data | AF45: Obra | AG45: Desembolso | AI45: Período | AJ45: Data | AK45: Obra | AL45: Desembolso | AN45: Período | AO45: Data | AP45: Obra | AQ45: Desembolso | AS45: Período | AT45: Data | AU45: Obra | AV45: Desembolso | AX45: Período | AY45: Data | AZ45: Obra | BA45: Desembolso | BC45: Período | BD45: Data | BE45: Obra | BF45: Desembolso | BH45: Período | BI45: Data | BJ45: Obra | BK45: Desembolso | BM45: Período | BN45: Data | BO45: Obra | BP45: Desembolso | BR45: Período | BS45: Data | BT45: Obra | BU45: Desembolso | BW45: Período | BX45: Data | BY45: Obra | BZ45: Desembolso | CB45: Período | CC45: Data | CD45: Obra | CE45: Desembolso
O47: 1 | T47: 1 | Y47: 1 | AD47: 1 | AE47: 2009-06-01 | AF47: 0 | AG47: =IF(AD47<'DADOS DOS EMPREENDIMENTOS'!AF$11,0,IF(AD47='DADOS DOS EMPREENDIMENTOS'!AF$11,SUM(AF$46:AF47)*(1-'DADOS DOS EMPREENDIMENTOS'!#REF!-'DADOS DOS EMPREENDIMENTOS'!#REF!)+'DADOS DOS EMPREENDIMENTOS'!#REF!,IF(AD47='DADOS DOS EMPREENDIMENTOS'!#REF!,'DADOS DOS EMPREENDIMENTOS'!#REF!,AF47*(1-'DADOS DOS EMPREENDIMENTOS'!#REF!-'DADOS DOS EMPREENDIMENTOS'!#REF!)))) ->  | AI47: 1 | AJ47: 2009-06-01 | AK47: 0 | AL47: =IF(AI47<'DADOS DOS EMPREENDIMENTOS'!AK$11,0,IF(AI47='DADOS DOS EMPREENDIMENTOS'!AK$11,SUM(AK$46:AK47)*(1-'DADOS DOS EMPREENDIMENTOS'!#REF!-'DADOS DOS EMPREENDIMENTOS'!#REF!)+'DADOS DOS EMPREENDIMENTOS'!#REF!,IF(AI47='DADOS DOS EMPREENDIMENTOS'!#REF!,'DADOS DOS EMPREENDIMENTOS'!#REF!,AK47*(1-'DADOS DOS EMPREENDIMENTOS'!#REF!-'DADOS DOS EMPREENDIMENTOS'!#REF!)))) ->  | AN47: 1 | AO47: 2009-06-01 | AP47: 0 | AQ47: =IF(AN47<'DADOS DOS EMPREENDIMENTOS'!AP$11,0,IF(AN47='DADOS DOS EMPREENDIMENTOS'!AP$11,SUM(AP$46:AP47)*(1-'DADOS DOS EMPREENDIMENTOS'!#REF!-'DADOS DOS EMPREENDIMENTOS'!#REF!)+'DADOS DOS EMPREENDIMENTOS'!#REF!,IF(AN47='DADOS DOS EMPREENDIMENTOS'!#REF!,'DADOS DOS EMPREENDIMENTOS'!#REF!,AP47*(1-'DADOS DOS EMPREENDIMENTOS'!#REF!-'DADOS DOS EMPREENDIMENTOS'!#REF!)))) ->  | AS47: 1 | AT47: 2009-06-01 | AU47: 0 | AV47: =IF(AS47<'DADOS DOS EMPREENDIMENTOS'!AU$11,0,IF(AS47='DADOS DOS EMPREENDIMENTOS'!AU$11,SUM(AU$46:AU47)*(1-'DADOS DOS EMPREENDIMENTOS'!#REF!-'DADOS DOS EMPREENDIMENTOS'!#REF!)+'DADOS DOS EMPREENDIMENTOS'!#REF!,IF(AS47='DADOS DOS EMPREENDIMENTOS'!#REF!,'DADOS DOS EMPREENDIMENTOS'!#REF!,AU47*(1-'DADOS DOS EMPREENDIMENTOS'!#REF!-'DADOS DOS EMPREENDIMENTOS'!#REF!)))) ->  | AX47: 1 | AY47: 2009-06-01 | AZ47: 0 | BA47: =IF(AX47<'DADOS DOS EMPREENDIMENTOS'!AZ$11,0,IF(AX47='DADOS DOS EMPREENDIMENTOS'!AZ$11,SUM(AZ$46:AZ47)*(1-'DADOS DOS EMPREENDIMENTOS'!#REF!-'DADOS DOS EMPREENDIMENTOS'!#REF!)+'DADOS DOS EMPREENDIMENTOS'!#REF!,IF(AX47='DADOS DOS EMPREENDIMENTOS'!#REF!,'DADOS DOS EMPREENDIMENTOS'!#REF!,AZ47*(1-'DADOS DOS EMPREENDIMENTOS'!#REF!-'DADOS DOS EMPREENDIMENTOS'!#REF!)))) ->  | BC47: 1 | BD47: 2009-06-01 | BE47: 0 | BF47: =IF(BC47<'DADOS DOS EMPREENDIMENTOS'!BE$11,0,IF(BC47='DADOS DOS EMPREENDIMENTOS'!BE$11,SUM(BE$46:BE47)*(1-'DADOS DOS EMPREENDIMENTOS'!#REF!-'DADOS DOS EMPREENDIMENTOS'!#REF!)+'DADOS DOS EMPREENDIMENTOS'!#REF!,IF(BC47='DADOS DOS EMPREENDIMENTOS'!#REF!,'DADOS DOS EMPREENDIMENTOS'!#REF!,BE47*(1-'DADOS DOS EMPREENDIMENTOS'!#REF!-'DADOS DOS EMPREENDIMENTOS'!#REF!)))) ->  | BH47: 1 | BI47: 2009-06-01 | BJ47: 0 | BK47: =IF(BH47<'DADOS DOS EMPREENDIMENTOS'!BJ$11,0,IF(BH47='DADOS DOS EMPREENDIMENTOS'!BJ$11,SUM(BJ$46:BJ47)*(1-'DADOS DOS EMPREENDIMENTOS'!#REF!-'DADOS DOS EMPREENDIMENTOS'!#REF!)+'DADOS DOS EMPREENDIMENTOS'!#REF!,IF(BH47='DADOS DOS EMPREENDIMENTOS'!#REF!,'DADOS DOS EMPREENDIMENTOS'!#REF!,BJ47*(1-'DADOS DOS EMPREENDIMENTOS'!#REF!-'DADOS DOS EMPREENDIMENTOS'!#REF!)))) ->  | BM47: 1 | BN47: 2009-06-01 | BO47: 0 | BP47: =IF(BM47<'DADOS DOS EMPREENDIMENTOS'!BO$11,0,IF(BM47='DADOS DOS EMPREENDIMENTOS'!BO$11,SUM(BO$46:BO47)*(1-'DADOS DOS EMPREENDIMENTOS'!#REF!-'DADOS DOS EMPREENDIMENTOS'!#REF!)+'DADOS DOS EMPREENDIMENTOS'!#REF!,IF(BM47='DADOS DOS EMPREENDIMENTOS'!BO$12,'DADOS DOS EMPREENDIMENTOS'!#REF!,BO47*(1-'DADOS DOS EMPREENDIMENTOS'!#REF!-'DADOS DOS EMPREENDIMENTOS'!#REF!)))) ->  | BR47: 1 | BS47: 2009-06-01 | BT47: 0 | BU47: =IF(BR47<'DADOS DOS EMPREENDIMENTOS'!BT$11,0,IF(BR47='DADOS DOS EMPREENDIMENTOS'!BT$11,SUM(BT$46:BT47)*(1-'DADOS DOS EMPREENDIMENTOS'!#REF!-'DADOS DOS EMPREENDIMENTOS'!#REF!)+'DADOS DOS EMPREENDIMENTOS'!#REF!,IF(BR47='DADOS DOS EMPREENDIMENTOS'!BT$12,'DADOS DOS EMPREENDIMENTOS'!#REF!,BT47*(1-'DADOS DOS EMPREENDIMENTOS'!#REF!-'DADOS DOS EMPREENDIMENTOS'!#REF!)))) ->  | BW47: 1 | BX47: 2009-06-01 | BY47: 0 | BZ47: =IF(BW47<'DADOS DOS EMPREENDIMENTOS'!BY$11,0,IF(BW47='DADOS DOS EMPREENDIMENTOS'!BY$11,SUM(BY$46:BY47)*(1-'DADOS DOS EMPREENDIMENTOS'!#REF!-'DADOS DOS EMPREENDIMENTOS'!#REF!)+'DADOS DOS EMPREENDIMENTOS'!#REF!,IF(BW47='DADOS DOS EMPREENDIMENTOS'!BY$12,'DADOS DOS EMPREENDIMENTOS'!#REF!,BY47*(1-'DADOS DOS EMPREENDIMENTOS'!#REF!-'DADOS DOS EMPREENDIMENTOS'!#REF!)))) ->  | CB47: 1 | CC47: 2009-06-01 | CD47: 0 | CE47: =IF(CB47<'DADOS DOS EMPREENDIMENTOS'!CD$11,0,IF(CB47='DADOS DOS EMPREENDIMENTOS'!CD$11,SUM(CD$46:CD47)*(1-'DADOS DOS EMPREENDIMENTOS'!#REF!-'DADOS DOS EMPREENDIMENTOS'!#REF!)+'DADOS DOS EMPREENDIMENTOS'!#REF!,IF(CB47='DADOS DOS EMPREENDIMENTOS'!CD$12,'DADOS DOS EMPREENDIMENTOS'!#REF!,CD47*(1-'DADOS DOS EMPREENDIMENTOS'!#REF!-'DADOS DOS EMPREENDIMENTOS'!#REF!)))) -> 
O48: 2 | T48: 2 | Y48: 2 | AD48: 2 | AE48: 2009-07-01 | AF48: 0 | AG48: =IF(AD48<'DADOS DOS EMPREENDIMENTOS'!AF$11,0,IF(AD48='DADOS DOS EMPREENDIMENTOS'!AF$11,SUM(AF$46:AF48)*(1-'DADOS DOS EMPREENDIMENTOS'!#REF!-'DADOS DOS EMPREENDIMENTOS'!#REF!)+'DADOS DOS EMPREENDIMENTOS'!#REF!,IF(AD48='DADOS DOS EMPREENDIMENTOS'!#REF!,'DADOS DOS EMPREENDIMENTOS'!#REF!,AF48*(1-'DADOS DOS EMPREENDIMENTOS'!#REF!-'DADOS DOS EMPREENDIMENTOS'!#REF!)))) ->  | AI48: 2 | AJ48: 2009-07-01 | AK48: 0 | AL48: =IF(AI48<'DADOS DOS EMPREENDIMENTOS'!AK$11,0,IF(AI48='DADOS DOS EMPREENDIMENTOS'!AK$11,SUM(AK$46:AK48)*(1-'DADOS DOS EMPREENDIMENTOS'!#REF!-'DADOS DOS EMPREENDIMENTOS'!#REF!)+'DADOS DOS EMPREENDIMENTOS'!#REF!,IF(AI48='DADOS DOS EMPREENDIMENTOS'!#REF!,'DADOS DOS EMPREENDIMENTOS'!#REF!,AK48*(1-'DADOS DOS EMPREENDIMENTOS'!#REF!-'DADOS DOS EMPREENDIMENTOS'!#REF!)))) ->  | AN48: 2 | AO48: 2009-07-01 | AP48: 0 | AQ48: =IF(AN48<'DADOS DOS EMPREENDIMENTOS'!AP$11,0,IF(AN48='DADOS DOS EMPREENDIMENTOS'!AP$11,SUM(AP$46:AP48)*(1-'DADOS DOS EMPREENDIMENTOS'!#REF!-'DADOS DOS EMPREENDIMENTOS'!#REF!)+'DADOS DOS EMPREENDIMENTOS'!#REF!,IF(AN48='DADOS DOS EMPREENDIMENTOS'!#REF!,'DADOS DOS EMPREENDIMENTOS'!#REF!,AP48*(1-'DADOS DOS EMPREENDIMENTOS'!#REF!-'DADOS DOS EMPREENDIMENTOS'!#REF!)))) ->  | AS48: 2 | AT48: 2009-07-01 | AU48: 0 | AV48: =IF(AS48<'DADOS DOS EMPREENDIMENTOS'!AU$11,0,IF(AS48='DADOS DOS EMPREENDIMENTOS'!AU$11,SUM(AU$46:AU48)*(1-'DADOS DOS EMPREENDIMENTOS'!#REF!-'DADOS DOS EMPREENDIMENTOS'!#REF!)+'DADOS DOS EMPREENDIMENTOS'!#REF!,IF(AS48='DADOS DOS EMPREENDIMENTOS'!#REF!,'DADOS DOS EMPREENDIMENTOS'!#REF!,AU48*(1-'DADOS DOS EMPREENDIMENTOS'!#REF!-'DADOS DOS EMPREENDIMENTOS'!#REF!)))) ->  | AX48: 2 | AY48: 2009-07-01 | AZ48: 0 | BA48: =IF(AX48<'DADOS DOS EMPREENDIMENTOS'!AZ$11,0,IF(AX48='DADOS DOS EMPREENDIMENTOS'!AZ$11,SUM(AZ$46:AZ48)*(1-'DADOS DOS EMPREENDIMENTOS'!#REF!-'DADOS DOS EMPREENDIMENTOS'!#REF!)+'DADOS DOS EMPREENDIMENTOS'!#REF!,IF(AX48='DADOS DOS EMPREENDIMENTOS'!#REF!,'DADOS DOS EMPREENDIMENTOS'!#REF!,AZ48*(1-'DADOS DOS EMPREENDIMENTOS'!#REF!-'DADOS DOS EMPREENDIMENTOS'!#REF!)))) ->  | BC48: 2 | BD48: 2009-07-01 | BE48: 0 | BF48: =IF(BC48<'DADOS DOS EMPREENDIMENTOS'!BE$11,0,IF(BC48='DADOS DOS EMPREENDIMENTOS'!BE$11,SUM(BE$46:BE48)*(1-'DADOS DOS EMPREENDIMENTOS'!#REF!-'DADOS DOS EMPREENDIMENTOS'!#REF!)+'DADOS DOS EMPREENDIMENTOS'!#REF!,IF(BC48='DADOS DOS EMPREENDIMENTOS'!#REF!,'DADOS DOS EMPREENDIMENTOS'!#REF!,BE48*(1-'DADOS DOS EMPREENDIMENTOS'!#REF!-'DADOS DOS EMPREENDIMENTOS'!#REF!)))) ->  | BH48: 2 | BI48: 2009-07-01 | BJ48: 0 | BK48: =IF(BH48<'DADOS DOS EMPREENDIMENTOS'!BJ$11,0,IF(BH48='DADOS DOS EMPREENDIMENTOS'!BJ$11,SUM(BJ$46:BJ48)*(1-'DADOS DOS EMPREENDIMENTOS'!#REF!-'DADOS DOS EMPREENDIMENTOS'!#REF!)+'DADOS DOS EMPREENDIMENTOS'!#REF!,IF(BH48='DADOS DOS EMPREENDIMENTOS'!#REF!,'DADOS DOS EMPREENDIMENTOS'!#REF!,BJ48*(1-'DADOS DOS EMPREENDIMENTOS'!#REF!-'DADOS DOS EMPREENDIMENTOS'!#REF!)))) ->  | BM48: 2 | BN48: 2009-07-01 | BO48: 0 | BP48: =IF(BM48<'DADOS DOS EMPREENDIMENTOS'!BO$11,0,IF(BM48='DADOS DOS EMPREENDIMENTOS'!BO$11,SUM(BO$46:BO48)*(1-'DADOS DOS EMPREENDIMENTOS'!#REF!-'DADOS DOS EMPREENDIMENTOS'!#REF!)+'DADOS DOS EMPREENDIMENTOS'!#REF!,IF(BM48='DADOS DOS EMPREENDIMENTOS'!BO$12,'DADOS DOS EMPREENDIMENTOS'!#REF!,BO48*(1-'DADOS DOS EMPREENDIMENTOS'!#REF!-'DADOS DOS EMPREENDIMENTOS'!#REF!)))) ->  | BR48: 2 | BS48: 2009-07-01 | BT48: 0 | BU48: =IF(BR48<'DADOS DOS EMPREENDIMENTOS'!BT$11,0,IF(BR48='DADOS DOS EMPREENDIMENTOS'!BT$11,SUM(BT$46:BT48)*(1-'DADOS DOS EMPREENDIMENTOS'!#REF!-'DADOS DOS EMPREENDIMENTOS'!#REF!)+'DADOS DOS EMPREENDIMENTOS'!#REF!,IF(BR48='DADOS DOS EMPREENDIMENTOS'!BT$12,'DADOS DOS EMPREENDIMENTOS'!#REF!,BT48*(1-'DADOS DOS EMPREENDIMENTOS'!#REF!-'DADOS DOS EMPREENDIMENTOS'!#REF!)))) ->  | BW48: 2 | BX48: 2009-07-01 | BY48: 0 | BZ48: =IF(BW48<'DADOS DOS EMPREENDIMENTOS'!BY$11,0,IF(BW48='DADOS DOS EMPREENDIMENTOS'!BY$11,SUM(BY$46:BY48)*(1-'DADOS DOS EMPREENDIMENTOS'!#REF!-'DADOS DOS EMPREENDIMENTOS'!#REF!)+'DADOS DOS EMPREENDIMENTOS'!#REF!,IF(BW48='DADOS DOS EMPREENDIMENTOS'!BY$12,'DADOS DOS EMPREENDIMENTOS'!#REF!,BY48*(1-'DADOS DOS EMPREENDIMENTOS'!#REF!-'DADOS DOS EMPREENDIMENTOS'!#REF!)))) ->  | CB48: 2 | CC48: 2009-07-01 | CD48: 0 | CE48: =IF(CB48<'DADOS DOS EMPREENDIMENTOS'!CD$11,0,IF(CB48='DADOS DOS EMPREENDIMENTOS'!CD$11,SUM(CD$46:CD48)*(1-'DADOS DOS EMPREENDIMENTOS'!#REF!-'DADOS DOS EMPREENDIMENTOS'!#REF!)+'DADOS DOS EMPREENDIMENTOS'!#REF!,IF(CB48='DADOS DOS EMPREENDIMENTOS'!CD$12,'DADOS DOS EMPREENDIMENTOS'!#REF!,CD48*(1-'DADOS DOS EMPREENDIMENTOS'!#REF!-'DADOS DOS EMPREENDIMENTOS'!#REF!)))) -> 
O49: 3 | T49: 3 | Y49: 3 | AD49: 3 | AE49: 2009-08-01 | AF49: 0 | AG49: =IF(AD49<'DADOS DOS EMPREENDIMENTOS'!AF$11,0,IF(AD49='DADOS DOS EMPREENDIMENTOS'!AF$11,SUM(AF$46:AF49)*(1-'DADOS DOS EMPREENDIMENTOS'!#REF!-'DADOS DOS EMPREENDIMENTOS'!#REF!)+'DADOS DOS EMPREENDIMENTOS'!#REF!,IF(AD49='DADOS DOS EMPREENDIMENTOS'!#REF!,'DADOS DOS EMPREENDIMENTOS'!#REF!,AF49*(1-'DADOS DOS EMPREENDIMENTOS'!#REF!-'DADOS DOS EMPREENDIMENTOS'!#REF!)))) ->  | AI49: 3 | AJ49: 2009-08-01 | AK49: 0 | AL49: =IF(AI49<'DADOS DOS EMPREENDIMENTOS'!AK$11,0,IF(AI49='DADOS DOS EMPREENDIMENTOS'!AK$11,SUM(AK$46:AK49)*(1-'DADOS DOS EMPREENDIMENTOS'!#REF!-'DADOS DOS EMPREENDIMENTOS'!#REF!)+'DADOS DOS EMPREENDIMENTOS'!#REF!,IF(AI49='DADOS DOS EMPREENDIMENTOS'!#REF!,'DADOS DOS EMPREENDIMENTOS'!#REF!,AK49*(1-'DADOS DOS EMPREENDIMENTOS'!#REF!-'DADOS DOS EMPREENDIMENTOS'!#REF!)))) ->  | AN49: 3 | AO49: 2009-08-01 | AP49: 0 | AQ49: =IF(AN49<'DADOS DOS EMPREENDIMENTOS'!AP$11,0,IF(AN49='DADOS DOS EMPREENDIMENTOS'!AP$11,SUM(AP$46:AP49)*(1-'DADOS DOS EMPREENDIMENTOS'!#REF!-'DADOS DOS EMPREENDIMENTOS'!#REF!)+'DADOS DOS EMPREENDIMENTOS'!#REF!,IF(AN49='DADOS DOS EMPREENDIMENTOS'!#REF!,'DADOS DOS EMPREENDIMENTOS'!#REF!,AP49*(1-'DADOS DOS EMPREENDIMENTOS'!#REF!-'DADOS DOS EMPREENDIMENTOS'!#REF!)))) ->  | AS49: 3 | AT49: 2009-08-01 | AU49: 0 | AV49: =IF(AS49<'DADOS DOS EMPREENDIMENTOS'!AU$11,0,IF(AS49='DADOS DOS EMPREENDIMENTOS'!AU$11,SUM(AU$46:AU49)*(1-'DADOS DOS EMPREENDIMENTOS'!#REF!-'DADOS DOS EMPREENDIMENTOS'!#REF!)+'DADOS DOS EMPREENDIMENTOS'!#REF!,IF(AS49='DADOS DOS EMPREENDIMENTOS'!#REF!,'DADOS DOS EMPREENDIMENTOS'!#REF!,AU49*(1-'DADOS DOS EMPREENDIMENTOS'!#REF!-'DADOS DOS EMPREENDIMENTOS'!#REF!)))) ->  | AX49: 3 | AY49: 2009-08-01 | AZ49: 0 | BA49: =IF(AX49<'DADOS DOS EMPREENDIMENTOS'!AZ$11,0,IF(AX49='DADOS DOS EMPREENDIMENTOS'!AZ$11,SUM(AZ$46:AZ49)*(1-'DADOS DOS EMPREENDIMENTOS'!#REF!-'DADOS DOS EMPREENDIMENTOS'!#REF!)+'DADOS DOS EMPREENDIMENTOS'!#REF!,IF(AX49='DADOS DOS EMPREENDIMENTOS'!#REF!,'DADOS DOS EMPREENDIMENTOS'!#REF!,AZ49*(1-'DADOS DOS EMPREENDIMENTOS'!#REF!-'DADOS DOS EMPREENDIMENTOS'!#REF!)))) ->  | BC49: 3 | BD49: 2009-08-01 | BE49: 0 | BF49: =IF(BC49<'DADOS DOS EMPREENDIMENTOS'!BE$11,0,IF(BC49='DADOS DOS EMPREENDIMENTOS'!BE$11,SUM(BE$46:BE49)*(1-'DADOS DOS EMPREENDIMENTOS'!#REF!-'DADOS DOS EMPREENDIMENTOS'!#REF!)+'DADOS DOS EMPREENDIMENTOS'!#REF!,IF(BC49='DADOS DOS EMPREENDIMENTOS'!#REF!,'DADOS DOS EMPREENDIMENTOS'!#REF!,BE49*(1-'DADOS DOS EMPREENDIMENTOS'!#REF!-'DADOS DOS EMPREENDIMENTOS'!#REF!)))) ->  | BH49: 3 | BI49: 2009-08-01 | BJ49: 0 | BK49: =IF(BH49<'DADOS DOS EMPREENDIMENTOS'!BJ$11,0,IF(BH49='DADOS DOS EMPREENDIMENTOS'!BJ$11,SUM(BJ$46:BJ49)*(1-'DADOS DOS EMPREENDIMENTOS'!#REF!-'DADOS DOS EMPREENDIMENTOS'!#REF!)+'DADOS DOS EMPREENDIMENTOS'!#REF!,IF(BH49='DADOS DOS EMPREENDIMENTOS'!#REF!,'DADOS DOS EMPREENDIMENTOS'!#REF!,BJ49*(1-'DADOS DOS EMPREENDIMENTOS'!#REF!-'DADOS DOS EMPREENDIMENTOS'!#REF!)))) ->  | BM49: 3 | BN49: 2009-08-01 | BO49: 0 | BP49: =IF(BM49<'DADOS DOS EMPREENDIMENTOS'!BO$11,0,IF(BM49='DADOS DOS EMPREENDIMENTOS'!BO$11,SUM(BO$46:BO49)*(1-'DADOS DOS EMPREENDIMENTOS'!#REF!-'DADOS DOS EMPREENDIMENTOS'!#REF!)+'DADOS DOS EMPREENDIMENTOS'!#REF!,IF(BM49='DADOS DOS EMPREENDIMENTOS'!BO$12,'DADOS DOS EMPREENDIMENTOS'!#REF!,BO49*(1-'DADOS DOS EMPREENDIMENTOS'!#REF!-'DADOS DOS EMPREENDIMENTOS'!#REF!)))) ->  | BR49: 3 | BS49: 2009-08-01 | BT49: 0 | BU49: =IF(BR49<'DADOS DOS EMPREENDIMENTOS'!BT$11,0,IF(BR49='DADOS DOS EMPREENDIMENTOS'!BT$11,SUM(BT$46:BT49)*(1-'DADOS DOS EMPREENDIMENTOS'!#REF!-'DADOS DOS EMPREENDIMENTOS'!#REF!)+'DADOS DOS EMPREENDIMENTOS'!#REF!,IF(BR49='DADOS DOS EMPREENDIMENTOS'!BT$12,'DADOS DOS EMPREENDIMENTOS'!#REF!,BT49*(1-'DADOS DOS EMPREENDIMENTOS'!#REF!-'DADOS DOS EMPREENDIMENTOS'!#REF!)))) ->  | BW49: 3 | BX49: 2009-08-01 | BY49: 0 | BZ49: =IF(BW49<'DADOS DOS EMPREENDIMENTOS'!BY$11,0,IF(BW49='DADOS DOS EMPREENDIMENTOS'!BY$11,SUM(BY$46:BY49)*(1-'DADOS DOS EMPREENDIMENTOS'!#REF!-'DADOS DOS EMPREENDIMENTOS'!#REF!)+'DADOS DOS EMPREENDIMENTOS'!#REF!,IF(BW49='DADOS DOS EMPREENDIMENTOS'!BY$12,'DADOS DOS EMPREENDIMENTOS'!#REF!,BY49*(1-'DADOS DOS EMPREENDIMENTOS'!#REF!-'DADOS DOS EMPREENDIMENTOS'!#REF!)))) ->  | CB49: 3 | CC49: 2009-08-01 | CD49: 0 | CE49: =IF(CB49<'DADOS DOS EMPREENDIMENTOS'!CD$11,0,IF(CB49='DADOS DOS EMPREENDIMENTOS'!CD$11,SUM(CD$46:CD49)*(1-'DADOS DOS EMPREENDIMENTOS'!#REF!-'DADOS DOS EMPREENDIMENTOS'!#REF!)+'DADOS DOS EMPREENDIMENTOS'!#REF!,IF(CB49='DADOS DOS EMPREENDIMENTOS'!CD$12,'DADOS DOS EMPREENDIMENTOS'!#REF!,CD49*(1-'DADOS DOS EMPREENDIMENTOS'!#REF!-'DADOS DOS EMPREENDIMENTOS'!#REF!)))) -> 
O50: 4 | T50: 4 | Y50: 4 | AD50: 4 | AE50: 2009-09-01 | AF50: 0 | AG50: =IF(AD50<'DADOS DOS EMPREENDIMENTOS'!AF$11,0,IF(AD50='DADOS DOS EMPREENDIMENTOS'!AF$11,SUM(AF$46:AF50)*(1-'DADOS DOS EMPREENDIMENTOS'!#REF!-'DADOS DOS EMPREENDIMENTOS'!#REF!)+'DADOS DOS EMPREENDIMENTOS'!#REF!,IF(AD50='DADOS DOS EMPREENDIMENTOS'!#REF!,'DADOS DOS EMPREENDIMENTOS'!#REF!,AF50*(1-'DADOS DOS EMPREENDIMENTOS'!#REF!-'DADOS DOS EMPREENDIMENTOS'!#REF!)))) ->  | AI50: 4 | AJ50: 2009-09-01 | AK50: 0 | AL50: =IF(AI50<'DADOS DOS EMPREENDIMENTOS'!AK$11,0,IF(AI50='DADOS DOS EMPREENDIMENTOS'!AK$11,SUM(AK$46:AK50)*(1-'DADOS DOS EMPREENDIMENTOS'!#REF!-'DADOS DOS EMPREENDIMENTOS'!#REF!)+'DADOS DOS EMPREENDIMENTOS'!#REF!,IF(AI50='DADOS DOS EMPREENDIMENTOS'!#REF!,'DADOS DOS EMPREENDIMENTOS'!#REF!,AK50*(1-'DADOS DOS EMPREENDIMENTOS'!#REF!-'DADOS DOS EMPREENDIMENTOS'!#REF!)))) ->  | AN50: 4 | AO50: 2009-09-01 | AP50: 0 | AQ50: =IF(AN50<'DADOS DOS EMPREENDIMENTOS'!AP$11,0,IF(AN50='DADOS DOS EMPREENDIMENTOS'!AP$11,SUM(AP$46:AP50)*(1-'DADOS DOS EMPREENDIMENTOS'!#REF!-'DADOS DOS EMPREENDIMENTOS'!#REF!)+'DADOS DOS EMPREENDIMENTOS'!#REF!,IF(AN50='DADOS DOS EMPREENDIMENTOS'!#REF!,'DADOS DOS EMPREENDIMENTOS'!#REF!,AP50*(1-'DADOS DOS EMPREENDIMENTOS'!#REF!-'DADOS DOS EMPREENDIMENTOS'!#REF!)))) ->  | AS50: 4 | AT50: 2009-09-01 | AU50: 0 | AV50: =IF(AS50<'DADOS DOS EMPREENDIMENTOS'!AU$11,0,IF(AS50='DADOS DOS EMPREENDIMENTOS'!AU$11,SUM(AU$46:AU50)*(1-'DADOS DOS EMPREENDIMENTOS'!#REF!-'DADOS DOS EMPREENDIMENTOS'!#REF!)+'DADOS DOS EMPREENDIMENTOS'!#REF!,IF(AS50='DADOS DOS EMPREENDIMENTOS'!#REF!,'DADOS DOS EMPREENDIMENTOS'!#REF!,AU50*(1-'DADOS DOS EMPREENDIMENTOS'!#REF!-'DADOS DOS EMPREENDIMENTOS'!#REF!)))) ->  | AX50: 4 | AY50: 2009-09-01 | AZ50: 0 | BA50: =IF(AX50<'DADOS DOS EMPREENDIMENTOS'!AZ$11,0,IF(AX50='DADOS DOS EMPREENDIMENTOS'!AZ$11,SUM(AZ$46:AZ50)*(1-'DADOS DOS EMPREENDIMENTOS'!#REF!-'DADOS DOS EMPREENDIMENTOS'!#REF!)+'DADOS DOS EMPREENDIMENTOS'!#REF!,IF(AX50='DADOS DOS EMPREENDIMENTOS'!#REF!,'DADOS DOS EMPREENDIMENTOS'!#REF!,AZ50*(1-'DADOS DOS EMPREENDIMENTOS'!#REF!-'DADOS DOS EMPREENDIMENTOS'!#REF!)))) ->  | BC50: 4 | BD50: 2009-09-01 | BE50: 0 | BF50: =IF(BC50<'DADOS DOS EMPREENDIMENTOS'!BE$11,0,IF(BC50='DADOS DOS EMPREENDIMENTOS'!BE$11,SUM(BE$46:BE50)*(1-'DADOS DOS EMPREENDIMENTOS'!#REF!-'DADOS DOS EMPREENDIMENTOS'!#REF!)+'DADOS DOS EMPREENDIMENTOS'!#REF!,IF(BC50='DADOS DOS EMPREENDIMENTOS'!#REF!,'DADOS DOS EMPREENDIMENTOS'!#REF!,BE50*(1-'DADOS DOS EMPREENDIMENTOS'!#REF!-'DADOS DOS EMPREENDIMENTOS'!#REF!)))) ->  | BH50: 4 | BI50: 2009-09-01 | BJ50: 0 | BK50: =IF(BH50<'DADOS DOS EMPREENDIMENTOS'!BJ$11,0,IF(BH50='DADOS DOS EMPREENDIMENTOS'!BJ$11,SUM(BJ$46:BJ50)*(1-'DADOS DOS EMPREENDIMENTOS'!#REF!-'DADOS DOS EMPREENDIMENTOS'!#REF!)+'DADOS DOS EMPREENDIMENTOS'!#REF!,IF(BH50='DADOS DOS EMPREENDIMENTOS'!#REF!,'DADOS DOS EMPREENDIMENTOS'!#REF!,BJ50*(1-'DADOS DOS EMPREENDIMENTOS'!#REF!-'DADOS DOS EMPREENDIMENTOS'!#REF!)))) ->  | BM50: 4 | BN50: 2009-09-01 | BO50: 0 | BP50: =IF(BM50<'DADOS DOS EMPREENDIMENTOS'!BO$11,0,IF(BM50='DADOS DOS EMPREENDIMENTOS'!BO$11,SUM(BO$46:BO50)*(1-'DADOS DOS EMPREENDIMENTOS'!#REF!-'DADOS DOS EMPREENDIMENTOS'!#REF!)+'DADOS DOS EMPREENDIMENTOS'!#REF!,IF(BM50='DADOS DOS EMPREENDIMENTOS'!BO$12,'DADOS DOS EMPREENDIMENTOS'!#REF!,BO50*(1-'DADOS DOS EMPREENDIMENTOS'!#REF!-'DADOS DOS EMPREENDIMENTOS'!#REF!)))) ->  | BR50: 4 | BS50: 2009-09-01 | BT50: 0 | BU50: =IF(BR50<'DADOS DOS EMPREENDIMENTOS'!BT$11,0,IF(BR50='DADOS DOS EMPREENDIMENTOS'!BT$11,SUM(BT$46:BT50)*(1-'DADOS DOS EMPREENDIMENTOS'!#REF!-'DADOS DOS EMPREENDIMENTOS'!#REF!)+'DADOS DOS EMPREENDIMENTOS'!#REF!,IF(BR50='DADOS DOS EMPREENDIMENTOS'!BT$12,'DADOS DOS EMPREENDIMENTOS'!#REF!,BT50*(1-'DADOS DOS EMPREENDIMENTOS'!#REF!-'DADOS DOS EMPREENDIMENTOS'!#REF!)))) ->  | BW50: 4 | BX50: 2009-09-01 | BY50: 0 | BZ50: =IF(BW50<'DADOS DOS EMPREENDIMENTOS'!BY$11,0,IF(BW50='DADOS DOS EMPREENDIMENTOS'!BY$11,SUM(BY$46:BY50)*(1-'DADOS DOS EMPREENDIMENTOS'!#REF!-'DADOS DOS EMPREENDIMENTOS'!#REF!)+'DADOS DOS EMPREENDIMENTOS'!#REF!,IF(BW50='DADOS DOS EMPREENDIMENTOS'!BY$12,'DADOS DOS EMPREENDIMENTOS'!#REF!,BY50*(1-'DADOS DOS EMPREENDIMENTOS'!#REF!-'DADOS DOS EMPREENDIMENTOS'!#REF!)))) ->  | CB50: 4 | CC50: 2009-09-01 | CD50: 0 | CE50: =IF(CB50<'DADOS DOS EMPREENDIMENTOS'!CD$11,0,IF(CB50='DADOS DOS EMPREENDIMENTOS'!CD$11,SUM(CD$46:CD50)*(1-'DADOS DOS EMPREENDIMENTOS'!#REF!-'DADOS DOS EMPREENDIMENTOS'!#REF!)+'DADOS DOS EMPREENDIMENTOS'!#REF!,IF(CB50='DADOS DOS EMPREENDIMENTOS'!CD$12,'DADOS DOS EMPREENDIMENTOS'!#REF!,CD50*(1-'DADOS DOS EMPREENDIMENTOS'!#REF!-'DADOS DOS EMPREENDIMENTOS'!#REF!)))) -> 
O51: 5 | T51: 5 | Y51: 5 | AD51: 5 | AE51: 2009-10-01 | AF51: 0 | AG51: =IF(AD51<'DADOS DOS EMPREENDIMENTOS'!AF$11,0,IF(AD51='DADOS DOS EMPREENDIMENTOS'!AF$11,SUM(AF$46:AF51)*(1-'DADOS DOS EMPREENDIMENTOS'!#REF!-'DADOS DOS EMPREENDIMENTOS'!#REF!)+'DADOS DOS EMPREENDIMENTOS'!#REF!,IF(AD51='DADOS DOS EMPREENDIMENTOS'!#REF!,'DADOS DOS EMPREENDIMENTOS'!#REF!,AF51*(1-'DADOS DOS EMPREENDIMENTOS'!#REF!-'DADOS DOS EMPREENDIMENTOS'!#REF!)))) ->  | AI51: 5 | AJ51: 2009-10-01 | AK51: 0 | AL51: =IF(AI51<'DADOS DOS EMPREENDIMENTOS'!AK$11,0,IF(AI51='DADOS DOS EMPREENDIMENTOS'!AK$11,SUM(AK$46:AK51)*(1-'DADOS DOS EMPREENDIMENTOS'!#REF!-'DADOS DOS EMPREENDIMENTOS'!#REF!)+'DADOS DOS EMPREENDIMENTOS'!#REF!,IF(AI51='DADOS DOS EMPREENDIMENTOS'!#REF!,'DADOS DOS EMPREENDIMENTOS'!#REF!,AK51*(1-'DADOS DOS EMPREENDIMENTOS'!#REF!-'DADOS DOS EMPREENDIMENTOS'!#REF!)))) ->  | AN51: 5 | AO51: 2009-10-01 | AP51: 0 | AQ51: =IF(AN51<'DADOS DOS EMPREENDIMENTOS'!AP$11,0,IF(AN51='DADOS DOS EMPREENDIMENTOS'!AP$11,SUM(AP$46:AP51)*(1-'DADOS DOS EMPREENDIMENTOS'!#REF!-'DADOS DOS EMPREENDIMENTOS'!#REF!)+'DADOS DOS EMPREENDIMENTOS'!#REF!,IF(AN51='DADOS DOS EMPREENDIMENTOS'!#REF!,'DADOS DOS EMPREENDIMENTOS'!#REF!,AP51*(1-'DADOS DOS EMPREENDIMENTOS'!#REF!-'DADOS DOS EMPREENDIMENTOS'!#REF!)))) ->  | AS51: 5 | AT51: 2009-10-01 | AU51: 0 | AV51: =IF(AS51<'DADOS DOS EMPREENDIMENTOS'!AU$11,0,IF(AS51='DADOS DOS EMPREENDIMENTOS'!AU$11,SUM(AU$46:AU51)*(1-'DADOS DOS EMPREENDIMENTOS'!#REF!-'DADOS DOS EMPREENDIMENTOS'!#REF!)+'DADOS DOS EMPREENDIMENTOS'!#REF!,IF(AS51='DADOS DOS EMPREENDIMENTOS'!#REF!,'DADOS DOS EMPREENDIMENTOS'!#REF!,AU51*(1-'DADOS DOS EMPREENDIMENTOS'!#REF!-'DADOS DOS EMPREENDIMENTOS'!#REF!)))) ->  | AX51: 5 | AY51: 2009-10-01 | AZ51: 0 | BA51: =IF(AX51<'DADOS DOS EMPREENDIMENTOS'!AZ$11,0,IF(AX51='DADOS DOS EMPREENDIMENTOS'!AZ$11,SUM(AZ$46:AZ51)*(1-'DADOS DOS EMPREENDIMENTOS'!#REF!-'DADOS DOS EMPREENDIMENTOS'!#REF!)+'DADOS DOS EMPREENDIMENTOS'!#REF!,IF(AX51='DADOS DOS EMPREENDIMENTOS'!#REF!,'DADOS DOS EMPREENDIMENTOS'!#REF!,AZ51*(1-'DADOS DOS EMPREENDIMENTOS'!#REF!-'DADOS DOS EMPREENDIMENTOS'!#REF!)))) ->  | BC51: 5 | BD51: 2009-10-01 | BE51: 0 | BF51: =IF(BC51<'DADOS DOS EMPREENDIMENTOS'!BE$11,0,IF(BC51='DADOS DOS EMPREENDIMENTOS'!BE$11,SUM(BE$46:BE51)*(1-'DADOS DOS EMPREENDIMENTOS'!#REF!-'DADOS DOS EMPREENDIMENTOS'!#REF!)+'DADOS DOS EMPREENDIMENTOS'!#REF!,IF(BC51='DADOS DOS EMPREENDIMENTOS'!#REF!,'DADOS DOS EMPREENDIMENTOS'!#REF!,BE51*(1-'DADOS DOS EMPREENDIMENTOS'!#REF!-'DADOS DOS EMPREENDIMENTOS'!#REF!)))) ->  | BH51: 5 | BI51: 2009-10-01 | BJ51: 0 | BK51: =IF(BH51<'DADOS DOS EMPREENDIMENTOS'!BJ$11,0,IF(BH51='DADOS DOS EMPREENDIMENTOS'!BJ$11,SUM(BJ$46:BJ51)*(1-'DADOS DOS EMPREENDIMENTOS'!#REF!-'DADOS DOS EMPREENDIMENTOS'!#REF!)+'DADOS DOS EMPREENDIMENTOS'!#REF!,IF(BH51='DADOS DOS EMPREENDIMENTOS'!#REF!,'DADOS DOS EMPREENDIMENTOS'!#REF!,BJ51*(1-'DADOS DOS EMPREENDIMENTOS'!#REF!-'DADOS DOS EMPREENDIMENTOS'!#REF!)))) ->  | BM51: 5 | BN51: 2009-10-01 | BO51: 0 | BP51: =IF(BM51<'DADOS DOS EMPREENDIMENTOS'!BO$11,0,IF(BM51='DADOS DOS EMPREENDIMENTOS'!BO$11,SUM(BO$46:BO51)*(1-'DADOS DOS EMPREENDIMENTOS'!#REF!-'DADOS DOS EMPREENDIMENTOS'!#REF!)+'DADOS DOS EMPREENDIMENTOS'!#REF!,IF(BM51='DADOS DOS EMPREENDIMENTOS'!BO$12,'DADOS DOS EMPREENDIMENTOS'!#REF!,BO51*(1-'DADOS DOS EMPREENDIMENTOS'!#REF!-'DADOS DOS EMPREENDIMENTOS'!#REF!)))) ->  | BR51: 5 | BS51: 2009-10-01 | BT51: 0 | BU51: =IF(BR51<'DADOS DOS EMPREENDIMENTOS'!BT$11,0,IF(BR51='DADOS DOS EMPREENDIMENTOS'!BT$11,SUM(BT$46:BT51)*(1-'DADOS DOS EMPREENDIMENTOS'!#REF!-'DADOS DOS EMPREENDIMENTOS'!#REF!)+'DADOS DOS EMPREENDIMENTOS'!#REF!,IF(BR51='DADOS DOS EMPREENDIMENTOS'!BT$12,'DADOS DOS EMPREENDIMENTOS'!#REF!,BT51*(1-'DADOS DOS EMPREENDIMENTOS'!#REF!-'DADOS DOS EMPREENDIMENTOS'!#REF!)))) ->  | BW51: 5 | BX51: 2009-10-01 | BY51: 0 | BZ51: =IF(BW51<'DADOS DOS EMPREENDIMENTOS'!BY$11,0,IF(BW51='DADOS DOS EMPREENDIMENTOS'!BY$11,SUM(BY$46:BY51)*(1-'DADOS DOS EMPREENDIMENTOS'!#REF!-'DADOS DOS EMPREENDIMENTOS'!#REF!)+'DADOS DOS EMPREENDIMENTOS'!#REF!,IF(BW51='DADOS DOS EMPREENDIMENTOS'!BY$12,'DADOS DOS EMPREENDIMENTOS'!#REF!,BY51*(1-'DADOS DOS EMPREENDIMENTOS'!#REF!-'DADOS DOS EMPREENDIMENTOS'!#REF!)))) ->  | CB51: 5 | CC51: 2009-10-01 | CD51: 0 | CE51: =IF(CB51<'DADOS DOS EMPREENDIMENTOS'!CD$11,0,IF(CB51='DADOS DOS EMPREENDIMENTOS'!CD$11,SUM(CD$46:CD51)*(1-'DADOS DOS EMPREENDIMENTOS'!#REF!-'DADOS DOS EMPREENDIMENTOS'!#REF!)+'DADOS DOS EMPREENDIMENTOS'!#REF!,IF(CB51='DADOS DOS EMPREENDIMENTOS'!CD$12,'DADOS DOS EMPREENDIMENTOS'!#REF!,CD51*(1-'DADOS DOS EMPREENDIMENTOS'!#REF!-'DADOS DOS EMPREENDIMENTOS'!#REF!)))) -> 
O52: 6 | T52: 6 | Y52: 6 | AD52: 6 | AE52: 2009-11-01 | AF52: 0 | AG52: =IF(AD52<'DADOS DOS EMPREENDIMENTOS'!AF$11,0,IF(AD52='DADOS DOS EMPREENDIMENTOS'!AF$11,SUM(AF$46:AF52)*(1-'DADOS DOS EMPREENDIMENTOS'!#REF!-'DADOS DOS EMPREENDIMENTOS'!#REF!)+'DADOS DOS EMPREENDIMENTOS'!#REF!,IF(AD52='DADOS DOS EMPREENDIMENTOS'!#REF!,'DADOS DOS EMPREENDIMENTOS'!#REF!,AF52*(1-'DADOS DOS EMPREENDIMENTOS'!#REF!-'DADOS DOS EMPREENDIMENTOS'!#REF!)))) ->  | AI52: 6 | AJ52: 2009-11-01 | AK52: 0 | AL52: =IF(AI52<'DADOS DOS EMPREENDIMENTOS'!AK$11,0,IF(AI52='DADOS DOS EMPREENDIMENTOS'!AK$11,SUM(AK$46:AK52)*(1-'DADOS DOS EMPREENDIMENTOS'!#REF!-'DADOS DOS EMPREENDIMENTOS'!#REF!)+'DADOS DOS EMPREENDIMENTOS'!#REF!,IF(AI52='DADOS DOS EMPREENDIMENTOS'!#REF!,'DADOS DOS EMPREENDIMENTOS'!#REF!,AK52*(1-'DADOS DOS EMPREENDIMENTOS'!#REF!-'DADOS DOS EMPREENDIMENTOS'!#REF!)))) ->  | AN52: 6 | AO52: 2009-11-01 | AP52: 0 | AQ52: =IF(AN52<'DADOS DOS EMPREENDIMENTOS'!AP$11,0,IF(AN52='DADOS DOS EMPREENDIMENTOS'!AP$11,SUM(AP$46:AP52)*(1-'DADOS DOS EMPREENDIMENTOS'!#REF!-'DADOS DOS EMPREENDIMENTOS'!#REF!)+'DADOS DOS EMPREENDIMENTOS'!#REF!,IF(AN52='DADOS DOS EMPREENDIMENTOS'!#REF!,'DADOS DOS EMPREENDIMENTOS'!#REF!,AP52*(1-'DADOS DOS EMPREENDIMENTOS'!#REF!-'DADOS DOS EMPREENDIMENTOS'!#REF!)))) ->  | AS52: 6 | AT52: 2009-11-01 | AU52: 0 | AV52: =IF(AS52<'DADOS DOS EMPREENDIMENTOS'!AU$11,0,IF(AS52='DADOS DOS EMPREENDIMENTOS'!AU$11,SUM(AU$46:AU52)*(1-'DADOS DOS EMPREENDIMENTOS'!#REF!-'DADOS DOS EMPREENDIMENTOS'!#REF!)+'DADOS DOS EMPREENDIMENTOS'!#REF!,IF(AS52='DADOS DOS EMPREENDIMENTOS'!#REF!,'DADOS DOS EMPREENDIMENTOS'!#REF!,AU52*(1-'DADOS DOS EMPREENDIMENTOS'!#REF!-'DADOS DOS EMPREENDIMENTOS'!#REF!)))) ->  | AX52: 6 | AY52: 2009-11-01 | AZ52: 0 | BA52: =IF(AX52<'DADOS DOS EMPREENDIMENTOS'!AZ$11,0,IF(AX52='DADOS DOS EMPREENDIMENTOS'!AZ$11,SUM(AZ$46:AZ52)*(1-'DADOS DOS EMPREENDIMENTOS'!#REF!-'DADOS DOS EMPREENDIMENTOS'!#REF!)+'DADOS DOS EMPREENDIMENTOS'!#REF!,IF(AX52='DADOS DOS EMPREENDIMENTOS'!#REF!,'DADOS DOS EMPREENDIMENTOS'!#REF!,AZ52*(1-'DADOS DOS EMPREENDIMENTOS'!#REF!-'DADOS DOS EMPREENDIMENTOS'!#REF!)))) ->  | BC52: 6 | BD52: 2009-11-01 | BE52: 0 | BF52: =IF(BC52<'DADOS DOS EMPREENDIMENTOS'!BE$11,0,IF(BC52='DADOS DOS EMPREENDIMENTOS'!BE$11,SUM(BE$46:BE52)*(1-'DADOS DOS EMPREENDIMENTOS'!#REF!-'DADOS DOS EMPREENDIMENTOS'!#REF!)+'DADOS DOS EMPREENDIMENTOS'!#REF!,IF(BC52='DADOS DOS EMPREENDIMENTOS'!#REF!,'DADOS DOS EMPREENDIMENTOS'!#REF!,BE52*(1-'DADOS DOS EMPREENDIMENTOS'!#REF!-'DADOS DOS EMPREENDIMENTOS'!#REF!)))) ->  | BH52: 6 | BI52: 2009-11-01 | BJ52: 0 | BK52: =IF(BH52<'DADOS DOS EMPREENDIMENTOS'!BJ$11,0,IF(BH52='DADOS DOS EMPREENDIMENTOS'!BJ$11,SUM(BJ$46:BJ52)*(1-'DADOS DOS EMPREENDIMENTOS'!#REF!-'DADOS DOS EMPREENDIMENTOS'!#REF!)+'DADOS DOS EMPREENDIMENTOS'!#REF!,IF(BH52='DADOS DOS EMPREENDIMENTOS'!#REF!,'DADOS DOS EMPREENDIMENTOS'!#REF!,BJ52*(1-'DADOS DOS EMPREENDIMENTOS'!#REF!-'DADOS DOS EMPREENDIMENTOS'!#REF!)))) ->  | BM52: 6 | BN52: 2009-11-01 | BO52: 0 | BP52: =IF(BM52<'DADOS DOS EMPREENDIMENTOS'!BO$11,0,IF(BM52='DADOS DOS EMPREENDIMENTOS'!BO$11,SUM(BO$46:BO52)*(1-'DADOS DOS EMPREENDIMENTOS'!#REF!-'DADOS DOS EMPREENDIMENTOS'!#REF!)+'DADOS DOS EMPREENDIMENTOS'!#REF!,IF(BM52='DADOS DOS EMPREENDIMENTOS'!BO$12,'DADOS DOS EMPREENDIMENTOS'!#REF!,BO52*(1-'DADOS DOS EMPREENDIMENTOS'!#REF!-'DADOS DOS EMPREENDIMENTOS'!#REF!)))) ->  | BR52: 6 | BS52: 2009-11-01 | BT52: 0 | BU52: =IF(BR52<'DADOS DOS EMPREENDIMENTOS'!BT$11,0,IF(BR52='DADOS DOS EMPREENDIMENTOS'!BT$11,SUM(BT$46:BT52)*(1-'DADOS DOS EMPREENDIMENTOS'!#REF!-'DADOS DOS EMPREENDIMENTOS'!#REF!)+'DADOS DOS EMPREENDIMENTOS'!#REF!,IF(BR52='DADOS DOS EMPREENDIMENTOS'!BT$12,'DADOS DOS EMPREENDIMENTOS'!#REF!,BT52*(1-'DADOS DOS EMPREENDIMENTOS'!#REF!-'DADOS DOS EMPREENDIMENTOS'!#REF!)))) ->  | BW52: 6 | BX52: 2009-11-01 | BY52: 0 | BZ52: =IF(BW52<'DADOS DOS EMPREENDIMENTOS'!BY$11,0,IF(BW52='DADOS DOS EMPREENDIMENTOS'!BY$11,SUM(BY$46:BY52)*(1-'DADOS DOS EMPREENDIMENTOS'!#REF!-'DADOS DOS EMPREENDIMENTOS'!#REF!)+'DADOS DOS EMPREENDIMENTOS'!#REF!,IF(BW52='DADOS DOS EMPREENDIMENTOS'!BY$12,'DADOS DOS EMPREENDIMENTOS'!#REF!,BY52*(1-'DADOS DOS EMPREENDIMENTOS'!#REF!-'DADOS DOS EMPREENDIMENTOS'!#REF!)))) ->  | CB52: 6 | CC52: 2009-11-01 | CD52: 0 | CE52: =IF(CB52<'DADOS DOS EMPREENDIMENTOS'!CD$11,0,IF(CB52='DADOS DOS EMPREENDIMENTOS'!CD$11,SUM(CD$46:CD52)*(1-'DADOS DOS EMPREENDIMENTOS'!#REF!-'DADOS DOS EMPREENDIMENTOS'!#REF!)+'DADOS DOS EMPREENDIMENTOS'!#REF!,IF(CB52='DADOS DOS EMPREENDIMENTOS'!CD$12,'DADOS DOS EMPREENDIMENTOS'!#REF!,CD52*(1-'DADOS DOS EMPREENDIMENTOS'!#REF!-'DADOS DOS EMPREENDIMENTOS'!#REF!)))) -> 
O53: 7 | T53: 7 | Y53: 7 | AD53: 7 | AE53: 2009-12-01 | AF53: 0.01570000041 | AG53: =IF(AD53<'DADOS DOS EMPREENDIMENTOS'!AF$11,0,IF(AD53='DADOS DOS EMPREENDIMENTOS'!AF$11,SUM(AF$46:AF53)*(1-'DADOS DOS EMPREENDIMENTOS'!#REF!-'DADOS DOS EMPREENDIMENTOS'!#REF!)+'DADOS DOS EMPREENDIMENTOS'!#REF!,IF(AD53='DADOS DOS EMPREENDIMENTOS'!#REF!,'DADOS DOS EMPREENDIMENTOS'!#REF!,AF53*(1-'DADOS DOS EMPREENDIMENTOS'!#REF!-'DADOS DOS EMPREENDIMENTOS'!#REF!)))) ->  | AI53: 7 | AJ53: 2009-12-01 | AK53: 0.01570000041 | AL53: =IF(AI53<'DADOS DOS EMPREENDIMENTOS'!AK$11,0,IF(AI53='DADOS DOS EMPREENDIMENTOS'!AK$11,SUM(AK$46:AK53)*(1-'DADOS DOS EMPREENDIMENTOS'!#REF!-'DADOS DOS EMPREENDIMENTOS'!#REF!)+'DADOS DOS EMPREENDIMENTOS'!#REF!,IF(AI53='DADOS DOS EMPREENDIMENTOS'!#REF!,'DADOS DOS EMPREENDIMENTOS'!#REF!,AK53*(1-'DADOS DOS EMPREENDIMENTOS'!#REF!-'DADOS DOS EMPREENDIMENTOS'!#REF!)))) ->  | AN53: 7 | AO53: 2009-12-01 | AP53: 0.01570000041 | AQ53: =IF(AN53<'DADOS DOS EMPREENDIMENTOS'!AP$11,0,IF(AN53='DADOS DOS EMPREENDIMENTOS'!AP$11,SUM(AP$46:AP53)*(1-'DADOS DOS EMPREENDIMENTOS'!#REF!-'DADOS DOS EMPREENDIMENTOS'!#REF!)+'DADOS DOS EMPREENDIMENTOS'!#REF!,IF(AN53='DADOS DOS EMPREENDIMENTOS'!#REF!,'DADOS DOS EMPREENDIMENTOS'!#REF!,AP53*(1-'DADOS DOS EMPREENDIMENTOS'!#REF!-'DADOS DOS EMPREENDIMENTOS'!#REF!)))) ->  | AS53: 7 | AT53: 2009-12-01 | AU53: 0.01570000041 | AV53: =IF(AS53<'DADOS DOS EMPREENDIMENTOS'!AU$11,0,IF(AS53='DADOS DOS EMPREENDIMENTOS'!AU$11,SUM(AU$46:AU53)*(1-'DADOS DOS EMPREENDIMENTOS'!#REF!-'DADOS DOS EMPREENDIMENTOS'!#REF!)+'DADOS DOS EMPREENDIMENTOS'!#REF!,IF(AS53='DADOS DOS EMPREENDIMENTOS'!#REF!,'DADOS DOS EMPREENDIMENTOS'!#REF!,AU53*(1-'DADOS DOS EMPREENDIMENTOS'!#REF!-'DADOS DOS EMPREENDIMENTOS'!#REF!)))) ->  | AX53: 7 | AY53: 2009-12-01 | AZ53: 0.01570000041 | BA53: =IF(AX53<'DADOS DOS EMPREENDIMENTOS'!AZ$11,0,IF(AX53='DADOS DOS EMPREENDIMENTOS'!AZ$11,SUM(AZ$46:AZ53)*(1-'DADOS DOS EMPREENDIMENTOS'!#REF!-'DADOS DOS EMPREENDIMENTOS'!#REF!)+'DADOS DOS EMPREENDIMENTOS'!#REF!,IF(AX53='DADOS DOS EMPREENDIMENTOS'!#REF!,'DADOS DOS EMPREENDIMENTOS'!#REF!,AZ53*(1-'DADOS DOS EMPREENDIMENTOS'!#REF!-'DADOS DOS EMPREENDIMENTOS'!#REF!)))) ->  | BC53: 7 | BD53: 2009-12-01 | BE53: 0.01570000041 | BF53: =IF(BC53<'DADOS DOS EMPREENDIMENTOS'!BE$11,0,IF(BC53='DADOS DOS EMPREENDIMENTOS'!BE$11,SUM(BE$46:BE53)*(1-'DADOS DOS EMPREENDIMENTOS'!#REF!-'DADOS DOS EMPREENDIMENTOS'!#REF!)+'DADOS DOS EMPREENDIMENTOS'!#REF!,IF(BC53='DADOS DOS EMPREENDIMENTOS'!#REF!,'DADOS DOS EMPREENDIMENTOS'!#REF!,BE53*(1-'DADOS DOS EMPREENDIMENTOS'!#REF!-'DADOS DOS EMPREENDIMENTOS'!#REF!)))) ->  | BH53: 7 | BI53: 2009-12-01 | BJ53: 0.01570000041 | BK53: =IF(BH53<'DADOS DOS EMPREENDIMENTOS'!BJ$11,0,IF(BH53='DADOS DOS EMPREENDIMENTOS'!BJ$11,SUM(BJ$46:BJ53)*(1-'DADOS DOS EMPREENDIMENTOS'!#REF!-'DADOS DOS EMPREENDIMENTOS'!#REF!)+'DADOS DOS EMPREENDIMENTOS'!#REF!,IF(BH53='DADOS DOS EMPREENDIMENTOS'!#REF!,'DADOS DOS EMPREENDIMENTOS'!#REF!,BJ53*(1-'DADOS DOS EMPREENDIMENTOS'!#REF!-'DADOS DOS EMPREENDIMENTOS'!#REF!)))) ->  | BM53: 7 | BN53: 2009-12-01 | BO53: 0.01570000041 | BP53: =IF(BM53<'DADOS DOS EMPREENDIMENTOS'!BO$11,0,IF(BM53='DADOS DOS EMPREENDIMENTOS'!BO$11,SUM(BO$46:BO53)*(1-'DADOS DOS EMPREENDIMENTOS'!#REF!-'DADOS DOS EMPREENDIMENTOS'!#REF!)+'DADOS DOS EMPREENDIMENTOS'!#REF!,IF(BM53='DADOS DOS EMPREENDIMENTOS'!BO$12,'DADOS DOS EMPREENDIMENTOS'!#REF!,BO53*(1-'DADOS DOS EMPREENDIMENTOS'!#REF!-'DADOS DOS EMPREENDIMENTOS'!#REF!)))) ->  | BR53: 7 | BS53: 2009-12-01 | BT53: 0.01570000041 | BU53: =IF(BR53<'DADOS DOS EMPREENDIMENTOS'!BT$11,0,IF(BR53='DADOS DOS EMPREENDIMENTOS'!BT$11,SUM(BT$46:BT53)*(1-'DADOS DOS EMPREENDIMENTOS'!#REF!-'DADOS DOS EMPREENDIMENTOS'!#REF!)+'DADOS DOS EMPREENDIMENTOS'!#REF!,IF(BR53='DADOS DOS EMPREENDIMENTOS'!BT$12,'DADOS DOS EMPREENDIMENTOS'!#REF!,BT53*(1-'DADOS DOS EMPREENDIMENTOS'!#REF!-'DADOS DOS EMPREENDIMENTOS'!#REF!)))) ->  | BW53: 7 | BX53: 2009-12-01 | BY53: 0.01570000041 | BZ53: =IF(BW53<'DADOS DOS EMPREENDIMENTOS'!BY$11,0,IF(BW53='DADOS DOS EMPREENDIMENTOS'!BY$11,SUM(BY$46:BY53)*(1-'DADOS DOS EMPREENDIMENTOS'!#REF!-'DADOS DOS EMPREENDIMENTOS'!#REF!)+'DADOS DOS EMPREENDIMENTOS'!#REF!,IF(BW53='DADOS DOS EMPREENDIMENTOS'!BY$12,'DADOS DOS EMPREENDIMENTOS'!#REF!,BY53*(1-'DADOS DOS EMPREENDIMENTOS'!#REF!-'DADOS DOS EMPREENDIMENTOS'!#REF!)))) ->  | CB53: 7 | CC53: 2009-12-01 | CD53: 0.01570000041 | CE53: =IF(CB53<'DADOS DOS EMPREENDIMENTOS'!CD$11,0,IF(CB53='DADOS DOS EMPREENDIMENTOS'!CD$11,SUM(CD$46:CD53)*(1-'DADOS DOS EMPREENDIMENTOS'!#REF!-'DADOS DOS EMPREENDIMENTOS'!#REF!)+'DADOS DOS EMPREENDIMENTOS'!#REF!,IF(CB53='DADOS DOS EMPREENDIMENTOS'!CD$12,'DADOS DOS EMPREENDIMENTOS'!#REF!,CD53*(1-'DADOS DOS EMPREENDIMENTOS'!#REF!-'DADOS DOS EMPREENDIMENTOS'!#REF!)))) -> 
O54: 8 | T54: 8 | Y54: 8 | AD54: 8 | AE54: 2010-01-01 | AF54: 0.04609999974 | AG54: =IF(AD54<'DADOS DOS EMPREENDIMENTOS'!AF$11,0,IF(AD54='DADOS DOS EMPREENDIMENTOS'!AF$11,SUM(AF$46:AF54)*(1-'DADOS DOS EMPREENDIMENTOS'!#REF!-'DADOS DOS EMPREENDIMENTOS'!#REF!)+'DADOS DOS EMPREENDIMENTOS'!#REF!,IF(AD54='DADOS DOS EMPREENDIMENTOS'!#REF!,'DADOS DOS EMPREENDIMENTOS'!#REF!,AF54*(1-'DADOS DOS EMPREENDIMENTOS'!#REF!-'DADOS DOS EMPREENDIMENTOS'!#REF!)))) ->  | AI54: 8 | AJ54: 2010-01-01 | AK54: 0.04609999974 | AL54: =IF(AI54<'DADOS DOS EMPREENDIMENTOS'!AK$11,0,IF(AI54='DADOS DOS EMPREENDIMENTOS'!AK$11,SUM(AK$46:AK54)*(1-'DADOS DOS EMPREENDIMENTOS'!#REF!-'DADOS DOS EMPREENDIMENTOS'!#REF!)+'DADOS DOS EMPREENDIMENTOS'!#REF!,IF(AI54='DADOS DOS EMPREENDIMENTOS'!#REF!,'DADOS DOS EMPREENDIMENTOS'!#REF!,AK54*(1-'DADOS DOS EMPREENDIMENTOS'!#REF!-'DADOS DOS EMPREENDIMENTOS'!#REF!)))) ->  | AN54: 8 | AO54: 2010-01-01 | AP54: 0.04609999974 | AQ54: =IF(AN54<'DADOS DOS EMPREENDIMENTOS'!AP$11,0,IF(AN54='DADOS DOS EMPREENDIMENTOS'!AP$11,SUM(AP$46:AP54)*(1-'DADOS DOS EMPREENDIMENTOS'!#REF!-'DADOS DOS EMPREENDIMENTOS'!#REF!)+'DADOS DOS EMPREENDIMENTOS'!#REF!,IF(AN54='DADOS DOS EMPREENDIMENTOS'!#REF!,'DADOS DOS EMPREENDIMENTOS'!#REF!,AP54*(1-'DADOS DOS EMPREENDIMENTOS'!#REF!-'DADOS DOS EMPREENDIMENTOS'!#REF!)))) ->  | AS54: 8 | AT54: 2010-01-01 | AU54: 0.04609999974 | AV54: =IF(AS54<'DADOS DOS EMPREENDIMENTOS'!AU$11,0,IF(AS54='DADOS DOS EMPREENDIMENTOS'!AU$11,SUM(AU$46:AU54)*(1-'DADOS DOS EMPREENDIMENTOS'!#REF!-'DADOS DOS EMPREENDIMENTOS'!#REF!)+'DADOS DOS EMPREENDIMENTOS'!#REF!,IF(AS54='DADOS DOS EMPREENDIMENTOS'!#REF!,'DADOS DOS EMPREENDIMENTOS'!#REF!,AU54*(1-'DADOS DOS EMPREENDIMENTOS'!#REF!-'DADOS DOS EMPREENDIMENTOS'!#REF!)))) ->  | AX54: 8 | AY54: 2010-01-01 | AZ54: 0.04609999974 | BA54: =IF(AX54<'DADOS DOS EMPREENDIMENTOS'!AZ$11,0,IF(AX54='DADOS DOS EMPREENDIMENTOS'!AZ$11,SUM(AZ$46:AZ54)*(1-'DADOS DOS EMPREENDIMENTOS'!#REF!-'DADOS DOS EMPREENDIMENTOS'!#REF!)+'DADOS DOS EMPREENDIMENTOS'!#REF!,IF(AX54='DADOS DOS EMPREENDIMENTOS'!#REF!,'DADOS DOS EMPREENDIMENTOS'!#REF!,AZ54*(1-'DADOS DOS EMPREENDIMENTOS'!#REF!-'DADOS DOS EMPREENDIMENTOS'!#REF!)))) ->  | BC54: 8 | BD54: 2010-01-01 | BE54: 0.04609999974 | BF54: =IF(BC54<'DADOS DOS EMPREENDIMENTOS'!BE$11,0,IF(BC54='DADOS DOS EMPREENDIMENTOS'!BE$11,SUM(BE$46:BE54)*(1-'DADOS DOS EMPREENDIMENTOS'!#REF!-'DADOS DOS EMPREENDIMENTOS'!#REF!)+'DADOS DOS EMPREENDIMENTOS'!#REF!,IF(BC54='DADOS DOS EMPREENDIMENTOS'!#REF!,'DADOS DOS EMPREENDIMENTOS'!#REF!,BE54*(1-'DADOS DOS EMPREENDIMENTOS'!#REF!-'DADOS DOS EMPREENDIMENTOS'!#REF!)))) ->  | BH54: 8 | BI54: 2010-01-01 | BJ54: 0.04609999974 | BK54: =IF(BH54<'DADOS DOS EMPREENDIMENTOS'!BJ$11,0,IF(BH54='DADOS DOS EMPREENDIMENTOS'!BJ$11,SUM(BJ$46:BJ54)*(1-'DADOS DOS EMPREENDIMENTOS'!#REF!-'DADOS DOS EMPREENDIMENTOS'!#REF!)+'DADOS DOS EMPREENDIMENTOS'!#REF!,IF(BH54='DADOS DOS EMPREENDIMENTOS'!#REF!,'DADOS DOS EMPREENDIMENTOS'!#REF!,BJ54*(1-'DADOS DOS EMPREENDIMENTOS'!#REF!-'DADOS DOS EMPREENDIMENTOS'!#REF!)))) ->  | BM54: 8 | BN54: 2010-01-01 | BO54: 0.04609999974 | BP54: =IF(BM54<'DADOS DOS EMPREENDIMENTOS'!BO$11,0,IF(BM54='DADOS DOS EMPREENDIMENTOS'!BO$11,SUM(BO$46:BO54)*(1-'DADOS DOS EMPREENDIMENTOS'!#REF!-'DADOS DOS EMPREENDIMENTOS'!#REF!)+'DADOS DOS EMPREENDIMENTOS'!#REF!,IF(BM54='DADOS DOS EMPREENDIMENTOS'!BO$12,'DADOS DOS EMPREENDIMENTOS'!#REF!,BO54*(1-'DADOS DOS EMPREENDIMENTOS'!#REF!-'DADOS DOS EMPREENDIMENTOS'!#REF!)))) ->  | BR54: 8 | BS54: 2010-01-01 | BT54: 0.04609999974 | BU54: =IF(BR54<'DADOS DOS EMPREENDIMENTOS'!BT$11,0,IF(BR54='DADOS DOS EMPREENDIMENTOS'!BT$11,SUM(BT$46:BT54)*(1-'DADOS DOS EMPREENDIMENTOS'!#REF!-'DADOS DOS EMPREENDIMENTOS'!#REF!)+'DADOS DOS EMPREENDIMENTOS'!#REF!,IF(BR54='DADOS DOS EMPREENDIMENTOS'!BT$12,'DADOS DOS EMPREENDIMENTOS'!#REF!,BT54*(1-'DADOS DOS EMPREENDIMENTOS'!#REF!-'DADOS DOS EMPREENDIMENTOS'!#REF!)))) ->  | BW54: 8 | BX54: 2010-01-01 | BY54: 0.04609999974 | BZ54: =IF(BW54<'DADOS DOS EMPREENDIMENTOS'!BY$11,0,IF(BW54='DADOS DOS EMPREENDIMENTOS'!BY$11,SUM(BY$46:BY54)*(1-'DADOS DOS EMPREENDIMENTOS'!#REF!-'DADOS DOS EMPREENDIMENTOS'!#REF!)+'DADOS DOS EMPREENDIMENTOS'!#REF!,IF(BW54='DADOS DOS EMPREENDIMENTOS'!BY$12,'DADOS DOS EMPREENDIMENTOS'!#REF!,BY54*(1-'DADOS DOS EMPREENDIMENTOS'!#REF!-'DADOS DOS EMPREENDIMENTOS'!#REF!)))) ->  | CB54: 8 | CC54: 2010-01-01 | CD54: 0.04609999974 | CE54: =IF(CB54<'DADOS DOS EMPREENDIMENTOS'!CD$11,0,IF(CB54='DADOS DOS EMPREENDIMENTOS'!CD$11,SUM(CD$46:CD54)*(1-'DADOS DOS EMPREENDIMENTOS'!#REF!-'DADOS DOS EMPREENDIMENTOS'!#REF!)+'DADOS DOS EMPREENDIMENTOS'!#REF!,IF(CB54='DADOS DOS EMPREENDIMENTOS'!CD$12,'DADOS DOS EMPREENDIMENTOS'!#REF!,CD54*(1-'DADOS DOS EMPREENDIMENTOS'!#REF!-'DADOS DOS EMPREENDIMENTOS'!#REF!)))) -> 
O55: 9 | T55: 9 | Y55: 9 | AD55: 9 | AE55: 2010-02-01 | AF55: 0.04570000021 | AG55: =IF(AD55<'DADOS DOS EMPREENDIMENTOS'!AF$11,0,IF(AD55='DADOS DOS EMPREENDIMENTOS'!AF$11,SUM(AF$46:AF55)*(1-'DADOS DOS EMPREENDIMENTOS'!#REF!-'DADOS DOS EMPREENDIMENTOS'!#REF!)+'DADOS DOS EMPREENDIMENTOS'!#REF!,IF(AD55='DADOS DOS EMPREENDIMENTOS'!#REF!,'DADOS DOS EMPREENDIMENTOS'!#REF!,AF55*(1-'DADOS DOS EMPREENDIMENTOS'!#REF!-'DADOS DOS EMPREENDIMENTOS'!#REF!)))) ->  | AI55: 9 | AJ55: 2010-02-01 | AK55: 0.04570000021 | AL55: =IF(AI55<'DADOS DOS EMPREENDIMENTOS'!AK$11,0,IF(AI55='DADOS DOS EMPREENDIMENTOS'!AK$11,SUM(AK$46:AK55)*(1-'DADOS DOS EMPREENDIMENTOS'!#REF!-'DADOS DOS EMPREENDIMENTOS'!#REF!)+'DADOS DOS EMPREENDIMENTOS'!#REF!,IF(AI55='DADOS DOS EMPREENDIMENTOS'!#REF!,'DADOS DOS EMPREENDIMENTOS'!#REF!,AK55*(1-'DADOS DOS EMPREENDIMENTOS'!#REF!-'DADOS DOS EMPREENDIMENTOS'!#REF!)))) ->  | AN55: 9 | AO55: 2010-02-01 | AP55: 0.04570000021 | AQ55: =IF(AN55<'DADOS DOS EMPREENDIMENTOS'!AP$11,0,IF(AN55='DADOS DOS EMPREENDIMENTOS'!AP$11,SUM(AP$46:AP55)*(1-'DADOS DOS EMPREENDIMENTOS'!#REF!-'DADOS DOS EMPREENDIMENTOS'!#REF!)+'DADOS DOS EMPREENDIMENTOS'!#REF!,IF(AN55='DADOS DOS EMPREENDIMENTOS'!#REF!,'DADOS DOS EMPREENDIMENTOS'!#REF!,AP55*(1-'DADOS DOS EMPREENDIMENTOS'!#REF!-'DADOS DOS EMPREENDIMENTOS'!#REF!)))) ->  | AS55: 9 | AT55: 2010-02-01 | AU55: 0.04570000021 | AV55: =IF(AS55<'DADOS DOS EMPREENDIMENTOS'!AU$11,0,IF(AS55='DADOS DOS EMPREENDIMENTOS'!AU$11,SUM(AU$46:AU55)*(1-'DADOS DOS EMPREENDIMENTOS'!#REF!-'DADOS DOS EMPREENDIMENTOS'!#REF!)+'DADOS DOS EMPREENDIMENTOS'!#REF!,IF(AS55='DADOS DOS EMPREENDIMENTOS'!#REF!,'DADOS DOS EMPREENDIMENTOS'!#REF!,AU55*(1-'DADOS DOS EMPREENDIMENTOS'!#REF!-'DADOS DOS EMPREENDIMENTOS'!#REF!)))) ->  | AX55: 9 | AY55: 2010-02-01 | AZ55: 0.04570000021 | BA55: =IF(AX55<'DADOS DOS EMPREENDIMENTOS'!AZ$11,0,IF(AX55='DADOS DOS EMPREENDIMENTOS'!AZ$11,SUM(AZ$46:AZ55)*(1-'DADOS DOS EMPREENDIMENTOS'!#REF!-'DADOS DOS EMPREENDIMENTOS'!#REF!)+'DADOS DOS EMPREENDIMENTOS'!#REF!,IF(AX55='DADOS DOS EMPREENDIMENTOS'!#REF!,'DADOS DOS EMPREENDIMENTOS'!#REF!,AZ55*(1-'DADOS DOS EMPREENDIMENTOS'!#REF!-'DADOS DOS EMPREENDIMENTOS'!#REF!)))) ->  | BC55: 9 | BD55: 2010-02-01 | BE55: 0.04570000021 | BF55: =IF(BC55<'DADOS DOS EMPREENDIMENTOS'!BE$11,0,IF(BC55='DADOS DOS EMPREENDIMENTOS'!BE$11,SUM(BE$46:BE55)*(1-'DADOS DOS EMPREENDIMENTOS'!#REF!-'DADOS DOS EMPREENDIMENTOS'!#REF!)+'DADOS DOS EMPREENDIMENTOS'!#REF!,IF(BC55='DADOS DOS EMPREENDIMENTOS'!#REF!,'DADOS DOS EMPREENDIMENTOS'!#REF!,BE55*(1-'DADOS DOS EMPREENDIMENTOS'!#REF!-'DADOS DOS EMPREENDIMENTOS'!#REF!)))) ->  | BH55: 9 | BI55: 2010-02-01 | BJ55: 0.04570000021 | BK55: =IF(BH55<'DADOS DOS EMPREENDIMENTOS'!BJ$11,0,IF(BH55='DADOS DOS EMPREENDIMENTOS'!BJ$11,SUM(BJ$46:BJ55)*(1-'DADOS DOS EMPREENDIMENTOS'!#REF!-'DADOS DOS EMPREENDIMENTOS'!#REF!)+'DADOS DOS EMPREENDIMENTOS'!#REF!,IF(BH55='DADOS DOS EMPREENDIMENTOS'!#REF!,'DADOS DOS EMPREENDIMENTOS'!#REF!,BJ55*(1-'DADOS DOS EMPREENDIMENTOS'!#REF!-'DADOS DOS EMPREENDIMENTOS'!#REF!)))) ->  | BM55: 9 | BN55: 2010-02-01 | BO55: 0.04570000021 | BP55: =IF(BM55<'DADOS DOS EMPREENDIMENTOS'!BO$11,0,IF(BM55='DADOS DOS EMPREENDIMENTOS'!BO$11,SUM(BO$46:BO55)*(1-'DADOS DOS EMPREENDIMENTOS'!#REF!-'DADOS DOS EMPREENDIMENTOS'!#REF!)+'DADOS DOS EMPREENDIMENTOS'!#REF!,IF(BM55='DADOS DOS EMPREENDIMENTOS'!BO$12,'DADOS DOS EMPREENDIMENTOS'!#REF!,BO55*(1-'DADOS DOS EMPREENDIMENTOS'!#REF!-'DADOS DOS EMPREENDIMENTOS'!#REF!)))) ->  | BR55: 9 | BS55: 2010-02-01 | BT55: 0.04570000021 | BU55: =IF(BR55<'DADOS DOS EMPREENDIMENTOS'!BT$11,0,IF(BR55='DADOS DOS EMPREENDIMENTOS'!BT$11,SUM(BT$46:BT55)*(1-'DADOS DOS EMPREENDIMENTOS'!#REF!-'DADOS DOS EMPREENDIMENTOS'!#REF!)+'DADOS DOS EMPREENDIMENTOS'!#REF!,IF(BR55='DADOS DOS EMPREENDIMENTOS'!BT$12,'DADOS DOS EMPREENDIMENTOS'!#REF!,BT55*(1-'DADOS DOS EMPREENDIMENTOS'!#REF!-'DADOS DOS EMPREENDIMENTOS'!#REF!)))) ->  | BW55: 9 | BX55: 2010-02-01 | BY55: 0.04570000021 | BZ55: =IF(BW55<'DADOS DOS EMPREENDIMENTOS'!BY$11,0,IF(BW55='DADOS DOS EMPREENDIMENTOS'!BY$11,SUM(BY$46:BY55)*(1-'DADOS DOS EMPREENDIMENTOS'!#REF!-'DADOS DOS EMPREENDIMENTOS'!#REF!)+'DADOS DOS EMPREENDIMENTOS'!#REF!,IF(BW55='DADOS DOS EMPREENDIMENTOS'!BY$12,'DADOS DOS EMPREENDIMENTOS'!#REF!,BY55*(1-'DADOS DOS EMPREENDIMENTOS'!#REF!-'DADOS DOS EMPREENDIMENTOS'!#REF!)))) ->  | CB55: 9 | CC55: 2010-02-01 | CD55: 0.04570000021 | CE55: =IF(CB55<'DADOS DOS EMPREENDIMENTOS'!CD$11,0,IF(CB55='DADOS DOS EMPREENDIMENTOS'!CD$11,SUM(CD$46:CD55)*(1-'DADOS DOS EMPREENDIMENTOS'!#REF!-'DADOS DOS EMPREENDIMENTOS'!#REF!)+'DADOS DOS EMPREENDIMENTOS'!#REF!,IF(CB55='DADOS DOS EMPREENDIMENTOS'!CD$12,'DADOS DOS EMPREENDIMENTOS'!#REF!,CD55*(1-'DADOS DOS EMPREENDIMENTOS'!#REF!-'DADOS DOS EMPREENDIMENTOS'!#REF!)))) -> 
O56: 10 | T56: 10 | Y56: 10 | AD56: 10 | AE56: 2010-03-01 | AF56: 0.0498999999 | AG56: =IF(AD56<'DADOS DOS EMPREENDIMENTOS'!AF$11,0,IF(AD56='DADOS DOS EMPREENDIMENTOS'!AF$11,SUM(AF$46:AF56)*(1-'DADOS DOS EMPREENDIMENTOS'!#REF!-'DADOS DOS EMPREENDIMENTOS'!#REF!)+'DADOS DOS EMPREENDIMENTOS'!#REF!,IF(AD56='DADOS DOS EMPREENDIMENTOS'!#REF!,'DADOS DOS EMPREENDIMENTOS'!#REF!,AF56*(1-'DADOS DOS EMPREENDIMENTOS'!#REF!-'DADOS DOS EMPREENDIMENTOS'!#REF!)))) ->  | AI56: 10 | AJ56: 2010-03-01 | AK56: 0.0498999999 | AL56: =IF(AI56<'DADOS DOS EMPREENDIMENTOS'!AK$11,0,IF(AI56='DADOS DOS EMPREENDIMENTOS'!AK$11,SUM(AK$46:AK56)*(1-'DADOS DOS EMPREENDIMENTOS'!#REF!-'DADOS DOS EMPREENDIMENTOS'!#REF!)+'DADOS DOS EMPREENDIMENTOS'!#REF!,IF(AI56='DADOS DOS EMPREENDIMENTOS'!#REF!,'DADOS DOS EMPREENDIMENTOS'!#REF!,AK56*(1-'DADOS DOS EMPREENDIMENTOS'!#REF!-'DADOS DOS EMPREENDIMENTOS'!#REF!)))) ->  | AN56: 10 | AO56: 2010-03-01 | AP56: 0.0498999999 | AQ56: =IF(AN56<'DADOS DOS EMPREENDIMENTOS'!AP$11,0,IF(AN56='DADOS DOS EMPREENDIMENTOS'!AP$11,SUM(AP$46:AP56)*(1-'DADOS DOS EMPREENDIMENTOS'!#REF!-'DADOS DOS EMPREENDIMENTOS'!#REF!)+'DADOS DOS EMPREENDIMENTOS'!#REF!,IF(AN56='DADOS DOS EMPREENDIMENTOS'!#REF!,'DADOS DOS EMPREENDIMENTOS'!#REF!,AP56*(1-'DADOS DOS EMPREENDIMENTOS'!#REF!-'DADOS DOS EMPREENDIMENTOS'!#REF!)))) ->  | AS56: 10 | AT56: 2010-03-01 | AU56: 0.0498999999 | AV56: =IF(AS56<'DADOS DOS EMPREENDIMENTOS'!AU$11,0,IF(AS56='DADOS DOS EMPREENDIMENTOS'!AU$11,SUM(AU$46:AU56)*(1-'DADOS DOS EMPREENDIMENTOS'!#REF!-'DADOS DOS EMPREENDIMENTOS'!#REF!)+'DADOS DOS EMPREENDIMENTOS'!#REF!,IF(AS56='DADOS DOS EMPREENDIMENTOS'!#REF!,'DADOS DOS EMPREENDIMENTOS'!#REF!,AU56*(1-'DADOS DOS EMPREENDIMENTOS'!#REF!-'DADOS DOS EMPREENDIMENTOS'!#REF!)))) ->  | AX56: 10 | AY56: 2010-03-01 | AZ56: 0.0498999999 | BA56: =IF(AX56<'DADOS DOS EMPREENDIMENTOS'!AZ$11,0,IF(AX56='DADOS DOS EMPREENDIMENTOS'!AZ$11,SUM(AZ$46:AZ56)*(1-'DADOS DOS EMPREENDIMENTOS'!#REF!-'DADOS DOS EMPREENDIMENTOS'!#REF!)+'DADOS DOS EMPREENDIMENTOS'!#REF!,IF(AX56='DADOS DOS EMPREENDIMENTOS'!#REF!,'DADOS DOS EMPREENDIMENTOS'!#REF!,AZ56*(1-'DADOS DOS EMPREENDIMENTOS'!#REF!-'DADOS DOS EMPREENDIMENTOS'!#REF!)))) ->  | BC56: 10 | BD56: 2010-03-01 | BE56: 0.0498999999 | BF56: =IF(BC56<'DADOS DOS EMPREENDIMENTOS'!BE$11,0,IF(BC56='DADOS DOS EMPREENDIMENTOS'!BE$11,SUM(BE$46:BE56)*(1-'DADOS DOS EMPREENDIMENTOS'!#REF!-'DADOS DOS EMPREENDIMENTOS'!#REF!)+'DADOS DOS EMPREENDIMENTOS'!#REF!,IF(BC56='DADOS DOS EMPREENDIMENTOS'!#REF!,'DADOS DOS EMPREENDIMENTOS'!#REF!,BE56*(1-'DADOS DOS EMPREENDIMENTOS'!#REF!-'DADOS DOS EMPREENDIMENTOS'!#REF!)))) ->  | BH56: 10 | BI56: 2010-03-01 | BJ56: 0.0498999999 | BK56: =IF(BH56<'DADOS DOS EMPREENDIMENTOS'!BJ$11,0,IF(BH56='DADOS DOS EMPREENDIMENTOS'!BJ$11,SUM(BJ$46:BJ56)*(1-'DADOS DOS EMPREENDIMENTOS'!#REF!-'DADOS DOS EMPREENDIMENTOS'!#REF!)+'DADOS DOS EMPREENDIMENTOS'!#REF!,IF(BH56='DADOS DOS EMPREENDIMENTOS'!#REF!,'DADOS DOS EMPREENDIMENTOS'!#REF!,BJ56*(1-'DADOS DOS EMPREENDIMENTOS'!#REF!-'DADOS DOS EMPREENDIMENTOS'!#REF!)))) ->  | BM56: 10 | BN56: 2010-03-01 | BO56: 0.0498999999 | BP56: =IF(BM56<'DADOS DOS EMPREENDIMENTOS'!BO$11,0,IF(BM56='DADOS DOS EMPREENDIMENTOS'!BO$11,SUM(BO$46:BO56)*(1-'DADOS DOS EMPREENDIMENTOS'!#REF!-'DADOS DOS EMPREENDIMENTOS'!#REF!)+'DADOS DOS EMPREENDIMENTOS'!#REF!,IF(BM56='DADOS DOS EMPREENDIMENTOS'!BO$12,'DADOS DOS EMPREENDIMENTOS'!#REF!,BO56*(1-'DADOS DOS EMPREENDIMENTOS'!#REF!-'DADOS DOS EMPREENDIMENTOS'!#REF!)))) ->  | BR56: 10 | BS56: 2010-03-01 | BT56: 0.0498999999 | BU56: =IF(BR56<'DADOS DOS EMPREENDIMENTOS'!BT$11,0,IF(BR56='DADOS DOS EMPREENDIMENTOS'!BT$11,SUM(BT$46:BT56)*(1-'DADOS DOS EMPREENDIMENTOS'!#REF!-'DADOS DOS EMPREENDIMENTOS'!#REF!)+'DADOS DOS EMPREENDIMENTOS'!#REF!,IF(BR56='DADOS DOS EMPREENDIMENTOS'!BT$12,'DADOS DOS EMPREENDIMENTOS'!#REF!,BT56*(1-'DADOS DOS EMPREENDIMENTOS'!#REF!-'DADOS DOS EMPREENDIMENTOS'!#REF!)))) ->  | BW56: 10 | BX56: 2010-03-01 | BY56: 0.0498999999 | BZ56: =IF(BW56<'DADOS DOS EMPREENDIMENTOS'!BY$11,0,IF(BW56='DADOS DOS EMPREENDIMENTOS'!BY$11,SUM(BY$46:BY56)*(1-'DADOS DOS EMPREENDIMENTOS'!#REF!-'DADOS DOS EMPREENDIMENTOS'!#REF!)+'DADOS DOS EMPREENDIMENTOS'!#REF!,IF(BW56='DADOS DOS EMPREENDIMENTOS'!BY$12,'DADOS DOS EMPREENDIMENTOS'!#REF!,BY56*(1-'DADOS DOS EMPREENDIMENTOS'!#REF!-'DADOS DOS EMPREENDIMENTOS'!#REF!)))) ->  | CB56: 10 | CC56: 2010-03-01 | CD56: 0.0498999999 | CE56: =IF(CB56<'DADOS DOS EMPREENDIMENTOS'!CD$11,0,IF(CB56='DADOS DOS EMPREENDIMENTOS'!CD$11,SUM(CD$46:CD56)*(1-'DADOS DOS EMPREENDIMENTOS'!#REF!-'DADOS DOS EMPREENDIMENTOS'!#REF!)+'DADOS DOS EMPREENDIMENTOS'!#REF!,IF(CB56='DADOS DOS EMPREENDIMENTOS'!CD$12,'DADOS DOS EMPREENDIMENTOS'!#REF!,CD56*(1-'DADOS DOS EMPREENDIMENTOS'!#REF!-'DADOS DOS EMPREENDIMENTOS'!#REF!)))) -> 
O57: 11 | T57: 11 | Y57: 11 | AD57: 11 | AE57: 2010-04-01 | AF57: 0.05719999996 | AG57: =IF(AD57<'DADOS DOS EMPREENDIMENTOS'!AF$11,0,IF(AD57='DADOS DOS EMPREENDIMENTOS'!AF$11,SUM(AF$46:AF57)*(1-'DADOS DOS EMPREENDIMENTOS'!#REF!-'DADOS DOS EMPREENDIMENTOS'!#REF!)+'DADOS DOS EMPREENDIMENTOS'!#REF!,IF(AD57='DADOS DOS EMPREENDIMENTOS'!#REF!,'DADOS DOS EMPREENDIMENTOS'!#REF!,AF57*(1-'DADOS DOS EMPREENDIMENTOS'!#REF!-'DADOS DOS EMPREENDIMENTOS'!#REF!)))) ->  | AI57: 11 | AJ57: 2010-04-01 | AK57: 0.05719999996 | AL57: =IF(AI57<'DADOS DOS EMPREENDIMENTOS'!AK$11,0,IF(AI57='DADOS DOS EMPREENDIMENTOS'!AK$11,SUM(AK$46:AK57)*(1-'DADOS DOS EMPREENDIMENTOS'!#REF!-'DADOS DOS EMPREENDIMENTOS'!#REF!)+'DADOS DOS EMPREENDIMENTOS'!#REF!,IF(AI57='DADOS DOS EMPREENDIMENTOS'!#REF!,'DADOS DOS EMPREENDIMENTOS'!#REF!,AK57*(1-'DADOS DOS EMPREENDIMENTOS'!#REF!-'DADOS DOS EMPREENDIMENTOS'!#REF!)))) ->  | AN57: 11 | AO57: 2010-04-01 | AP57: 0.05719999996 | AQ57: =IF(AN57<'DADOS DOS EMPREENDIMENTOS'!AP$11,0,IF(AN57='DADOS DOS EMPREENDIMENTOS'!AP$11,SUM(AP$46:AP57)*(1-'DADOS DOS EMPREENDIMENTOS'!#REF!-'DADOS DOS EMPREENDIMENTOS'!#REF!)+'DADOS DOS EMPREENDIMENTOS'!#REF!,IF(AN57='DADOS DOS EMPREENDIMENTOS'!#REF!,'DADOS DOS EMPREENDIMENTOS'!#REF!,AP57*(1-'DADOS DOS EMPREENDIMENTOS'!#REF!-'DADOS DOS EMPREENDIMENTOS'!#REF!)))) ->  | AS57: 11 | AT57: 2010-04-01 | AU57: 0.05719999996 | AV57: =IF(AS57<'DADOS DOS EMPREENDIMENTOS'!AU$11,0,IF(AS57='DADOS DOS EMPREENDIMENTOS'!AU$11,SUM(AU$46:AU57)*(1-'DADOS DOS EMPREENDIMENTOS'!#REF!-'DADOS DOS EMPREENDIMENTOS'!#REF!)+'DADOS DOS EMPREENDIMENTOS'!#REF!,IF(AS57='DADOS DOS EMPREENDIMENTOS'!#REF!,'DADOS DOS EMPREENDIMENTOS'!#REF!,AU57*(1-'DADOS DOS EMPREENDIMENTOS'!#REF!-'DADOS DOS EMPREENDIMENTOS'!#REF!)))) ->  | AX57: 11 | AY57: 2010-04-01 | AZ57: 0.05719999996 | BA57: =IF(AX57<'DADOS DOS EMPREENDIMENTOS'!AZ$11,0,IF(AX57='DADOS DOS EMPREENDIMENTOS'!AZ$11,SUM(AZ$46:AZ57)*(1-'DADOS DOS EMPREENDIMENTOS'!#REF!-'DADOS DOS EMPREENDIMENTOS'!#REF!)+'DADOS DOS EMPREENDIMENTOS'!#REF!,IF(AX57='DADOS DOS EMPREENDIMENTOS'!#REF!,'DADOS DOS EMPREENDIMENTOS'!#REF!,AZ57*(1-'DADOS DOS EMPREENDIMENTOS'!#REF!-'DADOS DOS EMPREENDIMENTOS'!#REF!)))) ->  | BC57: 11 | BD57: 2010-04-01 | BE57: 0.05719999996 | BF57: =IF(BC57<'DADOS DOS EMPREENDIMENTOS'!BE$11,0,IF(BC57='DADOS DOS EMPREENDIMENTOS'!BE$11,SUM(BE$46:BE57)*(1-'DADOS DOS EMPREENDIMENTOS'!#REF!-'DADOS DOS EMPREENDIMENTOS'!#REF!)+'DADOS DOS EMPREENDIMENTOS'!#REF!,IF(BC57='DADOS DOS EMPREENDIMENTOS'!#REF!,'DADOS DOS EMPREENDIMENTOS'!#REF!,BE57*(1-'DADOS DOS EMPREENDIMENTOS'!#REF!-'DADOS DOS EMPREENDIMENTOS'!#REF!)))) ->  | BH57: 11 | BI57: 2010-04-01 | BJ57: 0.05719999996 | BK57: =IF(BH57<'DADOS DOS EMPREENDIMENTOS'!BJ$11,0,IF(BH57='DADOS DOS EMPREENDIMENTOS'!BJ$11,SUM(BJ$46:BJ57)*(1-'DADOS DOS EMPREENDIMENTOS'!#REF!-'DADOS DOS EMPREENDIMENTOS'!#REF!)+'DADOS DOS EMPREENDIMENTOS'!#REF!,IF(BH57='DADOS DOS EMPREENDIMENTOS'!#REF!,'DADOS DOS EMPREENDIMENTOS'!#REF!,BJ57*(1-'DADOS DOS EMPREENDIMENTOS'!#REF!-'DADOS DOS EMPREENDIMENTOS'!#REF!)))) ->  | BM57: 11 | BN57: 2010-04-01 | BO57: 0.05719999996 | BP57: =IF(BM57<'DADOS DOS EMPREENDIMENTOS'!BO$11,0,IF(BM57='DADOS DOS EMPREENDIMENTOS'!BO$11,SUM(BO$46:BO57)*(1-'DADOS DOS EMPREENDIMENTOS'!#REF!-'DADOS DOS EMPREENDIMENTOS'!#REF!)+'DADOS DOS EMPREENDIMENTOS'!#REF!,IF(BM57='DADOS DOS EMPREENDIMENTOS'!BO$12,'DADOS DOS EMPREENDIMENTOS'!#REF!,BO57*(1-'DADOS DOS EMPREENDIMENTOS'!#REF!-'DADOS DOS EMPREENDIMENTOS'!#REF!)))) ->  | BR57: 11 | BS57: 2010-04-01 | BT57: 0.05719999996 | BU57: =IF(BR57<'DADOS DOS EMPREENDIMENTOS'!BT$11,0,IF(BR57='DADOS DOS EMPREENDIMENTOS'!BT$11,SUM(BT$46:BT57)*(1-'DADOS DOS EMPREENDIMENTOS'!#REF!-'DADOS DOS EMPREENDIMENTOS'!#REF!)+'DADOS DOS EMPREENDIMENTOS'!#REF!,IF(BR57='DADOS DOS EMPREENDIMENTOS'!BT$12,'DADOS DOS EMPREENDIMENTOS'!#REF!,BT57*(1-'DADOS DOS EMPREENDIMENTOS'!#REF!-'DADOS DOS EMPREENDIMENTOS'!#REF!)))) ->  | BW57: 11 | BX57: 2010-04-01 | BY57: 0.05719999996 | BZ57: =IF(BW57<'DADOS DOS EMPREENDIMENTOS'!BY$11,0,IF(BW57='DADOS DOS EMPREENDIMENTOS'!BY$11,SUM(BY$46:BY57)*(1-'DADOS DOS EMPREENDIMENTOS'!#REF!-'DADOS DOS EMPREENDIMENTOS'!#REF!)+'DADOS DOS EMPREENDIMENTOS'!#REF!,IF(BW57='DADOS DOS EMPREENDIMENTOS'!BY$12,'DADOS DOS EMPREENDIMENTOS'!#REF!,BY57*(1-'DADOS DOS EMPREENDIMENTOS'!#REF!-'DADOS DOS EMPREENDIMENTOS'!#REF!)))) ->  | CB57: 11 | CC57: 2010-04-01 | CD57: 0.05719999996 | CE57: =IF(CB57<'DADOS DOS EMPREENDIMENTOS'!CD$11,0,IF(CB57='DADOS DOS EMPREENDIMENTOS'!CD$11,SUM(CD$46:CD57)*(1-'DADOS DOS EMPREENDIMENTOS'!#REF!-'DADOS DOS EMPREENDIMENTOS'!#REF!)+'DADOS DOS EMPREENDIMENTOS'!#REF!,IF(CB57='DADOS DOS EMPREENDIMENTOS'!CD$12,'DADOS DOS EMPREENDIMENTOS'!#REF!,CD57*(1-'DADOS DOS EMPREENDIMENTOS'!#REF!-'DADOS DOS EMPREENDIMENTOS'!#REF!)))) -> 
O58: 12 | T58: 12 | Y58: 12 | AD58: 12 | AE58: 2010-05-01 | AF58: 0.06730000014 | AG58: =IF(AD58<'DADOS DOS EMPREENDIMENTOS'!AF$11,0,IF(AD58='DADOS DOS EMPREENDIMENTOS'!AF$11,SUM(AF$46:AF58)*(1-'DADOS DOS EMPREENDIMENTOS'!#REF!-'DADOS DOS EMPREENDIMENTOS'!#REF!)+'DADOS DOS EMPREENDIMENTOS'!#REF!,IF(AD58='DADOS DOS EMPREENDIMENTOS'!#REF!,'DADOS DOS EMPREENDIMENTOS'!#REF!,AF58*(1-'DADOS DOS EMPREENDIMENTOS'!#REF!-'DADOS DOS EMPREENDIMENTOS'!#REF!)))) ->  | AI58: 12 | AJ58: 2010-05-01 | AK58: 0.06730000014 | AL58: =IF(AI58<'DADOS DOS EMPREENDIMENTOS'!AK$11,0,IF(AI58='DADOS DOS EMPREENDIMENTOS'!AK$11,SUM(AK$46:AK58)*(1-'DADOS DOS EMPREENDIMENTOS'!#REF!-'DADOS DOS EMPREENDIMENTOS'!#REF!)+'DADOS DOS EMPREENDIMENTOS'!#REF!,IF(AI58='DADOS DOS EMPREENDIMENTOS'!#REF!,'DADOS DOS EMPREENDIMENTOS'!#REF!,AK58*(1-'DADOS DOS EMPREENDIMENTOS'!#REF!-'DADOS DOS EMPREENDIMENTOS'!#REF!)))) ->  | AN58: 12 | AO58: 2010-05-01 | AP58: 0.06730000014 | AQ58: =IF(AN58<'DADOS DOS EMPREENDIMENTOS'!AP$11,0,IF(AN58='DADOS DOS EMPREENDIMENTOS'!AP$11,SUM(AP$46:AP58)*(1-'DADOS DOS EMPREENDIMENTOS'!#REF!-'DADOS DOS EMPREENDIMENTOS'!#REF!)+'DADOS DOS EMPREENDIMENTOS'!#REF!,IF(AN58='DADOS DOS EMPREENDIMENTOS'!#REF!,'DADOS DOS EMPREENDIMENTOS'!#REF!,AP58*(1-'DADOS DOS EMPREENDIMENTOS'!#REF!-'DADOS DOS EMPREENDIMENTOS'!#REF!)))) ->  | AS58: 12 | AT58: 2010-05-01 | AU58: 0.06730000014 | AV58: =IF(AS58<'DADOS DOS EMPREENDIMENTOS'!AU$11,0,IF(AS58='DADOS DOS EMPREENDIMENTOS'!AU$11,SUM(AU$46:AU58)*(1-'DADOS DOS EMPREENDIMENTOS'!#REF!-'DADOS DOS EMPREENDIMENTOS'!#REF!)+'DADOS DOS EMPREENDIMENTOS'!#REF!,IF(AS58='DADOS DOS EMPREENDIMENTOS'!#REF!,'DADOS DOS EMPREENDIMENTOS'!#REF!,AU58*(1-'DADOS DOS EMPREENDIMENTOS'!#REF!-'DADOS DOS EMPREENDIMENTOS'!#REF!)))) ->  | AX58: 12 | AY58: 2010-05-01 | AZ58: 0.06730000014 | BA58: =IF(AX58<'DADOS DOS EMPREENDIMENTOS'!AZ$11,0,IF(AX58='DADOS DOS EMPREENDIMENTOS'!AZ$11,SUM(AZ$46:AZ58)*(1-'DADOS DOS EMPREENDIMENTOS'!#REF!-'DADOS DOS EMPREENDIMENTOS'!#REF!)+'DADOS DOS EMPREENDIMENTOS'!#REF!,IF(AX58='DADOS DOS EMPREENDIMENTOS'!#REF!,'DADOS DOS EMPREENDIMENTOS'!#REF!,AZ58*(1-'DADOS DOS EMPREENDIMENTOS'!#REF!-'DADOS DOS EMPREENDIMENTOS'!#REF!)))) ->  | BC58: 12 | BD58: 2010-05-01 | BE58: 0.06730000014 | BF58: =IF(BC58<'DADOS DOS EMPREENDIMENTOS'!BE$11,0,IF(BC58='DADOS DOS EMPREENDIMENTOS'!BE$11,SUM(BE$46:BE58)*(1-'DADOS DOS EMPREENDIMENTOS'!#REF!-'DADOS DOS EMPREENDIMENTOS'!#REF!)+'DADOS DOS EMPREENDIMENTOS'!#REF!,IF(BC58='DADOS DOS EMPREENDIMENTOS'!#REF!,'DADOS DOS EMPREENDIMENTOS'!#REF!,BE58*(1-'DADOS DOS EMPREENDIMENTOS'!#REF!-'DADOS DOS EMPREENDIMENTOS'!#REF!)))) ->  | BH58: 12 | BI58: 2010-05-01 | BJ58: 0.06730000014 | BK58: =IF(BH58<'DADOS DOS EMPREENDIMENTOS'!BJ$11,0,IF(BH58='DADOS DOS EMPREENDIMENTOS'!BJ$11,SUM(BJ$46:BJ58)*(1-'DADOS DOS EMPREENDIMENTOS'!#REF!-'DADOS DOS EMPREENDIMENTOS'!#REF!)+'DADOS DOS EMPREENDIMENTOS'!#REF!,IF(BH58='DADOS DOS EMPREENDIMENTOS'!#REF!,'DADOS DOS EMPREENDIMENTOS'!#REF!,BJ58*(1-'DADOS DOS EMPREENDIMENTOS'!#REF!-'DADOS DOS EMPREENDIMENTOS'!#REF!)))) ->  | BM58: 12 | BN58: 2010-05-01 | BO58: 0.06730000014 | BP58: =IF(BM58<'DADOS DOS EMPREENDIMENTOS'!BO$11,0,IF(BM58='DADOS DOS EMPREENDIMENTOS'!BO$11,SUM(BO$46:BO58)*(1-'DADOS DOS EMPREENDIMENTOS'!#REF!-'DADOS DOS EMPREENDIMENTOS'!#REF!)+'DADOS DOS EMPREENDIMENTOS'!#REF!,IF(BM58='DADOS DOS EMPREENDIMENTOS'!BO$12,'DADOS DOS EMPREENDIMENTOS'!#REF!,BO58*(1-'DADOS DOS EMPREENDIMENTOS'!#REF!-'DADOS DOS EMPREENDIMENTOS'!#REF!)))) ->  | BR58: 12 | BS58: 2010-05-01 | BT58: 0.06730000014 | BU58: =IF(BR58<'DADOS DOS EMPREENDIMENTOS'!BT$11,0,IF(BR58='DADOS DOS EMPREENDIMENTOS'!BT$11,SUM(BT$46:BT58)*(1-'DADOS DOS EMPREENDIMENTOS'!#REF!-'DADOS DOS EMPREENDIMENTOS'!#REF!)+'DADOS DOS EMPREENDIMENTOS'!#REF!,IF(BR58='DADOS DOS EMPREENDIMENTOS'!BT$12,'DADOS DOS EMPREENDIMENTOS'!#REF!,BT58*(1-'DADOS DOS EMPREENDIMENTOS'!#REF!-'DADOS DOS EMPREENDIMENTOS'!#REF!)))) ->  | BW58: 12 | BX58: 2010-05-01 | BY58: 0.06730000014 | BZ58: =IF(BW58<'DADOS DOS EMPREENDIMENTOS'!BY$11,0,IF(BW58='DADOS DOS EMPREENDIMENTOS'!BY$11,SUM(BY$46:BY58)*(1-'DADOS DOS EMPREENDIMENTOS'!#REF!-'DADOS DOS EMPREENDIMENTOS'!#REF!)+'DADOS DOS EMPREENDIMENTOS'!#REF!,IF(BW58='DADOS DOS EMPREENDIMENTOS'!BY$12,'DADOS DOS EMPREENDIMENTOS'!#REF!,BY58*(1-'DADOS DOS EMPREENDIMENTOS'!#REF!-'DADOS DOS EMPREENDIMENTOS'!#REF!)))) ->  | CB58: 12 | CC58: 2010-05-01 | CD58: 0.06730000014 | CE58: =IF(CB58<'DADOS DOS EMPREENDIMENTOS'!CD$11,0,IF(CB58='DADOS DOS EMPREENDIMENTOS'!CD$11,SUM(CD$46:CD58)*(1-'DADOS DOS EMPREENDIMENTOS'!#REF!-'DADOS DOS EMPREENDIMENTOS'!#REF!)+'DADOS DOS EMPREENDIMENTOS'!#REF!,IF(CB58='DADOS DOS EMPREENDIMENTOS'!CD$12,'DADOS DOS EMPREENDIMENTOS'!#REF!,CD58*(1-'DADOS DOS EMPREENDIMENTOS'!#REF!-'DADOS DOS EMPREENDIMENTOS'!#REF!)))) -> 
O59: 13 | T59: 13 | Y59: 13 | AD59: 13 | AE59: 2010-06-01 | AF59: 0.08629999996 | AG59: =IF(AD59<'DADOS DOS EMPREENDIMENTOS'!AF$11,0,IF(AD59='DADOS DOS EMPREENDIMENTOS'!AF$11,SUM(AF$46:AF59)*(1-'DADOS DOS EMPREENDIMENTOS'!#REF!-'DADOS DOS EMPREENDIMENTOS'!#REF!)+'DADOS DOS EMPREENDIMENTOS'!#REF!,IF(AD59='DADOS DOS EMPREENDIMENTOS'!#REF!,'DADOS DOS EMPREENDIMENTOS'!#REF!,AF59*(1-'DADOS DOS EMPREENDIMENTOS'!#REF!-'DADOS DOS EMPREENDIMENTOS'!#REF!)))) ->  | AI59: 13 | AJ59: 2010-06-01 | AK59: 0.08629999996 | AL59: =IF(AI59<'DADOS DOS EMPREENDIMENTOS'!AK$11,0,IF(AI59='DADOS DOS EMPREENDIMENTOS'!AK$11,SUM(AK$46:AK59)*(1-'DADOS DOS EMPREENDIMENTOS'!#REF!-'DADOS DOS EMPREENDIMENTOS'!#REF!)+'DADOS DOS EMPREENDIMENTOS'!#REF!,IF(AI59='DADOS DOS EMPREENDIMENTOS'!#REF!,'DADOS DOS EMPREENDIMENTOS'!#REF!,AK59*(1-'DADOS DOS EMPREENDIMENTOS'!#REF!-'DADOS DOS EMPREENDIMENTOS'!#REF!)))) ->  | AN59: 13 | AO59: 2010-06-01 | AP59: 0.08629999996 | AQ59: =IF(AN59<'DADOS DOS EMPREENDIMENTOS'!AP$11,0,IF(AN59='DADOS DOS EMPREENDIMENTOS'!AP$11,SUM(AP$46:AP59)*(1-'DADOS DOS EMPREENDIMENTOS'!#REF!-'DADOS DOS EMPREENDIMENTOS'!#REF!)+'DADOS DOS EMPREENDIMENTOS'!#REF!,IF(AN59='DADOS DOS EMPREENDIMENTOS'!#REF!,'DADOS DOS EMPREENDIMENTOS'!#REF!,AP59*(1-'DADOS DOS EMPREENDIMENTOS'!#REF!-'DADOS DOS EMPREENDIMENTOS'!#REF!)))) ->  | AS59: 13 | AT59: 2010-06-01 | AU59: 0.08629999996 | AV59: =IF(AS59<'DADOS DOS EMPREENDIMENTOS'!AU$11,0,IF(AS59='DADOS DOS EMPREENDIMENTOS'!AU$11,SUM(AU$46:AU59)*(1-'DADOS DOS EMPREENDIMENTOS'!#REF!-'DADOS DOS EMPREENDIMENTOS'!#REF!)+'DADOS DOS EMPREENDIMENTOS'!#REF!,IF(AS59='DADOS DOS EMPREENDIMENTOS'!#REF!,'DADOS DOS EMPREENDIMENTOS'!#REF!,AU59*(1-'DADOS DOS EMPREENDIMENTOS'!#REF!-'DADOS DOS EMPREENDIMENTOS'!#REF!)))) ->  | AX59: 13 | AY59: 2010-06-01 | AZ59: 0.08629999996 | BA59: =IF(AX59<'DADOS DOS EMPREENDIMENTOS'!AZ$11,0,IF(AX59='DADOS DOS EMPREENDIMENTOS'!AZ$11,SUM(AZ$46:AZ59)*(1-'DADOS DOS EMPREENDIMENTOS'!#REF!-'DADOS DOS EMPREENDIMENTOS'!#REF!)+'DADOS DOS EMPREENDIMENTOS'!#REF!,IF(AX59='DADOS DOS EMPREENDIMENTOS'!#REF!,'DADOS DOS EMPREENDIMENTOS'!#REF!,AZ59*(1-'DADOS DOS EMPREENDIMENTOS'!#REF!-'DADOS DOS EMPREENDIMENTOS'!#REF!)))) ->  | BC59: 13 | BD59: 2010-06-01 | BE59: 0.08629999996 | BF59: =IF(BC59<'DADOS DOS EMPREENDIMENTOS'!BE$11,0,IF(BC59='DADOS DOS EMPREENDIMENTOS'!BE$11,SUM(BE$46:BE59)*(1-'DADOS DOS EMPREENDIMENTOS'!#REF!-'DADOS DOS EMPREENDIMENTOS'!#REF!)+'DADOS DOS EMPREENDIMENTOS'!#REF!,IF(BC59='DADOS DOS EMPREENDIMENTOS'!#REF!,'DADOS DOS EMPREENDIMENTOS'!#REF!,BE59*(1-'DADOS DOS EMPREENDIMENTOS'!#REF!-'DADOS DOS EMPREENDIMENTOS'!#REF!)))) ->  | BH59: 13 | BI59: 2010-06-01 | BJ59: 0.08629999996 | BK59: =IF(BH59<'DADOS DOS EMPREENDIMENTOS'!BJ$11,0,IF(BH59='DADOS DOS EMPREENDIMENTOS'!BJ$11,SUM(BJ$46:BJ59)*(1-'DADOS DOS EMPREENDIMENTOS'!#REF!-'DADOS DOS EMPREENDIMENTOS'!#REF!)+'DADOS DOS EMPREENDIMENTOS'!#REF!,IF(BH59='DADOS DOS EMPREENDIMENTOS'!#REF!,'DADOS DOS EMPREENDIMENTOS'!#REF!,BJ59*(1-'DADOS DOS EMPREENDIMENTOS'!#REF!-'DADOS DOS EMPREENDIMENTOS'!#REF!)))) ->  | BM59: 13 | BN59: 2010-06-01 | BO59: 0.08629999996 | BP59: =IF(BM59<'DADOS DOS EMPREENDIMENTOS'!BO$11,0,IF(BM59='DADOS DOS EMPREENDIMENTOS'!BO$11,SUM(BO$46:BO59)*(1-'DADOS DOS EMPREENDIMENTOS'!#REF!-'DADOS DOS EMPREENDIMENTOS'!#REF!)+'DADOS DOS EMPREENDIMENTOS'!#REF!,IF(BM59='DADOS DOS EMPREENDIMENTOS'!BO$12,'DADOS DOS EMPREENDIMENTOS'!#REF!,BO59*(1-'DADOS DOS EMPREENDIMENTOS'!#REF!-'DADOS DOS EMPREENDIMENTOS'!#REF!)))) ->  | BR59: 13 | BS59: 2010-06-01 | BT59: 0.08629999996 | BU59: =IF(BR59<'DADOS DOS EMPREENDIMENTOS'!BT$11,0,IF(BR59='DADOS DOS EMPREENDIMENTOS'!BT$11,SUM(BT$46:BT59)*(1-'DADOS DOS EMPREENDIMENTOS'!#REF!-'DADOS DOS EMPREENDIMENTOS'!#REF!)+'DADOS DOS EMPREENDIMENTOS'!#REF!,IF(BR59='DADOS DOS EMPREENDIMENTOS'!BT$12,'DADOS DOS EMPREENDIMENTOS'!#REF!,BT59*(1-'DADOS DOS EMPREENDIMENTOS'!#REF!-'DADOS DOS EMPREENDIMENTOS'!#REF!)))) ->  | BW59: 13 | BX59: 2010-06-01 | BY59: 0.08629999996 | BZ59: =IF(BW59<'DADOS DOS EMPREENDIMENTOS'!BY$11,0,IF(BW59='DADOS DOS EMPREENDIMENTOS'!BY$11,SUM(BY$46:BY59)*(1-'DADOS DOS EMPREENDIMENTOS'!#REF!-'DADOS DOS EMPREENDIMENTOS'!#REF!)+'DADOS DOS EMPREENDIMENTOS'!#REF!,IF(BW59='DADOS DOS EMPREENDIMENTOS'!BY$12,'DADOS DOS EMPREENDIMENTOS'!#REF!,BY59*(1-'DADOS DOS EMPREENDIMENTOS'!#REF!-'DADOS DOS EMPREENDIMENTOS'!#REF!)))) ->  | CB59: 13 | CC59: 2010-06-01 | CD59: 0.08629999996 | CE59: =IF(CB59<'DADOS DOS EMPREENDIMENTOS'!CD$11,0,IF(CB59='DADOS DOS EMPREENDIMENTOS'!CD$11,SUM(CD$46:CD59)*(1-'DADOS DOS EMPREENDIMENTOS'!#REF!-'DADOS DOS EMPREENDIMENTOS'!#REF!)+'DADOS DOS EMPREENDIMENTOS'!#REF!,IF(CB59='DADOS DOS EMPREENDIMENTOS'!CD$12,'DADOS DOS EMPREENDIMENTOS'!#REF!,CD59*(1-'DADOS DOS EMPREENDIMENTOS'!#REF!-'DADOS DOS EMPREENDIMENTOS'!#REF!)))) -> 
O60: 14 | T60: 14 | Y60: 14 | AD60: 14 | AE60: 2010-07-01 | AF60: 0.09759999971 | AG60: =IF(AD60<'DADOS DOS EMPREENDIMENTOS'!AF$11,0,IF(AD60='DADOS DOS EMPREENDIMENTOS'!AF$11,SUM(AF$46:AF60)*(1-'DADOS DOS EMPREENDIMENTOS'!#REF!-'DADOS DOS EMPREENDIMENTOS'!#REF!)+'DADOS DOS EMPREENDIMENTOS'!#REF!,IF(AD60='DADOS DOS EMPREENDIMENTOS'!#REF!,'DADOS DOS EMPREENDIMENTOS'!#REF!,AF60*(1-'DADOS DOS EMPREENDIMENTOS'!#REF!-'DADOS DOS EMPREENDIMENTOS'!#REF!)))) ->  | AI60: 14 | AJ60: 2010-07-01 | AK60: 0.09759999971 | AL60: =IF(AI60<'DADOS DOS EMPREENDIMENTOS'!AK$11,0,IF(AI60='DADOS DOS EMPREENDIMENTOS'!AK$11,SUM(AK$46:AK60)*(1-'DADOS DOS EMPREENDIMENTOS'!#REF!-'DADOS DOS EMPREENDIMENTOS'!#REF!)+'DADOS DOS EMPREENDIMENTOS'!#REF!,IF(AI60='DADOS DOS EMPREENDIMENTOS'!#REF!,'DADOS DOS EMPREENDIMENTOS'!#REF!,AK60*(1-'DADOS DOS EMPREENDIMENTOS'!#REF!-'DADOS DOS EMPREENDIMENTOS'!#REF!)))) ->  | AN60: 14 | AO60: 2010-07-01 | AP60: 0.09759999971 | AQ60: =IF(AN60<'DADOS DOS EMPREENDIMENTOS'!AP$11,0,IF(AN60='DADOS DOS EMPREENDIMENTOS'!AP$11,SUM(AP$46:AP60)*(1-'DADOS DOS EMPREENDIMENTOS'!#REF!-'DADOS DOS EMPREENDIMENTOS'!#REF!)+'DADOS DOS EMPREENDIMENTOS'!#REF!,IF(AN60='DADOS DOS EMPREENDIMENTOS'!#REF!,'DADOS DOS EMPREENDIMENTOS'!#REF!,AP60*(1-'DADOS DOS EMPREENDIMENTOS'!#REF!-'DADOS DOS EMPREENDIMENTOS'!#REF!)))) ->  | AS60: 14 | AT60: 2010-07-01 | AU60: 0.09759999971 | AV60: =IF(AS60<'DADOS DOS EMPREENDIMENTOS'!AU$11,0,IF(AS60='DADOS DOS EMPREENDIMENTOS'!AU$11,SUM(AU$46:AU60)*(1-'DADOS DOS EMPREENDIMENTOS'!#REF!-'DADOS DOS EMPREENDIMENTOS'!#REF!)+'DADOS DOS EMPREENDIMENTOS'!#REF!,IF(AS60='DADOS DOS EMPREENDIMENTOS'!#REF!,'DADOS DOS EMPREENDIMENTOS'!#REF!,AU60*(1-'DADOS DOS EMPREENDIMENTOS'!#REF!-'DADOS DOS EMPREENDIMENTOS'!#REF!)))) ->  | AX60: 14 | AY60: 2010-07-01 | AZ60: 0.09759999971 | BA60: =IF(AX60<'DADOS DOS EMPREENDIMENTOS'!AZ$11,0,IF(AX60='DADOS DOS EMPREENDIMENTOS'!AZ$11,SUM(AZ$46:AZ60)*(1-'DADOS DOS EMPREENDIMENTOS'!#REF!-'DADOS DOS EMPREENDIMENTOS'!#REF!)+'DADOS DOS EMPREENDIMENTOS'!#REF!,IF(AX60='DADOS DOS EMPREENDIMENTOS'!#REF!,'DADOS DOS EMPREENDIMENTOS'!#REF!,AZ60*(1-'DADOS DOS EMPREENDIMENTOS'!#REF!-'DADOS DOS EMPREENDIMENTOS'!#REF!)))) ->  | BC60: 14 | BD60: 2010-07-01 | BE60: 0.09759999971 | BF60: =IF(BC60<'DADOS DOS EMPREENDIMENTOS'!BE$11,0,IF(BC60='DADOS DOS EMPREENDIMENTOS'!BE$11,SUM(BE$46:BE60)*(1-'DADOS DOS EMPREENDIMENTOS'!#REF!-'DADOS DOS EMPREENDIMENTOS'!#REF!)+'DADOS DOS EMPREENDIMENTOS'!#REF!,IF(BC60='DADOS DOS EMPREENDIMENTOS'!#REF!,'DADOS DOS EMPREENDIMENTOS'!#REF!,BE60*(1-'DADOS DOS EMPREENDIMENTOS'!#REF!-'DADOS DOS EMPREENDIMENTOS'!#REF!)))) ->  | BH60: 14 | BI60: 2010-07-01 | BJ60: 0.09759999971 | BK60: =IF(BH60<'DADOS DOS EMPREENDIMENTOS'!BJ$11,0,IF(BH60='DADOS DOS EMPREENDIMENTOS'!BJ$11,SUM(BJ$46:BJ60)*(1-'DADOS DOS EMPREENDIMENTOS'!#REF!-'DADOS DOS EMPREENDIMENTOS'!#REF!)+'DADOS DOS EMPREENDIMENTOS'!#REF!,IF(BH60='DADOS DOS EMPREENDIMENTOS'!#REF!,'DADOS DOS EMPREENDIMENTOS'!#REF!,BJ60*(1-'DADOS DOS EMPREENDIMENTOS'!#REF!-'DADOS DOS EMPREENDIMENTOS'!#REF!)))) ->  | BM60: 14 | BN60: 2010-07-01 | BO60: 0.09759999971 | BP60: =IF(BM60<'DADOS DOS EMPREENDIMENTOS'!BO$11,0,IF(BM60='DADOS DOS EMPREENDIMENTOS'!BO$11,SUM(BO$46:BO60)*(1-'DADOS DOS EMPREENDIMENTOS'!#REF!-'DADOS DOS EMPREENDIMENTOS'!#REF!)+'DADOS DOS EMPREENDIMENTOS'!#REF!,IF(BM60='DADOS DOS EMPREENDIMENTOS'!BO$12,'DADOS DOS EMPREENDIMENTOS'!#REF!,BO60*(1-'DADOS DOS EMPREENDIMENTOS'!#REF!-'DADOS DOS EMPREENDIMENTOS'!#REF!)))) ->  | BR60: 14 | BS60: 2010-07-01 | BT60: 0.09759999971 | BU60: =IF(BR60<'DADOS DOS EMPREENDIMENTOS'!BT$11,0,IF(BR60='DADOS DOS EMPREENDIMENTOS'!BT$11,SUM(BT$46:BT60)*(1-'DADOS DOS EMPREENDIMENTOS'!#REF!-'DADOS DOS EMPREENDIMENTOS'!#REF!)+'DADOS DOS EMPREENDIMENTOS'!#REF!,IF(BR60='DADOS DOS EMPREENDIMENTOS'!BT$12,'DADOS DOS EMPREENDIMENTOS'!#REF!,BT60*(1-'DADOS DOS EMPREENDIMENTOS'!#REF!-'DADOS DOS EMPREENDIMENTOS'!#REF!)))) ->  | BW60: 14 | BX60: 2010-07-01 | BY60: 0.09759999971 | BZ60: =IF(BW60<'DADOS DOS EMPREENDIMENTOS'!BY$11,0,IF(BW60='DADOS DOS EMPREENDIMENTOS'!BY$11,SUM(BY$46:BY60)*(1-'DADOS DOS EMPREENDIMENTOS'!#REF!-'DADOS DOS EMPREENDIMENTOS'!#REF!)+'DADOS DOS EMPREENDIMENTOS'!#REF!,IF(BW60='DADOS DOS EMPREENDIMENTOS'!BY$12,'DADOS DOS EMPREENDIMENTOS'!#REF!,BY60*(1-'DADOS DOS EMPREENDIMENTOS'!#REF!-'DADOS DOS EMPREENDIMENTOS'!#REF!)))) ->  | CB60: 14 | CC60: 2010-07-01 | CD60: 0.09759999971 | CE60: =IF(CB60<'DADOS DOS EMPREENDIMENTOS'!CD$11,0,IF(CB60='DADOS DOS EMPREENDIMENTOS'!CD$11,SUM(CD$46:CD60)*(1-'DADOS DOS EMPREENDIMENTOS'!#REF!-'DADOS DOS EMPREENDIMENTOS'!#REF!)+'DADOS DOS EMPREENDIMENTOS'!#REF!,IF(CB60='DADOS DOS EMPREENDIMENTOS'!CD$12,'DADOS DOS EMPREENDIMENTOS'!#REF!,CD60*(1-'DADOS DOS EMPREENDIMENTOS'!#REF!-'DADOS DOS EMPREENDIMENTOS'!#REF!)))) -> 
O61: 15 | T61: 15 | Y61: 15 | AD61: 15 | AE61: 2010-08-01 | AF61: 0.1103999998 | AG61: =IF(AD61<'DADOS DOS EMPREENDIMENTOS'!AF$11,0,IF(AD61='DADOS DOS EMPREENDIMENTOS'!AF$11,SUM(AF$46:AF61)*(1-'DADOS DOS EMPREENDIMENTOS'!#REF!-'DADOS DOS EMPREENDIMENTOS'!#REF!)+'DADOS DOS EMPREENDIMENTOS'!#REF!,IF(AD61='DADOS DOS EMPREENDIMENTOS'!#REF!,'DADOS DOS EMPREENDIMENTOS'!#REF!,AF61*(1-'DADOS DOS EMPREENDIMENTOS'!#REF!-'DADOS DOS EMPREENDIMENTOS'!#REF!)))) ->  | AI61: 15 | AJ61: 2010-08-01 | AK61: 0.1103999998 | AL61: =IF(AI61<'DADOS DOS EMPREENDIMENTOS'!AK$11,0,IF(AI61='DADOS DOS EMPREENDIMENTOS'!AK$11,SUM(AK$46:AK61)*(1-'DADOS DOS EMPREENDIMENTOS'!#REF!-'DADOS DOS EMPREENDIMENTOS'!#REF!)+'DADOS DOS EMPREENDIMENTOS'!#REF!,IF(AI61='DADOS DOS EMPREENDIMENTOS'!#REF!,'DADOS DOS EMPREENDIMENTOS'!#REF!,AK61*(1-'DADOS DOS EMPREENDIMENTOS'!#REF!-'DADOS DOS EMPREENDIMENTOS'!#REF!)))) ->  | AN61: 15 | AO61: 2010-08-01 | AP61: 0.1103999998 | AQ61: =IF(AN61<'DADOS DOS EMPREENDIMENTOS'!AP$11,0,IF(AN61='DADOS DOS EMPREENDIMENTOS'!AP$11,SUM(AP$46:AP61)*(1-'DADOS DOS EMPREENDIMENTOS'!#REF!-'DADOS DOS EMPREENDIMENTOS'!#REF!)+'DADOS DOS EMPREENDIMENTOS'!#REF!,IF(AN61='DADOS DOS EMPREENDIMENTOS'!#REF!,'DADOS DOS EMPREENDIMENTOS'!#REF!,AP61*(1-'DADOS DOS EMPREENDIMENTOS'!#REF!-'DADOS DOS EMPREENDIMENTOS'!#REF!)))) ->  | AS61: 15 | AT61: 2010-08-01 | AU61: 0.1103999998 | AV61: =IF(AS61<'DADOS DOS EMPREENDIMENTOS'!AU$11,0,IF(AS61='DADOS DOS EMPREENDIMENTOS'!AU$11,SUM(AU$46:AU61)*(1-'DADOS DOS EMPREENDIMENTOS'!#REF!-'DADOS DOS EMPREENDIMENTOS'!#REF!)+'DADOS DOS EMPREENDIMENTOS'!#REF!,IF(AS61='DADOS DOS EMPREENDIMENTOS'!#REF!,'DADOS DOS EMPREENDIMENTOS'!#REF!,AU61*(1-'DADOS DOS EMPREENDIMENTOS'!#REF!-'DADOS DOS EMPREENDIMENTOS'!#REF!)))) ->  | AX61: 15 | AY61: 2010-08-01 | AZ61: 0.1103999998 | BA61: =IF(AX61<'DADOS DOS EMPREENDIMENTOS'!AZ$11,0,IF(AX61='DADOS DOS EMPREENDIMENTOS'!AZ$11,SUM(AZ$46:AZ61)*(1-'DADOS DOS EMPREENDIMENTOS'!#REF!-'DADOS DOS EMPREENDIMENTOS'!#REF!)+'DADOS DOS EMPREENDIMENTOS'!#REF!,IF(AX61='DADOS DOS EMPREENDIMENTOS'!#REF!,'DADOS DOS EMPREENDIMENTOS'!#REF!,AZ61*(1-'DADOS DOS EMPREENDIMENTOS'!#REF!-'DADOS DOS EMPREENDIMENTOS'!#REF!)))) ->  | BC61: 15 | BD61: 2010-08-01 | BE61: 0.1103999998 | BF61: =IF(BC61<'DADOS DOS EMPREENDIMENTOS'!BE$11,0,IF(BC61='DADOS DOS EMPREENDIMENTOS'!BE$11,SUM(BE$46:BE61)*(1-'DADOS DOS EMPREENDIMENTOS'!#REF!-'DADOS DOS EMPREENDIMENTOS'!#REF!)+'DADOS DOS EMPREENDIMENTOS'!#REF!,IF(BC61='DADOS DOS EMPREENDIMENTOS'!#REF!,'DADOS DOS EMPREENDIMENTOS'!#REF!,BE61*(1-'DADOS DOS EMPREENDIMENTOS'!#REF!-'DADOS DOS EMPREENDIMENTOS'!#REF!)))) ->  | BH61: 15 | BI61: 2010-08-01 | BJ61: 0.1103999998 | BK61: =IF(BH61<'DADOS DOS EMPREENDIMENTOS'!BJ$11,0,IF(BH61='DADOS DOS EMPREENDIMENTOS'!BJ$11,SUM(BJ$46:BJ61)*(1-'DADOS DOS EMPREENDIMENTOS'!#REF!-'DADOS DOS EMPREENDIMENTOS'!#REF!)+'DADOS DOS EMPREENDIMENTOS'!#REF!,IF(BH61='DADOS DOS EMPREENDIMENTOS'!#REF!,'DADOS DOS EMPREENDIMENTOS'!#REF!,BJ61*(1-'DADOS DOS EMPREENDIMENTOS'!#REF!-'DADOS DOS EMPREENDIMENTOS'!#REF!)))) ->  | BM61: 15 | BN61: 2010-08-01 | BO61: 0.1103999998 | BP61: =IF(BM61<'DADOS DOS EMPREENDIMENTOS'!BO$11,0,IF(BM61='DADOS DOS EMPREENDIMENTOS'!BO$11,SUM(BO$46:BO61)*(1-'DADOS DOS EMPREENDIMENTOS'!#REF!-'DADOS DOS EMPREENDIMENTOS'!#REF!)+'DADOS DOS EMPREENDIMENTOS'!#REF!,IF(BM61='DADOS DOS EMPREENDIMENTOS'!BO$12,'DADOS DOS EMPREENDIMENTOS'!#REF!,BO61*(1-'DADOS DOS EMPREENDIMENTOS'!#REF!-'DADOS DOS EMPREENDIMENTOS'!#REF!)))) ->  | BR61: 15 | BS61: 2010-08-01 | BT61: 0.1103999998 | BU61: =IF(BR61<'DADOS DOS EMPREENDIMENTOS'!BT$11,0,IF(BR61='DADOS DOS EMPREENDIMENTOS'!BT$11,SUM(BT$46:BT61)*(1-'DADOS DOS EMPREENDIMENTOS'!#REF!-'DADOS DOS EMPREENDIMENTOS'!#REF!)+'DADOS DOS EMPREENDIMENTOS'!#REF!,IF(BR61='DADOS DOS EMPREENDIMENTOS'!BT$12,'DADOS DOS EMPREENDIMENTOS'!#REF!,BT61*(1-'DADOS DOS EMPREENDIMENTOS'!#REF!-'DADOS DOS EMPREENDIMENTOS'!#REF!)))) ->  | BW61: 15 | BX61: 2010-08-01 | BY61: 0.1103999998 | BZ61: =IF(BW61<'DADOS DOS EMPREENDIMENTOS'!BY$11,0,IF(BW61='DADOS DOS EMPREENDIMENTOS'!BY$11,SUM(BY$46:BY61)*(1-'DADOS DOS EMPREENDIMENTOS'!#REF!-'DADOS DOS EMPREENDIMENTOS'!#REF!)+'DADOS DOS EMPREENDIMENTOS'!#REF!,IF(BW61='DADOS DOS EMPREENDIMENTOS'!BY$12,'DADOS DOS EMPREENDIMENTOS'!#REF!,BY61*(1-'DADOS DOS EMPREENDIMENTOS'!#REF!-'DADOS DOS EMPREENDIMENTOS'!#REF!)))) ->  | CB61: 15 | CC61: 2010-08-01 | CD61: 0.1103999998 | CE61: =IF(CB61<'DADOS DOS EMPREENDIMENTOS'!CD$11,0,IF(CB61='DADOS DOS EMPREENDIMENTOS'!CD$11,SUM(CD$46:CD61)*(1-'DADOS DOS EMPREENDIMENTOS'!#REF!-'DADOS DOS EMPREENDIMENTOS'!#REF!)+'DADOS DOS EMPREENDIMENTOS'!#REF!,IF(CB61='DADOS DOS EMPREENDIMENTOS'!CD$12,'DADOS DOS EMPREENDIMENTOS'!#REF!,CD61*(1-'DADOS DOS EMPREENDIMENTOS'!#REF!-'DADOS DOS EMPREENDIMENTOS'!#REF!)))) -> 
O62: 16 | T62: 16 | Y62: 16 | AD62: 16 | AE62: 2010-09-01 | AF62: 0.1251000001 | AG62: =IF(AD62<'DADOS DOS EMPREENDIMENTOS'!AF$11,0,IF(AD62='DADOS DOS EMPREENDIMENTOS'!AF$11,SUM(AF$46:AF62)*(1-'DADOS DOS EMPREENDIMENTOS'!#REF!-'DADOS DOS EMPREENDIMENTOS'!#REF!)+'DADOS DOS EMPREENDIMENTOS'!#REF!,IF(AD62='DADOS DOS EMPREENDIMENTOS'!#REF!,'DADOS DOS EMPREENDIMENTOS'!#REF!,AF62*(1-'DADOS DOS EMPREENDIMENTOS'!#REF!-'DADOS DOS EMPREENDIMENTOS'!#REF!)))) ->  | AI62: 16 | AJ62: 2010-09-01 | AK62: 0.1251000001 | AL62: =IF(AI62<'DADOS DOS EMPREENDIMENTOS'!AK$11,0,IF(AI62='DADOS DOS EMPREENDIMENTOS'!AK$11,SUM(AK$46:AK62)*(1-'DADOS DOS EMPREENDIMENTOS'!#REF!-'DADOS DOS EMPREENDIMENTOS'!#REF!)+'DADOS DOS EMPREENDIMENTOS'!#REF!,IF(AI62='DADOS DOS EMPREENDIMENTOS'!#REF!,'DADOS DOS EMPREENDIMENTOS'!#REF!,AK62*(1-'DADOS DOS EMPREENDIMENTOS'!#REF!-'DADOS DOS EMPREENDIMENTOS'!#REF!)))) ->  | AN62: 16 | AO62: 2010-09-01 | AP62: 0.1251000001 | AQ62: =IF(AN62<'DADOS DOS EMPREENDIMENTOS'!AP$11,0,IF(AN62='DADOS DOS EMPREENDIMENTOS'!AP$11,SUM(AP$46:AP62)*(1-'DADOS DOS EMPREENDIMENTOS'!#REF!-'DADOS DOS EMPREENDIMENTOS'!#REF!)+'DADOS DOS EMPREENDIMENTOS'!#REF!,IF(AN62='DADOS DOS EMPREENDIMENTOS'!#REF!,'DADOS DOS EMPREENDIMENTOS'!#REF!,AP62*(1-'DADOS DOS EMPREENDIMENTOS'!#REF!-'DADOS DOS EMPREENDIMENTOS'!#REF!)))) ->  | AS62: 16 | AT62: 2010-09-01 | AU62: 0.1251000001 | AV62: =IF(AS62<'DADOS DOS EMPREENDIMENTOS'!AU$11,0,IF(AS62='DADOS DOS EMPREENDIMENTOS'!AU$11,SUM(AU$46:AU62)*(1-'DADOS DOS EMPREENDIMENTOS'!#REF!-'DADOS DOS EMPREENDIMENTOS'!#REF!)+'DADOS DOS EMPREENDIMENTOS'!#REF!,IF(AS62='DADOS DOS EMPREENDIMENTOS'!#REF!,'DADOS DOS EMPREENDIMENTOS'!#REF!,AU62*(1-'DADOS DOS EMPREENDIMENTOS'!#REF!-'DADOS DOS EMPREENDIMENTOS'!#REF!)))) ->  | AX62: 16 | AY62: 2010-09-01 | AZ62: 0.1251000001 | BA62: =IF(AX62<'DADOS DOS EMPREENDIMENTOS'!AZ$11,0,IF(AX62='DADOS DOS EMPREENDIMENTOS'!AZ$11,SUM(AZ$46:AZ62)*(1-'DADOS DOS EMPREENDIMENTOS'!#REF!-'DADOS DOS EMPREENDIMENTOS'!#REF!)+'DADOS DOS EMPREENDIMENTOS'!#REF!,IF(AX62='DADOS DOS EMPREENDIMENTOS'!#REF!,'DADOS DOS EMPREENDIMENTOS'!#REF!,AZ62*(1-'DADOS DOS EMPREENDIMENTOS'!#REF!-'DADOS DOS EMPREENDIMENTOS'!#REF!)))) ->  | BC62: 16 | BD62: 2010-09-01 | BE62: 0.1251000001 | BF62: =IF(BC62<'DADOS DOS EMPREENDIMENTOS'!BE$11,0,IF(BC62='DADOS DOS EMPREENDIMENTOS'!BE$11,SUM(BE$46:BE62)*(1-'DADOS DOS EMPREENDIMENTOS'!#REF!-'DADOS DOS EMPREENDIMENTOS'!#REF!)+'DADOS DOS EMPREENDIMENTOS'!#REF!,IF(BC62='DADOS DOS EMPREENDIMENTOS'!#REF!,'DADOS DOS EMPREENDIMENTOS'!#REF!,BE62*(1-'DADOS DOS EMPREENDIMENTOS'!#REF!-'DADOS DOS EMPREENDIMENTOS'!#REF!)))) ->  | BH62: 16 | BI62: 2010-09-01 | BJ62: 0.1251000001 | BK62: =IF(BH62<'DADOS DOS EMPREENDIMENTOS'!BJ$11,0,IF(BH62='DADOS DOS EMPREENDIMENTOS'!BJ$11,SUM(BJ$46:BJ62)*(1-'DADOS DOS EMPREENDIMENTOS'!#REF!-'DADOS DOS EMPREENDIMENTOS'!#REF!)+'DADOS DOS EMPREENDIMENTOS'!#REF!,IF(BH62='DADOS DOS EMPREENDIMENTOS'!#REF!,'DADOS DOS EMPREENDIMENTOS'!#REF!,BJ62*(1-'DADOS DOS EMPREENDIMENTOS'!#REF!-'DADOS DOS EMPREENDIMENTOS'!#REF!)))) ->  | BM62: 16 | BN62: 2010-09-01 | BO62: 0.1251000001 | BP62: =IF(BM62<'DADOS DOS EMPREENDIMENTOS'!BO$11,0,IF(BM62='DADOS DOS EMPREENDIMENTOS'!BO$11,SUM(BO$46:BO62)*(1-'DADOS DOS EMPREENDIMENTOS'!#REF!-'DADOS DOS EMPREENDIMENTOS'!#REF!)+'DADOS DOS EMPREENDIMENTOS'!#REF!,IF(BM62='DADOS DOS EMPREENDIMENTOS'!BO$12,'DADOS DOS EMPREENDIMENTOS'!#REF!,BO62*(1-'DADOS DOS EMPREENDIMENTOS'!#REF!-'DADOS DOS EMPREENDIMENTOS'!#REF!)))) ->  | BR62: 16 | BS62: 2010-09-01 | BT62: 0.1251000001 | BU62: =IF(BR62<'DADOS DOS EMPREENDIMENTOS'!BT$11,0,IF(BR62='DADOS DOS EMPREENDIMENTOS'!BT$11,SUM(BT$46:BT62)*(1-'DADOS DOS EMPREENDIMENTOS'!#REF!-'DADOS DOS EMPREENDIMENTOS'!#REF!)+'DADOS DOS EMPREENDIMENTOS'!#REF!,IF(BR62='DADOS DOS EMPREENDIMENTOS'!BT$12,'DADOS DOS EMPREENDIMENTOS'!#REF!,BT62*(1-'DADOS DOS EMPREENDIMENTOS'!#REF!-'DADOS DOS EMPREENDIMENTOS'!#REF!)))) ->  | BW62: 16 | BX62: 2010-09-01 | BY62: 0.1251000001 | BZ62: =IF(BW62<'DADOS DOS EMPREENDIMENTOS'!BY$11,0,IF(BW62='DADOS DOS EMPREENDIMENTOS'!BY$11,SUM(BY$46:BY62)*(1-'DADOS DOS EMPREENDIMENTOS'!#REF!-'DADOS DOS EMPREENDIMENTOS'!#REF!)+'DADOS DOS EMPREENDIMENTOS'!#REF!,IF(BW62='DADOS DOS EMPREENDIMENTOS'!BY$12,'DADOS DOS EMPREENDIMENTOS'!#REF!,BY62*(1-'DADOS DOS EMPREENDIMENTOS'!#REF!-'DADOS DOS EMPREENDIMENTOS'!#REF!)))) ->  | CB62: 16 | CC62: 2010-09-01 | CD62: 0.1251000001 | CE62: =IF(CB62<'DADOS DOS EMPREENDIMENTOS'!CD$11,0,IF(CB62='DADOS DOS EMPREENDIMENTOS'!CD$11,SUM(CD$46:CD62)*(1-'DADOS DOS EMPREENDIMENTOS'!#REF!-'DADOS DOS EMPREENDIMENTOS'!#REF!)+'DADOS DOS EMPREENDIMENTOS'!#REF!,IF(CB62='DADOS DOS EMPREENDIMENTOS'!CD$12,'DADOS DOS EMPREENDIMENTOS'!#REF!,CD62*(1-'DADOS DOS EMPREENDIMENTOS'!#REF!-'DADOS DOS EMPREENDIMENTOS'!#REF!)))) -> 
O63: 17 | T63: 17 | Y63: 17 | AD63: 17 | AE63: 2010-10-01 | AF63: 0.1292999998 | AG63: =IF(AD63<'DADOS DOS EMPREENDIMENTOS'!AF$11,0,IF(AD63='DADOS DOS EMPREENDIMENTOS'!AF$11,SUM(AF$46:AF63)*(1-'DADOS DOS EMPREENDIMENTOS'!#REF!-'DADOS DOS EMPREENDIMENTOS'!#REF!)+'DADOS DOS EMPREENDIMENTOS'!#REF!,IF(AD63='DADOS DOS EMPREENDIMENTOS'!#REF!,'DADOS DOS EMPREENDIMENTOS'!#REF!,AF63*(1-'DADOS DOS EMPREENDIMENTOS'!#REF!-'DADOS DOS EMPREENDIMENTOS'!#REF!)))) ->  | AI63: 17 | AJ63: 2010-10-01 | AK63: 0.1292999998 | AL63: =IF(AI63<'DADOS DOS EMPREENDIMENTOS'!AK$11,0,IF(AI63='DADOS DOS EMPREENDIMENTOS'!AK$11,SUM(AK$46:AK63)*(1-'DADOS DOS EMPREENDIMENTOS'!#REF!-'DADOS DOS EMPREENDIMENTOS'!#REF!)+'DADOS DOS EMPREENDIMENTOS'!#REF!,IF(AI63='DADOS DOS EMPREENDIMENTOS'!#REF!,'DADOS DOS EMPREENDIMENTOS'!#REF!,AK63*(1-'DADOS DOS EMPREENDIMENTOS'!#REF!-'DADOS DOS EMPREENDIMENTOS'!#REF!)))) ->  | AN63: 17 | AO63: 2010-10-01 | AP63: 0.1292999998 | AQ63: =IF(AN63<'DADOS DOS EMPREENDIMENTOS'!AP$11,0,IF(AN63='DADOS DOS EMPREENDIMENTOS'!AP$11,SUM(AP$46:AP63)*(1-'DADOS DOS EMPREENDIMENTOS'!#REF!-'DADOS DOS EMPREENDIMENTOS'!#REF!)+'DADOS DOS EMPREENDIMENTOS'!#REF!,IF(AN63='DADOS DOS EMPREENDIMENTOS'!#REF!,'DADOS DOS EMPREENDIMENTOS'!#REF!,AP63*(1-'DADOS DOS EMPREENDIMENTOS'!#REF!-'DADOS DOS EMPREENDIMENTOS'!#REF!)))) ->  | AS63: 17 | AT63: 2010-10-01 | AU63: 0.1292999998 | AV63: =IF(AS63<'DADOS DOS EMPREENDIMENTOS'!AU$11,0,IF(AS63='DADOS DOS EMPREENDIMENTOS'!AU$11,SUM(AU$46:AU63)*(1-'DADOS DOS EMPREENDIMENTOS'!#REF!-'DADOS DOS EMPREENDIMENTOS'!#REF!)+'DADOS DOS EMPREENDIMENTOS'!#REF!,IF(AS63='DADOS DOS EMPREENDIMENTOS'!#REF!,'DADOS DOS EMPREENDIMENTOS'!#REF!,AU63*(1-'DADOS DOS EMPREENDIMENTOS'!#REF!-'DADOS DOS EMPREENDIMENTOS'!#REF!)))) ->  | AX63: 17 | AY63: 2010-10-01 | AZ63: 0.1292999998 | BA63: =IF(AX63<'DADOS DOS EMPREENDIMENTOS'!AZ$11,0,IF(AX63='DADOS DOS EMPREENDIMENTOS'!AZ$11,SUM(AZ$46:AZ63)*(1-'DADOS DOS EMPREENDIMENTOS'!#REF!-'DADOS DOS EMPREENDIMENTOS'!#REF!)+'DADOS DOS EMPREENDIMENTOS'!#REF!,IF(AX63='DADOS DOS EMPREENDIMENTOS'!#REF!,'DADOS DOS EMPREENDIMENTOS'!#REF!,AZ63*(1-'DADOS DOS EMPREENDIMENTOS'!#REF!-'DADOS DOS EMPREENDIMENTOS'!#REF!)))) ->  | BC63: 17 | BD63: 2010-10-01 | BE63: 0.1292999998 | BF63: =IF(BC63<'DADOS DOS EMPREENDIMENTOS'!BE$11,0,IF(BC63='DADOS DOS EMPREENDIMENTOS'!BE$11,SUM(BE$46:BE63)*(1-'DADOS DOS EMPREENDIMENTOS'!#REF!-'DADOS DOS EMPREENDIMENTOS'!#REF!)+'DADOS DOS EMPREENDIMENTOS'!#REF!,IF(BC63='DADOS DOS EMPREENDIMENTOS'!#REF!,'DADOS DOS EMPREENDIMENTOS'!#REF!,BE63*(1-'DADOS DOS EMPREENDIMENTOS'!#REF!-'DADOS DOS EMPREENDIMENTOS'!#REF!)))) ->  | BH63: 17 | BI63: 2010-10-01 | BJ63: 0.1292999998 | BK63: =IF(BH63<'DADOS DOS EMPREENDIMENTOS'!BJ$11,0,IF(BH63='DADOS DOS EMPREENDIMENTOS'!BJ$11,SUM(BJ$46:BJ63)*(1-'DADOS DOS EMPREENDIMENTOS'!#REF!-'DADOS DOS EMPREENDIMENTOS'!#REF!)+'DADOS DOS EMPREENDIMENTOS'!#REF!,IF(BH63='DADOS DOS EMPREENDIMENTOS'!#REF!,'DADOS DOS EMPREENDIMENTOS'!#REF!,BJ63*(1-'DADOS DOS EMPREENDIMENTOS'!#REF!-'DADOS DOS EMPREENDIMENTOS'!#REF!)))) ->  | BM63: 17 | BN63: 2010-10-01 | BO63: 0.1292999998 | BP63: =IF(BM63<'DADOS DOS EMPREENDIMENTOS'!BO$11,0,IF(BM63='DADOS DOS EMPREENDIMENTOS'!BO$11,SUM(BO$46:BO63)*(1-'DADOS DOS EMPREENDIMENTOS'!#REF!-'DADOS DOS EMPREENDIMENTOS'!#REF!)+'DADOS DOS EMPREENDIMENTOS'!#REF!,IF(BM63='DADOS DOS EMPREENDIMENTOS'!BO$12,'DADOS DOS EMPREENDIMENTOS'!#REF!,BO63*(1-'DADOS DOS EMPREENDIMENTOS'!#REF!-'DADOS DOS EMPREENDIMENTOS'!#REF!)))) ->  | BR63: 17 | BS63: 2010-10-01 | BT63: 0.1292999998 | BU63: =IF(BR63<'DADOS DOS EMPREENDIMENTOS'!BT$11,0,IF(BR63='DADOS DOS EMPREENDIMENTOS'!BT$11,SUM(BT$46:BT63)*(1-'DADOS DOS EMPREENDIMENTOS'!#REF!-'DADOS DOS EMPREENDIMENTOS'!#REF!)+'DADOS DOS EMPREENDIMENTOS'!#REF!,IF(BR63='DADOS DOS EMPREENDIMENTOS'!BT$12,'DADOS DOS EMPREENDIMENTOS'!#REF!,BT63*(1-'DADOS DOS EMPREENDIMENTOS'!#REF!-'DADOS DOS EMPREENDIMENTOS'!#REF!)))) ->  | BW63: 17 | BX63: 2010-10-01 | BY63: 0.1292999998 | BZ63: =IF(BW63<'DADOS DOS EMPREENDIMENTOS'!BY$11,0,IF(BW63='DADOS DOS EMPREENDIMENTOS'!BY$11,SUM(BY$46:BY63)*(1-'DADOS DOS EMPREENDIMENTOS'!#REF!-'DADOS DOS EMPREENDIMENTOS'!#REF!)+'DADOS DOS EMPREENDIMENTOS'!#REF!,IF(BW63='DADOS DOS EMPREENDIMENTOS'!BY$12,'DADOS DOS EMPREENDIMENTOS'!#REF!,BY63*(1-'DADOS DOS EMPREENDIMENTOS'!#REF!-'DADOS DOS EMPREENDIMENTOS'!#REF!)))) ->  | CB63: 17 | CC63: 2010-10-01 | CD63: 0.1292999998 | CE63: =IF(CB63<'DADOS DOS EMPREENDIMENTOS'!CD$11,0,IF(CB63='DADOS DOS EMPREENDIMENTOS'!CD$11,SUM(CD$46:CD63)*(1-'DADOS DOS EMPREENDIMENTOS'!#REF!-'DADOS DOS EMPREENDIMENTOS'!#REF!)+'DADOS DOS EMPREENDIMENTOS'!#REF!,IF(CB63='DADOS DOS EMPREENDIMENTOS'!CD$12,'DADOS DOS EMPREENDIMENTOS'!#REF!,CD63*(1-'DADOS DOS EMPREENDIMENTOS'!#REF!-'DADOS DOS EMPREENDIMENTOS'!#REF!)))) -> 
O64: 18 | T64: 18 | Y64: 18 | AD64: 18 | AE64: 2010-11-01 | AF64: 0.1044 | AG64: =IF(AD64<'DADOS DOS EMPREENDIMENTOS'!AF$11,0,IF(AD64='DADOS DOS EMPREENDIMENTOS'!AF$11,SUM(AF$46:AF64)*(1-'DADOS DOS EMPREENDIMENTOS'!#REF!-'DADOS DOS EMPREENDIMENTOS'!#REF!)+'DADOS DOS EMPREENDIMENTOS'!#REF!,IF(AD64='DADOS DOS EMPREENDIMENTOS'!#REF!,'DADOS DOS EMPREENDIMENTOS'!#REF!,AF64*(1-'DADOS DOS EMPREENDIMENTOS'!#REF!-'DADOS DOS EMPREENDIMENTOS'!#REF!)))) ->  | AI64: 18 | AJ64: 2010-11-01 | AK64: 0.1044 | AL64: =IF(AI64<'DADOS DOS EMPREENDIMENTOS'!AK$11,0,IF(AI64='DADOS DOS EMPREENDIMENTOS'!AK$11,SUM(AK$46:AK64)*(1-'DADOS DOS EMPREENDIMENTOS'!#REF!-'DADOS DOS EMPREENDIMENTOS'!#REF!)+'DADOS DOS EMPREENDIMENTOS'!#REF!,IF(AI64='DADOS DOS EMPREENDIMENTOS'!#REF!,'DADOS DOS EMPREENDIMENTOS'!#REF!,AK64*(1-'DADOS DOS EMPREENDIMENTOS'!#REF!-'DADOS DOS EMPREENDIMENTOS'!#REF!)))) ->  | AN64: 18 | AO64: 2010-11-01 | AP64: 0.1044 | AQ64: =IF(AN64<'DADOS DOS EMPREENDIMENTOS'!AP$11,0,IF(AN64='DADOS DOS EMPREENDIMENTOS'!AP$11,SUM(AP$46:AP64)*(1-'DADOS DOS EMPREENDIMENTOS'!#REF!-'DADOS DOS EMPREENDIMENTOS'!#REF!)+'DADOS DOS EMPREENDIMENTOS'!#REF!,IF(AN64='DADOS DOS EMPREENDIMENTOS'!#REF!,'DADOS DOS EMPREENDIMENTOS'!#REF!,AP64*(1-'DADOS DOS EMPREENDIMENTOS'!#REF!-'DADOS DOS EMPREENDIMENTOS'!#REF!)))) ->  | AS64: 18 | AT64: 2010-11-01 | AU64: 0.1044 | AV64: =IF(AS64<'DADOS DOS EMPREENDIMENTOS'!AU$11,0,IF(AS64='DADOS DOS EMPREENDIMENTOS'!AU$11,SUM(AU$46:AU64)*(1-'DADOS DOS EMPREENDIMENTOS'!#REF!-'DADOS DOS EMPREENDIMENTOS'!#REF!)+'DADOS DOS EMPREENDIMENTOS'!#REF!,IF(AS64='DADOS DOS EMPREENDIMENTOS'!#REF!,'DADOS DOS EMPREENDIMENTOS'!#REF!,AU64*(1-'DADOS DOS EMPREENDIMENTOS'!#REF!-'DADOS DOS EMPREENDIMENTOS'!#REF!)))) ->  | AX64: 18 | AY64: 2010-11-01 | AZ64: 0.1044 | BA64: =IF(AX64<'DADOS DOS EMPREENDIMENTOS'!AZ$11,0,IF(AX64='DADOS DOS EMPREENDIMENTOS'!AZ$11,SUM(AZ$46:AZ64)*(1-'DADOS DOS EMPREENDIMENTOS'!#REF!-'DADOS DOS EMPREENDIMENTOS'!#REF!)+'DADOS DOS EMPREENDIMENTOS'!#REF!,IF(AX64='DADOS DOS EMPREENDIMENTOS'!#REF!,'DADOS DOS EMPREENDIMENTOS'!#REF!,AZ64*(1-'DADOS DOS EMPREENDIMENTOS'!#REF!-'DADOS DOS EMPREENDIMENTOS'!#REF!)))) ->  | BC64: 18 | BD64: 2010-11-01 | BE64: 0.1044 | BF64: =IF(BC64<'DADOS DOS EMPREENDIMENTOS'!BE$11,0,IF(BC64='DADOS DOS EMPREENDIMENTOS'!BE$11,SUM(BE$46:BE64)*(1-'DADOS DOS EMPREENDIMENTOS'!#REF!-'DADOS DOS EMPREENDIMENTOS'!#REF!)+'DADOS DOS EMPREENDIMENTOS'!#REF!,IF(BC64='DADOS DOS EMPREENDIMENTOS'!#REF!,'DADOS DOS EMPREENDIMENTOS'!#REF!,BE64*(1-'DADOS DOS EMPREENDIMENTOS'!#REF!-'DADOS DOS EMPREENDIMENTOS'!#REF!)))) ->  | BH64: 18 | BI64: 2010-11-01 | BJ64: 0.1044 | BK64: =IF(BH64<'DADOS DOS EMPREENDIMENTOS'!BJ$11,0,IF(BH64='DADOS DOS EMPREENDIMENTOS'!BJ$11,SUM(BJ$46:BJ64)*(1-'DADOS DOS EMPREENDIMENTOS'!#REF!-'DADOS DOS EMPREENDIMENTOS'!#REF!)+'DADOS DOS EMPREENDIMENTOS'!#REF!,IF(BH64='DADOS DOS EMPREENDIMENTOS'!#REF!,'DADOS DOS EMPREENDIMENTOS'!#REF!,BJ64*(1-'DADOS DOS EMPREENDIMENTOS'!#REF!-'DADOS DOS EMPREENDIMENTOS'!#REF!)))) ->  | BM64: 18 | BN64: 2010-11-01 | BO64: 0.1044 | BP64: =IF(BM64<'DADOS DOS EMPREENDIMENTOS'!BO$11,0,IF(BM64='DADOS DOS EMPREENDIMENTOS'!BO$11,SUM(BO$46:BO64)*(1-'DADOS DOS EMPREENDIMENTOS'!#REF!-'DADOS DOS EMPREENDIMENTOS'!#REF!)+'DADOS DOS EMPREENDIMENTOS'!#REF!,IF(BM64='DADOS DOS EMPREENDIMENTOS'!BO$12,'DADOS DOS EMPREENDIMENTOS'!#REF!,BO64*(1-'DADOS DOS EMPREENDIMENTOS'!#REF!-'DADOS DOS EMPREENDIMENTOS'!#REF!)))) ->  | BR64: 18 | BS64: 2010-11-01 | BT64: 0.1044 | BU64: =IF(BR64<'DADOS DOS EMPREENDIMENTOS'!BT$11,0,IF(BR64='DADOS DOS EMPREENDIMENTOS'!BT$11,SUM(BT$46:BT64)*(1-'DADOS DOS EMPREENDIMENTOS'!#REF!-'DADOS DOS EMPREENDIMENTOS'!#REF!)+'DADOS DOS EMPREENDIMENTOS'!#REF!,IF(BR64='DADOS DOS EMPREENDIMENTOS'!BT$12,'DADOS DOS EMPREENDIMENTOS'!#REF!,BT64*(1-'DADOS DOS EMPREENDIMENTOS'!#REF!-'DADOS DOS EMPREENDIMENTOS'!#REF!)))) ->  | BW64: 18 | BX64: 2010-11-01 | BY64: 0.1044 | BZ64: =IF(BW64<'DADOS DOS EMPREENDIMENTOS'!BY$11,0,IF(BW64='DADOS DOS EMPREENDIMENTOS'!BY$11,SUM(BY$46:BY64)*(1-'DADOS DOS EMPREENDIMENTOS'!#REF!-'DADOS DOS EMPREENDIMENTOS'!#REF!)+'DADOS DOS EMPREENDIMENTOS'!#REF!,IF(BW64='DADOS DOS EMPREENDIMENTOS'!BY$12,'DADOS DOS EMPREENDIMENTOS'!#REF!,BY64*(1-'DADOS DOS EMPREENDIMENTOS'!#REF!-'DADOS DOS EMPREENDIMENTOS'!#REF!)))) ->  | CB64: 18 | CC64: 2010-11-01 | CD64: 0.1044 | CE64: =IF(CB64<'DADOS DOS EMPREENDIMENTOS'!CD$11,0,IF(CB64='DADOS DOS EMPREENDIMENTOS'!CD$11,SUM(CD$46:CD64)*(1-'DADOS DOS EMPREENDIMENTOS'!#REF!-'DADOS DOS EMPREENDIMENTOS'!#REF!)+'DADOS DOS EMPREENDIMENTOS'!#REF!,IF(CB64='DADOS DOS EMPREENDIMENTOS'!CD$12,'DADOS DOS EMPREENDIMENTOS'!#REF!,CD64*(1-'DADOS DOS EMPREENDIMENTOS'!#REF!-'DADOS DOS EMPREENDIMENTOS'!#REF!)))) -> 
O65: 19 | T65: 19 | Y65: 19 | AD65: 19 | AE65: 2010-12-01 | AF65: 0.05610000015 | AG65: =IF(AD65<'DADOS DOS EMPREENDIMENTOS'!AF$11,0,IF(AD65='DADOS DOS EMPREENDIMENTOS'!AF$11,SUM(AF$46:AF65)*(1-'DADOS DOS EMPREENDIMENTOS'!#REF!-'DADOS DOS EMPREENDIMENTOS'!#REF!)+'DADOS DOS EMPREENDIMENTOS'!#REF!,IF(AD65='DADOS DOS EMPREENDIMENTOS'!#REF!,'DADOS DOS EMPREENDIMENTOS'!#REF!,AF65*(1-'DADOS DOS EMPREENDIMENTOS'!#REF!-'DADOS DOS EMPREENDIMENTOS'!#REF!)))) ->  | AI65: 19 | AJ65: 2010-12-01 | AK65: 0.05610000015 | AL65: =IF(AI65<'DADOS DOS EMPREENDIMENTOS'!AK$11,0,IF(AI65='DADOS DOS EMPREENDIMENTOS'!AK$11,SUM(AK$46:AK65)*(1-'DADOS DOS EMPREENDIMENTOS'!#REF!-'DADOS DOS EMPREENDIMENTOS'!#REF!)+'DADOS DOS EMPREENDIMENTOS'!#REF!,IF(AI65='DADOS DOS EMPREENDIMENTOS'!#REF!,'DADOS DOS EMPREENDIMENTOS'!#REF!,AK65*(1-'DADOS DOS EMPREENDIMENTOS'!#REF!-'DADOS DOS EMPREENDIMENTOS'!#REF!)))) ->  | AN65: 19 | AO65: 2010-12-01 | AP65: 0.05610000015 | AQ65: =IF(AN65<'DADOS DOS EMPREENDIMENTOS'!AP$11,0,IF(AN65='DADOS DOS EMPREENDIMENTOS'!AP$11,SUM(AP$46:AP65)*(1-'DADOS DOS EMPREENDIMENTOS'!#REF!-'DADOS DOS EMPREENDIMENTOS'!#REF!)+'DADOS DOS EMPREENDIMENTOS'!#REF!,IF(AN65='DADOS DOS EMPREENDIMENTOS'!#REF!,'DADOS DOS EMPREENDIMENTOS'!#REF!,AP65*(1-'DADOS DOS EMPREENDIMENTOS'!#REF!-'DADOS DOS EMPREENDIMENTOS'!#REF!)))) ->  | AS65: 19 | AT65: 2010-12-01 | AU65: 0.05610000015 | AV65: =IF(AS65<'DADOS DOS EMPREENDIMENTOS'!AU$11,0,IF(AS65='DADOS DOS EMPREENDIMENTOS'!AU$11,SUM(AU$46:AU65)*(1-'DADOS DOS EMPREENDIMENTOS'!#REF!-'DADOS DOS EMPREENDIMENTOS'!#REF!)+'DADOS DOS EMPREENDIMENTOS'!#REF!,IF(AS65='DADOS DOS EMPREENDIMENTOS'!#REF!,'DADOS DOS EMPREENDIMENTOS'!#REF!,AU65*(1-'DADOS DOS EMPREENDIMENTOS'!#REF!-'DADOS DOS EMPREENDIMENTOS'!#REF!)))) ->  | AX65: 19 | AY65: 2010-12-01 | AZ65: 0.05610000015 | BA65: =IF(AX65<'DADOS DOS EMPREENDIMENTOS'!AZ$11,0,IF(AX65='DADOS DOS EMPREENDIMENTOS'!AZ$11,SUM(AZ$46:AZ65)*(1-'DADOS DOS EMPREENDIMENTOS'!#REF!-'DADOS DOS EMPREENDIMENTOS'!#REF!)+'DADOS DOS EMPREENDIMENTOS'!#REF!,IF(AX65='DADOS DOS EMPREENDIMENTOS'!#REF!,'DADOS DOS EMPREENDIMENTOS'!#REF!,AZ65*(1-'DADOS DOS EMPREENDIMENTOS'!#REF!-'DADOS DOS EMPREENDIMENTOS'!#REF!)))) ->  | BC65: 19 | BD65: 2010-12-01 | BE65: 0.05610000015 | BF65: =IF(BC65<'DADOS DOS EMPREENDIMENTOS'!BE$11,0,IF(BC65='DADOS DOS EMPREENDIMENTOS'!BE$11,SUM(BE$46:BE65)*(1-'DADOS DOS EMPREENDIMENTOS'!#REF!-'DADOS DOS EMPREENDIMENTOS'!#REF!)+'DADOS DOS EMPREENDIMENTOS'!#REF!,IF(BC65='DADOS DOS EMPREENDIMENTOS'!#REF!,'DADOS DOS EMPREENDIMENTOS'!#REF!,BE65*(1-'DADOS DOS EMPREENDIMENTOS'!#REF!-'DADOS DOS EMPREENDIMENTOS'!#REF!)))) ->  | BH65: 19 | BI65: 2010-12-01 | BJ65: 0.05610000015 | BK65: =IF(BH65<'DADOS DOS EMPREENDIMENTOS'!BJ$11,0,IF(BH65='DADOS DOS EMPREENDIMENTOS'!BJ$11,SUM(BJ$46:BJ65)*(1-'DADOS DOS EMPREENDIMENTOS'!#REF!-'DADOS DOS EMPREENDIMENTOS'!#REF!)+'DADOS DOS EMPREENDIMENTOS'!#REF!,IF(BH65='DADOS DOS EMPREENDIMENTOS'!#REF!,'DADOS DOS EMPREENDIMENTOS'!#REF!,BJ65*(1-'DADOS DOS EMPREENDIMENTOS'!#REF!-'DADOS DOS EMPREENDIMENTOS'!#REF!)))) ->  | BM65: 19 | BN65: 2010-12-01 | BO65: 0.05610000015 | BP65: =IF(BM65<'DADOS DOS EMPREENDIMENTOS'!BO$11,0,IF(BM65='DADOS DOS EMPREENDIMENTOS'!BO$11,SUM(BO$46:BO65)*(1-'DADOS DOS EMPREENDIMENTOS'!#REF!-'DADOS DOS EMPREENDIMENTOS'!#REF!)+'DADOS DOS EMPREENDIMENTOS'!#REF!,IF(BM65='DADOS DOS EMPREENDIMENTOS'!BO$12,'DADOS DOS EMPREENDIMENTOS'!#REF!,BO65*(1-'DADOS DOS EMPREENDIMENTOS'!#REF!-'DADOS DOS EMPREENDIMENTOS'!#REF!)))) ->  | BR65: 19 | BS65: 2010-12-01 | BT65: 0.05610000015 | BU65: =IF(BR65<'DADOS DOS EMPREENDIMENTOS'!BT$11,0,IF(BR65='DADOS DOS EMPREENDIMENTOS'!BT$11,SUM(BT$46:BT65)*(1-'DADOS DOS EMPREENDIMENTOS'!#REF!-'DADOS DOS EMPREENDIMENTOS'!#REF!)+'DADOS DOS EMPREENDIMENTOS'!#REF!,IF(BR65='DADOS DOS EMPREENDIMENTOS'!BT$12,'DADOS DOS EMPREENDIMENTOS'!#REF!,BT65*(1-'DADOS DOS EMPREENDIMENTOS'!#REF!-'DADOS DOS EMPREENDIMENTOS'!#REF!)))) ->  | BW65: 19 | BX65: 2010-12-01 | BY65: 0.05610000015 | BZ65: =IF(BW65<'DADOS DOS EMPREENDIMENTOS'!BY$11,0,IF(BW65='DADOS DOS EMPREENDIMENTOS'!BY$11,SUM(BY$46:BY65)*(1-'DADOS DOS EMPREENDIMENTOS'!#REF!-'DADOS DOS EMPREENDIMENTOS'!#REF!)+'DADOS DOS EMPREENDIMENTOS'!#REF!,IF(BW65='DADOS DOS EMPREENDIMENTOS'!BY$12,'DADOS DOS EMPREENDIMENTOS'!#REF!,BY65*(1-'DADOS DOS EMPREENDIMENTOS'!#REF!-'DADOS DOS EMPREENDIMENTOS'!#REF!)))) ->  | CB65: 19 | CC65: 2010-12-01 | CD65: 0.05610000015 | CE65: =IF(CB65<'DADOS DOS EMPREENDIMENTOS'!CD$11,0,IF(CB65='DADOS DOS EMPREENDIMENTOS'!CD$11,SUM(CD$46:CD65)*(1-'DADOS DOS EMPREENDIMENTOS'!#REF!-'DADOS DOS EMPREENDIMENTOS'!#REF!)+'DADOS DOS EMPREENDIMENTOS'!#REF!,IF(CB65='DADOS DOS EMPREENDIMENTOS'!CD$12,'DADOS DOS EMPREENDIMENTOS'!#REF!,CD65*(1-'DADOS DOS EMPREENDIMENTOS'!#REF!-'DADOS DOS EMPREENDIMENTOS'!#REF!)))) -> 
O66: 20 | T66: 20 | Y66: 20 | AD66: 20 | AE66: 2011-01-01 | AF66: 0.008900000127 | AG66: =IF(AD66<'DADOS DOS EMPREENDIMENTOS'!AF$11,0,IF(AD66='DADOS DOS EMPREENDIMENTOS'!AF$11,SUM(AF$46:AF66)*(1-'DADOS DOS EMPREENDIMENTOS'!#REF!-'DADOS DOS EMPREENDIMENTOS'!#REF!)+'DADOS DOS EMPREENDIMENTOS'!#REF!,IF(AD66='DADOS DOS EMPREENDIMENTOS'!#REF!,'DADOS DOS EMPREENDIMENTOS'!#REF!,AF66*(1-'DADOS DOS EMPREENDIMENTOS'!#REF!-'DADOS DOS EMPREENDIMENTOS'!#REF!)))) ->  | AI66: 20 | AJ66: 2011-01-01 | AK66: 0.008900000127 | AL66: =IF(AI66<'DADOS DOS EMPREENDIMENTOS'!AK$11,0,IF(AI66='DADOS DOS EMPREENDIMENTOS'!AK$11,SUM(AK$46:AK66)*(1-'DADOS DOS EMPREENDIMENTOS'!#REF!-'DADOS DOS EMPREENDIMENTOS'!#REF!)+'DADOS DOS EMPREENDIMENTOS'!#REF!,IF(AI66='DADOS DOS EMPREENDIMENTOS'!#REF!,'DADOS DOS EMPREENDIMENTOS'!#REF!,AK66*(1-'DADOS DOS EMPREENDIMENTOS'!#REF!-'DADOS DOS EMPREENDIMENTOS'!#REF!)))) ->  | AN66: 20 | AO66: 2011-01-01 | AP66: 0.008900000127 | AQ66: =IF(AN66<'DADOS DOS EMPREENDIMENTOS'!AP$11,0,IF(AN66='DADOS DOS EMPREENDIMENTOS'!AP$11,SUM(AP$46:AP66)*(1-'DADOS DOS EMPREENDIMENTOS'!#REF!-'DADOS DOS EMPREENDIMENTOS'!#REF!)+'DADOS DOS EMPREENDIMENTOS'!#REF!,IF(AN66='DADOS DOS EMPREENDIMENTOS'!#REF!,'DADOS DOS EMPREENDIMENTOS'!#REF!,AP66*(1-'DADOS DOS EMPREENDIMENTOS'!#REF!-'DADOS DOS EMPREENDIMENTOS'!#REF!)))) ->  | AS66: 20 | AT66: 2011-01-01 | AU66: 0.008900000127 | AV66: =IF(AS66<'DADOS DOS EMPREENDIMENTOS'!AU$11,0,IF(AS66='DADOS DOS EMPREENDIMENTOS'!AU$11,SUM(AU$46:AU66)*(1-'DADOS DOS EMPREENDIMENTOS'!#REF!-'DADOS DOS EMPREENDIMENTOS'!#REF!)+'DADOS DOS EMPREENDIMENTOS'!#REF!,IF(AS66='DADOS DOS EMPREENDIMENTOS'!#REF!,'DADOS DOS EMPREENDIMENTOS'!#REF!,AU66*(1-'DADOS DOS EMPREENDIMENTOS'!#REF!-'DADOS DOS EMPREENDIMENTOS'!#REF!)))) ->  | AX66: 20 | AY66: 2011-01-01 | AZ66: 0.008900000127 | BA66: =IF(AX66<'DADOS DOS EMPREENDIMENTOS'!AZ$11,0,IF(AX66='DADOS DOS EMPREENDIMENTOS'!AZ$11,SUM(AZ$46:AZ66)*(1-'DADOS DOS EMPREENDIMENTOS'!#REF!-'DADOS DOS EMPREENDIMENTOS'!#REF!)+'DADOS DOS EMPREENDIMENTOS'!#REF!,IF(AX66='DADOS DOS EMPREENDIMENTOS'!#REF!,'DADOS DOS EMPREENDIMENTOS'!#REF!,AZ66*(1-'DADOS DOS EMPREENDIMENTOS'!#REF!-'DADOS DOS EMPREENDIMENTOS'!#REF!)))) ->  | BC66: 20 | BD66: 2011-01-01 | BE66: 0.008900000127 | BF66: =IF(BC66<'DADOS DOS EMPREENDIMENTOS'!BE$11,0,IF(BC66='DADOS DOS EMPREENDIMENTOS'!BE$11,SUM(BE$46:BE66)*(1-'DADOS DOS EMPREENDIMENTOS'!#REF!-'DADOS DOS EMPREENDIMENTOS'!#REF!)+'DADOS DOS EMPREENDIMENTOS'!#REF!,IF(BC66='DADOS DOS EMPREENDIMENTOS'!#REF!,'DADOS DOS EMPREENDIMENTOS'!#REF!,BE66*(1-'DADOS DOS EMPREENDIMENTOS'!#REF!-'DADOS DOS EMPREENDIMENTOS'!#REF!)))) ->  | BH66: 20 | BI66: 2011-01-01 | BJ66: 0.008900000127 | BK66: =IF(BH66<'DADOS DOS EMPREENDIMENTOS'!BJ$11,0,IF(BH66='DADOS DOS EMPREENDIMENTOS'!BJ$11,SUM(BJ$46:BJ66)*(1-'DADOS DOS EMPREENDIMENTOS'!#REF!-'DADOS DOS EMPREENDIMENTOS'!#REF!)+'DADOS DOS EMPREENDIMENTOS'!#REF!,IF(BH66='DADOS DOS EMPREENDIMENTOS'!#REF!,'DADOS DOS EMPREENDIMENTOS'!#REF!,BJ66*(1-'DADOS DOS EMPREENDIMENTOS'!#REF!-'DADOS DOS EMPREENDIMENTOS'!#REF!)))) ->  | BM66: 20 | BN66: 2011-01-01 | BO66: 0.008900000127 | BP66: =IF(BM66<'DADOS DOS EMPREENDIMENTOS'!BO$11,0,IF(BM66='DADOS DOS EMPREENDIMENTOS'!BO$11,SUM(BO$46:BO66)*(1-'DADOS DOS EMPREENDIMENTOS'!#REF!-'DADOS DOS EMPREENDIMENTOS'!#REF!)+'DADOS DOS EMPREENDIMENTOS'!#REF!,IF(BM66='DADOS DOS EMPREENDIMENTOS'!BO$12,'DADOS DOS EMPREENDIMENTOS'!#REF!,BO66*(1-'DADOS DOS EMPREENDIMENTOS'!#REF!-'DADOS DOS EMPREENDIMENTOS'!#REF!)))) ->  | BR66: 20 | BS66: 2011-01-01 | BT66: 0.008900000127 | BU66: =IF(BR66<'DADOS DOS EMPREENDIMENTOS'!BT$11,0,IF(BR66='DADOS DOS EMPREENDIMENTOS'!BT$11,SUM(BT$46:BT66)*(1-'DADOS DOS EMPREENDIMENTOS'!#REF!-'DADOS DOS EMPREENDIMENTOS'!#REF!)+'DADOS DOS EMPREENDIMENTOS'!#REF!,IF(BR66='DADOS DOS EMPREENDIMENTOS'!BT$12,'DADOS DOS EMPREENDIMENTOS'!#REF!,BT66*(1-'DADOS DOS EMPREENDIMENTOS'!#REF!-'DADOS DOS EMPREENDIMENTOS'!#REF!)))) ->  | BW66: 20 | BX66: 2011-01-01 | BY66: 0.008900000127 | BZ66: =IF(BW66<'DADOS DOS EMPREENDIMENTOS'!BY$11,0,IF(BW66='DADOS DOS EMPREENDIMENTOS'!BY$11,SUM(BY$46:BY66)*(1-'DADOS DOS EMPREENDIMENTOS'!#REF!-'DADOS DOS EMPREENDIMENTOS'!#REF!)+'DADOS DOS EMPREENDIMENTOS'!#REF!,IF(BW66='DADOS DOS EMPREENDIMENTOS'!BY$12,'DADOS DOS EMPREENDIMENTOS'!#REF!,BY66*(1-'DADOS DOS EMPREENDIMENTOS'!#REF!-'DADOS DOS EMPREENDIMENTOS'!#REF!)))) ->  | CB66: 20 | CC66: 2011-01-01 | CD66: 0.008900000127 | CE66: =IF(CB66<'DADOS DOS EMPREENDIMENTOS'!CD$11,0,IF(CB66='DADOS DOS EMPREENDIMENTOS'!CD$11,SUM(CD$46:CD66)*(1-'DADOS DOS EMPREENDIMENTOS'!#REF!-'DADOS DOS EMPREENDIMENTOS'!#REF!)+'DADOS DOS EMPREENDIMENTOS'!#REF!,IF(CB66='DADOS DOS EMPREENDIMENTOS'!CD$12,'DADOS DOS EMPREENDIMENTOS'!#REF!,CD66*(1-'DADOS DOS EMPREENDIMENTOS'!#REF!-'DADOS DOS EMPREENDIMENTOS'!#REF!)))) -> 
O67: 21 | T67: 21 | Y67: 21 | AD67: 21 | AE67: 2011-02-01 | AF67: 0 | AG67: =IF(AD67<'DADOS DOS EMPREENDIMENTOS'!AF$11,0,IF(AD67='DADOS DOS EMPREENDIMENTOS'!AF$11,SUM(AF$46:AF67)*(1-'DADOS DOS EMPREENDIMENTOS'!#REF!-'DADOS DOS EMPREENDIMENTOS'!#REF!)+'DADOS DOS EMPREENDIMENTOS'!#REF!,IF(AD67='DADOS DOS EMPREENDIMENTOS'!#REF!,'DADOS DOS EMPREENDIMENTOS'!#REF!,AF67*(1-'DADOS DOS EMPREENDIMENTOS'!#REF!-'DADOS DOS EMPREENDIMENTOS'!#REF!)))) ->  | AI67: 21 | AJ67: 2011-02-01 | AK67: 0 | AL67: =IF(AI67<'DADOS DOS EMPREENDIMENTOS'!AK$11,0,IF(AI67='DADOS DOS EMPREENDIMENTOS'!AK$11,SUM(AK$46:AK67)*(1-'DADOS DOS EMPREENDIMENTOS'!#REF!-'DADOS DOS EMPREENDIMENTOS'!#REF!)+'DADOS DOS EMPREENDIMENTOS'!#REF!,IF(AI67='DADOS DOS EMPREENDIMENTOS'!#REF!,'DADOS DOS EMPREENDIMENTOS'!#REF!,AK67*(1-'DADOS DOS EMPREENDIMENTOS'!#REF!-'DADOS DOS EMPREENDIMENTOS'!#REF!)))) ->  | AN67: 21 | AO67: 2011-02-01 | AP67: 0 | AQ67: =IF(AN67<'DADOS DOS EMPREENDIMENTOS'!AP$11,0,IF(AN67='DADOS DOS EMPREENDIMENTOS'!AP$11,SUM(AP$46:AP67)*(1-'DADOS DOS EMPREENDIMENTOS'!#REF!-'DADOS DOS EMPREENDIMENTOS'!#REF!)+'DADOS DOS EMPREENDIMENTOS'!#REF!,IF(AN67='DADOS DOS EMPREENDIMENTOS'!#REF!,'DADOS DOS EMPREENDIMENTOS'!#REF!,AP67*(1-'DADOS DOS EMPREENDIMENTOS'!#REF!-'DADOS DOS EMPREENDIMENTOS'!#REF!)))) ->  | AS67: 21 | AT67: 2011-02-01 | AU67: 0 | AV67: =IF(AS67<'DADOS DOS EMPREENDIMENTOS'!AU$11,0,IF(AS67='DADOS DOS EMPREENDIMENTOS'!AU$11,SUM(AU$46:AU67)*(1-'DADOS DOS EMPREENDIMENTOS'!#REF!-'DADOS DOS EMPREENDIMENTOS'!#REF!)+'DADOS DOS EMPREENDIMENTOS'!#REF!,IF(AS67='DADOS DOS EMPREENDIMENTOS'!#REF!,'DADOS DOS EMPREENDIMENTOS'!#REF!,AU67*(1-'DADOS DOS EMPREENDIMENTOS'!#REF!-'DADOS DOS EMPREENDIMENTOS'!#REF!)))) ->  | AX67: 21 | AY67: 2011-02-01 | AZ67: 0 | BA67: =IF(AX67<'DADOS DOS EMPREENDIMENTOS'!AZ$11,0,IF(AX67='DADOS DOS EMPREENDIMENTOS'!AZ$11,SUM(AZ$46:AZ67)*(1-'DADOS DOS EMPREENDIMENTOS'!#REF!-'DADOS DOS EMPREENDIMENTOS'!#REF!)+'DADOS DOS EMPREENDIMENTOS'!#REF!,IF(AX67='DADOS DOS EMPREENDIMENTOS'!#REF!,'DADOS DOS EMPREENDIMENTOS'!#REF!,AZ67*(1-'DADOS DOS EMPREENDIMENTOS'!#REF!-'DADOS DOS EMPREENDIMENTOS'!#REF!)))) ->  | BC67: 21 | BD67: 2011-02-01 | BE67: 0 | BF67: =IF(BC67<'DADOS DOS EMPREENDIMENTOS'!BE$11,0,IF(BC67='DADOS DOS EMPREENDIMENTOS'!BE$11,SUM(BE$46:BE67)*(1-'DADOS DOS EMPREENDIMENTOS'!#REF!-'DADOS DOS EMPREENDIMENTOS'!#REF!)+'DADOS DOS EMPREENDIMENTOS'!#REF!,IF(BC67='DADOS DOS EMPREENDIMENTOS'!#REF!,'DADOS DOS EMPREENDIMENTOS'!#REF!,BE67*(1-'DADOS DOS EMPREENDIMENTOS'!#REF!-'DADOS DOS EMPREENDIMENTOS'!#REF!)))) ->  | BH67: 21 | BI67: 2011-02-01 | BJ67: 0 | BK67: =IF(BH67<'DADOS DOS EMPREENDIMENTOS'!BJ$11,0,IF(BH67='DADOS DOS EMPREENDIMENTOS'!BJ$11,SUM(BJ$46:BJ67)*(1-'DADOS DOS EMPREENDIMENTOS'!#REF!-'DADOS DOS EMPREENDIMENTOS'!#REF!)+'DADOS DOS EMPREENDIMENTOS'!#REF!,IF(BH67='DADOS DOS EMPREENDIMENTOS'!#REF!,'DADOS DOS EMPREENDIMENTOS'!#REF!,BJ67*(1-'DADOS DOS EMPREENDIMENTOS'!#REF!-'DADOS DOS EMPREENDIMENTOS'!#REF!)))) ->  | BM67: 21 | BN67: 2011-02-01 | BO67: 0 | BP67: =IF(BM67<'DADOS DOS EMPREENDIMENTOS'!BO$11,0,IF(BM67='DADOS DOS EMPREENDIMENTOS'!BO$11,SUM(BO$46:BO67)*(1-'DADOS DOS EMPREENDIMENTOS'!#REF!-'DADOS DOS EMPREENDIMENTOS'!#REF!)+'DADOS DOS EMPREENDIMENTOS'!#REF!,IF(BM67='DADOS DOS EMPREENDIMENTOS'!BO$12,'DADOS DOS EMPREENDIMENTOS'!#REF!,BO67*(1-'DADOS DOS EMPREENDIMENTOS'!#REF!-'DADOS DOS EMPREENDIMENTOS'!#REF!)))) ->  | BR67: 21 | BS67: 2011-02-01 | BT67: 0 | BU67: =IF(BR67<'DADOS DOS EMPREENDIMENTOS'!BT$11,0,IF(BR67='DADOS DOS EMPREENDIMENTOS'!BT$11,SUM(BT$46:BT67)*(1-'DADOS DOS EMPREENDIMENTOS'!#REF!-'DADOS DOS EMPREENDIMENTOS'!#REF!)+'DADOS DOS EMPREENDIMENTOS'!#REF!,IF(BR67='DADOS DOS EMPREENDIMENTOS'!BT$12,'DADOS DOS EMPREENDIMENTOS'!#REF!,BT67*(1-'DADOS DOS EMPREENDIMENTOS'!#REF!-'DADOS DOS EMPREENDIMENTOS'!#REF!)))) ->  | BW67: 21 | BX67: 2011-02-01 | BY67: 0 | BZ67: =IF(BW67<'DADOS DOS EMPREENDIMENTOS'!BY$11,0,IF(BW67='DADOS DOS EMPREENDIMENTOS'!BY$11,SUM(BY$46:BY67)*(1-'DADOS DOS EMPREENDIMENTOS'!#REF!-'DADOS DOS EMPREENDIMENTOS'!#REF!)+'DADOS DOS EMPREENDIMENTOS'!#REF!,IF(BW67='DADOS DOS EMPREENDIMENTOS'!BY$12,'DADOS DOS EMPREENDIMENTOS'!#REF!,BY67*(1-'DADOS DOS EMPREENDIMENTOS'!#REF!-'DADOS DOS EMPREENDIMENTOS'!#REF!)))) ->  | CB67: 21 | CC67: 2011-02-01 | CD67: 0 | CE67: =IF(CB67<'DADOS DOS EMPREENDIMENTOS'!CD$11,0,IF(CB67='DADOS DOS EMPREENDIMENTOS'!CD$11,SUM(CD$46:CD67)*(1-'DADOS DOS EMPREENDIMENTOS'!#REF!-'DADOS DOS EMPREENDIMENTOS'!#REF!)+'DADOS DOS EMPREENDIMENTOS'!#REF!,IF(CB67='DADOS DOS EMPREENDIMENTOS'!CD$12,'DADOS DOS EMPREENDIMENTOS'!#REF!,CD67*(1-'DADOS DOS EMPREENDIMENTOS'!#REF!-'DADOS DOS EMPREENDIMENTOS'!#REF!)))) -> 
O68: 22 | T68: 22 | Y68: 22 | AD68: 22 | AE68: 2011-03-01 | AF68: 0 | AG68: =IF(AD68<'DADOS DOS EMPREENDIMENTOS'!AF$11,0,IF(AD68='DADOS DOS EMPREENDIMENTOS'!AF$11,SUM(AF$46:AF68)*(1-'DADOS DOS EMPREENDIMENTOS'!#REF!-'DADOS DOS EMPREENDIMENTOS'!#REF!)+'DADOS DOS EMPREENDIMENTOS'!#REF!,IF(AD68='DADOS DOS EMPREENDIMENTOS'!#REF!,'DADOS DOS EMPREENDIMENTOS'!#REF!,AF68*(1-'DADOS DOS EMPREENDIMENTOS'!#REF!-'DADOS DOS EMPREENDIMENTOS'!#REF!)))) ->  | AI68: 22 | AJ68: 2011-03-01 | AK68: 0 | AL68: =IF(AI68<'DADOS DOS EMPREENDIMENTOS'!AK$11,0,IF(AI68='DADOS DOS EMPREENDIMENTOS'!AK$11,SUM(AK$46:AK68)*(1-'DADOS DOS EMPREENDIMENTOS'!#REF!-'DADOS DOS EMPREENDIMENTOS'!#REF!)+'DADOS DOS EMPREENDIMENTOS'!#REF!,IF(AI68='DADOS DOS EMPREENDIMENTOS'!#REF!,'DADOS DOS EMPREENDIMENTOS'!#REF!,AK68*(1-'DADOS DOS EMPREENDIMENTOS'!#REF!-'DADOS DOS EMPREENDIMENTOS'!#REF!)))) ->  | AN68: 22 | AO68: 2011-03-01 | AP68: 0 | AQ68: =IF(AN68<'DADOS DOS EMPREENDIMENTOS'!AP$11,0,IF(AN68='DADOS DOS EMPREENDIMENTOS'!AP$11,SUM(AP$46:AP68)*(1-'DADOS DOS EMPREENDIMENTOS'!#REF!-'DADOS DOS EMPREENDIMENTOS'!#REF!)+'DADOS DOS EMPREENDIMENTOS'!#REF!,IF(AN68='DADOS DOS EMPREENDIMENTOS'!#REF!,'DADOS DOS EMPREENDIMENTOS'!#REF!,AP68*(1-'DADOS DOS EMPREENDIMENTOS'!#REF!-'DADOS DOS EMPREENDIMENTOS'!#REF!)))) ->  | AS68: 22 | AT68: 2011-03-01 | AU68: 0 | AV68: =IF(AS68<'DADOS DOS EMPREENDIMENTOS'!AU$11,0,IF(AS68='DADOS DOS EMPREENDIMENTOS'!AU$11,SUM(AU$46:AU68)*(1-'DADOS DOS EMPREENDIMENTOS'!#REF!-'DADOS DOS EMPREENDIMENTOS'!#REF!)+'DADOS DOS EMPREENDIMENTOS'!#REF!,IF(AS68='DADOS DOS EMPREENDIMENTOS'!#REF!,'DADOS DOS EMPREENDIMENTOS'!#REF!,AU68*(1-'DADOS DOS EMPREENDIMENTOS'!#REF!-'DADOS DOS EMPREENDIMENTOS'!#REF!)))) ->  | AX68: 22 | AY68: 2011-03-01 | AZ68: 0 | BA68: =IF(AX68<'DADOS DOS EMPREENDIMENTOS'!AZ$11,0,IF(AX68='DADOS DOS EMPREENDIMENTOS'!AZ$11,SUM(AZ$46:AZ68)*(1-'DADOS DOS EMPREENDIMENTOS'!#REF!-'DADOS DOS EMPREENDIMENTOS'!#REF!)+'DADOS DOS EMPREENDIMENTOS'!#REF!,IF(AX68='DADOS DOS EMPREENDIMENTOS'!#REF!,'DADOS DOS EMPREENDIMENTOS'!#REF!,AZ68*(1-'DADOS DOS EMPREENDIMENTOS'!#REF!-'DADOS DOS EMPREENDIMENTOS'!#REF!)))) ->  | BC68: 22 | BD68: 2011-03-01 | BE68: 0 | BF68: =IF(BC68<'DADOS DOS EMPREENDIMENTOS'!BE$11,0,IF(BC68='DADOS DOS EMPREENDIMENTOS'!BE$11,SUM(BE$46:BE68)*(1-'DADOS DOS EMPREENDIMENTOS'!#REF!-'DADOS DOS EMPREENDIMENTOS'!#REF!)+'DADOS DOS EMPREENDIMENTOS'!#REF!,IF(BC68='DADOS DOS EMPREENDIMENTOS'!#REF!,'DADOS DOS EMPREENDIMENTOS'!#REF!,BE68*(1-'DADOS DOS EMPREENDIMENTOS'!#REF!-'DADOS DOS EMPREENDIMENTOS'!#REF!)))) ->  | BH68: 22 | BI68: 2011-03-01 | BJ68: 0 | BK68: =IF(BH68<'DADOS DOS EMPREENDIMENTOS'!BJ$11,0,IF(BH68='DADOS DOS EMPREENDIMENTOS'!BJ$11,SUM(BJ$46:BJ68)*(1-'DADOS DOS EMPREENDIMENTOS'!#REF!-'DADOS DOS EMPREENDIMENTOS'!#REF!)+'DADOS DOS EMPREENDIMENTOS'!#REF!,IF(BH68='DADOS DOS EMPREENDIMENTOS'!#REF!,'DADOS DOS EMPREENDIMENTOS'!#REF!,BJ68*(1-'DADOS DOS EMPREENDIMENTOS'!#REF!-'DADOS DOS EMPREENDIMENTOS'!#REF!)))) ->  | BM68: 22 | BN68: 2011-03-01 | BO68: 0 | BP68: =IF(BM68<'DADOS DOS EMPREENDIMENTOS'!BO$11,0,IF(BM68='DADOS DOS EMPREENDIMENTOS'!BO$11,SUM(BO$46:BO68)*(1-'DADOS DOS EMPREENDIMENTOS'!#REF!-'DADOS DOS EMPREENDIMENTOS'!#REF!)+'DADOS DOS EMPREENDIMENTOS'!#REF!,IF(BM68='DADOS DOS EMPREENDIMENTOS'!BO$12,'DADOS DOS EMPREENDIMENTOS'!#REF!,BO68*(1-'DADOS DOS EMPREENDIMENTOS'!#REF!-'DADOS DOS EMPREENDIMENTOS'!#REF!)))) ->  | BR68: 22 | BS68: 2011-03-01 | BT68: 0 | BU68: =IF(BR68<'DADOS DOS EMPREENDIMENTOS'!BT$11,0,IF(BR68='DADOS DOS EMPREENDIMENTOS'!BT$11,SUM(BT$46:BT68)*(1-'DADOS DOS EMPREENDIMENTOS'!#REF!-'DADOS DOS EMPREENDIMENTOS'!#REF!)+'DADOS DOS EMPREENDIMENTOS'!#REF!,IF(BR68='DADOS DOS EMPREENDIMENTOS'!BT$12,'DADOS DOS EMPREENDIMENTOS'!#REF!,BT68*(1-'DADOS DOS EMPREENDIMENTOS'!#REF!-'DADOS DOS EMPREENDIMENTOS'!#REF!)))) ->  | BW68: 22 | BX68: 2011-03-01 | BY68: 0 | BZ68: =IF(BW68<'DADOS DOS EMPREENDIMENTOS'!BY$11,0,IF(BW68='DADOS DOS EMPREENDIMENTOS'!BY$11,SUM(BY$46:BY68)*(1-'DADOS DOS EMPREENDIMENTOS'!#REF!-'DADOS DOS EMPREENDIMENTOS'!#REF!)+'DADOS DOS EMPREENDIMENTOS'!#REF!,IF(BW68='DADOS DOS EMPREENDIMENTOS'!BY$12,'DADOS DOS EMPREENDIMENTOS'!#REF!,BY68*(1-'DADOS DOS EMPREENDIMENTOS'!#REF!-'DADOS DOS EMPREENDIMENTOS'!#REF!)))) ->  | CB68: 22 | CC68: 2011-03-01 | CD68: 0 | CE68: =IF(CB68<'DADOS DOS EMPREENDIMENTOS'!CD$11,0,IF(CB68='DADOS DOS EMPREENDIMENTOS'!CD$11,SUM(CD$46:CD68)*(1-'DADOS DOS EMPREENDIMENTOS'!#REF!-'DADOS DOS EMPREENDIMENTOS'!#REF!)+'DADOS DOS EMPREENDIMENTOS'!#REF!,IF(CB68='DADOS DOS EMPREENDIMENTOS'!CD$12,'DADOS DOS EMPREENDIMENTOS'!#REF!,CD68*(1-'DADOS DOS EMPREENDIMENTOS'!#REF!-'DADOS DOS EMPREENDIMENTOS'!#REF!)))) -> 
O69: 23 | T69: 23 | Y69: 23 | AD69: 23 | AE69: 2011-04-01 | AF69: 0 | AG69: =IF(AD69<'DADOS DOS EMPREENDIMENTOS'!AF$11,0,IF(AD69='DADOS DOS EMPREENDIMENTOS'!AF$11,SUM(AF$46:AF69)*(1-'DADOS DOS EMPREENDIMENTOS'!#REF!-'DADOS DOS EMPREENDIMENTOS'!#REF!)+'DADOS DOS EMPREENDIMENTOS'!#REF!,IF(AD69='DADOS DOS EMPREENDIMENTOS'!#REF!,'DADOS DOS EMPREENDIMENTOS'!#REF!,AF69*(1-'DADOS DOS EMPREENDIMENTOS'!#REF!-'DADOS DOS EMPREENDIMENTOS'!#REF!)))) ->  | AI69: 23 | AJ69: 2011-04-01 | AK69: 0 | AL69: =IF(AI69<'DADOS DOS EMPREENDIMENTOS'!AK$11,0,IF(AI69='DADOS DOS EMPREENDIMENTOS'!AK$11,SUM(AK$46:AK69)*(1-'DADOS DOS EMPREENDIMENTOS'!#REF!-'DADOS DOS EMPREENDIMENTOS'!#REF!)+'DADOS DOS EMPREENDIMENTOS'!#REF!,IF(AI69='DADOS DOS EMPREENDIMENTOS'!#REF!,'DADOS DOS EMPREENDIMENTOS'!#REF!,AK69*(1-'DADOS DOS EMPREENDIMENTOS'!#REF!-'DADOS DOS EMPREENDIMENTOS'!#REF!)))) ->  | AN69: 23 | AO69: 2011-04-01 | AP69: 0 | AQ69: =IF(AN69<'DADOS DOS EMPREENDIMENTOS'!AP$11,0,IF(AN69='DADOS DOS EMPREENDIMENTOS'!AP$11,SUM(AP$46:AP69)*(1-'DADOS DOS EMPREENDIMENTOS'!#REF!-'DADOS DOS EMPREENDIMENTOS'!#REF!)+'DADOS DOS EMPREENDIMENTOS'!#REF!,IF(AN69='DADOS DOS EMPREENDIMENTOS'!#REF!,'DADOS DOS EMPREENDIMENTOS'!#REF!,AP69*(1-'DADOS DOS EMPREENDIMENTOS'!#REF!-'DADOS DOS EMPREENDIMENTOS'!#REF!)))) ->  | AS69: 23 | AT69: 2011-04-01 | AU69: 0 | AV69: =IF(AS69<'DADOS DOS EMPREENDIMENTOS'!AU$11,0,IF(AS69='DADOS DOS EMPREENDIMENTOS'!AU$11,SUM(AU$46:AU69)*(1-'DADOS DOS EMPREENDIMENTOS'!#REF!-'DADOS DOS EMPREENDIMENTOS'!#REF!)+'DADOS DOS EMPREENDIMENTOS'!#REF!,IF(AS69='DADOS DOS EMPREENDIMENTOS'!#REF!,'DADOS DOS EMPREENDIMENTOS'!#REF!,AU69*(1-'DADOS DOS EMPREENDIMENTOS'!#REF!-'DADOS DOS EMPREENDIMENTOS'!#REF!)))) ->  | AX69: 23 | AY69: 2011-04-01 | AZ69: 0 | BA69: =IF(AX69<'DADOS DOS EMPREENDIMENTOS'!AZ$11,0,IF(AX69='DADOS DOS EMPREENDIMENTOS'!AZ$11,SUM(AZ$46:AZ69)*(1-'DADOS DOS EMPREENDIMENTOS'!#REF!-'DADOS DOS EMPREENDIMENTOS'!#REF!)+'DADOS DOS EMPREENDIMENTOS'!#REF!,IF(AX69='DADOS DOS EMPREENDIMENTOS'!#REF!,'DADOS DOS EMPREENDIMENTOS'!#REF!,AZ69*(1-'DADOS DOS EMPREENDIMENTOS'!#REF!-'DADOS DOS EMPREENDIMENTOS'!#REF!)))) ->  | BC69: 23 | BD69: 2011-04-01 | BE69: 0 | BF69: =IF(BC69<'DADOS DOS EMPREENDIMENTOS'!BE$11,0,IF(BC69='DADOS DOS EMPREENDIMENTOS'!BE$11,SUM(BE$46:BE69)*(1-'DADOS DOS EMPREENDIMENTOS'!#REF!-'DADOS DOS EMPREENDIMENTOS'!#REF!)+'DADOS DOS EMPREENDIMENTOS'!#REF!,IF(BC69='DADOS DOS EMPREENDIMENTOS'!#REF!,'DADOS DOS EMPREENDIMENTOS'!#REF!,BE69*(1-'DADOS DOS EMPREENDIMENTOS'!#REF!-'DADOS DOS EMPREENDIMENTOS'!#REF!)))) ->  | BH69: 23 | BI69: 2011-04-01 | BJ69: 0 | BK69: =IF(BH69<'DADOS DOS EMPREENDIMENTOS'!BJ$11,0,IF(BH69='DADOS DOS EMPREENDIMENTOS'!BJ$11,SUM(BJ$46:BJ69)*(1-'DADOS DOS EMPREENDIMENTOS'!#REF!-'DADOS DOS EMPREENDIMENTOS'!#REF!)+'DADOS DOS EMPREENDIMENTOS'!#REF!,IF(BH69='DADOS DOS EMPREENDIMENTOS'!#REF!,'DADOS DOS EMPREENDIMENTOS'!#REF!,BJ69*(1-'DADOS DOS EMPREENDIMENTOS'!#REF!-'DADOS DOS EMPREENDIMENTOS'!#REF!)))) ->  | BM69: 23 | BN69: 2011-04-01 | BO69: 0 | BP69: =IF(BM69<'DADOS DOS EMPREENDIMENTOS'!BO$11,0,IF(BM69='DADOS DOS EMPREENDIMENTOS'!BO$11,SUM(BO$46:BO69)*(1-'DADOS DOS EMPREENDIMENTOS'!#REF!-'DADOS DOS EMPREENDIMENTOS'!#REF!)+'DADOS DOS EMPREENDIMENTOS'!#REF!,IF(BM69='DADOS DOS EMPREENDIMENTOS'!BO$12,'DADOS DOS EMPREENDIMENTOS'!#REF!,BO69*(1-'DADOS DOS EMPREENDIMENTOS'!#REF!-'DADOS DOS EMPREENDIMENTOS'!#REF!)))) ->  | BR69: 23 | BS69: 2011-04-01 | BT69: 0 | BU69: =IF(BR69<'DADOS DOS EMPREENDIMENTOS'!BT$11,0,IF(BR69='DADOS DOS EMPREENDIMENTOS'!BT$11,SUM(BT$46:BT69)*(1-'DADOS DOS EMPREENDIMENTOS'!#REF!-'DADOS DOS EMPREENDIMENTOS'!#REF!)+'DADOS DOS EMPREENDIMENTOS'!#REF!,IF(BR69='DADOS DOS EMPREENDIMENTOS'!BT$12,'DADOS DOS EMPREENDIMENTOS'!#REF!,BT69*(1-'DADOS DOS EMPREENDIMENTOS'!#REF!-'DADOS DOS EMPREENDIMENTOS'!#REF!)))) ->  | BW69: 23 | BX69: 2011-04-01 | BY69: 0 | BZ69: =IF(BW69<'DADOS DOS EMPREENDIMENTOS'!BY$11,0,IF(BW69='DADOS DOS EMPREENDIMENTOS'!BY$11,SUM(BY$46:BY69)*(1-'DADOS DOS EMPREENDIMENTOS'!#REF!-'DADOS DOS EMPREENDIMENTOS'!#REF!)+'DADOS DOS EMPREENDIMENTOS'!#REF!,IF(BW69='DADOS DOS EMPREENDIMENTOS'!BY$12,'DADOS DOS EMPREENDIMENTOS'!#REF!,BY69*(1-'DADOS DOS EMPREENDIMENTOS'!#REF!-'DADOS DOS EMPREENDIMENTOS'!#REF!)))) ->  | CB69: 23 | CC69: 2011-04-01 | CD69: 0 | CE69: =IF(CB69<'DADOS DOS EMPREENDIMENTOS'!CD$11,0,IF(CB69='DADOS DOS EMPREENDIMENTOS'!CD$11,SUM(CD$46:CD69)*(1-'DADOS DOS EMPREENDIMENTOS'!#REF!-'DADOS DOS EMPREENDIMENTOS'!#REF!)+'DADOS DOS EMPREENDIMENTOS'!#REF!,IF(CB69='DADOS DOS EMPREENDIMENTOS'!CD$12,'DADOS DOS EMPREENDIMENTOS'!#REF!,CD69*(1-'DADOS DOS EMPREENDIMENTOS'!#REF!-'DADOS DOS EMPREENDIMENTOS'!#REF!)))) -> 
O70: 24 | T70: 24 | Y70: 24 | AD70: 24 | AE70: 2011-05-01 | AF70: 0 | AG70: =IF(AD70<'DADOS DOS EMPREENDIMENTOS'!AF$11,0,IF(AD70='DADOS DOS EMPREENDIMENTOS'!AF$11,SUM(AF$46:AF70)*(1-'DADOS DOS EMPREENDIMENTOS'!#REF!-'DADOS DOS EMPREENDIMENTOS'!#REF!)+'DADOS DOS EMPREENDIMENTOS'!#REF!,IF(AD70='DADOS DOS EMPREENDIMENTOS'!#REF!,'DADOS DOS EMPREENDIMENTOS'!#REF!,AF70*(1-'DADOS DOS EMPREENDIMENTOS'!#REF!-'DADOS DOS EMPREENDIMENTOS'!#REF!)))) ->  | AI70: 24 | AJ70: 2011-05-01 | AK70: 0 | AL70: =IF(AI70<'DADOS DOS EMPREENDIMENTOS'!AK$11,0,IF(AI70='DADOS DOS EMPREENDIMENTOS'!AK$11,SUM(AK$46:AK70)*(1-'DADOS DOS EMPREENDIMENTOS'!#REF!-'DADOS DOS EMPREENDIMENTOS'!#REF!)+'DADOS DOS EMPREENDIMENTOS'!#REF!,IF(AI70='DADOS DOS EMPREENDIMENTOS'!#REF!,'DADOS DOS EMPREENDIMENTOS'!#REF!,AK70*(1-'DADOS DOS EMPREENDIMENTOS'!#REF!-'DADOS DOS EMPREENDIMENTOS'!#REF!)))) ->  | AN70: 24 | AO70: 2011-05-01 | AP70: 0 | AQ70: =IF(AN70<'DADOS DOS EMPREENDIMENTOS'!AP$11,0,IF(AN70='DADOS DOS EMPREENDIMENTOS'!AP$11,SUM(AP$46:AP70)*(1-'DADOS DOS EMPREENDIMENTOS'!#REF!-'DADOS DOS EMPREENDIMENTOS'!#REF!)+'DADOS DOS EMPREENDIMENTOS'!#REF!,IF(AN70='DADOS DOS EMPREENDIMENTOS'!#REF!,'DADOS DOS EMPREENDIMENTOS'!#REF!,AP70*(1-'DADOS DOS EMPREENDIMENTOS'!#REF!-'DADOS DOS EMPREENDIMENTOS'!#REF!)))) ->  | AS70: 24 | AT70: 2011-05-01 | AU70: 0 | AV70: =IF(AS70<'DADOS DOS EMPREENDIMENTOS'!AU$11,0,IF(AS70='DADOS DOS EMPREENDIMENTOS'!AU$11,SUM(AU$46:AU70)*(1-'DADOS DOS EMPREENDIMENTOS'!#REF!-'DADOS DOS EMPREENDIMENTOS'!#REF!)+'DADOS DOS EMPREENDIMENTOS'!#REF!,IF(AS70='DADOS DOS EMPREENDIMENTOS'!#REF!,'DADOS DOS EMPREENDIMENTOS'!#REF!,AU70*(1-'DADOS DOS EMPREENDIMENTOS'!#REF!-'DADOS DOS EMPREENDIMENTOS'!#REF!)))) ->  | AX70: 24 | AY70: 2011-05-01 | AZ70: 0 | BA70: =IF(AX70<'DADOS DOS EMPREENDIMENTOS'!AZ$11,0,IF(AX70='DADOS DOS EMPREENDIMENTOS'!AZ$11,SUM(AZ$46:AZ70)*(1-'DADOS DOS EMPREENDIMENTOS'!#REF!-'DADOS DOS EMPREENDIMENTOS'!#REF!)+'DADOS DOS EMPREENDIMENTOS'!#REF!,IF(AX70='DADOS DOS EMPREENDIMENTOS'!#REF!,'DADOS DOS EMPREENDIMENTOS'!#REF!,AZ70*(1-'DADOS DOS EMPREENDIMENTOS'!#REF!-'DADOS DOS EMPREENDIMENTOS'!#REF!)))) ->  | BC70: 24 | BD70: 2011-05-01 | BE70: 0 | BF70: =IF(BC70<'DADOS DOS EMPREENDIMENTOS'!BE$11,0,IF(BC70='DADOS DOS EMPREENDIMENTOS'!BE$11,SUM(BE$46:BE70)*(1-'DADOS DOS EMPREENDIMENTOS'!#REF!-'DADOS DOS EMPREENDIMENTOS'!#REF!)+'DADOS DOS EMPREENDIMENTOS'!#REF!,IF(BC70='DADOS DOS EMPREENDIMENTOS'!#REF!,'DADOS DOS EMPREENDIMENTOS'!#REF!,BE70*(1-'DADOS DOS EMPREENDIMENTOS'!#REF!-'DADOS DOS EMPREENDIMENTOS'!#REF!)))) ->  | BH70: 24 | BI70: 2011-05-01 | BJ70: 0 | BK70: =IF(BH70<'DADOS DOS EMPREENDIMENTOS'!BJ$11,0,IF(BH70='DADOS DOS EMPREENDIMENTOS'!BJ$11,SUM(BJ$46:BJ70)*(1-'DADOS DOS EMPREENDIMENTOS'!#REF!-'DADOS DOS EMPREENDIMENTOS'!#REF!)+'DADOS DOS EMPREENDIMENTOS'!#REF!,IF(BH70='DADOS DOS EMPREENDIMENTOS'!#REF!,'DADOS DOS EMPREENDIMENTOS'!#REF!,BJ70*(1-'DADOS DOS EMPREENDIMENTOS'!#REF!-'DADOS DOS EMPREENDIMENTOS'!#REF!)))) ->  | BM70: 24 | BN70: 2011-05-01 | BO70: 0 | BP70: =IF(BM70<'DADOS DOS EMPREENDIMENTOS'!BO$11,0,IF(BM70='DADOS DOS EMPREENDIMENTOS'!BO$11,SUM(BO$46:BO70)*(1-'DADOS DOS EMPREENDIMENTOS'!#REF!-'DADOS DOS EMPREENDIMENTOS'!#REF!)+'DADOS DOS EMPREENDIMENTOS'!#REF!,IF(BM70='DADOS DOS EMPREENDIMENTOS'!BO$12,'DADOS DOS EMPREENDIMENTOS'!#REF!,BO70*(1-'DADOS DOS EMPREENDIMENTOS'!#REF!-'DADOS DOS EMPREENDIMENTOS'!#REF!)))) ->  | BR70: 24 | BS70: 2011-05-01 | BT70: 0 | BU70: =IF(BR70<'DADOS DOS EMPREENDIMENTOS'!BT$11,0,IF(BR70='DADOS DOS EMPREENDIMENTOS'!BT$11,SUM(BT$46:BT70)*(1-'DADOS DOS EMPREENDIMENTOS'!#REF!-'DADOS DOS EMPREENDIMENTOS'!#REF!)+'DADOS DOS EMPREENDIMENTOS'!#REF!,IF(BR70='DADOS DOS EMPREENDIMENTOS'!BT$12,'DADOS DOS EMPREENDIMENTOS'!#REF!,BT70*(1-'DADOS DOS EMPREENDIMENTOS'!#REF!-'DADOS DOS EMPREENDIMENTOS'!#REF!)))) ->  | BW70: 24 | BX70: 2011-05-01 | BY70: 0 | BZ70: =IF(BW70<'DADOS DOS EMPREENDIMENTOS'!BY$11,0,IF(BW70='DADOS DOS EMPREENDIMENTOS'!BY$11,SUM(BY$46:BY70)*(1-'DADOS DOS EMPREENDIMENTOS'!#REF!-'DADOS DOS EMPREENDIMENTOS'!#REF!)+'DADOS DOS EMPREENDIMENTOS'!#REF!,IF(BW70='DADOS DOS EMPREENDIMENTOS'!BY$12,'DADOS DOS EMPREENDIMENTOS'!#REF!,BY70*(1-'DADOS DOS EMPREENDIMENTOS'!#REF!-'DADOS DOS EMPREENDIMENTOS'!#REF!)))) ->  | CB70: 24 | CC70: 2011-05-01 | CD70: 0 | CE70: =IF(CB70<'DADOS DOS EMPREENDIMENTOS'!CD$11,0,IF(CB70='DADOS DOS EMPREENDIMENTOS'!CD$11,SUM(CD$46:CD70)*(1-'DADOS DOS EMPREENDIMENTOS'!#REF!-'DADOS DOS EMPREENDIMENTOS'!#REF!)+'DADOS DOS EMPREENDIMENTOS'!#REF!,IF(CB70='DADOS DOS EMPREENDIMENTOS'!CD$12,'DADOS DOS EMPREENDIMENTOS'!#REF!,CD70*(1-'DADOS DOS EMPREENDIMENTOS'!#REF!-'DADOS DOS EMPREENDIMENTOS'!#REF!)))) -> 
O71: 25 | T71: 25 | Y71: 25 | AD71: 25 | AE71: 2011-06-01 | AF71: 0 | AG71: =IF(AD71<'DADOS DOS EMPREENDIMENTOS'!AF$11,0,IF(AD71='DADOS DOS EMPREENDIMENTOS'!AF$11,SUM(AF$46:AF71)*(1-'DADOS DOS EMPREENDIMENTOS'!#REF!-'DADOS DOS EMPREENDIMENTOS'!#REF!)+'DADOS DOS EMPREENDIMENTOS'!#REF!,IF(AD71='DADOS DOS EMPREENDIMENTOS'!#REF!,'DADOS DOS EMPREENDIMENTOS'!#REF!,AF71*(1-'DADOS DOS EMPREENDIMENTOS'!#REF!-'DADOS DOS EMPREENDIMENTOS'!#REF!)))) ->  | AI71: 25 | AJ71: 2011-06-01 | AK71: 0 | AL71: =IF(AI71<'DADOS DOS EMPREENDIMENTOS'!AK$11,0,IF(AI71='DADOS DOS EMPREENDIMENTOS'!AK$11,SUM(AK$46:AK71)*(1-'DADOS DOS EMPREENDIMENTOS'!#REF!-'DADOS DOS EMPREENDIMENTOS'!#REF!)+'DADOS DOS EMPREENDIMENTOS'!#REF!,IF(AI71='DADOS DOS EMPREENDIMENTOS'!#REF!,'DADOS DOS EMPREENDIMENTOS'!#REF!,AK71*(1-'DADOS DOS EMPREENDIMENTOS'!#REF!-'DADOS DOS EMPREENDIMENTOS'!#REF!)))) ->  | AN71: 25 | AO71: 2011-06-01 | AP71: 0 | AQ71: =IF(AN71<'DADOS DOS EMPREENDIMENTOS'!AP$11,0,IF(AN71='DADOS DOS EMPREENDIMENTOS'!AP$11,SUM(AP$46:AP71)*(1-'DADOS DOS EMPREENDIMENTOS'!#REF!-'DADOS DOS EMPREENDIMENTOS'!#REF!)+'DADOS DOS EMPREENDIMENTOS'!#REF!,IF(AN71='DADOS DOS EMPREENDIMENTOS'!#REF!,'DADOS DOS EMPREENDIMENTOS'!#REF!,AP71*(1-'DADOS DOS EMPREENDIMENTOS'!#REF!-'DADOS DOS EMPREENDIMENTOS'!#REF!)))) ->  | AS71: 25 | AT71: 2011-06-01 | AU71: 0 | AV71: =IF(AS71<'DADOS DOS EMPREENDIMENTOS'!AU$11,0,IF(AS71='DADOS DOS EMPREENDIMENTOS'!AU$11,SUM(AU$46:AU71)*(1-'DADOS DOS EMPREENDIMENTOS'!#REF!-'DADOS DOS EMPREENDIMENTOS'!#REF!)+'DADOS DOS EMPREENDIMENTOS'!#REF!,IF(AS71='DADOS DOS EMPREENDIMENTOS'!#REF!,'DADOS DOS EMPREENDIMENTOS'!#REF!,AU71*(1-'DADOS DOS EMPREENDIMENTOS'!#REF!-'DADOS DOS EMPREENDIMENTOS'!#REF!)))) ->  | AX71: 25 | AY71: 2011-06-01 | AZ71: 0 | BA71: =IF(AX71<'DADOS DOS EMPREENDIMENTOS'!AZ$11,0,IF(AX71='DADOS DOS EMPREENDIMENTOS'!AZ$11,SUM(AZ$46:AZ71)*(1-'DADOS DOS EMPREENDIMENTOS'!#REF!-'DADOS DOS EMPREENDIMENTOS'!#REF!)+'DADOS DOS EMPREENDIMENTOS'!#REF!,IF(AX71='DADOS DOS EMPREENDIMENTOS'!#REF!,'DADOS DOS EMPREENDIMENTOS'!#REF!,AZ71*(1-'DADOS DOS EMPREENDIMENTOS'!#REF!-'DADOS DOS EMPREENDIMENTOS'!#REF!)))) ->  | BC71: 25 | BD71: 2011-06-01 | BE71: 0 | BF71: =IF(BC71<'DADOS DOS EMPREENDIMENTOS'!BE$11,0,IF(BC71='DADOS DOS EMPREENDIMENTOS'!BE$11,SUM(BE$46:BE71)*(1-'DADOS DOS EMPREENDIMENTOS'!#REF!-'DADOS DOS EMPREENDIMENTOS'!#REF!)+'DADOS DOS EMPREENDIMENTOS'!#REF!,IF(BC71='DADOS DOS EMPREENDIMENTOS'!#REF!,'DADOS DOS EMPREENDIMENTOS'!#REF!,BE71*(1-'DADOS DOS EMPREENDIMENTOS'!#REF!-'DADOS DOS EMPREENDIMENTOS'!#REF!)))) ->  | BH71: 25 | BI71: 2011-06-01 | BJ71: 0 | BK71: =IF(BH71<'DADOS DOS EMPREENDIMENTOS'!BJ$11,0,IF(BH71='DADOS DOS EMPREENDIMENTOS'!BJ$11,SUM(BJ$46:BJ71)*(1-'DADOS DOS EMPREENDIMENTOS'!#REF!-'DADOS DOS EMPREENDIMENTOS'!#REF!)+'DADOS DOS EMPREENDIMENTOS'!#REF!,IF(BH71='DADOS DOS EMPREENDIMENTOS'!#REF!,'DADOS DOS EMPREENDIMENTOS'!#REF!,BJ71*(1-'DADOS DOS EMPREENDIMENTOS'!#REF!-'DADOS DOS EMPREENDIMENTOS'!#REF!)))) ->  | BM71: 25 | BN71: 2011-06-01 | BO71: 0 | BP71: =IF(BM71<'DADOS DOS EMPREENDIMENTOS'!BO$11,0,IF(BM71='DADOS DOS EMPREENDIMENTOS'!BO$11,SUM(BO$46:BO71)*(1-'DADOS DOS EMPREENDIMENTOS'!#REF!-'DADOS DOS EMPREENDIMENTOS'!#REF!)+'DADOS DOS EMPREENDIMENTOS'!#REF!,IF(BM71='DADOS DOS EMPREENDIMENTOS'!BO$12,'DADOS DOS EMPREENDIMENTOS'!#REF!,BO71*(1-'DADOS DOS EMPREENDIMENTOS'!#REF!-'DADOS DOS EMPREENDIMENTOS'!#REF!)))) ->  | BR71: 25 | BS71: 2011-06-01 | BT71: 0 | BU71: =IF(BR71<'DADOS DOS EMPREENDIMENTOS'!BT$11,0,IF(BR71='DADOS DOS EMPREENDIMENTOS'!BT$11,SUM(BT$46:BT71)*(1-'DADOS DOS EMPREENDIMENTOS'!#REF!-'DADOS DOS EMPREENDIMENTOS'!#REF!)+'DADOS DOS EMPREENDIMENTOS'!#REF!,IF(BR71='DADOS DOS EMPREENDIMENTOS'!BT$12,'DADOS DOS EMPREENDIMENTOS'!#REF!,BT71*(1-'DADOS DOS EMPREENDIMENTOS'!#REF!-'DADOS DOS EMPREENDIMENTOS'!#REF!)))) ->  | BW71: 25 | BX71: 2011-06-01 | BY71: 0 | BZ71: =IF(BW71<'DADOS DOS EMPREENDIMENTOS'!BY$11,0,IF(BW71='DADOS DOS EMPREENDIMENTOS'!BY$11,SUM(BY$46:BY71)*(1-'DADOS DOS EMPREENDIMENTOS'!#REF!-'DADOS DOS EMPREENDIMENTOS'!#REF!)+'DADOS DOS EMPREENDIMENTOS'!#REF!,IF(BW71='DADOS DOS EMPREENDIMENTOS'!BY$12,'DADOS DOS EMPREENDIMENTOS'!#REF!,BY71*(1-'DADOS DOS EMPREENDIMENTOS'!#REF!-'DADOS DOS EMPREENDIMENTOS'!#REF!)))) ->  | CB71: 25 | CC71: 2011-06-01 | CD71: 0 | CE71: =IF(CB71<'DADOS DOS EMPREENDIMENTOS'!CD$11,0,IF(CB71='DADOS DOS EMPREENDIMENTOS'!CD$11,SUM(CD$46:CD71)*(1-'DADOS DOS EMPREENDIMENTOS'!#REF!-'DADOS DOS EMPREENDIMENTOS'!#REF!)+'DADOS DOS EMPREENDIMENTOS'!#REF!,IF(CB71='DADOS DOS EMPREENDIMENTOS'!CD$12,'DADOS DOS EMPREENDIMENTOS'!#REF!,CD71*(1-'DADOS DOS EMPREENDIMENTOS'!#REF!-'DADOS DOS EMPREENDIMENTOS'!#REF!)))) -> 
O72: 26 | T72: 26 | Y72: 26 | AD72: 26 | AE72: 2011-07-01 | AF72: 0 | AG72: =IF(AD72<'DADOS DOS EMPREENDIMENTOS'!AF$11,0,IF(AD72='DADOS DOS EMPREENDIMENTOS'!AF$11,SUM(AF$46:AF72)*(1-'DADOS DOS EMPREENDIMENTOS'!#REF!-'DADOS DOS EMPREENDIMENTOS'!#REF!)+'DADOS DOS EMPREENDIMENTOS'!#REF!,IF(AD72='DADOS DOS EMPREENDIMENTOS'!#REF!,'DADOS DOS EMPREENDIMENTOS'!#REF!,AF72*(1-'DADOS DOS EMPREENDIMENTOS'!#REF!-'DADOS DOS EMPREENDIMENTOS'!#REF!)))) ->  | AI72: 26 | AJ72: 2011-07-01 | AK72: 0 | AL72: =IF(AI72<'DADOS DOS EMPREENDIMENTOS'!AK$11,0,IF(AI72='DADOS DOS EMPREENDIMENTOS'!AK$11,SUM(AK$46:AK72)*(1-'DADOS DOS EMPREENDIMENTOS'!#REF!-'DADOS DOS EMPREENDIMENTOS'!#REF!)+'DADOS DOS EMPREENDIMENTOS'!#REF!,IF(AI72='DADOS DOS EMPREENDIMENTOS'!#REF!,'DADOS DOS EMPREENDIMENTOS'!#REF!,AK72*(1-'DADOS DOS EMPREENDIMENTOS'!#REF!-'DADOS DOS EMPREENDIMENTOS'!#REF!)))) ->  | AN72: 26 | AO72: 2011-07-01 | AP72: 0 | AQ72: =IF(AN72<'DADOS DOS EMPREENDIMENTOS'!AP$11,0,IF(AN72='DADOS DOS EMPREENDIMENTOS'!AP$11,SUM(AP$46:AP72)*(1-'DADOS DOS EMPREENDIMENTOS'!#REF!-'DADOS DOS EMPREENDIMENTOS'!#REF!)+'DADOS DOS EMPREENDIMENTOS'!#REF!,IF(AN72='DADOS DOS EMPREENDIMENTOS'!#REF!,'DADOS DOS EMPREENDIMENTOS'!#REF!,AP72*(1-'DADOS DOS EMPREENDIMENTOS'!#REF!-'DADOS DOS EMPREENDIMENTOS'!#REF!)))) ->  | AS72: 26 | AT72: 2011-07-01 | AU72: 0 | AV72: =IF(AS72<'DADOS DOS EMPREENDIMENTOS'!AU$11,0,IF(AS72='DADOS DOS EMPREENDIMENTOS'!AU$11,SUM(AU$46:AU72)*(1-'DADOS DOS EMPREENDIMENTOS'!#REF!-'DADOS DOS EMPREENDIMENTOS'!#REF!)+'DADOS DOS EMPREENDIMENTOS'!#REF!,IF(AS72='DADOS DOS EMPREENDIMENTOS'!#REF!,'DADOS DOS EMPREENDIMENTOS'!#REF!,AU72*(1-'DADOS DOS EMPREENDIMENTOS'!#REF!-'DADOS DOS EMPREENDIMENTOS'!#REF!)))) ->  | AX72: 26 | AY72: 2011-07-01 | AZ72: 0 | BA72: =IF(AX72<'DADOS DOS EMPREENDIMENTOS'!AZ$11,0,IF(AX72='DADOS DOS EMPREENDIMENTOS'!AZ$11,SUM(AZ$46:AZ72)*(1-'DADOS DOS EMPREENDIMENTOS'!#REF!-'DADOS DOS EMPREENDIMENTOS'!#REF!)+'DADOS DOS EMPREENDIMENTOS'!#REF!,IF(AX72='DADOS DOS EMPREENDIMENTOS'!#REF!,'DADOS DOS EMPREENDIMENTOS'!#REF!,AZ72*(1-'DADOS DOS EMPREENDIMENTOS'!#REF!-'DADOS DOS EMPREENDIMENTOS'!#REF!)))) ->  | BC72: 26 | BD72: 2011-07-01 | BE72: 0 | BF72: =IF(BC72<'DADOS DOS EMPREENDIMENTOS'!BE$11,0,IF(BC72='DADOS DOS EMPREENDIMENTOS'!BE$11,SUM(BE$46:BE72)*(1-'DADOS DOS EMPREENDIMENTOS'!#REF!-'DADOS DOS EMPREENDIMENTOS'!#REF!)+'DADOS DOS EMPREENDIMENTOS'!#REF!,IF(BC72='DADOS DOS EMPREENDIMENTOS'!#REF!,'DADOS DOS EMPREENDIMENTOS'!#REF!,BE72*(1-'DADOS DOS EMPREENDIMENTOS'!#REF!-'DADOS DOS EMPREENDIMENTOS'!#REF!)))) ->  | BH72: 26 | BI72: 2011-07-01 | BJ72: 0 | BK72: =IF(BH72<'DADOS DOS EMPREENDIMENTOS'!BJ$11,0,IF(BH72='DADOS DOS EMPREENDIMENTOS'!BJ$11,SUM(BJ$46:BJ72)*(1-'DADOS DOS EMPREENDIMENTOS'!#REF!-'DADOS DOS EMPREENDIMENTOS'!#REF!)+'DADOS DOS EMPREENDIMENTOS'!#REF!,IF(BH72='DADOS DOS EMPREENDIMENTOS'!#REF!,'DADOS DOS EMPREENDIMENTOS'!#REF!,BJ72*(1-'DADOS DOS EMPREENDIMENTOS'!#REF!-'DADOS DOS EMPREENDIMENTOS'!#REF!)))) ->  | BM72: 26 | BN72: 2011-07-01 | BO72: 0 | BP72: =IF(BM72<'DADOS DOS EMPREENDIMENTOS'!BO$11,0,IF(BM72='DADOS DOS EMPREENDIMENTOS'!BO$11,SUM(BO$46:BO72)*(1-'DADOS DOS EMPREENDIMENTOS'!#REF!-'DADOS DOS EMPREENDIMENTOS'!#REF!)+'DADOS DOS EMPREENDIMENTOS'!#REF!,IF(BM72='DADOS DOS EMPREENDIMENTOS'!BO$12,'DADOS DOS EMPREENDIMENTOS'!#REF!,BO72*(1-'DADOS DOS EMPREENDIMENTOS'!#REF!-'DADOS DOS EMPREENDIMENTOS'!#REF!)))) ->  | BR72: 26 | BS72: 2011-07-01 | BT72: 0 | BU72: =IF(BR72<'DADOS DOS EMPREENDIMENTOS'!BT$11,0,IF(BR72='DADOS DOS EMPREENDIMENTOS'!BT$11,SUM(BT$46:BT72)*(1-'DADOS DOS EMPREENDIMENTOS'!#REF!-'DADOS DOS EMPREENDIMENTOS'!#REF!)+'DADOS DOS EMPREENDIMENTOS'!#REF!,IF(BR72='DADOS DOS EMPREENDIMENTOS'!BT$12,'DADOS DOS EMPREENDIMENTOS'!#REF!,BT72*(1-'DADOS DOS EMPREENDIMENTOS'!#REF!-'DADOS DOS EMPREENDIMENTOS'!#REF!)))) ->  | BW72: 26 | BX72: 2011-07-01 | BY72: 0 | BZ72: =IF(BW72<'DADOS DOS EMPREENDIMENTOS'!BY$11,0,IF(BW72='DADOS DOS EMPREENDIMENTOS'!BY$11,SUM(BY$46:BY72)*(1-'DADOS DOS EMPREENDIMENTOS'!#REF!-'DADOS DOS EMPREENDIMENTOS'!#REF!)+'DADOS DOS EMPREENDIMENTOS'!#REF!,IF(BW72='DADOS DOS EMPREENDIMENTOS'!BY$12,'DADOS DOS EMPREENDIMENTOS'!#REF!,BY72*(1-'DADOS DOS EMPREENDIMENTOS'!#REF!-'DADOS DOS EMPREENDIMENTOS'!#REF!)))) ->  | CB72: 26 | CC72: 2011-07-01 | CD72: 0 | CE72: =IF(CB72<'DADOS DOS EMPREENDIMENTOS'!CD$11,0,IF(CB72='DADOS DOS EMPREENDIMENTOS'!CD$11,SUM(CD$46:CD72)*(1-'DADOS DOS EMPREENDIMENTOS'!#REF!-'DADOS DOS EMPREENDIMENTOS'!#REF!)+'DADOS DOS EMPREENDIMENTOS'!#REF!,IF(CB72='DADOS DOS EMPREENDIMENTOS'!CD$12,'DADOS DOS EMPREENDIMENTOS'!#REF!,CD72*(1-'DADOS DOS EMPREENDIMENTOS'!#REF!-'DADOS DOS EMPREENDIMENTOS'!#REF!)))) -> 
O73: 27 | T73: 27 | Y73: 27 | AD73: 27 | AE73: 2011-08-01 | AF73: 0 | AG73: =IF(AD73<'DADOS DOS EMPREENDIMENTOS'!AF$11,0,IF(AD73='DADOS DOS EMPREENDIMENTOS'!AF$11,SUM(AF$46:AF73)*(1-'DADOS DOS EMPREENDIMENTOS'!#REF!-'DADOS DOS EMPREENDIMENTOS'!#REF!)+'DADOS DOS EMPREENDIMENTOS'!#REF!,IF(AD73='DADOS DOS EMPREENDIMENTOS'!#REF!,'DADOS DOS EMPREENDIMENTOS'!#REF!,AF73*(1-'DADOS DOS EMPREENDIMENTOS'!#REF!-'DADOS DOS EMPREENDIMENTOS'!#REF!)))) ->  | AI73: 27 | AJ73: 2011-08-01 | AK73: 0 | AL73: =IF(AI73<'DADOS DOS EMPREENDIMENTOS'!AK$11,0,IF(AI73='DADOS DOS EMPREENDIMENTOS'!AK$11,SUM(AK$46:AK73)*(1-'DADOS DOS EMPREENDIMENTOS'!#REF!-'DADOS DOS EMPREENDIMENTOS'!#REF!)+'DADOS DOS EMPREENDIMENTOS'!#REF!,IF(AI73='DADOS DOS EMPREENDIMENTOS'!#REF!,'DADOS DOS EMPREENDIMENTOS'!#REF!,AK73*(1-'DADOS DOS EMPREENDIMENTOS'!#REF!-'DADOS DOS EMPREENDIMENTOS'!#REF!)))) ->  | AN73: 27 | AO73: 2011-08-01 | AP73: 0 | AQ73: =IF(AN73<'DADOS DOS EMPREENDIMENTOS'!AP$11,0,IF(AN73='DADOS DOS EMPREENDIMENTOS'!AP$11,SUM(AP$46:AP73)*(1-'DADOS DOS EMPREENDIMENTOS'!#REF!-'DADOS DOS EMPREENDIMENTOS'!#REF!)+'DADOS DOS EMPREENDIMENTOS'!#REF!,IF(AN73='DADOS DOS EMPREENDIMENTOS'!#REF!,'DADOS DOS EMPREENDIMENTOS'!#REF!,AP73*(1-'DADOS DOS EMPREENDIMENTOS'!#REF!-'DADOS DOS EMPREENDIMENTOS'!#REF!)))) ->  | AS73: 27 | AT73: 2011-08-01 | AU73: 0 | AV73: =IF(AS73<'DADOS DOS EMPREENDIMENTOS'!AU$11,0,IF(AS73='DADOS DOS EMPREENDIMENTOS'!AU$11,SUM(AU$46:AU73)*(1-'DADOS DOS EMPREENDIMENTOS'!#REF!-'DADOS DOS EMPREENDIMENTOS'!#REF!)+'DADOS DOS EMPREENDIMENTOS'!#REF!,IF(AS73='DADOS DOS EMPREENDIMENTOS'!#REF!,'DADOS DOS EMPREENDIMENTOS'!#REF!,AU73*(1-'DADOS DOS EMPREENDIMENTOS'!#REF!-'DADOS DOS EMPREENDIMENTOS'!#REF!)))) ->  | AX73: 27 | AY73: 2011-08-01 | AZ73: 0 | BA73: =IF(AX73<'DADOS DOS EMPREENDIMENTOS'!AZ$11,0,IF(AX73='DADOS DOS EMPREENDIMENTOS'!AZ$11,SUM(AZ$46:AZ73)*(1-'DADOS DOS EMPREENDIMENTOS'!#REF!-'DADOS DOS EMPREENDIMENTOS'!#REF!)+'DADOS DOS EMPREENDIMENTOS'!#REF!,IF(AX73='DADOS DOS EMPREENDIMENTOS'!#REF!,'DADOS DOS EMPREENDIMENTOS'!#REF!,AZ73*(1-'DADOS DOS EMPREENDIMENTOS'!#REF!-'DADOS DOS EMPREENDIMENTOS'!#REF!)))) ->  | BC73: 27 | BD73: 2011-08-01 | BE73: 0 | BF73: =IF(BC73<'DADOS DOS EMPREENDIMENTOS'!BE$11,0,IF(BC73='DADOS DOS EMPREENDIMENTOS'!BE$11,SUM(BE$46:BE73)*(1-'DADOS DOS EMPREENDIMENTOS'!#REF!-'DADOS DOS EMPREENDIMENTOS'!#REF!)+'DADOS DOS EMPREENDIMENTOS'!#REF!,IF(BC73='DADOS DOS EMPREENDIMENTOS'!#REF!,'DADOS DOS EMPREENDIMENTOS'!#REF!,BE73*(1-'DADOS DOS EMPREENDIMENTOS'!#REF!-'DADOS DOS EMPREENDIMENTOS'!#REF!)))) ->  | BH73: 27 | BI73: 2011-08-01 | BJ73: 0 | BK73: =IF(BH73<'DADOS DOS EMPREENDIMENTOS'!BJ$11,0,IF(BH73='DADOS DOS EMPREENDIMENTOS'!BJ$11,SUM(BJ$46:BJ73)*(1-'DADOS DOS EMPREENDIMENTOS'!#REF!-'DADOS DOS EMPREENDIMENTOS'!#REF!)+'DADOS DOS EMPREENDIMENTOS'!#REF!,IF(BH73='DADOS DOS EMPREENDIMENTOS'!#REF!,'DADOS DOS EMPREENDIMENTOS'!#REF!,BJ73*(1-'DADOS DOS EMPREENDIMENTOS'!#REF!-'DADOS DOS EMPREENDIMENTOS'!#REF!)))) ->  | BM73: 27 | BN73: 2011-08-01 | BO73: 0 | BP73: =IF(BM73<'DADOS DOS EMPREENDIMENTOS'!BO$11,0,IF(BM73='DADOS DOS EMPREENDIMENTOS'!BO$11,SUM(BO$46:BO73)*(1-'DADOS DOS EMPREENDIMENTOS'!#REF!-'DADOS DOS EMPREENDIMENTOS'!#REF!)+'DADOS DOS EMPREENDIMENTOS'!#REF!,IF(BM73='DADOS DOS EMPREENDIMENTOS'!BO$12,'DADOS DOS EMPREENDIMENTOS'!#REF!,BO73*(1-'DADOS DOS EMPREENDIMENTOS'!#REF!-'DADOS DOS EMPREENDIMENTOS'!#REF!)))) ->  | BR73: 27 | BS73: 2011-08-01 | BT73: 0 | BU73: =IF(BR73<'DADOS DOS EMPREENDIMENTOS'!BT$11,0,IF(BR73='DADOS DOS EMPREENDIMENTOS'!BT$11,SUM(BT$46:BT73)*(1-'DADOS DOS EMPREENDIMENTOS'!#REF!-'DADOS DOS EMPREENDIMENTOS'!#REF!)+'DADOS DOS EMPREENDIMENTOS'!#REF!,IF(BR73='DADOS DOS EMPREENDIMENTOS'!BT$12,'DADOS DOS EMPREENDIMENTOS'!#REF!,BT73*(1-'DADOS DOS EMPREENDIMENTOS'!#REF!-'DADOS DOS EMPREENDIMENTOS'!#REF!)))) ->  | BW73: 27 | BX73: 2011-08-01 | BY73: 0 | BZ73: =IF(BW73<'DADOS DOS EMPREENDIMENTOS'!BY$11,0,IF(BW73='DADOS DOS EMPREENDIMENTOS'!BY$11,SUM(BY$46:BY73)*(1-'DADOS DOS EMPREENDIMENTOS'!#REF!-'DADOS DOS EMPREENDIMENTOS'!#REF!)+'DADOS DOS EMPREENDIMENTOS'!#REF!,IF(BW73='DADOS DOS EMPREENDIMENTOS'!BY$12,'DADOS DOS EMPREENDIMENTOS'!#REF!,BY73*(1-'DADOS DOS EMPREENDIMENTOS'!#REF!-'DADOS DOS EMPREENDIMENTOS'!#REF!)))) ->  | CB73: 27 | CC73: 2011-08-01 | CD73: 0 | CE73: =IF(CB73<'DADOS DOS EMPREENDIMENTOS'!CD$11,0,IF(CB73='DADOS DOS EMPREENDIMENTOS'!CD$11,SUM(CD$46:CD73)*(1-'DADOS DOS EMPREENDIMENTOS'!#REF!-'DADOS DOS EMPREENDIMENTOS'!#REF!)+'DADOS DOS EMPREENDIMENTOS'!#REF!,IF(CB73='DADOS DOS EMPREENDIMENTOS'!CD$12,'DADOS DOS EMPREENDIMENTOS'!#REF!,CD73*(1-'DADOS DOS EMPREENDIMENTOS'!#REF!-'DADOS DOS EMPREENDIMENTOS'!#REF!)))) -> 
O74: 28 | T74: 28 | Y74: 28 | AD74: 28 | AE74: 2011-09-01 | AF74: 0 | AG74: =IF(AD74<'DADOS DOS EMPREENDIMENTOS'!AF$11,0,IF(AD74='DADOS DOS EMPREENDIMENTOS'!AF$11,SUM(AF$46:AF74)*(1-'DADOS DOS EMPREENDIMENTOS'!#REF!-'DADOS DOS EMPREENDIMENTOS'!#REF!)+'DADOS DOS EMPREENDIMENTOS'!#REF!,IF(AD74='DADOS DOS EMPREENDIMENTOS'!#REF!,'DADOS DOS EMPREENDIMENTOS'!#REF!,AF74*(1-'DADOS DOS EMPREENDIMENTOS'!#REF!-'DADOS DOS EMPREENDIMENTOS'!#REF!)))) ->  | AI74: 28 | AJ74: 2011-09-01 | AK74: 0 | AL74: =IF(AI74<'DADOS DOS EMPREENDIMENTOS'!AK$11,0,IF(AI74='DADOS DOS EMPREENDIMENTOS'!AK$11,SUM(AK$46:AK74)*(1-'DADOS DOS EMPREENDIMENTOS'!#REF!-'DADOS DOS EMPREENDIMENTOS'!#REF!)+'DADOS DOS EMPREENDIMENTOS'!#REF!,IF(AI74='DADOS DOS EMPREENDIMENTOS'!#REF!,'DADOS DOS EMPREENDIMENTOS'!#REF!,AK74*(1-'DADOS DOS EMPREENDIMENTOS'!#REF!-'DADOS DOS EMPREENDIMENTOS'!#REF!)))) ->  | AN74: 28 | AO74: 2011-09-01 | AP74: 0 | AQ74: =IF(AN74<'DADOS DOS EMPREENDIMENTOS'!AP$11,0,IF(AN74='DADOS DOS EMPREENDIMENTOS'!AP$11,SUM(AP$46:AP74)*(1-'DADOS DOS EMPREENDIMENTOS'!#REF!-'DADOS DOS EMPREENDIMENTOS'!#REF!)+'DADOS DOS EMPREENDIMENTOS'!#REF!,IF(AN74='DADOS DOS EMPREENDIMENTOS'!#REF!,'DADOS DOS EMPREENDIMENTOS'!#REF!,AP74*(1-'DADOS DOS EMPREENDIMENTOS'!#REF!-'DADOS DOS EMPREENDIMENTOS'!#REF!)))) ->  | AS74: 28 | AT74: 2011-09-01 | AU74: 0 | AV74: =IF(AS74<'DADOS DOS EMPREENDIMENTOS'!AU$11,0,IF(AS74='DADOS DOS EMPREENDIMENTOS'!AU$11,SUM(AU$46:AU74)*(1-'DADOS DOS EMPREENDIMENTOS'!#REF!-'DADOS DOS EMPREENDIMENTOS'!#REF!)+'DADOS DOS EMPREENDIMENTOS'!#REF!,IF(AS74='DADOS DOS EMPREENDIMENTOS'!#REF!,'DADOS DOS EMPREENDIMENTOS'!#REF!,AU74*(1-'DADOS DOS EMPREENDIMENTOS'!#REF!-'DADOS DOS EMPREENDIMENTOS'!#REF!)))) ->  | AX74: 28 | AY74: 2011-09-01 | AZ74: 0 | BA74: =IF(AX74<'DADOS DOS EMPREENDIMENTOS'!AZ$11,0,IF(AX74='DADOS DOS EMPREENDIMENTOS'!AZ$11,SUM(AZ$46:AZ74)*(1-'DADOS DOS EMPREENDIMENTOS'!#REF!-'DADOS DOS EMPREENDIMENTOS'!#REF!)+'DADOS DOS EMPREENDIMENTOS'!#REF!,IF(AX74='DADOS DOS EMPREENDIMENTOS'!#REF!,'DADOS DOS EMPREENDIMENTOS'!#REF!,AZ74*(1-'DADOS DOS EMPREENDIMENTOS'!#REF!-'DADOS DOS EMPREENDIMENTOS'!#REF!)))) ->  | BC74: 28 | BD74: 2011-09-01 | BE74: 0 | BF74: =IF(BC74<'DADOS DOS EMPREENDIMENTOS'!BE$11,0,IF(BC74='DADOS DOS EMPREENDIMENTOS'!BE$11,SUM(BE$46:BE74)*(1-'DADOS DOS EMPREENDIMENTOS'!#REF!-'DADOS DOS EMPREENDIMENTOS'!#REF!)+'DADOS DOS EMPREENDIMENTOS'!#REF!,IF(BC74='DADOS DOS EMPREENDIMENTOS'!#REF!,'DADOS DOS EMPREENDIMENTOS'!#REF!,BE74*(1-'DADOS DOS EMPREENDIMENTOS'!#REF!-'DADOS DOS EMPREENDIMENTOS'!#REF!)))) ->  | BH74: 28 | BI74: 2011-09-01 | BJ74: 0 | BK74: =IF(BH74<'DADOS DOS EMPREENDIMENTOS'!BJ$11,0,IF(BH74='DADOS DOS EMPREENDIMENTOS'!BJ$11,SUM(BJ$46:BJ74)*(1-'DADOS DOS EMPREENDIMENTOS'!#REF!-'DADOS DOS EMPREENDIMENTOS'!#REF!)+'DADOS DOS EMPREENDIMENTOS'!#REF!,IF(BH74='DADOS DOS EMPREENDIMENTOS'!#REF!,'DADOS DOS EMPREENDIMENTOS'!#REF!,BJ74*(1-'DADOS DOS EMPREENDIMENTOS'!#REF!-'DADOS DOS EMPREENDIMENTOS'!#REF!)))) ->  | BM74: 28 | BN74: 2011-09-01 | BO74: 0 | BP74: =IF(BM74<'DADOS DOS EMPREENDIMENTOS'!BO$11,0,IF(BM74='DADOS DOS EMPREENDIMENTOS'!BO$11,SUM(BO$46:BO74)*(1-'DADOS DOS EMPREENDIMENTOS'!#REF!-'DADOS DOS EMPREENDIMENTOS'!#REF!)+'DADOS DOS EMPREENDIMENTOS'!#REF!,IF(BM74='DADOS DOS EMPREENDIMENTOS'!BO$12,'DADOS DOS EMPREENDIMENTOS'!#REF!,BO74*(1-'DADOS DOS EMPREENDIMENTOS'!#REF!-'DADOS DOS EMPREENDIMENTOS'!#REF!)))) ->  | BR74: 28 | BS74: 2011-09-01 | BT74: 0 | BU74: =IF(BR74<'DADOS DOS EMPREENDIMENTOS'!BT$11,0,IF(BR74='DADOS DOS EMPREENDIMENTOS'!BT$11,SUM(BT$46:BT74)*(1-'DADOS DOS EMPREENDIMENTOS'!#REF!-'DADOS DOS EMPREENDIMENTOS'!#REF!)+'DADOS DOS EMPREENDIMENTOS'!#REF!,IF(BR74='DADOS DOS EMPREENDIMENTOS'!BT$12,'DADOS DOS EMPREENDIMENTOS'!#REF!,BT74*(1-'DADOS DOS EMPREENDIMENTOS'!#REF!-'DADOS DOS EMPREENDIMENTOS'!#REF!)))) ->  | BW74: 28 | BX74: 2011-09-01 | BY74: 0 | BZ74: =IF(BW74<'DADOS DOS EMPREENDIMENTOS'!BY$11,0,IF(BW74='DADOS DOS EMPREENDIMENTOS'!BY$11,SUM(BY$46:BY74)*(1-'DADOS DOS EMPREENDIMENTOS'!#REF!-'DADOS DOS EMPREENDIMENTOS'!#REF!)+'DADOS DOS EMPREENDIMENTOS'!#REF!,IF(BW74='DADOS DOS EMPREENDIMENTOS'!BY$12,'DADOS DOS EMPREENDIMENTOS'!#REF!,BY74*(1-'DADOS DOS EMPREENDIMENTOS'!#REF!-'DADOS DOS EMPREENDIMENTOS'!#REF!)))) ->  | CB74: 28 | CC74: 2011-09-01 | CD74: 0 | CE74: =IF(CB74<'DADOS DOS EMPREENDIMENTOS'!CD$11,0,IF(CB74='DADOS DOS EMPREENDIMENTOS'!CD$11,SUM(CD$46:CD74)*(1-'DADOS DOS EMPREENDIMENTOS'!#REF!-'DADOS DOS EMPREENDIMENTOS'!#REF!)+'DADOS DOS EMPREENDIMENTOS'!#REF!,IF(CB74='DADOS DOS EMPREENDIMENTOS'!CD$12,'DADOS DOS EMPREENDIMENTOS'!#REF!,CD74*(1-'DADOS DOS EMPREENDIMENTOS'!#REF!-'DADOS DOS EMPREENDIMENTOS'!#REF!)))) -> 
O75: 29 | T75: 29 | Y75: 29 | AD75: 29 | AE75: 2011-10-01 | AF75: 0 | AG75: =IF(AD75<'DADOS DOS EMPREENDIMENTOS'!AF$11,0,IF(AD75='DADOS DOS EMPREENDIMENTOS'!AF$11,SUM(AF$46:AF75)*(1-'DADOS DOS EMPREENDIMENTOS'!#REF!-'DADOS DOS EMPREENDIMENTOS'!#REF!)+'DADOS DOS EMPREENDIMENTOS'!#REF!,IF(AD75='DADOS DOS EMPREENDIMENTOS'!#REF!,'DADOS DOS EMPREENDIMENTOS'!#REF!,AF75*(1-'DADOS DOS EMPREENDIMENTOS'!#REF!-'DADOS DOS EMPREENDIMENTOS'!#REF!)))) ->  | AI75: 29 | AJ75: 2011-10-01 | AK75: 0 | AL75: =IF(AI75<'DADOS DOS EMPREENDIMENTOS'!AK$11,0,IF(AI75='DADOS DOS EMPREENDIMENTOS'!AK$11,SUM(AK$46:AK75)*(1-'DADOS DOS EMPREENDIMENTOS'!#REF!-'DADOS DOS EMPREENDIMENTOS'!#REF!)+'DADOS DOS EMPREENDIMENTOS'!#REF!,IF(AI75='DADOS DOS EMPREENDIMENTOS'!#REF!,'DADOS DOS EMPREENDIMENTOS'!#REF!,AK75*(1-'DADOS DOS EMPREENDIMENTOS'!#REF!-'DADOS DOS EMPREENDIMENTOS'!#REF!)))) ->  | AN75: 29 | AO75: 2011-10-01 | AP75: 0 | AQ75: =IF(AN75<'DADOS DOS EMPREENDIMENTOS'!AP$11,0,IF(AN75='DADOS DOS EMPREENDIMENTOS'!AP$11,SUM(AP$46:AP75)*(1-'DADOS DOS EMPREENDIMENTOS'!#REF!-'DADOS DOS EMPREENDIMENTOS'!#REF!)+'DADOS DOS EMPREENDIMENTOS'!#REF!,IF(AN75='DADOS DOS EMPREENDIMENTOS'!#REF!,'DADOS DOS EMPREENDIMENTOS'!#REF!,AP75*(1-'DADOS DOS EMPREENDIMENTOS'!#REF!-'DADOS DOS EMPREENDIMENTOS'!#REF!)))) ->  | AS75: 29 | AT75: 2011-10-01 | AU75: 0 | AV75: =IF(AS75<'DADOS DOS EMPREENDIMENTOS'!AU$11,0,IF(AS75='DADOS DOS EMPREENDIMENTOS'!AU$11,SUM(AU$46:AU75)*(1-'DADOS DOS EMPREENDIMENTOS'!#REF!-'DADOS DOS EMPREENDIMENTOS'!#REF!)+'DADOS DOS EMPREENDIMENTOS'!#REF!,IF(AS75='DADOS DOS EMPREENDIMENTOS'!#REF!,'DADOS DOS EMPREENDIMENTOS'!#REF!,AU75*(1-'DADOS DOS EMPREENDIMENTOS'!#REF!-'DADOS DOS EMPREENDIMENTOS'!#REF!)))) ->  | AX75: 29 | AY75: 2011-10-01 | AZ75: 0 | BA75: =IF(AX75<'DADOS DOS EMPREENDIMENTOS'!AZ$11,0,IF(AX75='DADOS DOS EMPREENDIMENTOS'!AZ$11,SUM(AZ$46:AZ75)*(1-'DADOS DOS EMPREENDIMENTOS'!#REF!-'DADOS DOS EMPREENDIMENTOS'!#REF!)+'DADOS DOS EMPREENDIMENTOS'!#REF!,IF(AX75='DADOS DOS EMPREENDIMENTOS'!#REF!,'DADOS DOS EMPREENDIMENTOS'!#REF!,AZ75*(1-'DADOS DOS EMPREENDIMENTOS'!#REF!-'DADOS DOS EMPREENDIMENTOS'!#REF!)))) ->  | BC75: 29 | BD75: 2011-10-01 | BE75: 0 | BF75: =IF(BC75<'DADOS DOS EMPREENDIMENTOS'!BE$11,0,IF(BC75='DADOS DOS EMPREENDIMENTOS'!BE$11,SUM(BE$46:BE75)*(1-'DADOS DOS EMPREENDIMENTOS'!#REF!-'DADOS DOS EMPREENDIMENTOS'!#REF!)+'DADOS DOS EMPREENDIMENTOS'!#REF!,IF(BC75='DADOS DOS EMPREENDIMENTOS'!#REF!,'DADOS DOS EMPREENDIMENTOS'!#REF!,BE75*(1-'DADOS DOS EMPREENDIMENTOS'!#REF!-'DADOS DOS EMPREENDIMENTOS'!#REF!)))) ->  | BH75: 29 | BI75: 2011-10-01 | BJ75: 0 | BK75: =IF(BH75<'DADOS DOS EMPREENDIMENTOS'!BJ$11,0,IF(BH75='DADOS DOS EMPREENDIMENTOS'!BJ$11,SUM(BJ$46:BJ75)*(1-'DADOS DOS EMPREENDIMENTOS'!#REF!-'DADOS DOS EMPREENDIMENTOS'!#REF!)+'DADOS DOS EMPREENDIMENTOS'!#REF!,IF(BH75='DADOS DOS EMPREENDIMENTOS'!#REF!,'DADOS DOS EMPREENDIMENTOS'!#REF!,BJ75*(1-'DADOS DOS EMPREENDIMENTOS'!#REF!-'DADOS DOS EMPREENDIMENTOS'!#REF!)))) ->  | BM75: 29 | BN75: 2011-10-01 | BO75: 0 | BP75: =IF(BM75<'DADOS DOS EMPREENDIMENTOS'!BO$11,0,IF(BM75='DADOS DOS EMPREENDIMENTOS'!BO$11,SUM(BO$46:BO75)*(1-'DADOS DOS EMPREENDIMENTOS'!#REF!-'DADOS DOS EMPREENDIMENTOS'!#REF!)+'DADOS DOS EMPREENDIMENTOS'!#REF!,IF(BM75='DADOS DOS EMPREENDIMENTOS'!BO$12,'DADOS DOS EMPREENDIMENTOS'!#REF!,BO75*(1-'DADOS DOS EMPREENDIMENTOS'!#REF!-'DADOS DOS EMPREENDIMENTOS'!#REF!)))) ->  | BR75: 29 | BS75: 2011-10-01 | BT75: 0 | BU75: =IF(BR75<'DADOS DOS EMPREENDIMENTOS'!BT$11,0,IF(BR75='DADOS DOS EMPREENDIMENTOS'!BT$11,SUM(BT$46:BT75)*(1-'DADOS DOS EMPREENDIMENTOS'!#REF!-'DADOS DOS EMPREENDIMENTOS'!#REF!)+'DADOS DOS EMPREENDIMENTOS'!#REF!,IF(BR75='DADOS DOS EMPREENDIMENTOS'!BT$12,'DADOS DOS EMPREENDIMENTOS'!#REF!,BT75*(1-'DADOS DOS EMPREENDIMENTOS'!#REF!-'DADOS DOS EMPREENDIMENTOS'!#REF!)))) ->  | BW75: 29 | BX75: 2011-10-01 | BY75: 0 | BZ75: =IF(BW75<'DADOS DOS EMPREENDIMENTOS'!BY$11,0,IF(BW75='DADOS DOS EMPREENDIMENTOS'!BY$11,SUM(BY$46:BY75)*(1-'DADOS DOS EMPREENDIMENTOS'!#REF!-'DADOS DOS EMPREENDIMENTOS'!#REF!)+'DADOS DOS EMPREENDIMENTOS'!#REF!,IF(BW75='DADOS DOS EMPREENDIMENTOS'!BY$12,'DADOS DOS EMPREENDIMENTOS'!#REF!,BY75*(1-'DADOS DOS EMPREENDIMENTOS'!#REF!-'DADOS DOS EMPREENDIMENTOS'!#REF!)))) ->  | CB75: 29 | CC75: 2011-10-01 | CD75: 0 | CE75: =IF(CB75<'DADOS DOS EMPREENDIMENTOS'!CD$11,0,IF(CB75='DADOS DOS EMPREENDIMENTOS'!CD$11,SUM(CD$46:CD75)*(1-'DADOS DOS EMPREENDIMENTOS'!#REF!-'DADOS DOS EMPREENDIMENTOS'!#REF!)+'DADOS DOS EMPREENDIMENTOS'!#REF!,IF(CB75='DADOS DOS EMPREENDIMENTOS'!CD$12,'DADOS DOS EMPREENDIMENTOS'!#REF!,CD75*(1-'DADOS DOS EMPREENDIMENTOS'!#REF!-'DADOS DOS EMPREENDIMENTOS'!#REF!)))) -> 
O76: 30 | T76: 30 | Y76: 30 | AD76: 30 | AE76: 2011-11-01 | AF76: 0 | AG76: =IF(AD76<'DADOS DOS EMPREENDIMENTOS'!AF$11,0,IF(AD76='DADOS DOS EMPREENDIMENTOS'!AF$11,SUM(AF$46:AF76)*(1-'DADOS DOS EMPREENDIMENTOS'!#REF!-'DADOS DOS EMPREENDIMENTOS'!#REF!)+'DADOS DOS EMPREENDIMENTOS'!#REF!,IF(AD76='DADOS DOS EMPREENDIMENTOS'!#REF!,'DADOS DOS EMPREENDIMENTOS'!#REF!,AF76*(1-'DADOS DOS EMPREENDIMENTOS'!#REF!-'DADOS DOS EMPREENDIMENTOS'!#REF!)))) ->  | AI76: 30 | AJ76: 2011-11-01 | AK76: 0 | AL76: =IF(AI76<'DADOS DOS EMPREENDIMENTOS'!AK$11,0,IF(AI76='DADOS DOS EMPREENDIMENTOS'!AK$11,SUM(AK$46:AK76)*(1-'DADOS DOS EMPREENDIMENTOS'!#REF!-'DADOS DOS EMPREENDIMENTOS'!#REF!)+'DADOS DOS EMPREENDIMENTOS'!#REF!,IF(AI76='DADOS DOS EMPREENDIMENTOS'!#REF!,'DADOS DOS EMPREENDIMENTOS'!#REF!,AK76*(1-'DADOS DOS EMPREENDIMENTOS'!#REF!-'DADOS DOS EMPREENDIMENTOS'!#REF!)))) ->  | AN76: 30 | AO76: 2011-11-01 | AP76: 0 | AQ76: =IF(AN76<'DADOS DOS EMPREENDIMENTOS'!AP$11,0,IF(AN76='DADOS DOS EMPREENDIMENTOS'!AP$11,SUM(AP$46:AP76)*(1-'DADOS DOS EMPREENDIMENTOS'!#REF!-'DADOS DOS EMPREENDIMENTOS'!#REF!)+'DADOS DOS EMPREENDIMENTOS'!#REF!,IF(AN76='DADOS DOS EMPREENDIMENTOS'!#REF!,'DADOS DOS EMPREENDIMENTOS'!#REF!,AP76*(1-'DADOS DOS EMPREENDIMENTOS'!#REF!-'DADOS DOS EMPREENDIMENTOS'!#REF!)))) ->  | AS76: 30 | AT76: 2011-11-01 | AU76: 0 | AV76: =IF(AS76<'DADOS DOS EMPREENDIMENTOS'!AU$11,0,IF(AS76='DADOS DOS EMPREENDIMENTOS'!AU$11,SUM(AU$46:AU76)*(1-'DADOS DOS EMPREENDIMENTOS'!#REF!-'DADOS DOS EMPREENDIMENTOS'!#REF!)+'DADOS DOS EMPREENDIMENTOS'!#REF!,IF(AS76='DADOS DOS EMPREENDIMENTOS'!#REF!,'DADOS DOS EMPREENDIMENTOS'!#REF!,AU76*(1-'DADOS DOS EMPREENDIMENTOS'!#REF!-'DADOS DOS EMPREENDIMENTOS'!#REF!)))) ->  | AX76: 30 | AY76: 2011-11-01 | AZ76: 0 | BA76: =IF(AX76<'DADOS DOS EMPREENDIMENTOS'!AZ$11,0,IF(AX76='DADOS DOS EMPREENDIMENTOS'!AZ$11,SUM(AZ$46:AZ76)*(1-'DADOS DOS EMPREENDIMENTOS'!#REF!-'DADOS DOS EMPREENDIMENTOS'!#REF!)+'DADOS DOS EMPREENDIMENTOS'!#REF!,IF(AX76='DADOS DOS EMPREENDIMENTOS'!#REF!,'DADOS DOS EMPREENDIMENTOS'!#REF!,AZ76*(1-'DADOS DOS EMPREENDIMENTOS'!#REF!-'DADOS DOS EMPREENDIMENTOS'!#REF!)))) ->  | BC76: 30 | BD76: 2011-11-01 | BE76: 0 | BF76: =IF(BC76<'DADOS DOS EMPREENDIMENTOS'!BE$11,0,IF(BC76='DADOS DOS EMPREENDIMENTOS'!BE$11,SUM(BE$46:BE76)*(1-'DADOS DOS EMPREENDIMENTOS'!#REF!-'DADOS DOS EMPREENDIMENTOS'!#REF!)+'DADOS DOS EMPREENDIMENTOS'!#REF!,IF(BC76='DADOS DOS EMPREENDIMENTOS'!#REF!,'DADOS DOS EMPREENDIMENTOS'!#REF!,BE76*(1-'DADOS DOS EMPREENDIMENTOS'!#REF!-'DADOS DOS EMPREENDIMENTOS'!#REF!)))) ->  | BH76: 30 | BI76: 2011-11-01 | BJ76: 0 | BK76: =IF(BH76<'DADOS DOS EMPREENDIMENTOS'!BJ$11,0,IF(BH76='DADOS DOS EMPREENDIMENTOS'!BJ$11,SUM(BJ$46:BJ76)*(1-'DADOS DOS EMPREENDIMENTOS'!#REF!-'DADOS DOS EMPREENDIMENTOS'!#REF!)+'DADOS DOS EMPREENDIMENTOS'!#REF!,IF(BH76='DADOS DOS EMPREENDIMENTOS'!#REF!,'DADOS DOS EMPREENDIMENTOS'!#REF!,BJ76*(1-'DADOS DOS EMPREENDIMENTOS'!#REF!-'DADOS DOS EMPREENDIMENTOS'!#REF!)))) ->  | BM76: 30 | BN76: 2011-11-01 | BO76: 0 | BP76: =IF(BM76<'DADOS DOS EMPREENDIMENTOS'!BO$11,0,IF(BM76='DADOS DOS EMPREENDIMENTOS'!BO$11,SUM(BO$46:BO76)*(1-'DADOS DOS EMPREENDIMENTOS'!#REF!-'DADOS DOS EMPREENDIMENTOS'!#REF!)+'DADOS DOS EMPREENDIMENTOS'!#REF!,IF(BM76='DADOS DOS EMPREENDIMENTOS'!BO$12,'DADOS DOS EMPREENDIMENTOS'!#REF!,BO76*(1-'DADOS DOS EMPREENDIMENTOS'!#REF!-'DADOS DOS EMPREENDIMENTOS'!#REF!)))) ->  | BR76: 30 | BS76: 2011-11-01 | BT76: 0 | BU76: =IF(BR76<'DADOS DOS EMPREENDIMENTOS'!BT$11,0,IF(BR76='DADOS DOS EMPREENDIMENTOS'!BT$11,SUM(BT$46:BT76)*(1-'DADOS DOS EMPREENDIMENTOS'!#REF!-'DADOS DOS EMPREENDIMENTOS'!#REF!)+'DADOS DOS EMPREENDIMENTOS'!#REF!,IF(BR76='DADOS DOS EMPREENDIMENTOS'!BT$12,'DADOS DOS EMPREENDIMENTOS'!#REF!,BT76*(1-'DADOS DOS EMPREENDIMENTOS'!#REF!-'DADOS DOS EMPREENDIMENTOS'!#REF!)))) ->  | BW76: 30 | BX76: 2011-11-01 | BY76: 0 | BZ76: =IF(BW76<'DADOS DOS EMPREENDIMENTOS'!BY$11,0,IF(BW76='DADOS DOS EMPREENDIMENTOS'!BY$11,SUM(BY$46:BY76)*(1-'DADOS DOS EMPREENDIMENTOS'!#REF!-'DADOS DOS EMPREENDIMENTOS'!#REF!)+'DADOS DOS EMPREENDIMENTOS'!#REF!,IF(BW76='DADOS DOS EMPREENDIMENTOS'!BY$12,'DADOS DOS EMPREENDIMENTOS'!#REF!,BY76*(1-'DADOS DOS EMPREENDIMENTOS'!#REF!-'DADOS DOS EMPREENDIMENTOS'!#REF!)))) ->  | CB76: 30 | CC76: 2011-11-01 | CD76: 0 | CE76: =IF(CB76<'DADOS DOS EMPREENDIMENTOS'!CD$11,0,IF(CB76='DADOS DOS EMPREENDIMENTOS'!CD$11,SUM(CD$46:CD76)*(1-'DADOS DOS EMPREENDIMENTOS'!#REF!-'DADOS DOS EMPREENDIMENTOS'!#REF!)+'DADOS DOS EMPREENDIMENTOS'!#REF!,IF(CB76='DADOS DOS EMPREENDIMENTOS'!CD$12,'DADOS DOS EMPREENDIMENTOS'!#REF!,CD76*(1-'DADOS DOS EMPREENDIMENTOS'!#REF!-'DADOS DOS EMPREENDIMENTOS'!#REF!)))) -> 
O77: 31 | T77: 31 | Y77: 31 | AD77: 31 | AE77: 2011-12-01 | AF77: 0 | AG77: =IF(AD77<'DADOS DOS EMPREENDIMENTOS'!AF$11,0,IF(AD77='DADOS DOS EMPREENDIMENTOS'!AF$11,SUM(AF$46:AF77)*(1-'DADOS DOS EMPREENDIMENTOS'!#REF!-'DADOS DOS EMPREENDIMENTOS'!#REF!)+'DADOS DOS EMPREENDIMENTOS'!#REF!,IF(AD77='DADOS DOS EMPREENDIMENTOS'!#REF!,'DADOS DOS EMPREENDIMENTOS'!#REF!,AF77*(1-'DADOS DOS EMPREENDIMENTOS'!#REF!-'DADOS DOS EMPREENDIMENTOS'!#REF!)))) ->  | AI77: 31 | AJ77: 2011-12-01 | AK77: 0 | AL77: =IF(AI77<'DADOS DOS EMPREENDIMENTOS'!AK$11,0,IF(AI77='DADOS DOS EMPREENDIMENTOS'!AK$11,SUM(AK$46:AK77)*(1-'DADOS DOS EMPREENDIMENTOS'!#REF!-'DADOS DOS EMPREENDIMENTOS'!#REF!)+'DADOS DOS EMPREENDIMENTOS'!#REF!,IF(AI77='DADOS DOS EMPREENDIMENTOS'!#REF!,'DADOS DOS EMPREENDIMENTOS'!#REF!,AK77*(1-'DADOS DOS EMPREENDIMENTOS'!#REF!-'DADOS DOS EMPREENDIMENTOS'!#REF!)))) ->  | AN77: 31 | AO77: 2011-12-01 | AP77: 0 | AQ77: =IF(AN77<'DADOS DOS EMPREENDIMENTOS'!AP$11,0,IF(AN77='DADOS DOS EMPREENDIMENTOS'!AP$11,SUM(AP$46:AP77)*(1-'DADOS DOS EMPREENDIMENTOS'!#REF!-'DADOS DOS EMPREENDIMENTOS'!#REF!)+'DADOS DOS EMPREENDIMENTOS'!#REF!,IF(AN77='DADOS DOS EMPREENDIMENTOS'!#REF!,'DADOS DOS EMPREENDIMENTOS'!#REF!,AP77*(1-'DADOS DOS EMPREENDIMENTOS'!#REF!-'DADOS DOS EMPREENDIMENTOS'!#REF!)))) ->  | AS77: 31 | AT77: 2011-12-01 | AU77: 0 | AV77: =IF(AS77<'DADOS DOS EMPREENDIMENTOS'!AU$11,0,IF(AS77='DADOS DOS EMPREENDIMENTOS'!AU$11,SUM(AU$46:AU77)*(1-'DADOS DOS EMPREENDIMENTOS'!#REF!-'DADOS DOS EMPREENDIMENTOS'!#REF!)+'DADOS DOS EMPREENDIMENTOS'!#REF!,IF(AS77='DADOS DOS EMPREENDIMENTOS'!#REF!,'DADOS DOS EMPREENDIMENTOS'!#REF!,AU77*(1-'DADOS DOS EMPREENDIMENTOS'!#REF!-'DADOS DOS EMPREENDIMENTOS'!#REF!)))) ->  | AX77: 31 | AY77: 2011-12-01 | AZ77: 0 | BA77: =IF(AX77<'DADOS DOS EMPREENDIMENTOS'!AZ$11,0,IF(AX77='DADOS DOS EMPREENDIMENTOS'!AZ$11,SUM(AZ$46:AZ77)*(1-'DADOS DOS EMPREENDIMENTOS'!#REF!-'DADOS DOS EMPREENDIMENTOS'!#REF!)+'DADOS DOS EMPREENDIMENTOS'!#REF!,IF(AX77='DADOS DOS EMPREENDIMENTOS'!#REF!,'DADOS DOS EMPREENDIMENTOS'!#REF!,AZ77*(1-'DADOS DOS EMPREENDIMENTOS'!#REF!-'DADOS DOS EMPREENDIMENTOS'!#REF!)))) ->  | BC77: 31 | BD77: 2011-12-01 | BE77: 0 | BF77: =IF(BC77<'DADOS DOS EMPREENDIMENTOS'!BE$11,0,IF(BC77='DADOS DOS EMPREENDIMENTOS'!BE$11,SUM(BE$46:BE77)*(1-'DADOS DOS EMPREENDIMENTOS'!#REF!-'DADOS DOS EMPREENDIMENTOS'!#REF!)+'DADOS DOS EMPREENDIMENTOS'!#REF!,IF(BC77='DADOS DOS EMPREENDIMENTOS'!#REF!,'DADOS DOS EMPREENDIMENTOS'!#REF!,BE77*(1-'DADOS DOS EMPREENDIMENTOS'!#REF!-'DADOS DOS EMPREENDIMENTOS'!#REF!)))) ->  | BH77: 31 | BI77: 2011-12-01 | BJ77: 0 | BK77: =IF(BH77<'DADOS DOS EMPREENDIMENTOS'!BJ$11,0,IF(BH77='DADOS DOS EMPREENDIMENTOS'!BJ$11,SUM(BJ$46:BJ77)*(1-'DADOS DOS EMPREENDIMENTOS'!#REF!-'DADOS DOS EMPREENDIMENTOS'!#REF!)+'DADOS DOS EMPREENDIMENTOS'!#REF!,IF(BH77='DADOS DOS EMPREENDIMENTOS'!#REF!,'DADOS DOS EMPREENDIMENTOS'!#REF!,BJ77*(1-'DADOS DOS EMPREENDIMENTOS'!#REF!-'DADOS DOS EMPREENDIMENTOS'!#REF!)))) ->  | BM77: 31 | BN77: 2011-12-01 | BO77: 0 | BP77: =IF(BM77<'DADOS DOS EMPREENDIMENTOS'!BO$11,0,IF(BM77='DADOS DOS EMPREENDIMENTOS'!BO$11,SUM(BO$46:BO77)*(1-'DADOS DOS EMPREENDIMENTOS'!#REF!-'DADOS DOS EMPREENDIMENTOS'!#REF!)+'DADOS DOS EMPREENDIMENTOS'!#REF!,IF(BM77='DADOS DOS EMPREENDIMENTOS'!BO$12,'DADOS DOS EMPREENDIMENTOS'!#REF!,BO77*(1-'DADOS DOS EMPREENDIMENTOS'!#REF!-'DADOS DOS EMPREENDIMENTOS'!#REF!)))) ->  | BR77: 31 | BS77: 2011-12-01 | BT77: 0 | BU77: =IF(BR77<'DADOS DOS EMPREENDIMENTOS'!BT$11,0,IF(BR77='DADOS DOS EMPREENDIMENTOS'!BT$11,SUM(BT$46:BT77)*(1-'DADOS DOS EMPREENDIMENTOS'!#REF!-'DADOS DOS EMPREENDIMENTOS'!#REF!)+'DADOS DOS EMPREENDIMENTOS'!#REF!,IF(BR77='DADOS DOS EMPREENDIMENTOS'!BT$12,'DADOS DOS EMPREENDIMENTOS'!#REF!,BT77*(1-'DADOS DOS EMPREENDIMENTOS'!#REF!-'DADOS DOS EMPREENDIMENTOS'!#REF!)))) ->  | BW77: 31 | BX77: 2011-12-01 | BY77: 0 | BZ77: =IF(BW77<'DADOS DOS EMPREENDIMENTOS'!BY$11,0,IF(BW77='DADOS DOS EMPREENDIMENTOS'!BY$11,SUM(BY$46:BY77)*(1-'DADOS DOS EMPREENDIMENTOS'!#REF!-'DADOS DOS EMPREENDIMENTOS'!#REF!)+'DADOS DOS EMPREENDIMENTOS'!#REF!,IF(BW77='DADOS DOS EMPREENDIMENTOS'!BY$12,'DADOS DOS EMPREENDIMENTOS'!#REF!,BY77*(1-'DADOS DOS EMPREENDIMENTOS'!#REF!-'DADOS DOS EMPREENDIMENTOS'!#REF!)))) ->  | CB77: 31 | CC77: 2011-12-01 | CD77: 0 | CE77: =IF(CB77<'DADOS DOS EMPREENDIMENTOS'!CD$11,0,IF(CB77='DADOS DOS EMPREENDIMENTOS'!CD$11,SUM(CD$46:CD77)*(1-'DADOS DOS EMPREENDIMENTOS'!#REF!-'DADOS DOS EMPREENDIMENTOS'!#REF!)+'DADOS DOS EMPREENDIMENTOS'!#REF!,IF(CB77='DADOS DOS EMPREENDIMENTOS'!CD$12,'DADOS DOS EMPREENDIMENTOS'!#REF!,CD77*(1-'DADOS DOS EMPREENDIMENTOS'!#REF!-'DADOS DOS EMPREENDIMENTOS'!#REF!)))) -> 
O78: 32 | T78: 32 | Y78: 32 | AD78: 32 | AE78: 2012-01-01 | AF78: 0 | AG78: =IF(AD78<'DADOS DOS EMPREENDIMENTOS'!AF$11,0,IF(AD78='DADOS DOS EMPREENDIMENTOS'!AF$11,SUM(AF$46:AF78)*(1-'DADOS DOS EMPREENDIMENTOS'!#REF!-'DADOS DOS EMPREENDIMENTOS'!#REF!)+'DADOS DOS EMPREENDIMENTOS'!#REF!,IF(AD78='DADOS DOS EMPREENDIMENTOS'!#REF!,'DADOS DOS EMPREENDIMENTOS'!#REF!,AF78*(1-'DADOS DOS EMPREENDIMENTOS'!#REF!-'DADOS DOS EMPREENDIMENTOS'!#REF!)))) ->  | AI78: 32 | AJ78: 2012-01-01 | AK78: 0 | AL78: =IF(AI78<'DADOS DOS EMPREENDIMENTOS'!AK$11,0,IF(AI78='DADOS DOS EMPREENDIMENTOS'!AK$11,SUM(AK$46:AK78)*(1-'DADOS DOS EMPREENDIMENTOS'!#REF!-'DADOS DOS EMPREENDIMENTOS'!#REF!)+'DADOS DOS EMPREENDIMENTOS'!#REF!,IF(AI78='DADOS DOS EMPREENDIMENTOS'!#REF!,'DADOS DOS EMPREENDIMENTOS'!#REF!,AK78*(1-'DADOS DOS EMPREENDIMENTOS'!#REF!-'DADOS DOS EMPREENDIMENTOS'!#REF!)))) ->  | AN78: 32 | AO78: 2012-01-01 | AP78: 0 | AQ78: =IF(AN78<'DADOS DOS EMPREENDIMENTOS'!AP$11,0,IF(AN78='DADOS DOS EMPREENDIMENTOS'!AP$11,SUM(AP$46:AP78)*(1-'DADOS DOS EMPREENDIMENTOS'!#REF!-'DADOS DOS EMPREENDIMENTOS'!#REF!)+'DADOS DOS EMPREENDIMENTOS'!#REF!,IF(AN78='DADOS DOS EMPREENDIMENTOS'!#REF!,'DADOS DOS EMPREENDIMENTOS'!#REF!,AP78*(1-'DADOS DOS EMPREENDIMENTOS'!#REF!-'DADOS DOS EMPREENDIMENTOS'!#REF!)))) ->  | AS78: 32 | AT78: 2012-01-01 | AU78: 0 | AV78: =IF(AS78<'DADOS DOS EMPREENDIMENTOS'!AU$11,0,IF(AS78='DADOS DOS EMPREENDIMENTOS'!AU$11,SUM(AU$46:AU78)*(1-'DADOS DOS EMPREENDIMENTOS'!#REF!-'DADOS DOS EMPREENDIMENTOS'!#REF!)+'DADOS DOS EMPREENDIMENTOS'!#REF!,IF(AS78='DADOS DOS EMPREENDIMENTOS'!#REF!,'DADOS DOS EMPREENDIMENTOS'!#REF!,AU78*(1-'DADOS DOS EMPREENDIMENTOS'!#REF!-'DADOS DOS EMPREENDIMENTOS'!#REF!)))) ->  | AX78: 32 | AY78: 2012-01-01 | AZ78: 0 | BA78: =IF(AX78<'DADOS DOS EMPREENDIMENTOS'!AZ$11,0,IF(AX78='DADOS DOS EMPREENDIMENTOS'!AZ$11,SUM(AZ$46:AZ78)*(1-'DADOS DOS EMPREENDIMENTOS'!#REF!-'DADOS DOS EMPREENDIMENTOS'!#REF!)+'DADOS DOS EMPREENDIMENTOS'!#REF!,IF(AX78='DADOS DOS EMPREENDIMENTOS'!#REF!,'DADOS DOS EMPREENDIMENTOS'!#REF!,AZ78*(1-'DADOS DOS EMPREENDIMENTOS'!#REF!-'DADOS DOS EMPREENDIMENTOS'!#REF!)))) ->  | BC78: 32 | BD78: 2012-01-01 | BE78: 0 | BF78: =IF(BC78<'DADOS DOS EMPREENDIMENTOS'!BE$11,0,IF(BC78='DADOS DOS EMPREENDIMENTOS'!BE$11,SUM(BE$46:BE78)*(1-'DADOS DOS EMPREENDIMENTOS'!#REF!-'DADOS DOS EMPREENDIMENTOS'!#REF!)+'DADOS DOS EMPREENDIMENTOS'!#REF!,IF(BC78='DADOS DOS EMPREENDIMENTOS'!#REF!,'DADOS DOS EMPREENDIMENTOS'!#REF!,BE78*(1-'DADOS DOS EMPREENDIMENTOS'!#REF!-'DADOS DOS EMPREENDIMENTOS'!#REF!)))) ->  | BH78: 32 | BI78: 2012-01-01 | BJ78: 0 | BK78: =IF(BH78<'DADOS DOS EMPREENDIMENTOS'!BJ$11,0,IF(BH78='DADOS DOS EMPREENDIMENTOS'!BJ$11,SUM(BJ$46:BJ78)*(1-'DADOS DOS EMPREENDIMENTOS'!#REF!-'DADOS DOS EMPREENDIMENTOS'!#REF!)+'DADOS DOS EMPREENDIMENTOS'!#REF!,IF(BH78='DADOS DOS EMPREENDIMENTOS'!#REF!,'DADOS DOS EMPREENDIMENTOS'!#REF!,BJ78*(1-'DADOS DOS EMPREENDIMENTOS'!#REF!-'DADOS DOS EMPREENDIMENTOS'!#REF!)))) ->  | BM78: 32 | BN78: 2012-01-01 | BO78: 0 | BP78: =IF(BM78<'DADOS DOS EMPREENDIMENTOS'!BO$11,0,IF(BM78='DADOS DOS EMPREENDIMENTOS'!BO$11,SUM(BO$46:BO78)*(1-'DADOS DOS EMPREENDIMENTOS'!#REF!-'DADOS DOS EMPREENDIMENTOS'!#REF!)+'DADOS DOS EMPREENDIMENTOS'!#REF!,IF(BM78='DADOS DOS EMPREENDIMENTOS'!BO$12,'DADOS DOS EMPREENDIMENTOS'!#REF!,BO78*(1-'DADOS DOS EMPREENDIMENTOS'!#REF!-'DADOS DOS EMPREENDIMENTOS'!#REF!)))) ->  | BR78: 32 | BS78: 2012-01-01 | BT78: 0 | BU78: =IF(BR78<'DADOS DOS EMPREENDIMENTOS'!BT$11,0,IF(BR78='DADOS DOS EMPREENDIMENTOS'!BT$11,SUM(BT$46:BT78)*(1-'DADOS DOS EMPREENDIMENTOS'!#REF!-'DADOS DOS EMPREENDIMENTOS'!#REF!)+'DADOS DOS EMPREENDIMENTOS'!#REF!,IF(BR78='DADOS DOS EMPREENDIMENTOS'!BT$12,'DADOS DOS EMPREENDIMENTOS'!#REF!,BT78*(1-'DADOS DOS EMPREENDIMENTOS'!#REF!-'DADOS DOS EMPREENDIMENTOS'!#REF!)))) ->  | BW78: 32 | BX78: 2012-01-01 | BY78: 0 | BZ78: =IF(BW78<'DADOS DOS EMPREENDIMENTOS'!BY$11,0,IF(BW78='DADOS DOS EMPREENDIMENTOS'!BY$11,SUM(BY$46:BY78)*(1-'DADOS DOS EMPREENDIMENTOS'!#REF!-'DADOS DOS EMPREENDIMENTOS'!#REF!)+'DADOS DOS EMPREENDIMENTOS'!#REF!,IF(BW78='DADOS DOS EMPREENDIMENTOS'!BY$12,'DADOS DOS EMPREENDIMENTOS'!#REF!,BY78*(1-'DADOS DOS EMPREENDIMENTOS'!#REF!-'DADOS DOS EMPREENDIMENTOS'!#REF!)))) ->  | CB78: 32 | CC78: 2012-01-01 | CD78: 0 | CE78: =IF(CB78<'DADOS DOS EMPREENDIMENTOS'!CD$11,0,IF(CB78='DADOS DOS EMPREENDIMENTOS'!CD$11,SUM(CD$46:CD78)*(1-'DADOS DOS EMPREENDIMENTOS'!#REF!-'DADOS DOS EMPREENDIMENTOS'!#REF!)+'DADOS DOS EMPREENDIMENTOS'!#REF!,IF(CB78='DADOS DOS EMPREENDIMENTOS'!CD$12,'DADOS DOS EMPREENDIMENTOS'!#REF!,CD78*(1-'DADOS DOS EMPREENDIMENTOS'!#REF!-'DADOS DOS EMPREENDIMENTOS'!#REF!)))) -> 
O79: 33 | T79: 33 | Y79: 33 | AD79: 33 | AE79: 2012-02-01 | AF79: 0 | AG79: =IF(AD79<'DADOS DOS EMPREENDIMENTOS'!AF$11,0,IF(AD79='DADOS DOS EMPREENDIMENTOS'!AF$11,SUM(AF$46:AF79)*(1-'DADOS DOS EMPREENDIMENTOS'!#REF!-'DADOS DOS EMPREENDIMENTOS'!#REF!)+'DADOS DOS EMPREENDIMENTOS'!#REF!,IF(AD79='DADOS DOS EMPREENDIMENTOS'!#REF!,'DADOS DOS EMPREENDIMENTOS'!#REF!,AF79*(1-'DADOS DOS EMPREENDIMENTOS'!#REF!-'DADOS DOS EMPREENDIMENTOS'!#REF!)))) ->  | AI79: 33 | AJ79: 2012-02-01 | AK79: 0 | AL79: =IF(AI79<'DADOS DOS EMPREENDIMENTOS'!AK$11,0,IF(AI79='DADOS DOS EMPREENDIMENTOS'!AK$11,SUM(AK$46:AK79)*(1-'DADOS DOS EMPREENDIMENTOS'!#REF!-'DADOS DOS EMPREENDIMENTOS'!#REF!)+'DADOS DOS EMPREENDIMENTOS'!#REF!,IF(AI79='DADOS DOS EMPREENDIMENTOS'!#REF!,'DADOS DOS EMPREENDIMENTOS'!#REF!,AK79*(1-'DADOS DOS EMPREENDIMENTOS'!#REF!-'DADOS DOS EMPREENDIMENTOS'!#REF!)))) ->  | AN79: 33 | AO79: 2012-02-01 | AP79: 0 | AQ79: =IF(AN79<'DADOS DOS EMPREENDIMENTOS'!AP$11,0,IF(AN79='DADOS DOS EMPREENDIMENTOS'!AP$11,SUM(AP$46:AP79)*(1-'DADOS DOS EMPREENDIMENTOS'!#REF!-'DADOS DOS EMPREENDIMENTOS'!#REF!)+'DADOS DOS EMPREENDIMENTOS'!#REF!,IF(AN79='DADOS DOS EMPREENDIMENTOS'!#REF!,'DADOS DOS EMPREENDIMENTOS'!#REF!,AP79*(1-'DADOS DOS EMPREENDIMENTOS'!#REF!-'DADOS DOS EMPREENDIMENTOS'!#REF!)))) ->  | AS79: 33 | AT79: 2012-02-01 | AU79: 0 | AV79: =IF(AS79<'DADOS DOS EMPREENDIMENTOS'!AU$11,0,IF(AS79='DADOS DOS EMPREENDIMENTOS'!AU$11,SUM(AU$46:AU79)*(1-'DADOS DOS EMPREENDIMENTOS'!#REF!-'DADOS DOS EMPREENDIMENTOS'!#REF!)+'DADOS DOS EMPREENDIMENTOS'!#REF!,IF(AS79='DADOS DOS EMPREENDIMENTOS'!#REF!,'DADOS DOS EMPREENDIMENTOS'!#REF!,AU79*(1-'DADOS DOS EMPREENDIMENTOS'!#REF!-'DADOS DOS EMPREENDIMENTOS'!#REF!)))) ->  | AX79: 33 | AY79: 2012-02-01 | AZ79: 0 | BA79: =IF(AX79<'DADOS DOS EMPREENDIMENTOS'!AZ$11,0,IF(AX79='DADOS DOS EMPREENDIMENTOS'!AZ$11,SUM(AZ$46:AZ79)*(1-'DADOS DOS EMPREENDIMENTOS'!#REF!-'DADOS DOS EMPREENDIMENTOS'!#REF!)+'DADOS DOS EMPREENDIMENTOS'!#REF!,IF(AX79='DADOS DOS EMPREENDIMENTOS'!#REF!,'DADOS DOS EMPREENDIMENTOS'!#REF!,AZ79*(1-'DADOS DOS EMPREENDIMENTOS'!#REF!-'DADOS DOS EMPREENDIMENTOS'!#REF!)))) ->  | BC79: 33 | BD79: 2012-02-01 | BE79: 0 | BF79: =IF(BC79<'DADOS DOS EMPREENDIMENTOS'!BE$11,0,IF(BC79='DADOS DOS EMPREENDIMENTOS'!BE$11,SUM(BE$46:BE79)*(1-'DADOS DOS EMPREENDIMENTOS'!#REF!-'DADOS DOS EMPREENDIMENTOS'!#REF!)+'DADOS DOS EMPREENDIMENTOS'!#REF!,IF(BC79='DADOS DOS EMPREENDIMENTOS'!#REF!,'DADOS DOS EMPREENDIMENTOS'!#REF!,BE79*(1-'DADOS DOS EMPREENDIMENTOS'!#REF!-'DADOS DOS EMPREENDIMENTOS'!#REF!)))) ->  | BH79: 33 | BI79: 2012-02-01 | BJ79: 0 | BK79: =IF(BH79<'DADOS DOS EMPREENDIMENTOS'!BJ$11,0,IF(BH79='DADOS DOS EMPREENDIMENTOS'!BJ$11,SUM(BJ$46:BJ79)*(1-'DADOS DOS EMPREENDIMENTOS'!#REF!-'DADOS DOS EMPREENDIMENTOS'!#REF!)+'DADOS DOS EMPREENDIMENTOS'!#REF!,IF(BH79='DADOS DOS EMPREENDIMENTOS'!#REF!,'DADOS DOS EMPREENDIMENTOS'!#REF!,BJ79*(1-'DADOS DOS EMPREENDIMENTOS'!#REF!-'DADOS DOS EMPREENDIMENTOS'!#REF!)))) ->  | BM79: 33 | BN79: 2012-02-01 | BO79: 0 | BP79: =IF(BM79<'DADOS DOS EMPREENDIMENTOS'!BO$11,0,IF(BM79='DADOS DOS EMPREENDIMENTOS'!BO$11,SUM(BO$46:BO79)*(1-'DADOS DOS EMPREENDIMENTOS'!#REF!-'DADOS DOS EMPREENDIMENTOS'!#REF!)+'DADOS DOS EMPREENDIMENTOS'!#REF!,IF(BM79='DADOS DOS EMPREENDIMENTOS'!BO$12,'DADOS DOS EMPREENDIMENTOS'!#REF!,BO79*(1-'DADOS DOS EMPREENDIMENTOS'!#REF!-'DADOS DOS EMPREENDIMENTOS'!#REF!)))) ->  | BR79: 33 | BS79: 2012-02-01 | BT79: 0 | BU79: =IF(BR79<'DADOS DOS EMPREENDIMENTOS'!BT$11,0,IF(BR79='DADOS DOS EMPREENDIMENTOS'!BT$11,SUM(BT$46:BT79)*(1-'DADOS DOS EMPREENDIMENTOS'!#REF!-'DADOS DOS EMPREENDIMENTOS'!#REF!)+'DADOS DOS EMPREENDIMENTOS'!#REF!,IF(BR79='DADOS DOS EMPREENDIMENTOS'!BT$12,'DADOS DOS EMPREENDIMENTOS'!#REF!,BT79*(1-'DADOS DOS EMPREENDIMENTOS'!#REF!-'DADOS DOS EMPREENDIMENTOS'!#REF!)))) ->  | BW79: 33 | BX79: 2012-02-01 | BY79: 0 | BZ79: =IF(BW79<'DADOS DOS EMPREENDIMENTOS'!BY$11,0,IF(BW79='DADOS DOS EMPREENDIMENTOS'!BY$11,SUM(BY$46:BY79)*(1-'DADOS DOS EMPREENDIMENTOS'!#REF!-'DADOS DOS EMPREENDIMENTOS'!#REF!)+'DADOS DOS EMPREENDIMENTOS'!#REF!,IF(BW79='DADOS DOS EMPREENDIMENTOS'!BY$12,'DADOS DOS EMPREENDIMENTOS'!#REF!,BY79*(1-'DADOS DOS EMPREENDIMENTOS'!#REF!-'DADOS DOS EMPREENDIMENTOS'!#REF!)))) ->  | CB79: 33 | CC79: 2012-02-01 | CD79: 0 | CE79: =IF(CB79<'DADOS DOS EMPREENDIMENTOS'!CD$11,0,IF(CB79='DADOS DOS EMPREENDIMENTOS'!CD$11,SUM(CD$46:CD79)*(1-'DADOS DOS EMPREENDIMENTOS'!#REF!-'DADOS DOS EMPREENDIMENTOS'!#REF!)+'DADOS DOS EMPREENDIMENTOS'!#REF!,IF(CB79='DADOS DOS EMPREENDIMENTOS'!CD$12,'DADOS DOS EMPREENDIMENTOS'!#REF!,CD79*(1-'DADOS DOS EMPREENDIMENTOS'!#REF!-'DADOS DOS EMPREENDIMENTOS'!#REF!)))) -> 
O80: 34 | T80: 34 | Y80: 34 | AD80: 34 | AE80: 2012-03-01 | AF80: 0 | AG80: =IF(AD80<'DADOS DOS EMPREENDIMENTOS'!AF$11,0,IF(AD80='DADOS DOS EMPREENDIMENTOS'!AF$11,SUM(AF$46:AF80)*(1-'DADOS DOS EMPREENDIMENTOS'!#REF!-'DADOS DOS EMPREENDIMENTOS'!#REF!)+'DADOS DOS EMPREENDIMENTOS'!#REF!,IF(AD80='DADOS DOS EMPREENDIMENTOS'!#REF!,'DADOS DOS EMPREENDIMENTOS'!#REF!,AF80*(1-'DADOS DOS EMPREENDIMENTOS'!#REF!-'DADOS DOS EMPREENDIMENTOS'!#REF!)))) ->  | AI80: 34 | AJ80: 2012-03-01 | AK80: 0 | AL80: =IF(AI80<'DADOS DOS EMPREENDIMENTOS'!AK$11,0,IF(AI80='DADOS DOS EMPREENDIMENTOS'!AK$11,SUM(AK$46:AK80)*(1-'DADOS DOS EMPREENDIMENTOS'!#REF!-'DADOS DOS EMPREENDIMENTOS'!#REF!)+'DADOS DOS EMPREENDIMENTOS'!#REF!,IF(AI80='DADOS DOS EMPREENDIMENTOS'!#REF!,'DADOS DOS EMPREENDIMENTOS'!#REF!,AK80*(1-'DADOS DOS EMPREENDIMENTOS'!#REF!-'DADOS DOS EMPREENDIMENTOS'!#REF!)))) ->  | AN80: 34 | AO80: 2012-03-01 | AP80: 0 | AQ80: =IF(AN80<'DADOS DOS EMPREENDIMENTOS'!AP$11,0,IF(AN80='DADOS DOS EMPREENDIMENTOS'!AP$11,SUM(AP$46:AP80)*(1-'DADOS DOS EMPREENDIMENTOS'!#REF!-'DADOS DOS EMPREENDIMENTOS'!#REF!)+'DADOS DOS EMPREENDIMENTOS'!#REF!,IF(AN80='DADOS DOS EMPREENDIMENTOS'!#REF!,'DADOS DOS EMPREENDIMENTOS'!#REF!,AP80*(1-'DADOS DOS EMPREENDIMENTOS'!#REF!-'DADOS DOS EMPREENDIMENTOS'!#REF!)))) ->  | AS80: 34 | AT80: 2012-03-01 | AU80: 0 | AV80: =IF(AS80<'DADOS DOS EMPREENDIMENTOS'!AU$11,0,IF(AS80='DADOS DOS EMPREENDIMENTOS'!AU$11,SUM(AU$46:AU80)*(1-'DADOS DOS EMPREENDIMENTOS'!#REF!-'DADOS DOS EMPREENDIMENTOS'!#REF!)+'DADOS DOS EMPREENDIMENTOS'!#REF!,IF(AS80='DADOS DOS EMPREENDIMENTOS'!#REF!,'DADOS DOS EMPREENDIMENTOS'!#REF!,AU80*(1-'DADOS DOS EMPREENDIMENTOS'!#REF!-'DADOS DOS EMPREENDIMENTOS'!#REF!)))) ->  | AX80: 34 | AY80: 2012-03-01 | AZ80: 0 | BA80: =IF(AX80<'DADOS DOS EMPREENDIMENTOS'!AZ$11,0,IF(AX80='DADOS DOS EMPREENDIMENTOS'!AZ$11,SUM(AZ$46:AZ80)*(1-'DADOS DOS EMPREENDIMENTOS'!#REF!-'DADOS DOS EMPREENDIMENTOS'!#REF!)+'DADOS DOS EMPREENDIMENTOS'!#REF!,IF(AX80='DADOS DOS EMPREENDIMENTOS'!#REF!,'DADOS DOS EMPREENDIMENTOS'!#REF!,AZ80*(1-'DADOS DOS EMPREENDIMENTOS'!#REF!-'DADOS DOS EMPREENDIMENTOS'!#REF!)))) ->  | BC80: 34 | BD80: 2012-03-01 | BE80: 0 | BF80: =IF(BC80<'DADOS DOS EMPREENDIMENTOS'!BE$11,0,IF(BC80='DADOS DOS EMPREENDIMENTOS'!BE$11,SUM(BE$46:BE80)*(1-'DADOS DOS EMPREENDIMENTOS'!#REF!-'DADOS DOS EMPREENDIMENTOS'!#REF!)+'DADOS DOS EMPREENDIMENTOS'!#REF!,IF(BC80='DADOS DOS EMPREENDIMENTOS'!#REF!,'DADOS DOS EMPREENDIMENTOS'!#REF!,BE80*(1-'DADOS DOS EMPREENDIMENTOS'!#REF!-'DADOS DOS EMPREENDIMENTOS'!#REF!)))) ->  | BH80: 34 | BI80: 2012-03-01 | BJ80: 0 | BK80: =IF(BH80<'DADOS DOS EMPREENDIMENTOS'!BJ$11,0,IF(BH80='DADOS DOS EMPREENDIMENTOS'!BJ$11,SUM(BJ$46:BJ80)*(1-'DADOS DOS EMPREENDIMENTOS'!#REF!-'DADOS DOS EMPREENDIMENTOS'!#REF!)+'DADOS DOS EMPREENDIMENTOS'!#REF!,IF(BH80='DADOS DOS EMPREENDIMENTOS'!#REF!,'DADOS DOS EMPREENDIMENTOS'!#REF!,BJ80*(1-'DADOS DOS EMPREENDIMENTOS'!#REF!-'DADOS DOS EMPREENDIMENTOS'!#REF!)))) ->  | BM80: 34 | BN80: 2012-03-01 | BO80: 0 | BP80: =IF(BM80<'DADOS DOS EMPREENDIMENTOS'!BO$11,0,IF(BM80='DADOS DOS EMPREENDIMENTOS'!BO$11,SUM(BO$46:BO80)*(1-'DADOS DOS EMPREENDIMENTOS'!#REF!-'DADOS DOS EMPREENDIMENTOS'!#REF!)+'DADOS DOS EMPREENDIMENTOS'!#REF!,IF(BM80='DADOS DOS EMPREENDIMENTOS'!BO$12,'DADOS DOS EMPREENDIMENTOS'!#REF!,BO80*(1-'DADOS DOS EMPREENDIMENTOS'!#REF!-'DADOS DOS EMPREENDIMENTOS'!#REF!)))) ->  | BR80: 34 | BS80: 2012-03-01 | BT80: 0 | BU80: =IF(BR80<'DADOS DOS EMPREENDIMENTOS'!BT$11,0,IF(BR80='DADOS DOS EMPREENDIMENTOS'!BT$11,SUM(BT$46:BT80)*(1-'DADOS DOS EMPREENDIMENTOS'!#REF!-'DADOS DOS EMPREENDIMENTOS'!#REF!)+'DADOS DOS EMPREENDIMENTOS'!#REF!,IF(BR80='DADOS DOS EMPREENDIMENTOS'!BT$12,'DADOS DOS EMPREENDIMENTOS'!#REF!,BT80*(1-'DADOS DOS EMPREENDIMENTOS'!#REF!-'DADOS DOS EMPREENDIMENTOS'!#REF!)))) ->  | BW80: 34 | BX80: 2012-03-01 | BY80: 0 | BZ80: =IF(BW80<'DADOS DOS EMPREENDIMENTOS'!BY$11,0,IF(BW80='DADOS DOS EMPREENDIMENTOS'!BY$11,SUM(BY$46:BY80)*(1-'DADOS DOS EMPREENDIMENTOS'!#REF!-'DADOS DOS EMPREENDIMENTOS'!#REF!)+'DADOS DOS EMPREENDIMENTOS'!#REF!,IF(BW80='DADOS DOS EMPREENDIMENTOS'!BY$12,'DADOS DOS EMPREENDIMENTOS'!#REF!,BY80*(1-'DADOS DOS EMPREENDIMENTOS'!#REF!-'DADOS DOS EMPREENDIMENTOS'!#REF!)))) ->  | CB80: 34 | CC80: 2012-03-01 | CD80: 0 | CE80: =IF(CB80<'DADOS DOS EMPREENDIMENTOS'!CD$11,0,IF(CB80='DADOS DOS EMPREENDIMENTOS'!CD$11,SUM(CD$46:CD80)*(1-'DADOS DOS EMPREENDIMENTOS'!#REF!-'DADOS DOS EMPREENDIMENTOS'!#REF!)+'DADOS DOS EMPREENDIMENTOS'!#REF!,IF(CB80='DADOS DOS EMPREENDIMENTOS'!CD$12,'DADOS DOS EMPREENDIMENTOS'!#REF!,CD80*(1-'DADOS DOS EMPREENDIMENTOS'!#REF!-'DADOS DOS EMPREENDIMENTOS'!#REF!)))) -> 
O81: 35 | T81: 35 | Y81: 35 | AD81: 35 | AE81: 2012-04-01 | AF81: 0 | AG81: =IF(AD81<'DADOS DOS EMPREENDIMENTOS'!AF$11,0,IF(AD81='DADOS DOS EMPREENDIMENTOS'!AF$11,SUM(AF$46:AF81)*(1-'DADOS DOS EMPREENDIMENTOS'!#REF!-'DADOS DOS EMPREENDIMENTOS'!#REF!)+'DADOS DOS EMPREENDIMENTOS'!#REF!,IF(AD81='DADOS DOS EMPREENDIMENTOS'!#REF!,'DADOS DOS EMPREENDIMENTOS'!#REF!,AF81*(1-'DADOS DOS EMPREENDIMENTOS'!#REF!-'DADOS DOS EMPREENDIMENTOS'!#REF!)))) ->  | AI81: 35 | AJ81: 2012-04-01 | AK81: 0 | AL81: =IF(AI81<'DADOS DOS EMPREENDIMENTOS'!AK$11,0,IF(AI81='DADOS DOS EMPREENDIMENTOS'!AK$11,SUM(AK$46:AK81)*(1-'DADOS DOS EMPREENDIMENTOS'!#REF!-'DADOS DOS EMPREENDIMENTOS'!#REF!)+'DADOS DOS EMPREENDIMENTOS'!#REF!,IF(AI81='DADOS DOS EMPREENDIMENTOS'!#REF!,'DADOS DOS EMPREENDIMENTOS'!#REF!,AK81*(1-'DADOS DOS EMPREENDIMENTOS'!#REF!-'DADOS DOS EMPREENDIMENTOS'!#REF!)))) ->  | AN81: 35 | AO81: 2012-04-01 | AP81: 0 | AQ81: =IF(AN81<'DADOS DOS EMPREENDIMENTOS'!AP$11,0,IF(AN81='DADOS DOS EMPREENDIMENTOS'!AP$11,SUM(AP$46:AP81)*(1-'DADOS DOS EMPREENDIMENTOS'!#REF!-'DADOS DOS EMPREENDIMENTOS'!#REF!)+'DADOS DOS EMPREENDIMENTOS'!#REF!,IF(AN81='DADOS DOS EMPREENDIMENTOS'!#REF!,'DADOS DOS EMPREENDIMENTOS'!#REF!,AP81*(1-'DADOS DOS EMPREENDIMENTOS'!#REF!-'DADOS DOS EMPREENDIMENTOS'!#REF!)))) ->  | AS81: 35 | AT81: 2012-04-01 | AU81: 0 | AV81: =IF(AS81<'DADOS DOS EMPREENDIMENTOS'!AU$11,0,IF(AS81='DADOS DOS EMPREENDIMENTOS'!AU$11,SUM(AU$46:AU81)*(1-'DADOS DOS EMPREENDIMENTOS'!#REF!-'DADOS DOS EMPREENDIMENTOS'!#REF!)+'DADOS DOS EMPREENDIMENTOS'!#REF!,IF(AS81='DADOS DOS EMPREENDIMENTOS'!#REF!,'DADOS DOS EMPREENDIMENTOS'!#REF!,AU81*(1-'DADOS DOS EMPREENDIMENTOS'!#REF!-'DADOS DOS EMPREENDIMENTOS'!#REF!)))) ->  | AX81: 35 | AY81: 2012-04-01 | AZ81: 0 | BA81: =IF(AX81<'DADOS DOS EMPREENDIMENTOS'!AZ$11,0,IF(AX81='DADOS DOS EMPREENDIMENTOS'!AZ$11,SUM(AZ$46:AZ81)*(1-'DADOS DOS EMPREENDIMENTOS'!#REF!-'DADOS DOS EMPREENDIMENTOS'!#REF!)+'DADOS DOS EMPREENDIMENTOS'!#REF!,IF(AX81='DADOS DOS EMPREENDIMENTOS'!#REF!,'DADOS DOS EMPREENDIMENTOS'!#REF!,AZ81*(1-'DADOS DOS EMPREENDIMENTOS'!#REF!-'DADOS DOS EMPREENDIMENTOS'!#REF!)))) ->  | BC81: 35 | BD81: 2012-04-01 | BE81: 0 | BF81: =IF(BC81<'DADOS DOS EMPREENDIMENTOS'!BE$11,0,IF(BC81='DADOS DOS EMPREENDIMENTOS'!BE$11,SUM(BE$46:BE81)*(1-'DADOS DOS EMPREENDIMENTOS'!#REF!-'DADOS DOS EMPREENDIMENTOS'!#REF!)+'DADOS DOS EMPREENDIMENTOS'!#REF!,IF(BC81='DADOS DOS EMPREENDIMENTOS'!#REF!,'DADOS DOS EMPREENDIMENTOS'!#REF!,BE81*(1-'DADOS DOS EMPREENDIMENTOS'!#REF!-'DADOS DOS EMPREENDIMENTOS'!#REF!)))) ->  | BH81: 35 | BI81: 2012-04-01 | BJ81: 0 | BK81: =IF(BH81<'DADOS DOS EMPREENDIMENTOS'!BJ$11,0,IF(BH81='DADOS DOS EMPREENDIMENTOS'!BJ$11,SUM(BJ$46:BJ81)*(1-'DADOS DOS EMPREENDIMENTOS'!#REF!-'DADOS DOS EMPREENDIMENTOS'!#REF!)+'DADOS DOS EMPREENDIMENTOS'!#REF!,IF(BH81='DADOS DOS EMPREENDIMENTOS'!#REF!,'DADOS DOS EMPREENDIMENTOS'!#REF!,BJ81*(1-'DADOS DOS EMPREENDIMENTOS'!#REF!-'DADOS DOS EMPREENDIMENTOS'!#REF!)))) ->  | BM81: 35 | BN81: 2012-04-01 | BO81: 0 | BP81: =IF(BM81<'DADOS DOS EMPREENDIMENTOS'!BO$11,0,IF(BM81='DADOS DOS EMPREENDIMENTOS'!BO$11,SUM(BO$46:BO81)*(1-'DADOS DOS EMPREENDIMENTOS'!#REF!-'DADOS DOS EMPREENDIMENTOS'!#REF!)+'DADOS DOS EMPREENDIMENTOS'!#REF!,IF(BM81='DADOS DOS EMPREENDIMENTOS'!BO$12,'DADOS DOS EMPREENDIMENTOS'!#REF!,BO81*(1-'DADOS DOS EMPREENDIMENTOS'!#REF!-'DADOS DOS EMPREENDIMENTOS'!#REF!)))) ->  | BR81: 35 | BS81: 2012-04-01 | BT81: 0 | BU81: =IF(BR81<'DADOS DOS EMPREENDIMENTOS'!BT$11,0,IF(BR81='DADOS DOS EMPREENDIMENTOS'!BT$11,SUM(BT$46:BT81)*(1-'DADOS DOS EMPREENDIMENTOS'!#REF!-'DADOS DOS EMPREENDIMENTOS'!#REF!)+'DADOS DOS EMPREENDIMENTOS'!#REF!,IF(BR81='DADOS DOS EMPREENDIMENTOS'!BT$12,'DADOS DOS EMPREENDIMENTOS'!#REF!,BT81*(1-'DADOS DOS EMPREENDIMENTOS'!#REF!-'DADOS DOS EMPREENDIMENTOS'!#REF!)))) ->  | BW81: 35 | BX81: 2012-04-01 | BY81: 0 | BZ81: =IF(BW81<'DADOS DOS EMPREENDIMENTOS'!BY$11,0,IF(BW81='DADOS DOS EMPREENDIMENTOS'!BY$11,SUM(BY$46:BY81)*(1-'DADOS DOS EMPREENDIMENTOS'!#REF!-'DADOS DOS EMPREENDIMENTOS'!#REF!)+'DADOS DOS EMPREENDIMENTOS'!#REF!,IF(BW81='DADOS DOS EMPREENDIMENTOS'!BY$12,'DADOS DOS EMPREENDIMENTOS'!#REF!,BY81*(1-'DADOS DOS EMPREENDIMENTOS'!#REF!-'DADOS DOS EMPREENDIMENTOS'!#REF!)))) ->  | CB81: 35 | CC81: 2012-04-01 | CD81: 0 | CE81: =IF(CB81<'DADOS DOS EMPREENDIMENTOS'!CD$11,0,IF(CB81='DADOS DOS EMPREENDIMENTOS'!CD$11,SUM(CD$46:CD81)*(1-'DADOS DOS EMPREENDIMENTOS'!#REF!-'DADOS DOS EMPREENDIMENTOS'!#REF!)+'DADOS DOS EMPREENDIMENTOS'!#REF!,IF(CB81='DADOS DOS EMPREENDIMENTOS'!CD$12,'DADOS DOS EMPREENDIMENTOS'!#REF!,CD81*(1-'DADOS DOS EMPREENDIMENTOS'!#REF!-'DADOS DOS EMPREENDIMENTOS'!#REF!)))) -> 
